Workbook

Sheet 00. MENU
B6: CONCESSÃO DE TRANSPORTE COLETIVO DE PONTA GROSSA
B7: 01. PC
B8: Painel de controle das principais variáveis do modelo. Nesta aba é possível alterar variáveis como prazo do projeto, NIG, WACC, VPL e etc. Além de alterar as premissas, é possível ver os principais outputs do modelo.
B9: 02 (a). FCL Agregado
B10: Apresenta o Fluxo de Caixa Livre do Projeto consolidado. O resultado obtido pode ser alterado a depender do que é selecionado no Painel de Controle.
B11: 02 (b). FCL por Terminal
B12: Apresenta o Fluxo de Caixa Livre do Projeto segregado por terminal. O resultado obtido pode ser alterado a depender do que é selecionado no Painel de Controle.
B13: 03. WACC
B14: Cálculo do Custo Médio Ponderado de Capital (Weighted Average Capital Cost) de referência para o Projeto.
B15: 04. D&A
B16: Calcula a depreciação e amortização fiscais dos ativos.
B17: 05. NIG
B18: Calcula a necessidade de investimento no giro.
B19: 06. CAPEX
B20: Detalhamento dos valores de CAPEX.
B21: 07. OPEX
B22: Aba de entrada dos inputs relacionados à operação. Utilizada para inserir os valores na moeda de referência dos preços.
B23: 08. (a)TRIBUTOS LREAL
B24: Calcula os tributos do regime fiscal de Lucro Real para cada ano para o FCL do Projeto.
B25: 08. (b)TRIBUTOS LPRESUMID
B26: Calcula os tributos do regime fiscal de Lucro Presumido para cada ano para o FCL do Projeto.
B27: 09. RECEITA E DEMANDA
B28: Calcula a previsão de receita com base na receita de aluguel estimada.
B29: 10. SENSIBILIDADE
B30: Calcula o impacto nos principais indicadores do Projeto, quando da variação da Receita, OPEX, CAPEX e encargos.
B31: 11. ÍNDICES
B32: Relação de índices econômicos publicados.
B35: Padrão de formatação utilizado - Legenda
B36: Células com fundo amarelo e fonte azul | F36: Inputs (Podem ser alteradas)
B37: Células com fonte verde | F37: Células que têm origem em outra aba (Não alterar)
B38: Células com fonte preta | F38: Fórmulas (Não alterar)

Sheet 01. PC
Q3: sim | R3: não
Q4: sim | R4: não
Q5: sim | R5: não
Q6: sim | R6: não
B7: Premissas | C7: Valor
B9: WACC - % a.a. | C9: ='03. WACC '!C27 -> 0.08411311767
B11: TIR de Projeto - Real | C11: ='02 (a). FCL Agregado'!C51 -> 
B13: VPL - R$ Milhões | C13: ='02 (a). FCL Agregado'!C52 -> -130.4663505
B15: NIG - meses | C15: 1
B17: Prazo - em anos | C17: 20
B19: Vacância | C19: 0.04
B21: Inadimplência | C21: 0.09
B23: Correção OPEX | F23: Regra para correção OPEX
B25: Pessoal | C25: IPCA | F25: IPCA
B26: Materiais | C26: IPCA | F26: IPCA
B27: Eletricidade, Água e Esgoto | C27: IPCA | F27: IPCA
B29: Correção CAPEX
B31: Terminal Santa Paula - Construção de Terminal | C31: IPCA | F31: IPCA
B32: Terminais de Integração Eletrônica (TEI) | C32: IPCA | F32: IPCA
B33: Terminal Central - Construção de Áreas Comerciais* | C33: IPCA | F33: IPCA
B34: Terminal Uvaranas - Construção de Áreas Comerciais | C34: IPCA | F34: IPCA
B35: Terminal Oficinas - Construção de Áreas Comerciais | C35: IPCA | F35: IPCA
B36: Terminal Nova Rússia - Construção de Áreas Comerciais* | C36: IPCA | F36: IPCA
B37: Terminal Santa Paula - Construção de Áreas Comerciais | C37: IPCA | F37: IPCA
B39: Correção Receita
B41: Receita de Aluguel | C41: IPCA | F41: IPCA
B42: Inadimplência Aluguel | C42: IPCA | F42: IPCA
B44: Premissas Marcoeconômicas | C44: 1 | D44: =C44+1 -> 2 | E44: =D44+1 -> 3 | F44: 4 | G44: 5 | H44: 6 | I44: 7 | J44: 8 | K44: 9 | L44: 10 | M44: 11 | N44: 12 | O44: 13 | P44: 14 | Q44: 15 | R44: 16 | S44: 17 | T44: 18 | U44: 19 | V44: 20 | W44: 21 | X44: 22 | Y44: 23 | Z44: 24 | AA44: 25
B46: Projeção de Inflação anual | C46: 0.0501 | D46: 0.0325 | E46: 0.03 | F46: =E46 -> 0.03 | G46: =F46 -> 0.03 | H46: 0.03 | I46: 0.03 | J46: 0.03 | K46: 0.03 | L46: 0.03 | M46: 0.03 | N46: 0.03 | O46: 0.03 | P46: 0.03 | Q46: 0.03 | R46: 0.03 | S46: 0.03 | T46: 0.03 | U46: 0.03 | V46: 0.03 | W46: 0.03 | X46: 0.03 | Y46: 0.03 | Z46: 0.03 | AA46: 0.03
B47: Fonte: BACEN

Sheet 02 (a). FCL Agregado
B6: Fluxo de Caixa Livre (R$ Milhões)
B8: PRAZO | C8: =IF(C10<=('01. PC'!$C$17),1,0) -> 1 | D8: =IF(D10<=('01. PC'!$C$17),1,0) -> 1 | E8: =IF(E10<=('01. PC'!$C$17),1,0) -> 1 | F8: =IF(F10<=('01. PC'!$C$17),1,0) -> 1 | G8: =IF(G10<=('01. PC'!$C$17),1,0) -> 1 | H8: =IF(H10<=('01. PC'!$C$17),1,0) -> 1 | I8: =IF(I10<=('01. PC'!$C$17),1,0) -> 1 | J8: =IF(J10<=('01. PC'!$C$17),1,0) -> 1 | K8: =IF(K10<=('01. PC'!$C$17),1,0) -> 1 | L8: =IF(L10<=('01. PC'!$C$17),1,0) -> 1 | M8: =IF(M10<=('01. PC'!$C$17),1,0) -> 1 | N8: =IF(N10<=('01. PC'!$C$17),1,0) -> 1 | O8: =IF(O10<=('01. PC'!$C$17),1,0) -> 1 | P8: =IF(P10<=('01. PC'!$C$17),1,0) -> 1 | Q8: =IF(Q10<=('01. PC'!$C$17),1,0) -> 1 | R8: =IF(R10<=('01. PC'!$C$17),1,0) -> 1 | S8: =IF(S10<=('01. PC'!$C$17),1,0) -> 1 | T8: =IF(T10<=('01. PC'!$C$17),1,0) -> 1 | U8: =IF(U10<=('01. PC'!$C$17),1,0) -> 1 | V8: =IF(V10<=('01. PC'!$C$17),1,0) -> 1
B10: ANO | C10: 1 | D10: =C10+1 -> 2 | E10: =D10+1 -> 3 | F10: 4 | G10: 5 | H10: 6 | I10: 7 | J10: 8 | K10: 9 | L10: 10 | M10: =L10+1 -> 11 | N10: =M10+1 -> 12 | O10: =N10+1 -> 13 | P10: =O10+1 -> 14 | Q10: =P10+1 -> 15 | R10: =Q10+1 -> 16 | S10: =R10+1 -> 17 | T10: =S10+1 -> 18 | U10: =T10+1 -> 19 | V10: =U10+1 -> 20 | X10: TOTAL | Z10: VPL
B12: Receitas | C12: =(C14+C15+C16+C17+C18)*C$8 -> 0.02562001762 | D12: =(D14+D15+D16+D17+D18)*D$8 -> 0.621585645 | E12: 0.621585645 | F12: 0.621585645 | G12: 0.621585645 | H12: 0.621585645 | I12: 0.621585645 | J12: 0.621585645 | K12: 0.621585645 | L12: 0.621585645 | M12: =(M14+M15+M16+M17+M18)*M$8 -> 0.621585645 | N12: 0.621585645 | O12: 0.621585645 | P12: 0.621585645 | Q12: 0.621585645 | R12: 0.621585645 | S12: 0.621585645 | T12: 0.621585645 | U12: 0.621585645 | V12: 0.621585645 | X12: =SUM(C12:V12) -> 11.83574727 | Z12: =NPV('01. PC'!$C$9,'02 (a). FCL Agregado'!D12:V12)+'02 (a). FCL Agregado'!C12 -> 5.822482655
B14: Terminal Central | C14: ='09. RECEITA'!C12 -> 0.02020947947 | D14: ='09. RECEITA'!D12 -> 0.02020947947 | E14: ='09. RECEITA'!E12 -> 0.02020947947 | F14: ='09. RECEITA'!F12 -> 0.02020947947 | G14: ='09. RECEITA'!G12 -> 0.02020947947 | H14: ='09. RECEITA'!H12 -> 0.02020947947 | I14: ='09. RECEITA'!I12 -> 0.02020947947 | J14: ='09. RECEITA'!J12 -> 0.02020947947 | K14: ='09. RECEITA'!K12 -> 0.02020947947 | L14: ='09. RECEITA'!L12 -> 0.02020947947 | M14: ='09. RECEITA'!M12 -> 0.02020947947 | N14: ='09. RECEITA'!N12 -> 0.02020947947 | O14: ='09. RECEITA'!O12 -> 0.02020947947 | P14: ='09. RECEITA'!P12 -> 0.02020947947 | Q14: ='09. RECEITA'!Q12 -> 0.02020947947 | R14: ='09. RECEITA'!R12 -> 0.02020947947 | S14: ='09. RECEITA'!S12 -> 0.02020947947 | T14: ='09. RECEITA'!T12 -> 0.02020947947 | U14: ='09. RECEITA'!U12 -> 0.02020947947 | V14: ='09. RECEITA'!V12 -> 0.02020947947 | X14: =SUM(C14:V14) -> 0.4041895895 | Z14: =NPV('01. PC'!$C$9,'02 (a). FCL Agregado'!D14:V14)+'02 (a). FCL Agregado'!C14 -> 0.2086816191
B15: Terminal Uvaranas | C15: ='09. RECEITA'!C24 -> 0 | D15: ='09. RECEITA'!D24 -> 0.2238162429 | E15: ='09. RECEITA'!E24 -> 0.2238162429 | F15: ='09. RECEITA'!F24 -> 0.2238162429 | G15: ='09. RECEITA'!G24 -> 0.2238162429 | H15: ='09. RECEITA'!H24 -> 0.2238162429 | I15: ='09. RECEITA'!I24 -> 0.2238162429 | J15: ='09. RECEITA'!J24 -> 0.2238162429 | K15: ='09. RECEITA'!K24 -> 0.2238162429 | L15: ='09. RECEITA'!L24 -> 0.2238162429 | M15: ='09. RECEITA'!M24 -> 0.2238162429 | N15: ='09. RECEITA'!N24 -> 0.2238162429 | O15: ='09. RECEITA'!O24 -> 0.2238162429 | P15: ='09. RECEITA'!P24 -> 0.2238162429 | Q15: ='09. RECEITA'!Q24 -> 0.2238162429 | R15: ='09. RECEITA'!R24 -> 0.2238162429 | S15: ='09. RECEITA'!S24 -> 0.2238162429 | T15: ='09. RECEITA'!T24 -> 0.2238162429 | U15: ='09. RECEITA'!U24 -> 0.2238162429 | V15: ='09. RECEITA'!V24 -> 0.2238162429 | X15: 4.252508616 | Z15: =NPV('01. PC'!$C$9,'02 (a). FCL Agregado'!D15:V15)+'02 (a). FCL Agregado'!C15 -> 2.087294047
B16: Terminal Oficinas | C16: ='09. RECEITA'!C36 -> 0 | D16: ='09. RECEITA'!D36 -> 0.1587264162 | E16: ='09. RECEITA'!E36 -> 0.1587264162 | F16: ='09. RECEITA'!F36 -> 0.1587264162 | G16: ='09. RECEITA'!G36 -> 0.1587264162 | H16: ='09. RECEITA'!H36 -> 0.1587264162 | I16: ='09. RECEITA'!I36 -> 0.1587264162 | J16: ='09. RECEITA'!J36 -> 0.1587264162 | K16: ='09. RECEITA'!K36 -> 0.1587264162 | L16: ='09. RECEITA'!L36 -> 0.1587264162 | M16: ='09. RECEITA'!M36 -> 0.1587264162 | N16: ='09. RECEITA'!N36 -> 0.1587264162 | O16: ='09. RECEITA'!O36 -> 0.1587264162 | P16: ='09. RECEITA'!P36 -> 0.1587264162 | Q16: ='09. RECEITA'!Q36 -> 0.1587264162 | R16: ='09. RECEITA'!R36 -> 0.1587264162 | S16: ='09. RECEITA'!S36 -> 0.1587264162 | T16: ='09. RECEITA'!T36 -> 0.1587264162 | U16: ='09. RECEITA'!U36 -> 0.1587264162 | V16: ='09. RECEITA'!V36 -> 0.1587264162 | X16: 3.015801908 | Z16: =NPV('01. PC'!$C$9,'02 (a). FCL Agregado'!D16:V16)+'02 (a). FCL Agregado'!C16 -> 1.480271044
B17: Terminal Nova Rússia | C17: ='09. RECEITA'!C48 -> 0.005410538147 | D17: ='09. RECEITA'!D48 -> 0.005410538147 | E17: ='09. RECEITA'!E48 -> 0.005410538147 | F17: ='09. RECEITA'!F48 -> 0.005410538147 | G17: ='09. RECEITA'!G48 -> 0.005410538147 | H17: ='09. RECEITA'!H48 -> 0.005410538147 | I17: ='09. RECEITA'!I48 -> 0.005410538147 | J17: ='09. RECEITA'!J48 -> 0.005410538147 | K17: ='09. RECEITA'!K48 -> 0.005410538147 | L17: ='09. RECEITA'!L48 -> 0.005410538147 | M17: ='09. RECEITA'!M48 -> 0.005410538147 | N17: ='09. RECEITA'!N48 -> 0.005410538147 | O17: ='09. RECEITA'!O48 -> 0.005410538147 | P17: ='09. RECEITA'!P48 -> 0.005410538147 | Q17: ='09. RECEITA'!Q48 -> 0.005410538147 | R17: ='09. RECEITA'!R48 -> 0.005410538147 | S17: ='09. RECEITA'!S48 -> 0.005410538147 | T17: ='09. RECEITA'!T48 -> 0.005410538147 | U17: ='09. RECEITA'!U48 -> 0.005410538147 | V17: ='09. RECEITA'!V48 -> 0.005410538147 | X17: 0.1082107629 | Z17: =NPV('01. PC'!$C$9,'02 (a). FCL Agregado'!D17:V17)+'02 (a). FCL Agregado'!C17 -> 0.05586882445
B18: Terminal Santa Paula | C18: ='09. RECEITA'!C60 -> 0 | D18: ='09. RECEITA'!D60 -> 0.2134229682 | E18: ='09. RECEITA'!E60 -> 0.2134229682 | F18: ='09. RECEITA'!F60 -> 0.2134229682 | G18: ='09. RECEITA'!G60 -> 0.2134229682 | H18: ='09. RECEITA'!H60 -> 0.2134229682 | I18: ='09. RECEITA'!I60 -> 0.2134229682 | J18: ='09. RECEITA'!J60 -> 0.2134229682 | K18: ='09. RECEITA'!K60 -> 0.2134229682 | L18: ='09. RECEITA'!L60 -> 0.2134229682 | M18: ='09. RECEITA'!M60 -> 0.2134229682 | N18: ='09. RECEITA'!N60 -> 0.2134229682 | O18: ='09. RECEITA'!O60 -> 0.2134229682 | P18: ='09. RECEITA'!P60 -> 0.2134229682 | Q18: ='09. RECEITA'!Q60 -> 0.2134229682 | R18: ='09. RECEITA'!R60 -> 0.2134229682 | S18: ='09. RECEITA'!S60 -> 0.2134229682 | T18: ='09. RECEITA'!T60 -> 0.2134229682 | U18: ='09. RECEITA'!U60 -> 0.2134229682 | V18: ='09. RECEITA'!V60 -> 0.2134229682 | X18: 4.055036396 | Z18: =NPV('01. PC'!$C$9,'02 (a). FCL Agregado'!D18:V18)+'02 (a). FCL Agregado'!C18 -> 1.990367121
B19: Terminais de Integração Eletrônica | C19: ='09. RECEITA'!C72 -> 0 | D19: ='09. RECEITA'!D72 -> 0 | E19: ='09. RECEITA'!E72 -> 0 | F19: ='09. RECEITA'!F72 -> 0 | G19: ='09. RECEITA'!G72 -> 0 | H19: ='09. RECEITA'!H72 -> 0 | I19: ='09. RECEITA'!I72 -> 0 | J19: ='09. RECEITA'!J72 -> 0 | K19: ='09. RECEITA'!K72 -> 0 | L19: ='09. RECEITA'!L72 -> 0 | M19: ='09. RECEITA'!M72 -> 0 | N19: ='09. RECEITA'!N72 -> 0 | O19: ='09. RECEITA'!O72 -> 0 | P19: ='09. RECEITA'!P72 -> 0 | Q19: ='09. RECEITA'!Q72 -> 0 | R19: ='09. RECEITA'!R72 -> 0 | S19: ='09. RECEITA'!S72 -> 0 | T19: ='09. RECEITA'!T72 -> 0 | U19: ='09. RECEITA'!U72 -> 0 | V19: ='09. RECEITA'!V72 -> 0 | X19: 0 | Z19: =NPV('01. PC'!$C$9,'02 (a). FCL Agregado'!D19:V19)+'02 (a). FCL Agregado'!C19 -> 0
B21: Opex | C21: =(C23+C24+C25+C26+C27+C28)*C$8 -> -7.37793099 | D21: =(D23+D24+D25+D26+D27+D28)*D$8 -> -8.874412794 | E21: -8.874412794 | F21: -8.874412794 | G21: -8.874412794 | H21: -8.874412794 | I21: -8.874412794 | J21: -8.874412794 | K21: -8.874412794 | L21: -8.874412794 | M21: -8.874412794 | N21: -8.874412794 | O21: -8.874412794 | P21: -8.874412794 | Q21: -8.874412794 | R21: -8.874412794 | S21: -8.874412794 | T21: -8.874412794 | U21: -8.874412794 | V21: -8.874412794 | X21: =SUM(C21:V21) -> -175.9917741 | Z21: =NPV('01. PC'!$C$9,'02 (a). FCL Agregado'!D21:V21)+'02 (a). FCL Agregado'!C21 -> -90.140061
B23: Terminal Central | C23: =-'07. OPEX'!C12 -> -2.606752458 | D23: =-'07. OPEX'!D12 -> -2.606752458 | E23: =-'07. OPEX'!E12 -> -2.606752458 | F23: =-'07. OPEX'!F12 -> -2.606752458 | G23: =-'07. OPEX'!G12 -> -2.606752458 | H23: =-'07. OPEX'!H12 -> -2.606752458 | I23: =-'07. OPEX'!I12 -> -2.606752458 | J23: =-'07. OPEX'!J12 -> -2.606752458 | K23: =-'07. OPEX'!K12 -> -2.606752458 | L23: =-'07. OPEX'!L12 -> -2.606752458 | M23: =-'07. OPEX'!M12 -> -2.606752458 | N23: =-'07. OPEX'!N12 -> -2.606752458 | O23: =-'07. OPEX'!O12 -> -2.606752458 | P23: =-'07. OPEX'!P12 -> -2.606752458 | Q23: =-'07. OPEX'!Q12 -> -2.606752458 | R23: =-'07. OPEX'!R12 -> -2.606752458 | S23: =-'07. OPEX'!S12 -> -2.606752458 | T23: =-'07. OPEX'!T12 -> -2.606752458 | U23: =-'07. OPEX'!U12 -> -2.606752458 | V23: =-'07. OPEX'!V12 -> -2.606752458 | X23: =SUM(C23:V23) -> -52.13504916 | Z23: =NPV('01. PC'!$C$9,'02 (a). FCL Agregado'!D23:V23)+'02 (a). FCL Agregado'!C23 -> -26.9171368
B24: Terminal Uvaranas | C24: =-'07. OPEX'!C79 -> -1.496481804 | D24: =-'07. OPEX'!D79 -> -1.496481804 | E24: =-'07. OPEX'!E79 -> -1.496481804 | F24: =-'07. OPEX'!F79 -> -1.496481804 | G24: =-'07. OPEX'!G79 -> -1.496481804 | H24: =-'07. OPEX'!H79 -> -1.496481804 | I24: =-'07. OPEX'!I79 -> -1.496481804 | J24: =-'07. OPEX'!J79 -> -1.496481804 | K24: =-'07. OPEX'!K79 -> -1.496481804 | L24: =-'07. OPEX'!L79 -> -1.496481804 | M24: =-'07. OPEX'!M79 -> -1.496481804 | N24: =-'07. OPEX'!N79 -> -1.496481804 | O24: =-'07. OPEX'!O79 -> -1.496481804 | P24: =-'07. OPEX'!P79 -> -1.496481804 | Q24: =-'07. OPEX'!Q79 -> -1.496481804 | R24: =-'07. OPEX'!R79 -> -1.496481804 | S24: =-'07. OPEX'!S79 -> -1.496481804 | T24: =-'07. OPEX'!T79 -> -1.496481804 | U24: =-'07. OPEX'!U79 -> -1.496481804 | V24: =-'07. OPEX'!V79 -> -1.496481804 | X24: -29.92963608 | Z24: =NPV('01. PC'!$C$9,'02 (a). FCL Agregado'!D24:V24)+'02 (a). FCL Agregado'!C24 -> -15.45256256
B25: Terminal Oficinas | C25: =-'07. OPEX'!C146 -> -1.496481804 | D25: =-'07. OPEX'!D146 -> -1.496481804 | E25: =-'07. OPEX'!E146 -> -1.496481804 | F25: =-'07. OPEX'!F146 -> -1.496481804 | G25: =-'07. OPEX'!G146 -> -1.496481804 | H25: =-'07. OPEX'!H146 -> -1.496481804 | I25: =-'07. OPEX'!I146 -> -1.496481804 | J25: =-'07. OPEX'!J146 -> -1.496481804 | K25: =-'07. OPEX'!K146 -> -1.496481804 | L25: =-'07. OPEX'!L146 -> -1.496481804 | M25: =-'07. OPEX'!M146 -> -1.496481804 | N25: =-'07. OPEX'!N146 -> -1.496481804 | O25: =-'07. OPEX'!O146 -> -1.496481804 | P25: =-'07. OPEX'!P146 -> -1.496481804 | Q25: =-'07. OPEX'!Q146 -> -1.496481804 | R25: =-'07. OPEX'!R146 -> -1.496481804 | S25: =-'07. OPEX'!S146 -> -1.496481804 | T25: =-'07. OPEX'!T146 -> -1.496481804 | U25: =-'07. OPEX'!U146 -> -1.496481804 | V25: =-'07. OPEX'!V146 -> -1.496481804 | X25: -29.92963608 | Z25: =NPV('01. PC'!$C$9,'02 (a). FCL Agregado'!D25:V25)+'02 (a). FCL Agregado'!C25 -> -15.45256256
B26: Terminal Nova Rússia | C26: =-'07. OPEX'!C213 -> -1.496481804 | D26: =-'07. OPEX'!D213 -> -1.496481804 | E26: =-'07. OPEX'!E213 -> -1.496481804 | F26: =-'07. OPEX'!F213 -> -1.496481804 | G26: =-'07. OPEX'!G213 -> -1.496481804 | H26: =-'07. OPEX'!H213 -> -1.496481804 | I26: =-'07. OPEX'!I213 -> -1.496481804 | J26: =-'07. OPEX'!J213 -> -1.496481804 | K26: =-'07. OPEX'!K213 -> -1.496481804 | L26: =-'07. OPEX'!L213 -> -1.496481804 | M26: =-'07. OPEX'!M213 -> -1.496481804 | N26: =-'07. OPEX'!N213 -> -1.496481804 | O26: =-'07. OPEX'!O213 -> -1.496481804 | P26: =-'07. OPEX'!P213 -> -1.496481804 | Q26: =-'07. OPEX'!Q213 -> -1.496481804 | R26: =-'07. OPEX'!R213 -> -1.496481804 | S26: =-'07. OPEX'!S213 -> -1.496481804 | T26: =-'07. OPEX'!T213 -> -1.496481804 | U26: =-'07. OPEX'!U213 -> -1.496481804 | V26: =-'07. OPEX'!V213 -> -1.496481804 | X26: -29.92963608 | Z26: =NPV('01. PC'!$C$9,'02 (a). FCL Agregado'!D26:V26)+'02 (a). FCL Agregado'!C26 -> -15.45256256
B27: Terminal Santa Paula | C27: =-'07. OPEX'!C280 -> 0 | D27: =-'07. OPEX'!D280 -> -1.496481804 | E27: =-'07. OPEX'!E280 -> -1.496481804 | F27: =-'07. OPEX'!F280 -> -1.496481804 | G27: =-'07. OPEX'!G280 -> -1.496481804 | H27: =-'07. OPEX'!H280 -> -1.496481804 | I27: =-'07. OPEX'!I280 -> -1.496481804 | J27: =-'07. OPEX'!J280 -> -1.496481804 | K27: =-'07. OPEX'!K280 -> -1.496481804 | L27: =-'07. OPEX'!L280 -> -1.496481804 | M27: =-'07. OPEX'!M280 -> -1.496481804 | N27: =-'07. OPEX'!N280 -> -1.496481804 | O27: =-'07. OPEX'!O280 -> -1.496481804 | P27: =-'07. OPEX'!P280 -> -1.496481804 | Q27: =-'07. OPEX'!Q280 -> -1.496481804 | R27: =-'07. OPEX'!R280 -> -1.496481804 | S27: =-'07. OPEX'!S280 -> -1.496481804 | T27: =-'07. OPEX'!T280 -> -1.496481804 | U27: =-'07. OPEX'!U280 -> -1.496481804 | V27: =-'07. OPEX'!V280 -> -1.496481804 | X27: -28.43315428 | Z27: =NPV('01. PC'!$C$9,'02 (a). FCL Agregado'!D27:V27)+'02 (a). FCL Agregado'!C27 -> -13.95608076
B28: Terminais de Integração Eletrônica | C28: =-'07. OPEX'!C347 -> -0.28173312 | D28: =-'07. OPEX'!D347 -> -0.28173312 | E28: =-'07. OPEX'!E347 -> -0.28173312 | F28: =-'07. OPEX'!F347 -> -0.28173312 | G28: =-'07. OPEX'!G347 -> -0.28173312 | H28: =-'07. OPEX'!H347 -> -0.28173312 | I28: =-'07. OPEX'!I347 -> -0.28173312 | J28: =-'07. OPEX'!J347 -> -0.28173312 | K28: =-'07. OPEX'!K347 -> -0.28173312 | L28: =-'07. OPEX'!L347 -> -0.28173312 | M28: =-'07. OPEX'!M347 -> -0.28173312 | N28: =-'07. OPEX'!N347 -> -0.28173312 | O28: =-'07. OPEX'!O347 -> -0.28173312 | P28: =-'07. OPEX'!P347 -> -0.28173312 | Q28: =-'07. OPEX'!Q347 -> -0.28173312 | R28: =-'07. OPEX'!R347 -> -0.28173312 | S28: =-'07. OPEX'!S347 -> -0.28173312 | T28: =-'07. OPEX'!T347 -> -0.28173312 | U28: =-'07. OPEX'!U347 -> -0.28173312 | V28: =-'07. OPEX'!V347 -> -0.28173312 | X28: -5.6346624 | Z28: =NPV('01. PC'!$C$9,'02 (a). FCL Agregado'!D28:V28)+'02 (a). FCL Agregado'!C28 -> -2.909155761
B30: Capex | C30: =(C32+C33+C34+C35+C36+C37+C38)*C$8 -> -45.379471 | D30: =(D32+D33+D34+D35+D36+D37+D38)*D$8 -> 0 | E30: 0 | F30: 0 | G30: 0 | H30: 0 | I30: 0 | J30: 0 | K30: 0 | L30: 0 | M30: =(M32+M33+M34+M35+M36+M37+M38)*M$8 -> 0 | N30: 0 | O30: 0 | P30: 0 | Q30: 0 | R30: 0 | S30: 0 | T30: 0 | U30: 0 | V30: 0 | X30: =SUM(C30:V30) -> -45.379471 | Z30: =NPV('01. PC'!$C$9,'02 (a). FCL Agregado'!D30:V30)+'02 (a). FCL Agregado'!C30 -> -45.379471
B32: Terminal Santa Paula - Construção de Terminal | C32: =-'6. CAPEX'!C13 -> -36.3689 | D32: =-'6. CAPEX'!D13 -> 0 | E32: =-'6. CAPEX'!E13 -> 0 | F32: =-'6. CAPEX'!F13 -> 0 | G32: =-'6. CAPEX'!G13 -> 0 | H32: =-'6. CAPEX'!H13 -> 0 | I32: =-'6. CAPEX'!I13 -> 0 | J32: =-'6. CAPEX'!J13 -> 0 | K32: =-'6. CAPEX'!K13 -> 0 | L32: =-'6. CAPEX'!L13 -> 0 | M32: =-'6. CAPEX'!M13 -> 0 | N32: =-'6. CAPEX'!N13 -> 0 | O32: =-'6. CAPEX'!O13 -> 0 | P32: =-'6. CAPEX'!P13 -> 0 | Q32: =-'6. CAPEX'!Q13 -> 0 | R32: =-'6. CAPEX'!R13 -> 0 | S32: =-'6. CAPEX'!S13 -> 0 | T32: =-'6. CAPEX'!T13 -> 0 | U32: =-'6. CAPEX'!U13 -> 0 | V32: =-'6. CAPEX'!V13 -> 0 | X32: =SUM(C32:V32) -> -36.3689 | Z32: =NPV('01. PC'!$C$9,'02 (a). FCL Agregado'!D32:V32)+'02 (a). FCL Agregado'!C32 -> -36.3689
B33: Terminais de Integração Eletrônica (TEI) | C33: =-'6. CAPEX'!C23 -> -2.347776 | D33: =-'6. CAPEX'!D23 -> 0 | E33: =-'6. CAPEX'!E23 -> 0 | F33: =-'6. CAPEX'!F23 -> 0 | G33: =-'6. CAPEX'!G23 -> 0 | H33: =-'6. CAPEX'!H23 -> 0 | I33: =-'6. CAPEX'!I23 -> 0 | J33: =-'6. CAPEX'!J23 -> 0 | K33: =-'6. CAPEX'!K23 -> 0 | L33: =-'6. CAPEX'!L23 -> 0 | M33: =-'6. CAPEX'!M23 -> 0 | N33: =-'6. CAPEX'!N23 -> 0 | O33: =-'6. CAPEX'!O23 -> 0 | P33: =-'6. CAPEX'!P23 -> 0 | Q33: =-'6. CAPEX'!Q23 -> 0 | R33: =-'6. CAPEX'!R23 -> 0 | S33: =-'6. CAPEX'!S23 -> 0 | T33: =-'6. CAPEX'!T23 -> 0 | U33: =-'6. CAPEX'!U23 -> 0 | V33: =-'6. CAPEX'!V23 -> 0 | X33: -2.347776 | Z33: =NPV('01. PC'!$C$9,'02 (a). FCL Agregado'!D33:V33)+'02 (a). FCL Agregado'!C33 -> -2.347776
B34: Terminal Central - Construção de Áreas Comerciais* | C34: =-'6. CAPEX'!C53 -> 0 | D34: =-'6. CAPEX'!D53 -> 0 | E34: =-'6. CAPEX'!E53 -> 0 | F34: =-'6. CAPEX'!F53 -> 0 | G34: =-'6. CAPEX'!G53 -> 0 | H34: =-'6. CAPEX'!H53 -> 0 | I34: =-'6. CAPEX'!I53 -> 0 | J34: =-'6. CAPEX'!J53 -> 0 | K34: =-'6. CAPEX'!K53 -> 0 | L34: =-'6. CAPEX'!L53 -> 0 | M34: =-'6. CAPEX'!M53 -> 0 | N34: =-'6. CAPEX'!N53 -> 0 | O34: =-'6. CAPEX'!O53 -> 0 | P34: =-'6. CAPEX'!P53 -> 0 | Q34: =-'6. CAPEX'!Q53 -> 0 | R34: =-'6. CAPEX'!R53 -> 0 | S34: =-'6. CAPEX'!S53 -> 0 | T34: =-'6. CAPEX'!T53 -> 0 | U34: =-'6. CAPEX'!U53 -> 0 | V34: =-'6. CAPEX'!V53 -> 0 | X34: 0 | Z34: =NPV('01. PC'!$C$9,'02 (a). FCL Agregado'!D34:V34)+'02 (a). FCL Agregado'!C34 -> 0
B35: Terminal Uvaranas - Construção de Áreas Comerciais | C35: =-'6. CAPEX'!C57 -> -2.33596 | D35: =-'6. CAPEX'!D57 -> 0 | E35: =-'6. CAPEX'!E57 -> 0 | F35: =-'6. CAPEX'!F57 -> 0 | G35: =-'6. CAPEX'!G57 -> 0 | H35: =-'6. CAPEX'!H57 -> 0 | I35: =-'6. CAPEX'!I57 -> 0 | J35: =-'6. CAPEX'!J57 -> 0 | K35: =-'6. CAPEX'!K57 -> 0 | L35: =-'6. CAPEX'!L57 -> 0 | M35: =-'6. CAPEX'!M57 -> 0 | N35: =-'6. CAPEX'!N57 -> 0 | O35: =-'6. CAPEX'!O57 -> 0 | P35: =-'6. CAPEX'!P57 -> 0 | Q35: =-'6. CAPEX'!Q57 -> 0 | R35: =-'6. CAPEX'!R57 -> 0 | S35: =-'6. CAPEX'!S57 -> 0 | T35: =-'6. CAPEX'!T57 -> 0 | U35: =-'6. CAPEX'!U57 -> 0 | V35: =-'6. CAPEX'!V57 -> 0 | X35: -2.33596 | Z35: =NPV('01. PC'!$C$9,'02 (a). FCL Agregado'!D35:V35)+'02 (a). FCL Agregado'!C35 -> -2.33596
B36: Terminal Oficinas - Construção de Áreas Comerciais | C36: =-'6. CAPEX'!C61 -> -1.672335 | D36: =-'6. CAPEX'!D61 -> 0 | E36: =-'6. CAPEX'!E61 -> 0 | F36: =-'6. CAPEX'!F61 -> 0 | G36: =-'6. CAPEX'!G61 -> 0 | H36: =-'6. CAPEX'!H61 -> 0 | I36: =-'6. CAPEX'!I61 -> 0 | J36: =-'6. CAPEX'!J61 -> 0 | K36: =-'6. CAPEX'!K61 -> 0 | L36: =-'6. CAPEX'!L61 -> 0 | M36: =-'6. CAPEX'!M61 -> 0 | N36: =-'6. CAPEX'!N61 -> 0 | O36: =-'6. CAPEX'!O61 -> 0 | P36: =-'6. CAPEX'!P61 -> 0 | Q36: =-'6. CAPEX'!Q61 -> 0 | R36: =-'6. CAPEX'!R61 -> 0 | S36: =-'6. CAPEX'!S61 -> 0 | T36: =-'6. CAPEX'!T61 -> 0 | U36: =-'6. CAPEX'!U61 -> 0 | V36: =-'6. CAPEX'!V61 -> 0 | X36: -1.672335 | Z36: =NPV('01. PC'!$C$9,'02 (a). FCL Agregado'!D36:V36)+'02 (a). FCL Agregado'!C36 -> -1.672335
B37: Terminal Nova Rússia - Construção de Áreas Comerciais* | C37: =-'6. CAPEX'!C65 -> 0 | D37: =-'6. CAPEX'!D65 -> 0 | E37: =-'6. CAPEX'!E65 -> 0 | F37: =-'6. CAPEX'!F65 -> 0 | G37: =-'6. CAPEX'!G65 -> 0 | H37: =-'6. CAPEX'!H65 -> 0 | I37: =-'6. CAPEX'!I65 -> 0 | J37: =-'6. CAPEX'!J65 -> 0 | K37: =-'6. CAPEX'!K65 -> 0 | L37: =-'6. CAPEX'!L65 -> 0 | M37: =-'6. CAPEX'!M65 -> 0 | N37: =-'6. CAPEX'!N65 -> 0 | O37: =-'6. CAPEX'!O65 -> 0 | P37: =-'6. CAPEX'!P65 -> 0 | Q37: =-'6. CAPEX'!Q65 -> 0 | R37: =-'6. CAPEX'!R65 -> 0 | S37: =-'6. CAPEX'!S65 -> 0 | T37: =-'6. CAPEX'!T65 -> 0 | U37: =-'6. CAPEX'!U65 -> 0 | V37: =-'6. CAPEX'!V65 -> 0 | X37: 0 | Z37: =NPV('01. PC'!$C$9,'02 (a). FCL Agregado'!D37:V37)+'02 (a). FCL Agregado'!C37 -> 0
B38: Terminal Santa Paula - Construção de Áreas Comerciais | C38: =-'6. CAPEX'!C69 -> -2.6545 | D38: =-'6. CAPEX'!D69 -> 0 | E38: =-'6. CAPEX'!E69 -> 0 | F38: =-'6. CAPEX'!F69 -> 0 | G38: =-'6. CAPEX'!G69 -> 0 | H38: =-'6. CAPEX'!H69 -> 0 | I38: =-'6. CAPEX'!I69 -> 0 | J38: =-'6. CAPEX'!J69 -> 0 | K38: =-'6. CAPEX'!K69 -> 0 | L38: =-'6. CAPEX'!L69 -> 0 | M38: =-'6. CAPEX'!M69 -> 0 | N38: =-'6. CAPEX'!N69 -> 0 | O38: =-'6. CAPEX'!O69 -> 0 | P38: =-'6. CAPEX'!P69 -> 0 | Q38: =-'6. CAPEX'!Q69 -> 0 | R38: =-'6. CAPEX'!R69 -> 0 | S38: =-'6. CAPEX'!S69 -> 0 | T38: =-'6. CAPEX'!T69 -> 0 | U38: =-'6. CAPEX'!U69 -> 0 | V38: =-'6. CAPEX'!V69 -> 0 | X38: -2.6545 | Z38: =NPV('01. PC'!$C$9,'02 (a). FCL Agregado'!D38:V38)+'02 (a). FCL Agregado'!C38 -> -2.6545
B40: Tributos | C40: =-(C42+C43)*C$8 -> 0 | D40: =-(D42+D43)*D$8 -> 0 | E40: 0 | F40: 0 | G40: 0 | H40: 0 | I40: 0 | J40: 0 | K40: 0 | L40: 0 | M40: =-(M42+M43)*M$8 -> 0 | N40: 0 | O40: 0 | P40: 0 | Q40: 0 | R40: 0 | S40: 0 | T40: 0 | U40: 0 | V40: 0 | X40: =SUM(C40:V40) -> 0 | Z40: =NPV('01. PC'!$C$9,'02 (a). FCL Agregado'!D40:V40)+'02 (a). FCL Agregado'!C40 -> 0
B42: PIS/COFINS | C42: =IF('08. (a)TRIBUTOS LREAL'!C110="Real",'08. (a)TRIBUTOS LREAL'!C51,'08. (b)TRIBUTOS LPRESUMID'!C19) -> 0 | D42: =IF('08. (a)TRIBUTOS LREAL'!D110="Real",'08. (a)TRIBUTOS LREAL'!D51,'08. (b)TRIBUTOS LPRESUMID'!D19) -> 0 | E42: =IF('08. (a)TRIBUTOS LREAL'!E110="Real",'08. (a)TRIBUTOS LREAL'!E51,'08. (b)TRIBUTOS LPRESUMID'!E19) -> 0 | F42: =IF('08. (a)TRIBUTOS LREAL'!F110="Real",'08. (a)TRIBUTOS LREAL'!F51,'08. (b)TRIBUTOS LPRESUMID'!F19) -> 0 | G42: =IF('08. (a)TRIBUTOS LREAL'!G110="Real",'08. (a)TRIBUTOS LREAL'!G51,'08. (b)TRIBUTOS LPRESUMID'!G19) -> 0 | H42: =IF('08. (a)TRIBUTOS LREAL'!H110="Real",'08. (a)TRIBUTOS LREAL'!H51,'08. (b)TRIBUTOS LPRESUMID'!H19) -> 0 | I42: =IF('08. (a)TRIBUTOS LREAL'!I110="Real",'08. (a)TRIBUTOS LREAL'!I51,'08. (b)TRIBUTOS LPRESUMID'!I19) -> 0 | J42: =IF('08. (a)TRIBUTOS LREAL'!J110="Real",'08. (a)TRIBUTOS LREAL'!J51,'08. (b)TRIBUTOS LPRESUMID'!J19) -> 0 | K42: =IF('08. (a)TRIBUTOS LREAL'!K110="Real",'08. (a)TRIBUTOS LREAL'!K51,'08. (b)TRIBUTOS LPRESUMID'!K19) -> 0 | L42: =IF('08. (a)TRIBUTOS LREAL'!L110="Real",'08. (a)TRIBUTOS LREAL'!L51,'08. (b)TRIBUTOS LPRESUMID'!L19) -> 0 | M42: =IF('08. (a)TRIBUTOS LREAL'!M110="Real",'08. (a)TRIBUTOS LREAL'!M51,'08. (b)TRIBUTOS LPRESUMID'!W19) -> 0 | N42: =IF('08. (a)TRIBUTOS LREAL'!N110="Real",'08. (a)TRIBUTOS LREAL'!N51,'08. (b)TRIBUTOS LPRESUMID'!X19) -> 0 | O42: =IF('08. (a)TRIBUTOS LREAL'!O110="Real",'08. (a)TRIBUTOS LREAL'!O51,'08. (b)TRIBUTOS LPRESUMID'!Y19) -> 0 | P42: =IF('08. (a)TRIBUTOS LREAL'!P110="Real",'08. (a)TRIBUTOS LREAL'!P51,'08. (b)TRIBUTOS LPRESUMID'!Z19) -> 0 | Q42: =IF('08. (a)TRIBUTOS LREAL'!Q110="Real",'08. (a)TRIBUTOS LREAL'!Q51,'08. (b)TRIBUTOS LPRESUMID'!AA19) -> 0 | R42: =IF('08. (a)TRIBUTOS LREAL'!R110="Real",'08. (a)TRIBUTOS LREAL'!R51,'08. (b)TRIBUTOS LPRESUMID'!AB19) -> 0 | S42: =IF('08. (a)TRIBUTOS LREAL'!S110="Real",'08. (a)TRIBUTOS LREAL'!S51,'08. (b)TRIBUTOS LPRESUMID'!AC19) -> 0 | T42: =IF('08. (a)TRIBUTOS LREAL'!T110="Real",'08. (a)TRIBUTOS LREAL'!T51,'08. (b)TRIBUTOS LPRESUMID'!AD19) -> 0 | U42: =IF('08. (a)TRIBUTOS LREAL'!U110="Real",'08. (a)TRIBUTOS LREAL'!U51,'08. (b)TRIBUTOS LPRESUMID'!AE19) -> 0 | V42: =IF('08. (a)TRIBUTOS LREAL'!V110="Real",'08. (a)TRIBUTOS LREAL'!V51,'08. (b)TRIBUTOS LPRESUMID'!AF19) -> 0 | X42: =SUM(C42:V42) -> 0 | Z42: =NPV('01. PC'!$C$9,'02 (a). FCL Agregado'!D42:V42)+'02 (a). FCL Agregado'!C42 -> 0
B43: IRPJ/CSLL | C43: =IF('08. (a)TRIBUTOS LREAL'!C110="Real",'08. (a)TRIBUTOS LREAL'!C61,'08. (b)TRIBUTOS LPRESUMID'!C25) -> 0 | D43: =IF('08. (a)TRIBUTOS LREAL'!D110="Real",'08. (a)TRIBUTOS LREAL'!D61,'08. (b)TRIBUTOS LPRESUMID'!D25) -> 0 | E43: =IF('08. (a)TRIBUTOS LREAL'!E110="Real",'08. (a)TRIBUTOS LREAL'!E61,'08. (b)TRIBUTOS LPRESUMID'!E25) -> 0 | F43: =IF('08. (a)TRIBUTOS LREAL'!F110="Real",'08. (a)TRIBUTOS LREAL'!F61,'08. (b)TRIBUTOS LPRESUMID'!F25) -> 0 | G43: =IF('08. (a)TRIBUTOS LREAL'!G110="Real",'08. (a)TRIBUTOS LREAL'!G61,'08. (b)TRIBUTOS LPRESUMID'!G25) -> 0 | H43: =IF('08. (a)TRIBUTOS LREAL'!H110="Real",'08. (a)TRIBUTOS LREAL'!H61,'08. (b)TRIBUTOS LPRESUMID'!H25) -> 0 | I43: =IF('08. (a)TRIBUTOS LREAL'!I110="Real",'08. (a)TRIBUTOS LREAL'!I61,'08. (b)TRIBUTOS LPRESUMID'!I25) -> 0 | J43: =IF('08. (a)TRIBUTOS LREAL'!J110="Real",'08. (a)TRIBUTOS LREAL'!J61,'08. (b)TRIBUTOS LPRESUMID'!J25) -> 0 | K43: =IF('08. (a)TRIBUTOS LREAL'!K110="Real",'08. (a)TRIBUTOS LREAL'!K61,'08. (b)TRIBUTOS LPRESUMID'!K25) -> 0 | L43: =IF('08. (a)TRIBUTOS LREAL'!L110="Real",'08. (a)TRIBUTOS LREAL'!L61,'08. (b)TRIBUTOS LPRESUMID'!L25) -> 0 | M43: =IF('08. (a)TRIBUTOS LREAL'!M110="Real",'08. (a)TRIBUTOS LREAL'!M61,'08. (b)TRIBUTOS LPRESUMID'!W25) -> 0 | N43: =IF('08. (a)TRIBUTOS LREAL'!N110="Real",'08. (a)TRIBUTOS LREAL'!N61,'08. (b)TRIBUTOS LPRESUMID'!X25) -> 0 | O43: =IF('08. (a)TRIBUTOS LREAL'!O110="Real",'08. (a)TRIBUTOS LREAL'!O61,'08. (b)TRIBUTOS LPRESUMID'!Y25) -> 0 | P43: =IF('08. (a)TRIBUTOS LREAL'!P110="Real",'08. (a)TRIBUTOS LREAL'!P61,'08. (b)TRIBUTOS LPRESUMID'!Z25) -> 0 | Q43: =IF('08. (a)TRIBUTOS LREAL'!Q110="Real",'08. (a)TRIBUTOS LREAL'!Q61,'08. (b)TRIBUTOS LPRESUMID'!AA25) -> 0 | R43: =IF('08. (a)TRIBUTOS LREAL'!R110="Real",'08. (a)TRIBUTOS LREAL'!R61,'08. (b)TRIBUTOS LPRESUMID'!AB25) -> 0 | S43: =IF('08. (a)TRIBUTOS LREAL'!S110="Real",'08. (a)TRIBUTOS LREAL'!S61,'08. (b)TRIBUTOS LPRESUMID'!AC25) -> 0 | T43: =IF('08. (a)TRIBUTOS LREAL'!T110="Real",'08. (a)TRIBUTOS LREAL'!T61,'08. (b)TRIBUTOS LPRESUMID'!AD25) -> 0 | U43: =IF('08. (a)TRIBUTOS LREAL'!U110="Real",'08. (a)TRIBUTOS LREAL'!U61,'08. (b)TRIBUTOS LPRESUMID'!AE25) -> 0 | V43: =IF('08. (a)TRIBUTOS LREAL'!V110="Real",'08. (a)TRIBUTOS LREAL'!V61,'08. (b)TRIBUTOS LPRESUMID'!AF25) -> 0 | X43: =SUM(C43:V43) -> 0 | Z43: =NPV('01. PC'!$C$9,'02 (a). FCL Agregado'!D43:V43)+'02 (a). FCL Agregado'!C43 -> 0
B45: NIG | C45: ='05. NIG'!C24 -> -0.6148275825 | D45: ='05. NIG'!D24 -> -0.1440597433 | E45: ='05. NIG'!E24 -> -0.02153983688 | F45: ='05. NIG'!F24 -> -0.02153983688 | G45: ='05. NIG'!G24 -> -0.02153983688 | H45: ='05. NIG'!H24 -> -0.02153983688 | I45: ='05. NIG'!I24 -> -0.02153983688 | J45: ='05. NIG'!J24 -> -0.02153983688 | K45: ='05. NIG'!K24 -> -0.02153983688 | L45: ='05. NIG'!L24 -> -0.02153983688 | M45: ='05. NIG'!M24 -> -0.02153983688 | N45: ='05. NIG'!N24 -> -0.02153983688 | O45: ='05. NIG'!O24 -> -0.02153983688 | P45: ='05. NIG'!P24 -> -0.02153983688 | Q45: ='05. NIG'!Q24 -> -0.02153983688 | R45: ='05. NIG'!R24 -> -0.02153983688 | S45: ='05. NIG'!S24 -> -0.02153983688 | T45: ='05. NIG'!T24 -> -0.02153983688 | U45: ='05. NIG'!U24 -> -0.02153983688 | V45: ='05. NIG'!V24 -> 0.7179945626 | X45: =SUM(C45:V45) -> -0.4070699901 | Z45: =NPV('01. PC'!$C$9,'02 (a). FCL Agregado'!D45:V45)+'02 (a). FCL Agregado'!C45 -> -0.769301155
B47: FCL | C47: =C12+C21+C30+C40+C45 -> -53.34660955 | D47: -8.396886892 | E47: -8.274366986 | F47: -8.274366986 | G47: -8.274366986 | H47: -8.274366986 | I47: -8.274366986 | J47: -8.274366986 | K47: -8.274366986 | L47: -8.274366986 | M47: =M12+M21+M30+M40+M45 -> -8.274366986 | N47: -8.274366986 | O47: -8.274366986 | P47: -8.274366986 | Q47: -8.274366986 | R47: -8.274366986 | S47: -8.274366986 | T47: -8.274366986 | U47: -8.274366986 | V47: -7.534832586 | X47: =SUM(C47:V47) -> -209.9425678 | Z47: =NPV('01. PC'!$C$9,'02 (a). FCL Agregado'!D47:V47)+'02 (a). FCL Agregado'!C47 -> -130.4663505
B49: FCL Acumulado | C49: =C47 -> -53.34660955 | D49: =(C49+D47)*D8 -> -61.74349645 | E49: -70.01786343 | F49: -78.29223042 | G49: -86.5665974 | H49: -94.84096439 | I49: -103.1153314 | J49: -111.3896984 | K49: -119.6640653 | L49: -127.9384323 | M49: =(L49+M47)*M8 -> -136.2127993 | N49: =(M49+N47)*N8 -> -144.4871663 | O49: =(N49+O47)*O8 -> -152.7615333 | P49: =(O49+P47)*P8 -> -161.0359003 | Q49: =(P49+Q47)*Q8 -> -169.3102673 | R49: =(Q49+R47)*R8 -> -177.5846343 | S49: =(R49+S47)*S8 -> -185.8590012 | T49: =(S49+T47)*T8 -> -194.1333682 | U49: =(T49+U47)*U8 -> -202.4077352 | V49: =(U49+V47)*V8 -> -209.9425678
B51: TIR de Projeto (% ao ano) | C51: =IRR(C47:V47) -> 
B52: VPL (em R$ Milhões) | C52: =NPV('01. PC'!$C$9,'02 (a). FCL Agregado'!D47:V47)+'02 (a). FCL Agregado'!C47 -> -130.4663505
B54: *Terminais com áreas comerciais já disponíveis

Sheet 02 (b). FCL por Terminal
B6: Fluxo de Caixa Livre (R$ Milhões)
B8: PRAZO | C8: =IF(C10<=('01. PC'!$C$17),1,0) -> 1 | D8: =IF(D10<=('01. PC'!$C$17),1,0) -> 1 | E8: =IF(E10<=('01. PC'!$C$17),1,0) -> 1 | F8: =IF(F10<=('01. PC'!$C$17),1,0) -> 1 | G8: =IF(G10<=('01. PC'!$C$17),1,0) -> 1 | H8: =IF(H10<=('01. PC'!$C$17),1,0) -> 1 | I8: =IF(I10<=('01. PC'!$C$17),1,0) -> 1 | J8: =IF(J10<=('01. PC'!$C$17),1,0) -> 1 | K8: =IF(K10<=('01. PC'!$C$17),1,0) -> 1 | L8: =IF(L10<=('01. PC'!$C$17),1,0) -> 1 | M8: =IF(M10<=('01. PC'!$C$17),1,0) -> 1 | N8: =IF(N10<=('01. PC'!$C$17),1,0) -> 1 | O8: =IF(O10<=('01. PC'!$C$17),1,0) -> 1 | P8: =IF(P10<=('01. PC'!$C$17),1,0) -> 1 | Q8: =IF(Q10<=('01. PC'!$C$17),1,0) -> 1 | R8: =IF(R10<=('01. PC'!$C$17),1,0) -> 1 | S8: =IF(S10<=('01. PC'!$C$17),1,0) -> 1 | T8: =IF(T10<=('01. PC'!$C$17),1,0) -> 1 | U8: =IF(U10<=('01. PC'!$C$17),1,0) -> 1 | V8: =IF(V10<=('01. PC'!$C$17),1,0) -> 1
B10: ANO | C10: 1 | D10: =C10+1 -> 2 | E10: =D10+1 -> 3 | F10: 4 | G10: 5 | H10: 6 | I10: 7 | J10: 8 | K10: 9 | L10: 10 | M10: =L10+1 -> 11 | N10: =M10+1 -> 12 | O10: =N10+1 -> 13 | P10: =O10+1 -> 14 | Q10: =P10+1 -> 15 | R10: =Q10+1 -> 16 | S10: =R10+1 -> 17 | T10: =S10+1 -> 18 | U10: =T10+1 -> 19 | V10: =U10+1 -> 20 | X10: TOTAL | Z10: VPL
B12: Terminal Central | C12: =(C14+C15+C16+C17+C18+C19)*C$8 -> -5.390315329 | D12: =(D14+D15+D16+D17+D18+D19)*D$8 -> -5.215401781 | E12: -5.179413026 | F12: -5.179413026 | G12: -5.179413026 | H12: -5.179413026 | I12: -5.179413026 | J12: -5.179413026 | K12: -5.179413026 | L12: -5.179413026 | M12: -5.179413026 | N12: -5.179413026 | O12: -5.179413026 | P12: -5.179413026 | Q12: -5.179413026 | R12: -5.179413026 | S12: -5.179413026 | T12: -5.179413026 | U12: -5.179413026 | V12: -4.962183655 | X12: =SUM(C12:L12) -> -52.04102132 | Z12: =NPV('01. PC'!$C$9,'02 (b). FCL por Terminal'!D12:L12)+'02 (b). FCL por Terminal'!C12 -> -37.23255948
B14: Receitas | C14: ='09. RECEITA'!C12 -> 0.02020947947 | D14: ='09. RECEITA'!D12 -> 0.02020947947 | E14: ='09. RECEITA'!E12 -> 0.02020947947 | F14: ='09. RECEITA'!F12 -> 0.02020947947 | G14: ='09. RECEITA'!G12 -> 0.02020947947 | H14: ='09. RECEITA'!H12 -> 0.02020947947 | I14: ='09. RECEITA'!I12 -> 0.02020947947 | J14: ='09. RECEITA'!J12 -> 0.02020947947 | K14: ='09. RECEITA'!K12 -> 0.02020947947 | L14: ='09. RECEITA'!L12 -> 0.02020947947 | M14: ='09. RECEITA'!M12 -> 0.02020947947 | N14: ='09. RECEITA'!N12 -> 0.02020947947 | O14: ='09. RECEITA'!O12 -> 0.02020947947 | P14: ='09. RECEITA'!P12 -> 0.02020947947 | Q14: ='09. RECEITA'!Q12 -> 0.02020947947 | R14: ='09. RECEITA'!R12 -> 0.02020947947 | S14: ='09. RECEITA'!S12 -> 0.02020947947 | T14: ='09. RECEITA'!T12 -> 0.02020947947 | U14: ='09. RECEITA'!U12 -> 0.02020947947 | V14: ='09. RECEITA'!V12 -> 0.02020947947 | X14: =SUM(C14:V14) -> 0.4041895895 | Z14: =NPV('01. PC'!$C$9,'02 (b). FCL por Terminal'!D14:V14)+'02 (b). FCL por Terminal'!C14 -> 0.2086816191
B15: Capex | C15: =-'6. CAPEX'!C53 -> 0 | D15: =-'6. CAPEX'!D53 -> 0 | E15: =-'6. CAPEX'!E53 -> 0 | F15: =-'6. CAPEX'!F53 -> 0 | G15: =-'6. CAPEX'!G53 -> 0 | H15: =-'6. CAPEX'!H53 -> 0 | I15: =-'6. CAPEX'!I53 -> 0 | J15: =-'6. CAPEX'!J53 -> 0 | K15: =-'6. CAPEX'!K53 -> 0 | L15: =-'6. CAPEX'!L53 -> 0 | M15: =-'6. CAPEX'!M53 -> 0 | N15: =-'6. CAPEX'!N53 -> 0 | O15: =-'6. CAPEX'!O53 -> 0 | P15: =-'6. CAPEX'!P53 -> 0 | Q15: =-'6. CAPEX'!Q53 -> 0 | R15: =-'6. CAPEX'!R53 -> 0 | S15: =-'6. CAPEX'!S53 -> 0 | T15: =-'6. CAPEX'!T53 -> 0 | U15: =-'6. CAPEX'!U53 -> 0 | V15: =-'6. CAPEX'!V53 -> 0 | X15: 0 | Z15: =NPV('01. PC'!$C$9,'02 (b). FCL por Terminal'!D15:V15)+'02 (b). FCL por Terminal'!C15 -> 0
B16: Opex | C16: =-'07. OPEX'!C12 -> -2.606752458 | D16: =-'07. OPEX'!D12 -> -2.606752458 | E16: =-'07. OPEX'!E12 -> -2.606752458 | F16: =-'07. OPEX'!F12 -> -2.606752458 | G16: =-'07. OPEX'!G12 -> -2.606752458 | H16: =-'07. OPEX'!H12 -> -2.606752458 | I16: =-'07. OPEX'!I12 -> -2.606752458 | J16: =-'07. OPEX'!J12 -> -2.606752458 | K16: =-'07. OPEX'!K12 -> -2.606752458 | L16: =-'07. OPEX'!L12 -> -2.606752458 | M16: =-'07. OPEX'!M12 -> -2.606752458 | N16: =-'07. OPEX'!N12 -> -2.606752458 | O16: =-'07. OPEX'!O12 -> -2.606752458 | P16: =-'07. OPEX'!P12 -> -2.606752458 | Q16: =-'07. OPEX'!Q12 -> -2.606752458 | R16: =-'07. OPEX'!R12 -> -2.606752458 | S16: =-'07. OPEX'!S12 -> -2.606752458 | T16: =-'07. OPEX'!T12 -> -2.606752458 | U16: =-'07. OPEX'!U12 -> -2.606752458 | V16: =-'07. OPEX'!V12 -> -2.606752458 | X16: -52.13504916 | Z16: =NPV('01. PC'!$C$9,'02 (b). FCL por Terminal'!D16:V16)+'02 (b). FCL por Terminal'!C16 -> -26.9171368
B17: Tributos | C17: =IF('08. (a)TRIBUTOS LREAL'!C110="Real",'08. (a)TRIBUTOS LREAL'!C51*('09. RECEITA'!C12/'09. RECEITA'!C10),'08. (b)TRIBUTOS LPRESUMID'!C19)*('09. RECEITA'!C12/'09. RECEITA'!C10)+IF('08. (a)TRIBUTOS LREAL'!C110="Real",'08. (a)TRIBUTOS LREAL'!C61*('09. RECEITA'!C12/'09. RECEITA'!C10),'08. (b)TRIBUTOS LPRESUMID'!C25)*('09. RECEITA'!C12/'09. RECEITA'!C10) -> 0 | D17: =IF('08. (a)TRIBUTOS LREAL'!D110="Real",'08. (a)TRIBUTOS LREAL'!D51*('09. RECEITA'!D12/'09. RECEITA'!D10),'08. (b)TRIBUTOS LPRESUMID'!D19)*('09. RECEITA'!D12/'09. RECEITA'!D10)+IF('08. (a)TRIBUTOS LREAL'!D110="Real",'08. (a)TRIBUTOS LREAL'!D61*('09. RECEITA'!D12/'09. RECEITA'!D10),'08. (b)TRIBUTOS LPRESUMID'!D25)*('09. RECEITA'!D12/'09. RECEITA'!D10) -> 0 | E17: =IF('08. (a)TRIBUTOS LREAL'!E110="Real",'08. (a)TRIBUTOS LREAL'!E51*('09. RECEITA'!E12/'09. RECEITA'!E10),'08. (b)TRIBUTOS LPRESUMID'!E19)*('09. RECEITA'!E12/'09. RECEITA'!E10)+IF('08. (a)TRIBUTOS LREAL'!E110="Real",'08. (a)TRIBUTOS LREAL'!E61*('09. RECEITA'!E12/'09. RECEITA'!E10),'08. (b)TRIBUTOS LPRESUMID'!E25)*('09. RECEITA'!E12/'09. RECEITA'!E10) -> 0 | F17: =IF('08. (a)TRIBUTOS LREAL'!F110="Real",'08. (a)TRIBUTOS LREAL'!F51*('09. RECEITA'!F12/'09. RECEITA'!F10),'08. (b)TRIBUTOS LPRESUMID'!F19)*('09. RECEITA'!F12/'09. RECEITA'!F10)+IF('08. (a)TRIBUTOS LREAL'!F110="Real",'08. (a)TRIBUTOS LREAL'!F61*('09. RECEITA'!F12/'09. RECEITA'!F10),'08. (b)TRIBUTOS LPRESUMID'!F25)*('09. RECEITA'!F12/'09. RECEITA'!F10) -> 0 | G17: =IF('08. (a)TRIBUTOS LREAL'!G110="Real",'08. (a)TRIBUTOS LREAL'!G51*('09. RECEITA'!G12/'09. RECEITA'!G10),'08. (b)TRIBUTOS LPRESUMID'!G19)*('09. RECEITA'!G12/'09. RECEITA'!G10)+IF('08. (a)TRIBUTOS LREAL'!G110="Real",'08. (a)TRIBUTOS LREAL'!G61*('09. RECEITA'!G12/'09. RECEITA'!G10),'08. (b)TRIBUTOS LPRESUMID'!G25)*('09. RECEITA'!G12/'09. RECEITA'!G10) -> 0 | H17: =IF('08. (a)TRIBUTOS LREAL'!H110="Real",'08. (a)TRIBUTOS LREAL'!H51*('09. RECEITA'!H12/'09. RECEITA'!H10),'08. (b)TRIBUTOS LPRESUMID'!H19)*('09. RECEITA'!H12/'09. RECEITA'!H10)+IF('08. (a)TRIBUTOS LREAL'!H110="Real",'08. (a)TRIBUTOS LREAL'!H61*('09. RECEITA'!H12/'09. RECEITA'!H10),'08. (b)TRIBUTOS LPRESUMID'!H25)*('09. RECEITA'!H12/'09. RECEITA'!H10) -> 0 | I17: =IF('08. (a)TRIBUTOS LREAL'!I110="Real",'08. (a)TRIBUTOS LREAL'!I51*('09. RECEITA'!I12/'09. RECEITA'!I10),'08. (b)TRIBUTOS LPRESUMID'!I19)*('09. RECEITA'!I12/'09. RECEITA'!I10)+IF('08. (a)TRIBUTOS LREAL'!I110="Real",'08. (a)TRIBUTOS LREAL'!I61*('09. RECEITA'!I12/'09. RECEITA'!I10),'08. (b)TRIBUTOS LPRESUMID'!I25)*('09. RECEITA'!I12/'09. RECEITA'!I10) -> 0 | J17: =IF('08. (a)TRIBUTOS LREAL'!J110="Real",'08. (a)TRIBUTOS LREAL'!J51*('09. RECEITA'!J12/'09. RECEITA'!J10),'08. (b)TRIBUTOS LPRESUMID'!J19)*('09. RECEITA'!J12/'09. RECEITA'!J10)+IF('08. (a)TRIBUTOS LREAL'!J110="Real",'08. (a)TRIBUTOS LREAL'!J61*('09. RECEITA'!J12/'09. RECEITA'!J10),'08. (b)TRIBUTOS LPRESUMID'!J25)*('09. RECEITA'!J12/'09. RECEITA'!J10) -> 0 | K17: =IF('08. (a)TRIBUTOS LREAL'!K110="Real",'08. (a)TRIBUTOS LREAL'!K51*('09. RECEITA'!K12/'09. RECEITA'!K10),'08. (b)TRIBUTOS LPRESUMID'!K19)*('09. RECEITA'!K12/'09. RECEITA'!K10)+IF('08. (a)TRIBUTOS LREAL'!K110="Real",'08. (a)TRIBUTOS LREAL'!K61*('09. RECEITA'!K12/'09. RECEITA'!K10),'08. (b)TRIBUTOS LPRESUMID'!K25)*('09. RECEITA'!K12/'09. RECEITA'!K10) -> 0 | L17: =IF('08. (a)TRIBUTOS LREAL'!L110="Real",'08. (a)TRIBUTOS LREAL'!L51*('09. RECEITA'!L12/'09. RECEITA'!L10),'08. (b)TRIBUTOS LPRESUMID'!L19)*('09. RECEITA'!L12/'09. RECEITA'!L10)+IF('08. (a)TRIBUTOS LREAL'!L110="Real",'08. (a)TRIBUTOS LREAL'!L61*('09. RECEITA'!L12/'09. RECEITA'!L10),'08. (b)TRIBUTOS LPRESUMID'!L25)*('09. RECEITA'!L12/'09. RECEITA'!L10) -> 0 | M17: =IF('08. (a)TRIBUTOS LREAL'!M110="Real",'08. (a)TRIBUTOS LREAL'!M51*('09. RECEITA'!M12/'09. RECEITA'!M10),'08. (b)TRIBUTOS LPRESUMID'!W19)*('09. RECEITA'!M12/'09. RECEITA'!M10)+IF('08. (a)TRIBUTOS LREAL'!M110="Real",'08. (a)TRIBUTOS LREAL'!M61*('09. RECEITA'!M12/'09. RECEITA'!M10),'08. (b)TRIBUTOS LPRESUMID'!W25)*('09. RECEITA'!M12/'09. RECEITA'!M10) -> 0 | N17: =IF('08. (a)TRIBUTOS LREAL'!N110="Real",'08. (a)TRIBUTOS LREAL'!N51*('09. RECEITA'!N12/'09. RECEITA'!N10),'08. (b)TRIBUTOS LPRESUMID'!X19)*('09. RECEITA'!N12/'09. RECEITA'!N10)+IF('08. (a)TRIBUTOS LREAL'!N110="Real",'08. (a)TRIBUTOS LREAL'!N61*('09. RECEITA'!N12/'09. RECEITA'!N10),'08. (b)TRIBUTOS LPRESUMID'!X25)*('09. RECEITA'!N12/'09. RECEITA'!N10) -> 0 | O17: =IF('08. (a)TRIBUTOS LREAL'!O110="Real",'08. (a)TRIBUTOS LREAL'!O51*('09. RECEITA'!O12/'09. RECEITA'!O10),'08. (b)TRIBUTOS LPRESUMID'!Y19)*('09. RECEITA'!O12/'09. RECEITA'!O10)+IF('08. (a)TRIBUTOS LREAL'!O110="Real",'08. (a)TRIBUTOS LREAL'!O61*('09. RECEITA'!O12/'09. RECEITA'!O10),'08. (b)TRIBUTOS LPRESUMID'!Y25)*('09. RECEITA'!O12/'09. RECEITA'!O10) -> 0 | P17: =IF('08. (a)TRIBUTOS LREAL'!P110="Real",'08. (a)TRIBUTOS LREAL'!P51*('09. RECEITA'!P12/'09. RECEITA'!P10),'08. (b)TRIBUTOS LPRESUMID'!Z19)*('09. RECEITA'!P12/'09. RECEITA'!P10)+IF('08. (a)TRIBUTOS LREAL'!P110="Real",'08. (a)TRIBUTOS LREAL'!P61*('09. RECEITA'!P12/'09. RECEITA'!P10),'08. (b)TRIBUTOS LPRESUMID'!Z25)*('09. RECEITA'!P12/'09. RECEITA'!P10) -> 0 | Q17: =IF('08. (a)TRIBUTOS LREAL'!Q110="Real",'08. (a)TRIBUTOS LREAL'!Q51*('09. RECEITA'!Q12/'09. RECEITA'!Q10),'08. (b)TRIBUTOS LPRESUMID'!AA19)*('09. RECEITA'!Q12/'09. RECEITA'!Q10)+IF('08. (a)TRIBUTOS LREAL'!Q110="Real",'08. (a)TRIBUTOS LREAL'!Q61*('09. RECEITA'!Q12/'09. RECEITA'!Q10),'08. (b)TRIBUTOS LPRESUMID'!AA25)*('09. RECEITA'!Q12/'09. RECEITA'!Q10) -> 0 | R17: =IF('08. (a)TRIBUTOS LREAL'!R110="Real",'08. (a)TRIBUTOS LREAL'!R51*('09. RECEITA'!R12/'09. RECEITA'!R10),'08. (b)TRIBUTOS LPRESUMID'!AB19)*('09. RECEITA'!R12/'09. RECEITA'!R10)+IF('08. (a)TRIBUTOS LREAL'!R110="Real",'08. (a)TRIBUTOS LREAL'!R61*('09. RECEITA'!R12/'09. RECEITA'!R10),'08. (b)TRIBUTOS LPRESUMID'!AB25)*('09. RECEITA'!R12/'09. RECEITA'!R10) -> 0 | S17: =IF('08. (a)TRIBUTOS LREAL'!S110="Real",'08. (a)TRIBUTOS LREAL'!S51*('09. RECEITA'!S12/'09. RECEITA'!S10),'08. (b)TRIBUTOS LPRESUMID'!AC19)*('09. RECEITA'!S12/'09. RECEITA'!S10)+IF('08. (a)TRIBUTOS LREAL'!S110="Real",'08. (a)TRIBUTOS LREAL'!S61*('09. RECEITA'!S12/'09. RECEITA'!S10),'08. (b)TRIBUTOS LPRESUMID'!AC25)*('09. RECEITA'!S12/'09. RECEITA'!S10) -> 0 | T17: =IF('08. (a)TRIBUTOS LREAL'!T110="Real",'08. (a)TRIBUTOS LREAL'!T51*('09. RECEITA'!T12/'09. RECEITA'!T10),'08. (b)TRIBUTOS LPRESUMID'!AD19)*('09. RECEITA'!T12/'09. RECEITA'!T10)+IF('08. (a)TRIBUTOS LREAL'!T110="Real",'08. (a)TRIBUTOS LREAL'!T61*('09. RECEITA'!T12/'09. RECEITA'!T10),'08. (b)TRIBUTOS LPRESUMID'!AD25)*('09. RECEITA'!T12/'09. RECEITA'!T10) -> 0 | U17: =IF('08. (a)TRIBUTOS LREAL'!U110="Real",'08. (a)TRIBUTOS LREAL'!U51*('09. RECEITA'!U12/'09. RECEITA'!U10),'08. (b)TRIBUTOS LPRESUMID'!AE19)*('09. RECEITA'!U12/'09. RECEITA'!U10)+IF('08. (a)TRIBUTOS LREAL'!U110="Real",'08. (a)TRIBUTOS LREAL'!U61*('09. RECEITA'!U12/'09. RECEITA'!U10),'08. (b)TRIBUTOS LPRESUMID'!AE25)*('09. RECEITA'!U12/'09. RECEITA'!U10) -> 0 | V17: =IF('08. (a)TRIBUTOS LREAL'!V110="Real",'08. (a)TRIBUTOS LREAL'!V51*('09. RECEITA'!V12/'09. RECEITA'!V10),'08. (b)TRIBUTOS LPRESUMID'!AF19)*('09. RECEITA'!V12/'09. RECEITA'!V10)+IF('08. (a)TRIBUTOS LREAL'!V110="Real",'08. (a)TRIBUTOS LREAL'!V61*('09. RECEITA'!V12/'09. RECEITA'!V10),'08. (b)TRIBUTOS LPRESUMID'!AF25)*('09. RECEITA'!V12/'09. RECEITA'!V10) -> 0 | X17: 0 | Z17: =NPV('01. PC'!$C$9,'02 (b). FCL por Terminal'!D17:V17)+'02 (b). FCL por Terminal'!C17 -> 0
B18: NIG | C18: ='05. NIG'!C24*('07. OPEX'!C12/'07. OPEX'!C10) -> -0.2172293715 | D18: ='05. NIG'!D24*('07. OPEX'!D12/'07. OPEX'!D10) -> -0.04231582401 | E18: ='05. NIG'!E24*('07. OPEX'!E12/'07. OPEX'!E10) -> -0.006327069073 | F18: ='05. NIG'!F24*('07. OPEX'!F12/'07. OPEX'!F10) -> -0.006327069073 | G18: ='05. NIG'!G24*('07. OPEX'!G12/'07. OPEX'!G10) -> -0.006327069073 | H18: ='05. NIG'!H24*('07. OPEX'!H12/'07. OPEX'!H10) -> -0.006327069073 | I18: ='05. NIG'!I24*('07. OPEX'!I12/'07. OPEX'!I10) -> -0.006327069073 | J18: ='05. NIG'!J24*('07. OPEX'!J12/'07. OPEX'!J10) -> -0.006327069073 | K18: ='05. NIG'!K24*('07. OPEX'!K12/'07. OPEX'!K10) -> -0.006327069073 | L18: ='05. NIG'!L24*('07. OPEX'!L12/'07. OPEX'!L10) -> -0.006327069073 | M18: ='05. NIG'!M24*('07. OPEX'!M12/'07. OPEX'!M10) -> -0.006327069073 | N18: ='05. NIG'!N24*('07. OPEX'!N12/'07. OPEX'!N10) -> -0.006327069073 | O18: ='05. NIG'!O24*('07. OPEX'!O12/'07. OPEX'!O10) -> -0.006327069073 | P18: ='05. NIG'!P24*('07. OPEX'!P12/'07. OPEX'!P10) -> -0.006327069073 | Q18: ='05. NIG'!Q24*('07. OPEX'!Q12/'07. OPEX'!Q10) -> -0.006327069073 | R18: ='05. NIG'!R24*('07. OPEX'!R12/'07. OPEX'!R10) -> -0.006327069073 | S18: ='05. NIG'!S24*('07. OPEX'!S12/'07. OPEX'!S10) -> -0.006327069073 | T18: ='05. NIG'!T24*('07. OPEX'!T12/'07. OPEX'!T10) -> -0.006327069073 | U18: ='05. NIG'!U24*('07. OPEX'!U12/'07. OPEX'!U10) -> -0.006327069073 | V18: ='05. NIG'!V24*('07. OPEX'!V12/'07. OPEX'!V10) -> 0.2109023024 | X18: -0.1562030673 | Z18: =NPV('01. PC'!$C$9,'02 (b). FCL por Terminal'!D18:V18)+'02 (b). FCL por Terminal'!C18 -> -0.2626041331
B19: FCL | C19: =C14+C15+C16+C17 -> -2.586542979 | D19: =D14+D15+D16+D17 -> -2.586542979 | E19: -2.586542979 | F19: -2.586542979 | G19: -2.586542979 | H19: -2.586542979 | I19: -2.586542979 | J19: -2.586542979 | K19: -2.586542979 | L19: -2.586542979 | M19: -2.586542979 | N19: -2.586542979 | O19: -2.586542979 | P19: -2.586542979 | Q19: -2.586542979 | R19: -2.586542979 | S19: -2.586542979 | T19: -2.586542979 | U19: -2.586542979 | V19: -2.586542979 | X19: -51.73085957 | Z19: =NPV('01. PC'!$C$9,'02 (b). FCL por Terminal'!D19:V19)+'02 (b). FCL por Terminal'!C19 -> -26.70845518
B20: FCL Acumulado | C20: =C19 -> -2.586542979 | D20: =D19 -> -2.586542979 | E20: -2.586542979 | F20: -2.586542979 | G20: -2.586542979 | H20: -2.586542979 | I20: -2.586542979 | J20: -2.586542979 | K20: -2.586542979 | L20: -2.586542979 | M20: -2.586542979 | N20: -2.586542979 | O20: -2.586542979 | P20: -2.586542979 | Q20: -2.586542979 | R20: -2.586542979 | S20: -2.586542979 | T20: -2.586542979 | U20: -2.586542979 | V20: -2.586542979 | X20: -51.73085957 | Z20: =NPV('01. PC'!$C$9,'02 (b). FCL por Terminal'!D20:V20)+'02 (b). FCL por Terminal'!C20 -> -26.70845518
B22: TIR de Projeto (% ao ano) | C22: =IRR(C19:V19) -> 
B23: VPL (em R$ Milhões) | C23: =NPV('01. PC'!$C$9,'02 (b). FCL por Terminal'!D19:V19)+'02 (b). FCL por Terminal'!C19 -> -26.70845518
B25: Terminal Uvaranas | C25: =(C27+C28+C29+C30+C31+C32)*C$8 -> -7.789590425 | D25: =(D27+D28+D29+D30+D31+D32)*D$8 -> -2.569623747 | E25: -2.548963359 | F25: -2.548963359 | G25: -2.548963359 | H25: -2.548963359 | I25: -2.548963359 | J25: -2.548963359 | K25: -2.548963359 | L25: -2.548963359 | M25: -2.548963359 | N25: -2.548963359 | O25: -2.548963359 | P25: -2.548963359 | Q25: -2.548963359 | R25: -2.548963359 | S25: -2.548963359 | T25: -2.548963359 | U25: -2.548963359 | V25: -2.424256542 | X25: =SUM(C25:L25) -> -30.75092105 | Z25: =NPV('01. PC'!$C$9,'02 (b). FCL por Terminal'!D25:L25)+'02 (b). FCL por Terminal'!C25 -> -23.46295008
B27: Receitas | C27: ='09. RECEITA'!C24 -> 0 | D27: ='09. RECEITA'!D24 -> 0.2238162429 | E27: ='09. RECEITA'!E24 -> 0.2238162429 | F27: ='09. RECEITA'!F24 -> 0.2238162429 | G27: ='09. RECEITA'!G24 -> 0.2238162429 | H27: ='09. RECEITA'!H24 -> 0.2238162429 | I27: ='09. RECEITA'!I24 -> 0.2238162429 | J27: ='09. RECEITA'!J24 -> 0.2238162429 | K27: ='09. RECEITA'!K24 -> 0.2238162429 | L27: ='09. RECEITA'!L24 -> 0.2238162429 | M27: ='09. RECEITA'!M24 -> 0.2238162429 | N27: ='09. RECEITA'!N24 -> 0.2238162429 | O27: ='09. RECEITA'!O24 -> 0.2238162429 | P27: ='09. RECEITA'!P24 -> 0.2238162429 | Q27: ='09. RECEITA'!Q24 -> 0.2238162429 | R27: ='09. RECEITA'!R24 -> 0.2238162429 | S27: ='09. RECEITA'!S24 -> 0.2238162429 | T27: ='09. RECEITA'!T24 -> 0.2238162429 | U27: ='09. RECEITA'!U24 -> 0.2238162429 | V27: ='09. RECEITA'!V24 -> 0.2238162429 | X27: =SUM(C27:V27) -> 4.252508616 | Z27: =NPV('01. PC'!$C$9,'02 (b). FCL por Terminal'!D27:V27)+'02 (b). FCL por Terminal'!C27 -> 2.087294047
B28: Capex | C28: =-'6. CAPEX'!C57 -> -2.33596 | D28: =-'6. CAPEX'!D57 -> 0 | E28: =-'6. CAPEX'!E57 -> 0 | F28: =-'6. CAPEX'!F57 -> 0 | G28: =-'6. CAPEX'!G57 -> 0 | H28: =-'6. CAPEX'!H57 -> 0 | I28: =-'6. CAPEX'!I57 -> 0 | J28: =-'6. CAPEX'!J57 -> 0 | K28: =-'6. CAPEX'!K57 -> 0 | L28: =-'6. CAPEX'!L57 -> 0 | M28: =-'6. CAPEX'!M57 -> 0 | N28: =-'6. CAPEX'!N57 -> 0 | O28: =-'6. CAPEX'!O57 -> 0 | P28: =-'6. CAPEX'!P57 -> 0 | Q28: =-'6. CAPEX'!Q57 -> 0 | R28: =-'6. CAPEX'!R57 -> 0 | S28: =-'6. CAPEX'!S57 -> 0 | T28: =-'6. CAPEX'!T57 -> 0 | U28: =-'6. CAPEX'!U57 -> 0 | V28: =-'6. CAPEX'!V57 -> 0 | X28: -2.33596 | Z28: =NPV('01. PC'!$C$9,'02 (b). FCL por Terminal'!D28:V28)+'02 (b). FCL por Terminal'!C28 -> -2.33596
B29: Opex | C29: =-'07. OPEX'!C79 -> -1.496481804 | D29: =-'07. OPEX'!D79 -> -1.496481804 | E29: =-'07. OPEX'!E79 -> -1.496481804 | F29: =-'07. OPEX'!F79 -> -1.496481804 | G29: =-'07. OPEX'!G79 -> -1.496481804 | H29: =-'07. OPEX'!H79 -> -1.496481804 | I29: =-'07. OPEX'!I79 -> -1.496481804 | J29: =-'07. OPEX'!J79 -> -1.496481804 | K29: =-'07. OPEX'!K79 -> -1.496481804 | L29: =-'07. OPEX'!L79 -> -1.496481804 | M29: =-'07. OPEX'!M79 -> -1.496481804 | N29: =-'07. OPEX'!N79 -> -1.496481804 | O29: =-'07. OPEX'!O79 -> -1.496481804 | P29: =-'07. OPEX'!P79 -> -1.496481804 | Q29: =-'07. OPEX'!Q79 -> -1.496481804 | R29: =-'07. OPEX'!R79 -> -1.496481804 | S29: =-'07. OPEX'!S79 -> -1.496481804 | T29: =-'07. OPEX'!T79 -> -1.496481804 | U29: =-'07. OPEX'!U79 -> -1.496481804 | V29: =-'07. OPEX'!V79 -> -1.496481804 | X29: -29.92963608 | Z29: =NPV('01. PC'!$C$9,'02 (b). FCL por Terminal'!D29:V29)+'02 (b). FCL por Terminal'!C29 -> -15.45256256
B30: Tributos | C30: =IF('08. (a)TRIBUTOS LREAL'!C110="Real",'08. (a)TRIBUTOS LREAL'!C51*('09. RECEITA'!C24/'09. RECEITA'!C10),'08. (b)TRIBUTOS LPRESUMID'!C19)*('09. RECEITA'!C24/'09. RECEITA'!C10)+IF('08. (a)TRIBUTOS LREAL'!C110="Real",'08. (a)TRIBUTOS LREAL'!C61*('09. RECEITA'!C24/'09. RECEITA'!C10),'08. (b)TRIBUTOS LPRESUMID'!C25)*('09. RECEITA'!C24/'09. RECEITA'!C10) -> 0 | D30: =IF('08. (a)TRIBUTOS LREAL'!D110="Real",'08. (a)TRIBUTOS LREAL'!D51*('09. RECEITA'!D24/'09. RECEITA'!D10),'08. (b)TRIBUTOS LPRESUMID'!D19)*('09. RECEITA'!D24/'09. RECEITA'!D10)+IF('08. (a)TRIBUTOS LREAL'!D110="Real",'08. (a)TRIBUTOS LREAL'!D61*('09. RECEITA'!D24/'09. RECEITA'!D10),'08. (b)TRIBUTOS LPRESUMID'!D25)*('09. RECEITA'!D24/'09. RECEITA'!D10) -> 0 | E30: =IF('08. (a)TRIBUTOS LREAL'!E110="Real",'08. (a)TRIBUTOS LREAL'!E51*('09. RECEITA'!E24/'09. RECEITA'!E10),'08. (b)TRIBUTOS LPRESUMID'!E19)*('09. RECEITA'!E24/'09. RECEITA'!E10)+IF('08. (a)TRIBUTOS LREAL'!E110="Real",'08. (a)TRIBUTOS LREAL'!E61*('09. RECEITA'!E24/'09. RECEITA'!E10),'08. (b)TRIBUTOS LPRESUMID'!E25)*('09. RECEITA'!E24/'09. RECEITA'!E10) -> 0 | F30: =IF('08. (a)TRIBUTOS LREAL'!F110="Real",'08. (a)TRIBUTOS LREAL'!F51*('09. RECEITA'!F24/'09. RECEITA'!F10),'08. (b)TRIBUTOS LPRESUMID'!F19)*('09. RECEITA'!F24/'09. RECEITA'!F10)+IF('08. (a)TRIBUTOS LREAL'!F110="Real",'08. (a)TRIBUTOS LREAL'!F61*('09. RECEITA'!F24/'09. RECEITA'!F10),'08. (b)TRIBUTOS LPRESUMID'!F25)*('09. RECEITA'!F24/'09. RECEITA'!F10) -> 0 | G30: =IF('08. (a)TRIBUTOS LREAL'!G110="Real",'08. (a)TRIBUTOS LREAL'!G51*('09. RECEITA'!G24/'09. RECEITA'!G10),'08. (b)TRIBUTOS LPRESUMID'!G19)*('09. RECEITA'!G24/'09. RECEITA'!G10)+IF('08. (a)TRIBUTOS LREAL'!G110="Real",'08. (a)TRIBUTOS LREAL'!G61*('09. RECEITA'!G24/'09. RECEITA'!G10),'08. (b)TRIBUTOS LPRESUMID'!G25)*('09. RECEITA'!G24/'09. RECEITA'!G10) -> 0 | H30: =IF('08. (a)TRIBUTOS LREAL'!H110="Real",'08. (a)TRIBUTOS LREAL'!H51*('09. RECEITA'!H24/'09. RECEITA'!H10),'08. (b)TRIBUTOS LPRESUMID'!H19)*('09. RECEITA'!H24/'09. RECEITA'!H10)+IF('08. (a)TRIBUTOS LREAL'!H110="Real",'08. (a)TRIBUTOS LREAL'!H61*('09. RECEITA'!H24/'09. RECEITA'!H10),'08. (b)TRIBUTOS LPRESUMID'!H25)*('09. RECEITA'!H24/'09. RECEITA'!H10) -> 0 | I30: =IF('08. (a)TRIBUTOS LREAL'!I110="Real",'08. (a)TRIBUTOS LREAL'!I51*('09. RECEITA'!I24/'09. RECEITA'!I10),'08. (b)TRIBUTOS LPRESUMID'!I19)*('09. RECEITA'!I24/'09. RECEITA'!I10)+IF('08. (a)TRIBUTOS LREAL'!I110="Real",'08. (a)TRIBUTOS LREAL'!I61*('09. RECEITA'!I24/'09. RECEITA'!I10),'08. (b)TRIBUTOS LPRESUMID'!I25)*('09. RECEITA'!I24/'09. RECEITA'!I10) -> 0 | J30: =IF('08. (a)TRIBUTOS LREAL'!J110="Real",'08. (a)TRIBUTOS LREAL'!J51*('09. RECEITA'!J24/'09. RECEITA'!J10),'08. (b)TRIBUTOS LPRESUMID'!J19)*('09. RECEITA'!J24/'09. RECEITA'!J10)+IF('08. (a)TRIBUTOS LREAL'!J110="Real",'08. (a)TRIBUTOS LREAL'!J61*('09. RECEITA'!J24/'09. RECEITA'!J10),'08. (b)TRIBUTOS LPRESUMID'!J25)*('09. RECEITA'!J24/'09. RECEITA'!J10) -> 0 | K30: =IF('08. (a)TRIBUTOS LREAL'!K110="Real",'08. (a)TRIBUTOS LREAL'!K51*('09. RECEITA'!K24/'09. RECEITA'!K10),'08. (b)TRIBUTOS LPRESUMID'!K19)*('09. RECEITA'!K24/'09. RECEITA'!K10)+IF('08. (a)TRIBUTOS LREAL'!K110="Real",'08. (a)TRIBUTOS LREAL'!K61*('09. RECEITA'!K24/'09. RECEITA'!K10),'08. (b)TRIBUTOS LPRESUMID'!K25)*('09. RECEITA'!K24/'09. RECEITA'!K10) -> 0 | L30: =IF('08. (a)TRIBUTOS LREAL'!L110="Real",'08. (a)TRIBUTOS LREAL'!L51*('09. RECEITA'!L24/'09. RECEITA'!L10),'08. (b)TRIBUTOS LPRESUMID'!L19)*('09. RECEITA'!L24/'09. RECEITA'!L10)+IF('08. (a)TRIBUTOS LREAL'!L110="Real",'08. (a)TRIBUTOS LREAL'!L61*('09. RECEITA'!L24/'09. RECEITA'!L10),'08. (b)TRIBUTOS LPRESUMID'!L25)*('09. RECEITA'!L24/'09. RECEITA'!L10) -> 0 | M30: =IF('08. (a)TRIBUTOS LREAL'!M110="Real",'08. (a)TRIBUTOS LREAL'!M51*('09. RECEITA'!M24/'09. RECEITA'!M10),'08. (b)TRIBUTOS LPRESUMID'!W19)*('09. RECEITA'!M24/'09. RECEITA'!M10)+IF('08. (a)TRIBUTOS LREAL'!M110="Real",'08. (a)TRIBUTOS LREAL'!M61*('09. RECEITA'!M24/'09. RECEITA'!M10),'08. (b)TRIBUTOS LPRESUMID'!W25)*('09. RECEITA'!M24/'09. RECEITA'!M10) -> 0 | N30: =IF('08. (a)TRIBUTOS LREAL'!N110="Real",'08. (a)TRIBUTOS LREAL'!N51*('09. RECEITA'!N24/'09. RECEITA'!N10),'08. (b)TRIBUTOS LPRESUMID'!X19)*('09. RECEITA'!N24/'09. RECEITA'!N10)+IF('08. (a)TRIBUTOS LREAL'!N110="Real",'08. (a)TRIBUTOS LREAL'!N61*('09. RECEITA'!N24/'09. RECEITA'!N10),'08. (b)TRIBUTOS LPRESUMID'!X25)*('09. RECEITA'!N24/'09. RECEITA'!N10) -> 0 | O30: =IF('08. (a)TRIBUTOS LREAL'!O110="Real",'08. (a)TRIBUTOS LREAL'!O51*('09. RECEITA'!O24/'09. RECEITA'!O10),'08. (b)TRIBUTOS LPRESUMID'!Y19)*('09. RECEITA'!O24/'09. RECEITA'!O10)+IF('08. (a)TRIBUTOS LREAL'!O110="Real",'08. (a)TRIBUTOS LREAL'!O61*('09. RECEITA'!O24/'09. RECEITA'!O10),'08. (b)TRIBUTOS LPRESUMID'!Y25)*('09. RECEITA'!O24/'09. RECEITA'!O10) -> 0 | P30: =IF('08. (a)TRIBUTOS LREAL'!P110="Real",'08. (a)TRIBUTOS LREAL'!P51*('09. RECEITA'!P24/'09. RECEITA'!P10),'08. (b)TRIBUTOS LPRESUMID'!Z19)*('09. RECEITA'!P24/'09. RECEITA'!P10)+IF('08. (a)TRIBUTOS LREAL'!P110="Real",'08. (a)TRIBUTOS LREAL'!P61*('09. RECEITA'!P24/'09. RECEITA'!P10),'08. (b)TRIBUTOS LPRESUMID'!Z25)*('09. RECEITA'!P24/'09. RECEITA'!P10) -> 0 | Q30: =IF('08. (a)TRIBUTOS LREAL'!Q110="Real",'08. (a)TRIBUTOS LREAL'!Q51*('09. RECEITA'!Q24/'09. RECEITA'!Q10),'08. (b)TRIBUTOS LPRESUMID'!AA19)*('09. RECEITA'!Q24/'09. RECEITA'!Q10)+IF('08. (a)TRIBUTOS LREAL'!Q110="Real",'08. (a)TRIBUTOS LREAL'!Q61*('09. RECEITA'!Q24/'09. RECEITA'!Q10),'08. (b)TRIBUTOS LPRESUMID'!AA25)*('09. RECEITA'!Q24/'09. RECEITA'!Q10) -> 0 | R30: =IF('08. (a)TRIBUTOS LREAL'!R110="Real",'08. (a)TRIBUTOS LREAL'!R51*('09. RECEITA'!R24/'09. RECEITA'!R10),'08. (b)TRIBUTOS LPRESUMID'!AB19)*('09. RECEITA'!R24/'09. RECEITA'!R10)+IF('08. (a)TRIBUTOS LREAL'!R110="Real",'08. (a)TRIBUTOS LREAL'!R61*('09. RECEITA'!R24/'09. RECEITA'!R10),'08. (b)TRIBUTOS LPRESUMID'!AB25)*('09. RECEITA'!R24/'09. RECEITA'!R10) -> 0 | S30: =IF('08. (a)TRIBUTOS LREAL'!S110="Real",'08. (a)TRIBUTOS LREAL'!S51*('09. RECEITA'!S24/'09. RECEITA'!S10),'08. (b)TRIBUTOS LPRESUMID'!AC19)*('09. RECEITA'!S24/'09. RECEITA'!S10)+IF('08. (a)TRIBUTOS LREAL'!S110="Real",'08. (a)TRIBUTOS LREAL'!S61*('09. RECEITA'!S24/'09. RECEITA'!S10),'08. (b)TRIBUTOS LPRESUMID'!AC25)*('09. RECEITA'!S24/'09. RECEITA'!S10) -> 0 | T30: =IF('08. (a)TRIBUTOS LREAL'!T110="Real",'08. (a)TRIBUTOS LREAL'!T51*('09. RECEITA'!T24/'09. RECEITA'!T10),'08. (b)TRIBUTOS LPRESUMID'!AD19)*('09. RECEITA'!T24/'09. RECEITA'!T10)+IF('08. (a)TRIBUTOS LREAL'!T110="Real",'08. (a)TRIBUTOS LREAL'!T61*('09. RECEITA'!T24/'09. RECEITA'!T10),'08. (b)TRIBUTOS LPRESUMID'!AD25)*('09. RECEITA'!T24/'09. RECEITA'!T10) -> 0 | U30: =IF('08. (a)TRIBUTOS LREAL'!U110="Real",'08. (a)TRIBUTOS LREAL'!U51*('09. RECEITA'!U24/'09. RECEITA'!U10),'08. (b)TRIBUTOS LPRESUMID'!AE19)*('09. RECEITA'!U24/'09. RECEITA'!U10)+IF('08. (a)TRIBUTOS LREAL'!U110="Real",'08. (a)TRIBUTOS LREAL'!U61*('09. RECEITA'!U24/'09. RECEITA'!U10),'08. (b)TRIBUTOS LPRESUMID'!AE25)*('09. RECEITA'!U24/'09. RECEITA'!U10) -> 0 | V30: =IF('08. (a)TRIBUTOS LREAL'!V110="Real",'08. (a)TRIBUTOS LREAL'!V51*('09. RECEITA'!V24/'09. RECEITA'!V10),'08. (b)TRIBUTOS LPRESUMID'!AF19)*('09. RECEITA'!V24/'09. RECEITA'!V10)+IF('08. (a)TRIBUTOS LREAL'!V110="Real",'08. (a)TRIBUTOS LREAL'!V61*('09. RECEITA'!V24/'09. RECEITA'!V10),'08. (b)TRIBUTOS LPRESUMID'!AF25)*('09. RECEITA'!V24/'09. RECEITA'!V10) -> 0 | X30: 0 | Z30: =NPV('01. PC'!$C$9,'02 (b). FCL por Terminal'!D30:V30)+'02 (b). FCL por Terminal'!C30 -> 0
B31: NIG | C31: ='05. NIG'!C24*('07. OPEX'!C79/'07. OPEX'!C10) -> -0.124706817 | D31: ='05. NIG'!D24*('07. OPEX'!D79/'07. OPEX'!D10) -> -0.02429262528 | E31: ='05. NIG'!E24*('07. OPEX'!E79/'07. OPEX'!E10) -> -0.003632237388 | F31: ='05. NIG'!F24*('07. OPEX'!F79/'07. OPEX'!F10) -> -0.003632237388 | G31: ='05. NIG'!G24*('07. OPEX'!G79/'07. OPEX'!G10) -> -0.003632237388 | H31: ='05. NIG'!H24*('07. OPEX'!H79/'07. OPEX'!H10) -> -0.003632237388 | I31: ='05. NIG'!I24*('07. OPEX'!I79/'07. OPEX'!I10) -> -0.003632237388 | J31: ='05. NIG'!J24*('07. OPEX'!J79/'07. OPEX'!J10) -> -0.003632237388 | K31: ='05. NIG'!K24*('07. OPEX'!K79/'07. OPEX'!K10) -> -0.003632237388 | L31: ='05. NIG'!L24*('07. OPEX'!L79/'07. OPEX'!L10) -> -0.003632237388 | M31: ='05. NIG'!M24*('07. OPEX'!M79/'07. OPEX'!M10) -> -0.003632237388 | N31: ='05. NIG'!N24*('07. OPEX'!N79/'07. OPEX'!N10) -> -0.003632237388 | O31: ='05. NIG'!O24*('07. OPEX'!O79/'07. OPEX'!O10) -> -0.003632237388 | P31: ='05. NIG'!P24*('07. OPEX'!P79/'07. OPEX'!P10) -> -0.003632237388 | Q31: ='05. NIG'!Q24*('07. OPEX'!Q79/'07. OPEX'!Q10) -> -0.003632237388 | R31: ='05. NIG'!R24*('07. OPEX'!R79/'07. OPEX'!R10) -> -0.003632237388 | S31: ='05. NIG'!S24*('07. OPEX'!S79/'07. OPEX'!S10) -> -0.003632237388 | T31: ='05. NIG'!T24*('07. OPEX'!T79/'07. OPEX'!T10) -> -0.003632237388 | U31: ='05. NIG'!U24*('07. OPEX'!U79/'07. OPEX'!U10) -> -0.003632237388 | V31: ='05. NIG'!V24*('07. OPEX'!V79/'07. OPEX'!V10) -> 0.1210745796 | X31: -0.08967289827 | Z31: =NPV('01. PC'!$C$9,'02 (b). FCL por Terminal'!D31:V31)+'02 (b). FCL por Terminal'!C31 -> -0.1507555141
B32: FCL | C32: =C27+C28+C29+C30 -> -3.832441804 | D32: =D27+D28+D29+D30 -> -1.272665561 | E32: -1.272665561 | F32: -1.272665561 | G32: -1.272665561 | H32: -1.272665561 | I32: -1.272665561 | J32: -1.272665561 | K32: -1.272665561 | L32: -1.272665561 | M32: -1.272665561 | N32: -1.272665561 | O32: -1.272665561 | P32: -1.272665561 | Q32: -1.272665561 | R32: -1.272665561 | S32: -1.272665561 | T32: -1.272665561 | U32: -1.272665561 | V32: -1.272665561 | X32: -28.01308746 | Z32: =NPV('01. PC'!$C$9,'02 (b). FCL por Terminal'!D32:V32)+'02 (b). FCL por Terminal'!C32 -> -15.70122851
B33: FCL Acumulado | C33: =C32 -> -3.832441804 | D33: =D32 -> -1.272665561 | E33: -1.272665561 | F33: -1.272665561 | G33: -1.272665561 | H33: -1.272665561 | I33: -1.272665561 | J33: -1.272665561 | K33: -1.272665561 | L33: -1.272665561 | M33: -1.272665561 | N33: -1.272665561 | O33: -1.272665561 | P33: -1.272665561 | Q33: -1.272665561 | R33: -1.272665561 | S33: -1.272665561 | T33: -1.272665561 | U33: -1.272665561 | V33: -1.272665561 | X33: -28.01308746 | Z33: =NPV('01. PC'!$C$9,'02 (b). FCL por Terminal'!D33:V33)+'02 (b). FCL por Terminal'!C33 -> -15.70122851
B35: TIR de Projeto (% ao ano) | C35: =IRR(C32:V32) -> 
B36: VPL (em R$ Milhões) | C36: =NPV('01. PC'!$C$9,'02 (b). FCL por Terminal'!D32:V32)+'02 (b). FCL por Terminal'!C32 -> -15.70122851
B38: Terminal Oficinas | C38: =(C40+C41+C42+C43+C44+C45)*C$8 -> -6.462340425 | D38: =(D40+D41+D42+D43+D44+D45)*D$8 -> -2.699803401 | E38: -2.679143013 | F38: -2.679143013 | G38: -2.679143013 | H38: -2.679143013 | I38: -2.679143013 | J38: -2.679143013 | K38: -2.679143013 | L38: -2.679143013 | M38: -2.679143013 | N38: -2.679143013 | O38: -2.679143013 | P38: -2.679143013 | Q38: -2.679143013 | R38: -2.679143013 | S38: -2.679143013 | T38: -2.679143013 | U38: -2.679143013 | V38: -2.554436196 | X38: =SUM(C38:L38) -> -30.59528793 | Z38: =NPV('01. PC'!$C$9,'02 (b). FCL por Terminal'!D38:L38)+'02 (b). FCL por Terminal'!C38 -> -22.93519044
B40: Receitas | C40: ='09. RECEITA'!C36 -> 0 | D40: ='09. RECEITA'!D36 -> 0.1587264162 | E40: ='09. RECEITA'!E36 -> 0.1587264162 | F40: ='09. RECEITA'!F36 -> 0.1587264162 | G40: ='09. RECEITA'!G36 -> 0.1587264162 | H40: ='09. RECEITA'!H36 -> 0.1587264162 | I40: ='09. RECEITA'!I36 -> 0.1587264162 | J40: ='09. RECEITA'!J36 -> 0.1587264162 | K40: ='09. RECEITA'!K36 -> 0.1587264162 | L40: ='09. RECEITA'!L36 -> 0.1587264162 | M40: ='09. RECEITA'!M36 -> 0.1587264162 | N40: ='09. RECEITA'!N36 -> 0.1587264162 | O40: ='09. RECEITA'!O36 -> 0.1587264162 | P40: ='09. RECEITA'!P36 -> 0.1587264162 | Q40: ='09. RECEITA'!Q36 -> 0.1587264162 | R40: ='09. RECEITA'!R36 -> 0.1587264162 | S40: ='09. RECEITA'!S36 -> 0.1587264162 | T40: ='09. RECEITA'!T36 -> 0.1587264162 | U40: ='09. RECEITA'!U36 -> 0.1587264162 | V40: ='09. RECEITA'!V36 -> 0.1587264162 | X40: =SUM(C40:V40) -> 3.015801908 | Z40: =NPV('01. PC'!$C$9,'02 (b). FCL por Terminal'!D40:V40)+'02 (b). FCL por Terminal'!C40 -> 1.480271044
B41: Capex | C41: =-'6. CAPEX'!C61 -> -1.672335 | D41: =-'6. CAPEX'!D61 -> 0 | E41: =-'6. CAPEX'!E61 -> 0 | F41: =-'6. CAPEX'!F61 -> 0 | G41: =-'6. CAPEX'!G61 -> 0 | H41: =-'6. CAPEX'!H61 -> 0 | I41: =-'6. CAPEX'!I61 -> 0 | J41: =-'6. CAPEX'!J61 -> 0 | K41: =-'6. CAPEX'!K61 -> 0 | L41: =-'6. CAPEX'!L61 -> 0 | M41: =-'6. CAPEX'!M61 -> 0 | N41: =-'6. CAPEX'!N61 -> 0 | O41: =-'6. CAPEX'!O61 -> 0 | P41: =-'6. CAPEX'!P61 -> 0 | Q41: =-'6. CAPEX'!Q61 -> 0 | R41: =-'6. CAPEX'!R61 -> 0 | S41: =-'6. CAPEX'!S61 -> 0 | T41: =-'6. CAPEX'!T61 -> 0 | U41: =-'6. CAPEX'!U61 -> 0 | V41: =-'6. CAPEX'!V61 -> 0 | X41: -1.672335 | Z41: =NPV('01. PC'!$C$9,'02 (b). FCL por Terminal'!D41:V41)+'02 (b). FCL por Terminal'!C41 -> -1.672335
B42: Opex | C42: =-'07. OPEX'!C146 -> -1.496481804 | D42: =-'07. OPEX'!D146 -> -1.496481804 | E42: =-'07. OPEX'!E146 -> -1.496481804 | F42: =-'07. OPEX'!F146 -> -1.496481804 | G42: =-'07. OPEX'!G146 -> -1.496481804 | H42: =-'07. OPEX'!H146 -> -1.496481804 | I42: =-'07. OPEX'!I146 -> -1.496481804 | J42: =-'07. OPEX'!J146 -> -1.496481804 | K42: =-'07. OPEX'!K146 -> -1.496481804 | L42: =-'07. OPEX'!L146 -> -1.496481804 | M42: =-'07. OPEX'!M146 -> -1.496481804 | N42: =-'07. OPEX'!N146 -> -1.496481804 | O42: =-'07. OPEX'!O146 -> -1.496481804 | P42: =-'07. OPEX'!P146 -> -1.496481804 | Q42: =-'07. OPEX'!Q146 -> -1.496481804 | R42: =-'07. OPEX'!R146 -> -1.496481804 | S42: =-'07. OPEX'!S146 -> -1.496481804 | T42: =-'07. OPEX'!T146 -> -1.496481804 | U42: =-'07. OPEX'!U146 -> -1.496481804 | V42: =-'07. OPEX'!V146 -> -1.496481804 | X42: -29.92963608 | Z42: =NPV('01. PC'!$C$9,'02 (b). FCL por Terminal'!D42:V42)+'02 (b). FCL por Terminal'!C42 -> -15.45256256
B43: Tributos | C43: =IF('08. (a)TRIBUTOS LREAL'!C110="Real",'08. (a)TRIBUTOS LREAL'!C51*('09. RECEITA'!C36/'09. RECEITA'!C10),'08. (b)TRIBUTOS LPRESUMID'!C19)*('09. RECEITA'!C36/'09. RECEITA'!C10)+IF('08. (a)TRIBUTOS LREAL'!C110="Real",'08. (a)TRIBUTOS LREAL'!C61*('09. RECEITA'!C36/'09. RECEITA'!C10),'08. (b)TRIBUTOS LPRESUMID'!C25)*('09. RECEITA'!C36/'09. RECEITA'!C10) -> 0 | D43: =IF('08. (a)TRIBUTOS LREAL'!D110="Real",'08. (a)TRIBUTOS LREAL'!D51*('09. RECEITA'!D36/'09. RECEITA'!D10),'08. (b)TRIBUTOS LPRESUMID'!D19)*('09. RECEITA'!D36/'09. RECEITA'!D10)+IF('08. (a)TRIBUTOS LREAL'!D110="Real",'08. (a)TRIBUTOS LREAL'!D61*('09. RECEITA'!D36/'09. RECEITA'!D10),'08. (b)TRIBUTOS LPRESUMID'!D25)*('09. RECEITA'!D36/'09. RECEITA'!D10) -> 0 | E43: =IF('08. (a)TRIBUTOS LREAL'!E110="Real",'08. (a)TRIBUTOS LREAL'!E51*('09. RECEITA'!E36/'09. RECEITA'!E10),'08. (b)TRIBUTOS LPRESUMID'!E19)*('09. RECEITA'!E36/'09. RECEITA'!E10)+IF('08. (a)TRIBUTOS LREAL'!E110="Real",'08. (a)TRIBUTOS LREAL'!E61*('09. RECEITA'!E36/'09. RECEITA'!E10),'08. (b)TRIBUTOS LPRESUMID'!E25)*('09. RECEITA'!E36/'09. RECEITA'!E10) -> 0 | F43: =IF('08. (a)TRIBUTOS LREAL'!F110="Real",'08. (a)TRIBUTOS LREAL'!F51*('09. RECEITA'!F36/'09. RECEITA'!F10),'08. (b)TRIBUTOS LPRESUMID'!F19)*('09. RECEITA'!F36/'09. RECEITA'!F10)+IF('08. (a)TRIBUTOS LREAL'!F110="Real",'08. (a)TRIBUTOS LREAL'!F61*('09. RECEITA'!F36/'09. RECEITA'!F10),'08. (b)TRIBUTOS LPRESUMID'!F25)*('09. RECEITA'!F36/'09. RECEITA'!F10) -> 0 | G43: =IF('08. (a)TRIBUTOS LREAL'!G110="Real",'08. (a)TRIBUTOS LREAL'!G51*('09. RECEITA'!G36/'09. RECEITA'!G10),'08. (b)TRIBUTOS LPRESUMID'!G19)*('09. RECEITA'!G36/'09. RECEITA'!G10)+IF('08. (a)TRIBUTOS LREAL'!G110="Real",'08. (a)TRIBUTOS LREAL'!G61*('09. RECEITA'!G36/'09. RECEITA'!G10),'08. (b)TRIBUTOS LPRESUMID'!G25)*('09. RECEITA'!G36/'09. RECEITA'!G10) -> 0 | H43: =IF('08. (a)TRIBUTOS LREAL'!H110="Real",'08. (a)TRIBUTOS LREAL'!H51*('09. RECEITA'!H36/'09. RECEITA'!H10),'08. (b)TRIBUTOS LPRESUMID'!H19)*('09. RECEITA'!H36/'09. RECEITA'!H10)+IF('08. (a)TRIBUTOS LREAL'!H110="Real",'08. (a)TRIBUTOS LREAL'!H61*('09. RECEITA'!H36/'09. RECEITA'!H10),'08. (b)TRIBUTOS LPRESUMID'!H25)*('09. RECEITA'!H36/'09. RECEITA'!H10) -> 0 | I43: =IF('08. (a)TRIBUTOS LREAL'!I110="Real",'08. (a)TRIBUTOS LREAL'!I51*('09. RECEITA'!I36/'09. RECEITA'!I10),'08. (b)TRIBUTOS LPRESUMID'!I19)*('09. RECEITA'!I36/'09. RECEITA'!I10)+IF('08. (a)TRIBUTOS LREAL'!I110="Real",'08. (a)TRIBUTOS LREAL'!I61*('09. RECEITA'!I36/'09. RECEITA'!I10),'08. (b)TRIBUTOS LPRESUMID'!I25)*('09. RECEITA'!I36/'09. RECEITA'!I10) -> 0 | J43: =IF('08. (a)TRIBUTOS LREAL'!J110="Real",'08. (a)TRIBUTOS LREAL'!J51*('09. RECEITA'!J36/'09. RECEITA'!J10),'08. (b)TRIBUTOS LPRESUMID'!J19)*('09. RECEITA'!J36/'09. RECEITA'!J10)+IF('08. (a)TRIBUTOS LREAL'!J110="Real",'08. (a)TRIBUTOS LREAL'!J61*('09. RECEITA'!J36/'09. RECEITA'!J10),'08. (b)TRIBUTOS LPRESUMID'!J25)*('09. RECEITA'!J36/'09. RECEITA'!J10) -> 0 | K43: =IF('08. (a)TRIBUTOS LREAL'!K110="Real",'08. (a)TRIBUTOS LREAL'!K51*('09. RECEITA'!K36/'09. RECEITA'!K10),'08. (b)TRIBUTOS LPRESUMID'!K19)*('09. RECEITA'!K36/'09. RECEITA'!K10)+IF('08. (a)TRIBUTOS LREAL'!K110="Real",'08. (a)TRIBUTOS LREAL'!K61*('09. RECEITA'!K36/'09. RECEITA'!K10),'08. (b)TRIBUTOS LPRESUMID'!K25)*('09. RECEITA'!K36/'09. RECEITA'!K10) -> 0 | L43: =IF('08. (a)TRIBUTOS LREAL'!L110="Real",'08. (a)TRIBUTOS LREAL'!L51*('09. RECEITA'!L36/'09. RECEITA'!L10),'08. (b)TRIBUTOS LPRESUMID'!L19)*('09. RECEITA'!L36/'09. RECEITA'!L10)+IF('08. (a)TRIBUTOS LREAL'!L110="Real",'08. (a)TRIBUTOS LREAL'!L61*('09. RECEITA'!L36/'09. RECEITA'!L10),'08. (b)TRIBUTOS LPRESUMID'!L25)*('09. RECEITA'!L36/'09. RECEITA'!L10) -> 0 | M43: =IF('08. (a)TRIBUTOS LREAL'!M110="Real",'08. (a)TRIBUTOS LREAL'!M51*('09. RECEITA'!M36/'09. RECEITA'!M10),'08. (b)TRIBUTOS LPRESUMID'!W19)*('09. RECEITA'!M36/'09. RECEITA'!M10)+IF('08. (a)TRIBUTOS LREAL'!M110="Real",'08. (a)TRIBUTOS LREAL'!M61*('09. RECEITA'!M36/'09. RECEITA'!M10),'08. (b)TRIBUTOS LPRESUMID'!W25)*('09. RECEITA'!M36/'09. RECEITA'!M10) -> 0 | N43: =IF('08. (a)TRIBUTOS LREAL'!N110="Real",'08. (a)TRIBUTOS LREAL'!N51*('09. RECEITA'!N36/'09. RECEITA'!N10),'08. (b)TRIBUTOS LPRESUMID'!X19)*('09. RECEITA'!N36/'09. RECEITA'!N10)+IF('08. (a)TRIBUTOS LREAL'!N110="Real",'08. (a)TRIBUTOS LREAL'!N61*('09. RECEITA'!N36/'09. RECEITA'!N10),'08. (b)TRIBUTOS LPRESUMID'!X25)*('09. RECEITA'!N36/'09. RECEITA'!N10) -> 0 | O43: =IF('08. (a)TRIBUTOS LREAL'!O110="Real",'08. (a)TRIBUTOS LREAL'!O51*('09. RECEITA'!O36/'09. RECEITA'!O10),'08. (b)TRIBUTOS LPRESUMID'!Y19)*('09. RECEITA'!O36/'09. RECEITA'!O10)+IF('08. (a)TRIBUTOS LREAL'!O110="Real",'08. (a)TRIBUTOS LREAL'!O61*('09. RECEITA'!O36/'09. RECEITA'!O10),'08. (b)TRIBUTOS LPRESUMID'!Y25)*('09. RECEITA'!O36/'09. RECEITA'!O10) -> 0 | P43: =IF('08. (a)TRIBUTOS LREAL'!P110="Real",'08. (a)TRIBUTOS LREAL'!P51*('09. RECEITA'!P36/'09. RECEITA'!P10),'08. (b)TRIBUTOS LPRESUMID'!Z19)*('09. RECEITA'!P36/'09. RECEITA'!P10)+IF('08. (a)TRIBUTOS LREAL'!P110="Real",'08. (a)TRIBUTOS LREAL'!P61*('09. RECEITA'!P36/'09. RECEITA'!P10),'08. (b)TRIBUTOS LPRESUMID'!Z25)*('09. RECEITA'!P36/'09. RECEITA'!P10) -> 0 | Q43: =IF('08. (a)TRIBUTOS LREAL'!Q110="Real",'08. (a)TRIBUTOS LREAL'!Q51*('09. RECEITA'!Q36/'09. RECEITA'!Q10),'08. (b)TRIBUTOS LPRESUMID'!AA19)*('09. RECEITA'!Q36/'09. RECEITA'!Q10)+IF('08. (a)TRIBUTOS LREAL'!Q110="Real",'08. (a)TRIBUTOS LREAL'!Q61*('09. RECEITA'!Q36/'09. RECEITA'!Q10),'08. (b)TRIBUTOS LPRESUMID'!AA25)*('09. RECEITA'!Q36/'09. RECEITA'!Q10) -> 0 | R43: =IF('08. (a)TRIBUTOS LREAL'!R110="Real",'08. (a)TRIBUTOS LREAL'!R51*('09. RECEITA'!R36/'09. RECEITA'!R10),'08. (b)TRIBUTOS LPRESUMID'!AB19)*('09. RECEITA'!R36/'09. RECEITA'!R10)+IF('08. (a)TRIBUTOS LREAL'!R110="Real",'08. (a)TRIBUTOS LREAL'!R61*('09. RECEITA'!R36/'09. RECEITA'!R10),'08. (b)TRIBUTOS LPRESUMID'!AB25)*('09. RECEITA'!R36/'09. RECEITA'!R10) -> 0 | S43: =IF('08. (a)TRIBUTOS LREAL'!S110="Real",'08. (a)TRIBUTOS LREAL'!S51*('09. RECEITA'!S36/'09. RECEITA'!S10),'08. (b)TRIBUTOS LPRESUMID'!AC19)*('09. RECEITA'!S36/'09. RECEITA'!S10)+IF('08. (a)TRIBUTOS LREAL'!S110="Real",'08. (a)TRIBUTOS LREAL'!S61*('09. RECEITA'!S36/'09. RECEITA'!S10),'08. (b)TRIBUTOS LPRESUMID'!AC25)*('09. RECEITA'!S36/'09. RECEITA'!S10) -> 0 | T43: =IF('08. (a)TRIBUTOS LREAL'!T110="Real",'08. (a)TRIBUTOS LREAL'!T51*('09. RECEITA'!T36/'09. RECEITA'!T10),'08. (b)TRIBUTOS LPRESUMID'!AD19)*('09. RECEITA'!T36/'09. RECEITA'!T10)+IF('08. (a)TRIBUTOS LREAL'!T110="Real",'08. (a)TRIBUTOS LREAL'!T61*('09. RECEITA'!T36/'09. RECEITA'!T10),'08. (b)TRIBUTOS LPRESUMID'!AD25)*('09. RECEITA'!T36/'09. RECEITA'!T10) -> 0 | U43: =IF('08. (a)TRIBUTOS LREAL'!U110="Real",'08. (a)TRIBUTOS LREAL'!U51*('09. RECEITA'!U36/'09. RECEITA'!U10),'08. (b)TRIBUTOS LPRESUMID'!AE19)*('09. RECEITA'!U36/'09. RECEITA'!U10)+IF('08. (a)TRIBUTOS LREAL'!U110="Real",'08. (a)TRIBUTOS LREAL'!U61*('09. RECEITA'!U36/'09. RECEITA'!U10),'08. (b)TRIBUTOS LPRESUMID'!AE25)*('09. RECEITA'!U36/'09. RECEITA'!U10) -> 0 | V43: =IF('08. (a)TRIBUTOS LREAL'!V110="Real",'08. (a)TRIBUTOS LREAL'!V51*('09. RECEITA'!V36/'09. RECEITA'!V10),'08. (b)TRIBUTOS LPRESUMID'!AF19)*('09. RECEITA'!V36/'09. RECEITA'!V10)+IF('08. (a)TRIBUTOS LREAL'!V110="Real",'08. (a)TRIBUTOS LREAL'!V61*('09. RECEITA'!V36/'09. RECEITA'!V10),'08. (b)TRIBUTOS LPRESUMID'!AF25)*('09. RECEITA'!V36/'09. RECEITA'!V10) -> 0 | X43: 0 | Z43: =NPV('01. PC'!$C$9,'02 (b). FCL por Terminal'!D43:V43)+'02 (b). FCL por Terminal'!C43 -> 0
B44: NIG | C44: ='05. NIG'!C24*('07. OPEX'!C146/'07. OPEX'!C10) -> -0.124706817 | D44: ='05. NIG'!D24*('07. OPEX'!D146/'07. OPEX'!D10) -> -0.02429262528 | E44: ='05. NIG'!E24*('07. OPEX'!E146/'07. OPEX'!E10) -> -0.003632237388 | F44: ='05. NIG'!F24*('07. OPEX'!F146/'07. OPEX'!F10) -> -0.003632237388 | G44: ='05. NIG'!G24*('07. OPEX'!G146/'07. OPEX'!G10) -> -0.003632237388 | H44: ='05. NIG'!H24*('07. OPEX'!H146/'07. OPEX'!H10) -> -0.003632237388 | I44: ='05. NIG'!I24*('07. OPEX'!I146/'07. OPEX'!I10) -> -0.003632237388 | J44: ='05. NIG'!J24*('07. OPEX'!J146/'07. OPEX'!J10) -> -0.003632237388 | K44: ='05. NIG'!K24*('07. OPEX'!K146/'07. OPEX'!K10) -> -0.003632237388 | L44: ='05. NIG'!L24*('07. OPEX'!L146/'07. OPEX'!L10) -> -0.003632237388 | M44: ='05. NIG'!M24*('07. OPEX'!M146/'07. OPEX'!M10) -> -0.003632237388 | N44: ='05. NIG'!N24*('07. OPEX'!N146/'07. OPEX'!N10) -> -0.003632237388 | O44: ='05. NIG'!O24*('07. OPEX'!O146/'07. OPEX'!O10) -> -0.003632237388 | P44: ='05. NIG'!P24*('07. OPEX'!P146/'07. OPEX'!P10) -> -0.003632237388 | Q44: ='05. NIG'!Q24*('07. OPEX'!Q146/'07. OPEX'!Q10) -> -0.003632237388 | R44: ='05. NIG'!R24*('07. OPEX'!R146/'07. OPEX'!R10) -> -0.003632237388 | S44: ='05. NIG'!S24*('07. OPEX'!S146/'07. OPEX'!S10) -> -0.003632237388 | T44: ='05. NIG'!T24*('07. OPEX'!T146/'07. OPEX'!T10) -> -0.003632237388 | U44: ='05. NIG'!U24*('07. OPEX'!U146/'07. OPEX'!U10) -> -0.003632237388 | V44: ='05. NIG'!V24*('07. OPEX'!V146/'07. OPEX'!V10) -> 0.1210745796 | X44: -0.08967289827 | Z44: =NPV('01. PC'!$C$9,'02 (b). FCL por Terminal'!D44:V44)+'02 (b). FCL por Terminal'!C44 -> -0.1507555141
B45: FCL | C45: =C40+C41+C42+C43 -> -3.168816804 | D45: =D40+D41+D42+D43 -> -1.337755388 | E45: -1.337755388 | F45: -1.337755388 | G45: -1.337755388 | H45: -1.337755388 | I45: -1.337755388 | J45: -1.337755388 | K45: -1.337755388 | L45: -1.337755388 | M45: -1.337755388 | N45: -1.337755388 | O45: -1.337755388 | P45: -1.337755388 | Q45: -1.337755388 | R45: -1.337755388 | S45: -1.337755388 | T45: -1.337755388 | U45: -1.337755388 | V45: -1.337755388 | X45: -28.58616917 | Z45: =NPV('01. PC'!$C$9,'02 (b). FCL por Terminal'!D45:V45)+'02 (b). FCL por Terminal'!C45 -> -15.64462652
B46: FCL Acumulado | C46: =C45 -> -3.168816804 | D46: =D45 -> -1.337755388 | E46: -1.337755388 | F46: -1.337755388 | G46: -1.337755388 | H46: -1.337755388 | I46: -1.337755388 | J46: -1.337755388 | K46: -1.337755388 | L46: -1.337755388 | M46: -1.337755388 | N46: -1.337755388 | O46: -1.337755388 | P46: -1.337755388 | Q46: -1.337755388 | R46: -1.337755388 | S46: -1.337755388 | T46: -1.337755388 | U46: -1.337755388 | V46: -1.337755388 | X46: -28.58616917 | Z46: =NPV('01. PC'!$C$9,'02 (b). FCL por Terminal'!D46:V46)+'02 (b). FCL por Terminal'!C46 -> -15.64462652
B48: TIR de Projeto (% ao ano) | C48: =IRR(C45:V45) -> 
B49: VPL (em R$ Milhões) | C49: =NPV('01. PC'!$C$9,'02 (b). FCL por Terminal'!D45:V45)+'02 (b). FCL por Terminal'!C45 -> -15.64462652
B51: Terminal Nova Rússia | C51: =(C53+C54+C55+C56+C57+C58)*C$8 -> -3.106849349 | D51: =(D53+D54+D55+D56+D57+D58)*D$8 -> -3.006435157 | E51: -2.985774769 | F51: -2.985774769 | G51: -2.985774769 | H51: -2.985774769 | I51: -2.985774769 | J51: -2.985774769 | K51: -2.985774769 | L51: -2.985774769 | M51: -2.985774769 | N51: -2.985774769 | O51: -2.985774769 | P51: -2.985774769 | Q51: -2.985774769 | R51: -2.985774769 | S51: -2.985774769 | T51: -2.985774769 | U51: -2.985774769 | V51: -2.861067952 | X51: =SUM(C51:L51) -> -29.99948266 | Z51: =SUM(E51:X51) -> -83.61872169
B53: Receitas | C53: ='09. RECEITA'!C48 -> 0.005410538147 | D53: ='09. RECEITA'!D48 -> 0.005410538147 | E53: ='09. RECEITA'!E48 -> 0.005410538147 | F53: ='09. RECEITA'!F48 -> 0.005410538147 | G53: ='09. RECEITA'!G48 -> 0.005410538147 | H53: ='09. RECEITA'!H48 -> 0.005410538147 | I53: ='09. RECEITA'!I48 -> 0.005410538147 | J53: ='09. RECEITA'!J48 -> 0.005410538147 | K53: ='09. RECEITA'!K48 -> 0.005410538147 | L53: ='09. RECEITA'!L48 -> 0.005410538147 | M53: ='09. RECEITA'!M48 -> 0.005410538147 | N53: ='09. RECEITA'!N48 -> 0.005410538147 | O53: ='09. RECEITA'!O48 -> 0.005410538147 | P53: ='09. RECEITA'!P48 -> 0.005410538147 | Q53: ='09. RECEITA'!Q48 -> 0.005410538147 | R53: ='09. RECEITA'!R48 -> 0.005410538147 | S53: ='09. RECEITA'!S48 -> 0.005410538147 | T53: ='09. RECEITA'!T48 -> 0.005410538147 | U53: ='09. RECEITA'!U48 -> 0.005410538147 | V53: ='09. RECEITA'!V48 -> 0.005410538147 | X53: =SUM(C53:V53) -> 0.1082107629 | Z53: =NPV('01. PC'!$C$9,'02 (b). FCL por Terminal'!D53:V53)+'02 (b). FCL por Terminal'!C53 -> 0.05586882445
B54: Capex | C54: =-'6. CAPEX'!C65 -> 0 | D54: =-'6. CAPEX'!D65 -> 0 | E54: =-'6. CAPEX'!E65 -> 0 | F54: =-'6. CAPEX'!F65 -> 0 | G54: =-'6. CAPEX'!G65 -> 0 | H54: =-'6. CAPEX'!H65 -> 0 | I54: =-'6. CAPEX'!I65 -> 0 | J54: =-'6. CAPEX'!J65 -> 0 | K54: =-'6. CAPEX'!K65 -> 0 | L54: =-'6. CAPEX'!L65 -> 0 | M54: =-'6. CAPEX'!M65 -> 0 | N54: =-'6. CAPEX'!N65 -> 0 | O54: =-'6. CAPEX'!O65 -> 0 | P54: =-'6. CAPEX'!P65 -> 0 | Q54: =-'6. CAPEX'!Q65 -> 0 | R54: =-'6. CAPEX'!R65 -> 0 | S54: =-'6. CAPEX'!S65 -> 0 | T54: =-'6. CAPEX'!T65 -> 0 | U54: =-'6. CAPEX'!U65 -> 0 | V54: =-'6. CAPEX'!V65 -> 0 | X54: 0 | Z54: =NPV('01. PC'!$C$9,'02 (b). FCL por Terminal'!D54:V54)+'02 (b). FCL por Terminal'!C54 -> 0
B55: Opex | C55: =-'07. OPEX'!C213 -> -1.496481804 | D55: =-'07. OPEX'!D213 -> -1.496481804 | E55: =-'07. OPEX'!E213 -> -1.496481804 | F55: =-'07. OPEX'!F213 -> -1.496481804 | G55: =-'07. OPEX'!G213 -> -1.496481804 | H55: =-'07. OPEX'!H213 -> -1.496481804 | I55: =-'07. OPEX'!I213 -> -1.496481804 | J55: =-'07. OPEX'!J213 -> -1.496481804 | K55: =-'07. OPEX'!K213 -> -1.496481804 | L55: =-'07. OPEX'!L213 -> -1.496481804 | M55: =-'07. OPEX'!M213 -> -1.496481804 | N55: =-'07. OPEX'!N213 -> -1.496481804 | O55: =-'07. OPEX'!O213 -> -1.496481804 | P55: =-'07. OPEX'!P213 -> -1.496481804 | Q55: =-'07. OPEX'!Q213 -> -1.496481804 | R55: =-'07. OPEX'!R213 -> -1.496481804 | S55: =-'07. OPEX'!S213 -> -1.496481804 | T55: =-'07. OPEX'!T213 -> -1.496481804 | U55: =-'07. OPEX'!U213 -> -1.496481804 | V55: =-'07. OPEX'!V213 -> -1.496481804 | X55: -29.92963608 | Z55: =NPV('01. PC'!$C$9,'02 (b). FCL por Terminal'!D55:V55)+'02 (b). FCL por Terminal'!C55 -> -15.45256256
B56: Tributos | C56: =IF('08. (a)TRIBUTOS LREAL'!C110="Real",'08. (a)TRIBUTOS LREAL'!C51*('09. RECEITA'!C48/'09. RECEITA'!C10),'08. (b)TRIBUTOS LPRESUMID'!C19)*('09. RECEITA'!C48/'09. RECEITA'!C10)+IF('08. (a)TRIBUTOS LREAL'!C110="Real",'08. (a)TRIBUTOS LREAL'!C61*('09. RECEITA'!C48/'09. RECEITA'!C10),'08. (b)TRIBUTOS LPRESUMID'!C25)*('09. RECEITA'!C48/'09. RECEITA'!C10) -> 0 | D56: =IF('08. (a)TRIBUTOS LREAL'!D110="Real",'08. (a)TRIBUTOS LREAL'!D51*('09. RECEITA'!D48/'09. RECEITA'!D10),'08. (b)TRIBUTOS LPRESUMID'!D19)*('09. RECEITA'!D48/'09. RECEITA'!D10)+IF('08. (a)TRIBUTOS LREAL'!D110="Real",'08. (a)TRIBUTOS LREAL'!D61*('09. RECEITA'!D48/'09. RECEITA'!D10),'08. (b)TRIBUTOS LPRESUMID'!D25)*('09. RECEITA'!D48/'09. RECEITA'!D10) -> 0 | E56: =IF('08. (a)TRIBUTOS LREAL'!E110="Real",'08. (a)TRIBUTOS LREAL'!E51*('09. RECEITA'!E48/'09. RECEITA'!E10),'08. (b)TRIBUTOS LPRESUMID'!E19)*('09. RECEITA'!E48/'09. RECEITA'!E10)+IF('08. (a)TRIBUTOS LREAL'!E110="Real",'08. (a)TRIBUTOS LREAL'!E61*('09. RECEITA'!E48/'09. RECEITA'!E10),'08. (b)TRIBUTOS LPRESUMID'!E25)*('09. RECEITA'!E48/'09. RECEITA'!E10) -> 0 | F56: =IF('08. (a)TRIBUTOS LREAL'!F110="Real",'08. (a)TRIBUTOS LREAL'!F51*('09. RECEITA'!F48/'09. RECEITA'!F10),'08. (b)TRIBUTOS LPRESUMID'!F19)*('09. RECEITA'!F48/'09. RECEITA'!F10)+IF('08. (a)TRIBUTOS LREAL'!F110="Real",'08. (a)TRIBUTOS LREAL'!F61*('09. RECEITA'!F48/'09. RECEITA'!F10),'08. (b)TRIBUTOS LPRESUMID'!F25)*('09. RECEITA'!F48/'09. RECEITA'!F10) -> 0 | G56: =IF('08. (a)TRIBUTOS LREAL'!G110="Real",'08. (a)TRIBUTOS LREAL'!G51*('09. RECEITA'!G48/'09. RECEITA'!G10),'08. (b)TRIBUTOS LPRESUMID'!G19)*('09. RECEITA'!G48/'09. RECEITA'!G10)+IF('08. (a)TRIBUTOS LREAL'!G110="Real",'08. (a)TRIBUTOS LREAL'!G61*('09. RECEITA'!G48/'09. RECEITA'!G10),'08. (b)TRIBUTOS LPRESUMID'!G25)*('09. RECEITA'!G48/'09. RECEITA'!G10) -> 0 | H56: =IF('08. (a)TRIBUTOS LREAL'!H110="Real",'08. (a)TRIBUTOS LREAL'!H51*('09. RECEITA'!H48/'09. RECEITA'!H10),'08. (b)TRIBUTOS LPRESUMID'!H19)*('09. RECEITA'!H48/'09. RECEITA'!H10)+IF('08. (a)TRIBUTOS LREAL'!H110="Real",'08. (a)TRIBUTOS LREAL'!H61*('09. RECEITA'!H48/'09. RECEITA'!H10),'08. (b)TRIBUTOS LPRESUMID'!H25)*('09. RECEITA'!H48/'09. RECEITA'!H10) -> 0 | I56: =IF('08. (a)TRIBUTOS LREAL'!I110="Real",'08. (a)TRIBUTOS LREAL'!I51*('09. RECEITA'!I48/'09. RECEITA'!I10),'08. (b)TRIBUTOS LPRESUMID'!I19)*('09. RECEITA'!I48/'09. RECEITA'!I10)+IF('08. (a)TRIBUTOS LREAL'!I110="Real",'08. (a)TRIBUTOS LREAL'!I61*('09. RECEITA'!I48/'09. RECEITA'!I10),'08. (b)TRIBUTOS LPRESUMID'!I25)*('09. RECEITA'!I48/'09. RECEITA'!I10) -> 0 | J56: =IF('08. (a)TRIBUTOS LREAL'!J110="Real",'08. (a)TRIBUTOS LREAL'!J51*('09. RECEITA'!J48/'09. RECEITA'!J10),'08. (b)TRIBUTOS LPRESUMID'!J19)*('09. RECEITA'!J48/'09. RECEITA'!J10)+IF('08. (a)TRIBUTOS LREAL'!J110="Real",'08. (a)TRIBUTOS LREAL'!J61*('09. RECEITA'!J48/'09. RECEITA'!J10),'08. (b)TRIBUTOS LPRESUMID'!J25)*('09. RECEITA'!J48/'09. RECEITA'!J10) -> 0 | K56: =IF('08. (a)TRIBUTOS LREAL'!K110="Real",'08. (a)TRIBUTOS LREAL'!K51*('09. RECEITA'!K48/'09. RECEITA'!K10),'08. (b)TRIBUTOS LPRESUMID'!K19)*('09. RECEITA'!K48/'09. RECEITA'!K10)+IF('08. (a)TRIBUTOS LREAL'!K110="Real",'08. (a)TRIBUTOS LREAL'!K61*('09. RECEITA'!K48/'09. RECEITA'!K10),'08. (b)TRIBUTOS LPRESUMID'!K25)*('09. RECEITA'!K48/'09. RECEITA'!K10) -> 0 | L56: =IF('08. (a)TRIBUTOS LREAL'!L110="Real",'08. (a)TRIBUTOS LREAL'!L51*('09. RECEITA'!L48/'09. RECEITA'!L10),'08. (b)TRIBUTOS LPRESUMID'!L19)*('09. RECEITA'!L48/'09. RECEITA'!L10)+IF('08. (a)TRIBUTOS LREAL'!L110="Real",'08. (a)TRIBUTOS LREAL'!L61*('09. RECEITA'!L48/'09. RECEITA'!L10),'08. (b)TRIBUTOS LPRESUMID'!L25)*('09. RECEITA'!L48/'09. RECEITA'!L10) -> 0 | M56: =IF('08. (a)TRIBUTOS LREAL'!M110="Real",'08. (a)TRIBUTOS LREAL'!M51*('09. RECEITA'!M48/'09. RECEITA'!M10),'08. (b)TRIBUTOS LPRESUMID'!W19)*('09. RECEITA'!M48/'09. RECEITA'!M10)+IF('08. (a)TRIBUTOS LREAL'!M110="Real",'08. (a)TRIBUTOS LREAL'!M61*('09. RECEITA'!M48/'09. RECEITA'!M10),'08. (b)TRIBUTOS LPRESUMID'!W25)*('09. RECEITA'!M48/'09. RECEITA'!M10) -> 0 | N56: =IF('08. (a)TRIBUTOS LREAL'!N110="Real",'08. (a)TRIBUTOS LREAL'!N51*('09. RECEITA'!N48/'09. RECEITA'!N10),'08. (b)TRIBUTOS LPRESUMID'!X19)*('09. RECEITA'!N48/'09. RECEITA'!N10)+IF('08. (a)TRIBUTOS LREAL'!N110="Real",'08. (a)TRIBUTOS LREAL'!N61*('09. RECEITA'!N48/'09. RECEITA'!N10),'08. (b)TRIBUTOS LPRESUMID'!X25)*('09. RECEITA'!N48/'09. RECEITA'!N10) -> 0 | O56: =IF('08. (a)TRIBUTOS LREAL'!O110="Real",'08. (a)TRIBUTOS LREAL'!O51*('09. RECEITA'!O48/'09. RECEITA'!O10),'08. (b)TRIBUTOS LPRESUMID'!Y19)*('09. RECEITA'!O48/'09. RECEITA'!O10)+IF('08. (a)TRIBUTOS LREAL'!O110="Real",'08. (a)TRIBUTOS LREAL'!O61*('09. RECEITA'!O48/'09. RECEITA'!O10),'08. (b)TRIBUTOS LPRESUMID'!Y25)*('09. RECEITA'!O48/'09. RECEITA'!O10) -> 0 | P56: =IF('08. (a)TRIBUTOS LREAL'!P110="Real",'08. (a)TRIBUTOS LREAL'!P51*('09. RECEITA'!P48/'09. RECEITA'!P10),'08. (b)TRIBUTOS LPRESUMID'!Z19)*('09. RECEITA'!P48/'09. RECEITA'!P10)+IF('08. (a)TRIBUTOS LREAL'!P110="Real",'08. (a)TRIBUTOS LREAL'!P61*('09. RECEITA'!P48/'09. RECEITA'!P10),'08. (b)TRIBUTOS LPRESUMID'!Z25)*('09. RECEITA'!P48/'09. RECEITA'!P10) -> 0 | Q56: =IF('08. (a)TRIBUTOS LREAL'!Q110="Real",'08. (a)TRIBUTOS LREAL'!Q51*('09. RECEITA'!Q48/'09. RECEITA'!Q10),'08. (b)TRIBUTOS LPRESUMID'!AA19)*('09. RECEITA'!Q48/'09. RECEITA'!Q10)+IF('08. (a)TRIBUTOS LREAL'!Q110="Real",'08. (a)TRIBUTOS LREAL'!Q61*('09. RECEITA'!Q48/'09. RECEITA'!Q10),'08. (b)TRIBUTOS LPRESUMID'!AA25)*('09. RECEITA'!Q48/'09. RECEITA'!Q10) -> 0 | R56: =IF('08. (a)TRIBUTOS LREAL'!R110="Real",'08. (a)TRIBUTOS LREAL'!R51*('09. RECEITA'!R48/'09. RECEITA'!R10),'08. (b)TRIBUTOS LPRESUMID'!AB19)*('09. RECEITA'!R48/'09. RECEITA'!R10)+IF('08. (a)TRIBUTOS LREAL'!R110="Real",'08. (a)TRIBUTOS LREAL'!R61*('09. RECEITA'!R48/'09. RECEITA'!R10),'08. (b)TRIBUTOS LPRESUMID'!AB25)*('09. RECEITA'!R48/'09. RECEITA'!R10) -> 0 | S56: =IF('08. (a)TRIBUTOS LREAL'!S110="Real",'08. (a)TRIBUTOS LREAL'!S51*('09. RECEITA'!S48/'09. RECEITA'!S10),'08. (b)TRIBUTOS LPRESUMID'!AC19)*('09. RECEITA'!S48/'09. RECEITA'!S10)+IF('08. (a)TRIBUTOS LREAL'!S110="Real",'08. (a)TRIBUTOS LREAL'!S61*('09. RECEITA'!S48/'09. RECEITA'!S10),'08. (b)TRIBUTOS LPRESUMID'!AC25)*('09. RECEITA'!S48/'09. RECEITA'!S10) -> 0 | T56: =IF('08. (a)TRIBUTOS LREAL'!T110="Real",'08. (a)TRIBUTOS LREAL'!T51*('09. RECEITA'!T48/'09. RECEITA'!T10),'08. (b)TRIBUTOS LPRESUMID'!AD19)*('09. RECEITA'!T48/'09. RECEITA'!T10)+IF('08. (a)TRIBUTOS LREAL'!T110="Real",'08. (a)TRIBUTOS LREAL'!T61*('09. RECEITA'!T48/'09. RECEITA'!T10),'08. (b)TRIBUTOS LPRESUMID'!AD25)*('09. RECEITA'!T48/'09. RECEITA'!T10) -> 0 | U56: =IF('08. (a)TRIBUTOS LREAL'!U110="Real",'08. (a)TRIBUTOS LREAL'!U51*('09. RECEITA'!U48/'09. RECEITA'!U10),'08. (b)TRIBUTOS LPRESUMID'!AE19)*('09. RECEITA'!U48/'09. RECEITA'!U10)+IF('08. (a)TRIBUTOS LREAL'!U110="Real",'08. (a)TRIBUTOS LREAL'!U61*('09. RECEITA'!U48/'09. RECEITA'!U10),'08. (b)TRIBUTOS LPRESUMID'!AE25)*('09. RECEITA'!U48/'09. RECEITA'!U10) -> 0 | V56: =IF('08. (a)TRIBUTOS LREAL'!V110="Real",'08. (a)TRIBUTOS LREAL'!V51*('09. RECEITA'!V48/'09. RECEITA'!V10),'08. (b)TRIBUTOS LPRESUMID'!AF19)*('09. RECEITA'!V48/'09. RECEITA'!V10)+IF('08. (a)TRIBUTOS LREAL'!V110="Real",'08. (a)TRIBUTOS LREAL'!V61*('09. RECEITA'!V48/'09. RECEITA'!V10),'08. (b)TRIBUTOS LPRESUMID'!AF25)*('09. RECEITA'!V48/'09. RECEITA'!V10) -> 0 | X56: 0 | Z56: =NPV('01. PC'!$C$9,'02 (b). FCL por Terminal'!D56:V56)+'02 (b). FCL por Terminal'!C56 -> 0
B57: NIG | C57: ='05. NIG'!C24*('07. OPEX'!C213/'07. OPEX'!C10) -> -0.124706817 | D57: ='05. NIG'!D24*('07. OPEX'!D213/'07. OPEX'!D10) -> -0.02429262528 | E57: ='05. NIG'!E24*('07. OPEX'!E213/'07. OPEX'!E10) -> -0.003632237388 | F57: ='05. NIG'!F24*('07. OPEX'!F213/'07. OPEX'!F10) -> -0.003632237388 | G57: ='05. NIG'!G24*('07. OPEX'!G213/'07. OPEX'!G10) -> -0.003632237388 | H57: ='05. NIG'!H24*('07. OPEX'!H213/'07. OPEX'!H10) -> -0.003632237388 | I57: ='05. NIG'!I24*('07. OPEX'!I213/'07. OPEX'!I10) -> -0.003632237388 | J57: ='05. NIG'!J24*('07. OPEX'!J213/'07. OPEX'!J10) -> -0.003632237388 | K57: ='05. NIG'!K24*('07. OPEX'!K213/'07. OPEX'!K10) -> -0.003632237388 | L57: ='05. NIG'!L24*('07. OPEX'!L213/'07. OPEX'!L10) -> -0.003632237388 | M57: ='05. NIG'!M24*('07. OPEX'!M213/'07. OPEX'!M10) -> -0.003632237388 | N57: ='05. NIG'!N24*('07. OPEX'!N213/'07. OPEX'!N10) -> -0.003632237388 | O57: ='05. NIG'!O24*('07. OPEX'!O213/'07. OPEX'!O10) -> -0.003632237388 | P57: ='05. NIG'!P24*('07. OPEX'!P213/'07. OPEX'!P10) -> -0.003632237388 | Q57: ='05. NIG'!Q24*('07. OPEX'!Q213/'07. OPEX'!Q10) -> -0.003632237388 | R57: ='05. NIG'!R24*('07. OPEX'!R213/'07. OPEX'!R10) -> -0.003632237388 | S57: ='05. NIG'!S24*('07. OPEX'!S213/'07. OPEX'!S10) -> -0.003632237388 | T57: ='05. NIG'!T24*('07. OPEX'!T213/'07. OPEX'!T10) -> -0.003632237388 | U57: ='05. NIG'!U24*('07. OPEX'!U213/'07. OPEX'!U10) -> -0.003632237388 | V57: ='05. NIG'!V24*('07. OPEX'!V213/'07. OPEX'!V10) -> 0.1210745796 | X57: -0.08967289827 | Z57: =NPV('01. PC'!$C$9,'02 (b). FCL por Terminal'!D57:V57)+'02 (b). FCL por Terminal'!C57 -> -0.1507555141
B58: FCL | C58: =C53+C54+C55+C56 -> -1.491071266 | D58: =D53+D54+D55+D56 -> -1.491071266 | E58: -1.491071266 | F58: -1.491071266 | G58: -1.491071266 | H58: -1.491071266 | I58: -1.491071266 | J58: -1.491071266 | K58: -1.491071266 | L58: -1.491071266 | M58: -1.491071266 | N58: -1.491071266 | O58: -1.491071266 | P58: -1.491071266 | Q58: -1.491071266 | R58: -1.491071266 | S58: -1.491071266 | T58: -1.491071266 | U58: -1.491071266 | V58: -1.491071266 | X58: -29.82142532 | Z58: =NPV('01. PC'!$C$9,'02 (b). FCL por Terminal'!D58:V58)+'02 (b). FCL por Terminal'!C58 -> -15.39669374
B59: FCL Acumulado | C59: =C58 -> -1.491071266 | D59: =D58 -> -1.491071266 | E59: -1.491071266 | F59: -1.491071266 | G59: -1.491071266 | H59: -1.491071266 | I59: -1.491071266 | J59: -1.491071266 | K59: -1.491071266 | L59: -1.491071266 | M59: -1.491071266 | N59: -1.491071266 | O59: -1.491071266 | P59: -1.491071266 | Q59: -1.491071266 | R59: -1.491071266 | S59: -1.491071266 | T59: -1.491071266 | U59: -1.491071266 | V59: -1.491071266 | X59: -29.82142532 | Z59: =NPV('01. PC'!$C$9,'02 (b). FCL por Terminal'!D59:V59)+'02 (b). FCL por Terminal'!C59 -> -15.39669374
B61: TIR de Projeto (% ao ano) | C61: =IRR(C58:V58) -> 
B62: VPL (em R$ Milhões) | C62: =NPV('01. PC'!$C$9,'02 (b). FCL por Terminal'!D58:V58)+'02 (b). FCL por Terminal'!C58 -> -15.39669374
B64: Terminal Santa Paula | C64: =(C66+C67+C68+C69+C70+C71)*C$8 -> -78.0468 | D64: =(D66+D67+D68+D69+D70+D71)*D$8 -> -2.590410297 | E64: -2.569749909 | F64: -2.569749909 | G64: -2.569749909 | H64: -2.569749909 | I64: -2.569749909 | J64: -2.569749909 | K64: -2.569749909 | L64: -2.569749909 | M64: -2.569749909 | N64: -2.569749909 | O64: -2.569749909 | P64: -2.569749909 | Q64: -2.569749909 | R64: -2.569749909 | S64: -2.569749909 | T64: -2.569749909 | U64: -2.569749909 | V64: -2.445043092 | X64: =SUM(C64:L64) -> -101.1952096 | Z64: =SUM(E64:X64) -> -147.3260011
B66: Receitas | C66: ='09. RECEITA'!C60 -> 0 | D66: ='09. RECEITA'!D60 -> 0.2134229682 | E66: ='09. RECEITA'!E60 -> 0.2134229682 | F66: ='09. RECEITA'!F60 -> 0.2134229682 | G66: ='09. RECEITA'!G60 -> 0.2134229682 | H66: ='09. RECEITA'!H60 -> 0.2134229682 | I66: ='09. RECEITA'!I60 -> 0.2134229682 | J66: ='09. RECEITA'!J60 -> 0.2134229682 | K66: ='09. RECEITA'!K60 -> 0.2134229682 | L66: ='09. RECEITA'!L60 -> 0.2134229682 | M66: ='09. RECEITA'!M60 -> 0.2134229682 | N66: ='09. RECEITA'!N60 -> 0.2134229682 | O66: ='09. RECEITA'!O60 -> 0.2134229682 | P66: ='09. RECEITA'!P60 -> 0.2134229682 | Q66: ='09. RECEITA'!Q60 -> 0.2134229682 | R66: ='09. RECEITA'!R60 -> 0.2134229682 | S66: ='09. RECEITA'!S60 -> 0.2134229682 | T66: ='09. RECEITA'!T60 -> 0.2134229682 | U66: ='09. RECEITA'!U60 -> 0.2134229682 | V66: ='09. RECEITA'!V60 -> 0.2134229682 | X66: =SUM(C66:V66) -> 4.055036396 | Z66: =NPV('01. PC'!$C$9,'02 (b). FCL por Terminal'!D66:V66)+'02 (b). FCL por Terminal'!C66 -> 1.990367121
B67: Capex | C67: =-'6. CAPEX'!C69-'6. CAPEX'!C13-('6. CAPEX'!C49/10^6) -> -39.0234 | D67: =-'6. CAPEX'!D69-'6. CAPEX'!D13-('6. CAPEX'!D49/10^6) -> 0 | E67: =-'6. CAPEX'!E69-'6. CAPEX'!E13-('6. CAPEX'!E49/10^6) -> 0 | F67: =-'6. CAPEX'!F69-'6. CAPEX'!F13-('6. CAPEX'!F49/10^6) -> 0 | G67: =-'6. CAPEX'!G69-'6. CAPEX'!G13-('6. CAPEX'!G49/10^6) -> 0 | H67: =-'6. CAPEX'!H69-'6. CAPEX'!H13-('6. CAPEX'!H49/10^6) -> 0 | I67: =-'6. CAPEX'!I69-'6. CAPEX'!I13-('6. CAPEX'!I49/10^6) -> 0 | J67: =-'6. CAPEX'!J69-'6. CAPEX'!J13-('6. CAPEX'!J49/10^6) -> 0 | K67: =-'6. CAPEX'!K69-'6. CAPEX'!K13-('6. CAPEX'!K49/10^6) -> 0 | L67: =-'6. CAPEX'!L69-'6. CAPEX'!L13-('6. CAPEX'!L49/10^6) -> 0 | M67: =-'6. CAPEX'!M69-'6. CAPEX'!M13-('6. CAPEX'!M49/10^6) -> 0 | N67: =-'6. CAPEX'!N69-'6. CAPEX'!N13-('6. CAPEX'!N49/10^6) -> 0 | O67: =-'6. CAPEX'!O69-'6. CAPEX'!O13-('6. CAPEX'!O49/10^6) -> 0 | P67: =-'6. CAPEX'!P69-'6. CAPEX'!P13-('6. CAPEX'!P49/10^6) -> 0 | Q67: =-'6. CAPEX'!Q69-'6. CAPEX'!Q13-('6. CAPEX'!Q49/10^6) -> 0 | R67: =-'6. CAPEX'!R69-'6. CAPEX'!R13-('6. CAPEX'!R49/10^6) -> 0 | S67: =-'6. CAPEX'!S69-'6. CAPEX'!S13-('6. CAPEX'!S49/10^6) -> 0 | T67: =-'6. CAPEX'!T69-'6. CAPEX'!T13-('6. CAPEX'!T49/10^6) -> 0 | U67: =-'6. CAPEX'!U69-'6. CAPEX'!U13-('6. CAPEX'!U49/10^6) -> 0 | V67: =-'6. CAPEX'!V69-'6. CAPEX'!V13-('6. CAPEX'!V49/10^6) -> 0 | X67: -39.0234 | Z67: =NPV('01. PC'!$C$9,'02 (b). FCL por Terminal'!D67:V67)+'02 (b). FCL por Terminal'!C67 -> -39.0234
B68: Opex | C68: =-'07. OPEX'!C280 -> 0 | D68: =-'07. OPEX'!D280 -> -1.496481804 | E68: =-'07. OPEX'!E280 -> -1.496481804 | F68: =-'07. OPEX'!F280 -> -1.496481804 | G68: =-'07. OPEX'!G280 -> -1.496481804 | H68: =-'07. OPEX'!H280 -> -1.496481804 | I68: =-'07. OPEX'!I280 -> -1.496481804 | J68: =-'07. OPEX'!J280 -> -1.496481804 | K68: =-'07. OPEX'!K280 -> -1.496481804 | L68: =-'07. OPEX'!L280 -> -1.496481804 | M68: =-'07. OPEX'!M280 -> -1.496481804 | N68: =-'07. OPEX'!N280 -> -1.496481804 | O68: =-'07. OPEX'!O280 -> -1.496481804 | P68: =-'07. OPEX'!P280 -> -1.496481804 | Q68: =-'07. OPEX'!Q280 -> -1.496481804 | R68: =-'07. OPEX'!R280 -> -1.496481804 | S68: =-'07. OPEX'!S280 -> -1.496481804 | T68: =-'07. OPEX'!T280 -> -1.496481804 | U68: =-'07. OPEX'!U280 -> -1.496481804 | V68: =-'07. OPEX'!V280 -> -1.496481804 | X68: -28.43315428 | Z68: =NPV('01. PC'!$C$9,'02 (b). FCL por Terminal'!D68:V68)+'02 (b). FCL por Terminal'!C68 -> -13.95608076
B69: Tributos | C69: =IF('08. (a)TRIBUTOS LREAL'!C110="Real",'08. (a)TRIBUTOS LREAL'!C51*('09. RECEITA'!C60/'09. RECEITA'!C10),'08. (b)TRIBUTOS LPRESUMID'!C19)*('09. RECEITA'!C60/'09. RECEITA'!C10)+IF('08. (a)TRIBUTOS LREAL'!C110="Real",'08. (a)TRIBUTOS LREAL'!C61*('09. RECEITA'!C60/'09. RECEITA'!C10),'08. (b)TRIBUTOS LPRESUMID'!C25)*('09. RECEITA'!C60/'09. RECEITA'!C10) -> 0 | D69: =IF('08. (a)TRIBUTOS LREAL'!D110="Real",'08. (a)TRIBUTOS LREAL'!D51*('09. RECEITA'!D60/'09. RECEITA'!D10),'08. (b)TRIBUTOS LPRESUMID'!D19)*('09. RECEITA'!D60/'09. RECEITA'!D10)+IF('08. (a)TRIBUTOS LREAL'!D110="Real",'08. (a)TRIBUTOS LREAL'!D61*('09. RECEITA'!D60/'09. RECEITA'!D10),'08. (b)TRIBUTOS LPRESUMID'!D25)*('09. RECEITA'!D60/'09. RECEITA'!D10) -> 0 | E69: =IF('08. (a)TRIBUTOS LREAL'!E110="Real",'08. (a)TRIBUTOS LREAL'!E51*('09. RECEITA'!E60/'09. RECEITA'!E10),'08. (b)TRIBUTOS LPRESUMID'!E19)*('09. RECEITA'!E60/'09. RECEITA'!E10)+IF('08. (a)TRIBUTOS LREAL'!E110="Real",'08. (a)TRIBUTOS LREAL'!E61*('09. RECEITA'!E60/'09. RECEITA'!E10),'08. (b)TRIBUTOS LPRESUMID'!E25)*('09. RECEITA'!E60/'09. RECEITA'!E10) -> 0 | F69: =IF('08. (a)TRIBUTOS LREAL'!F110="Real",'08. (a)TRIBUTOS LREAL'!F51*('09. RECEITA'!F60/'09. RECEITA'!F10),'08. (b)TRIBUTOS LPRESUMID'!F19)*('09. RECEITA'!F60/'09. RECEITA'!F10)+IF('08. (a)TRIBUTOS LREAL'!F110="Real",'08. (a)TRIBUTOS LREAL'!F61*('09. RECEITA'!F60/'09. RECEITA'!F10),'08. (b)TRIBUTOS LPRESUMID'!F25)*('09. RECEITA'!F60/'09. RECEITA'!F10) -> 0 | G69: =IF('08. (a)TRIBUTOS LREAL'!G110="Real",'08. (a)TRIBUTOS LREAL'!G51*('09. RECEITA'!G60/'09. RECEITA'!G10),'08. (b)TRIBUTOS LPRESUMID'!G19)*('09. RECEITA'!G60/'09. RECEITA'!G10)+IF('08. (a)TRIBUTOS LREAL'!G110="Real",'08. (a)TRIBUTOS LREAL'!G61*('09. RECEITA'!G60/'09. RECEITA'!G10),'08. (b)TRIBUTOS LPRESUMID'!G25)*('09. RECEITA'!G60/'09. RECEITA'!G10) -> 0 | H69: =IF('08. (a)TRIBUTOS LREAL'!H110="Real",'08. (a)TRIBUTOS LREAL'!H51*('09. RECEITA'!H60/'09. RECEITA'!H10),'08. (b)TRIBUTOS LPRESUMID'!H19)*('09. RECEITA'!H60/'09. RECEITA'!H10)+IF('08. (a)TRIBUTOS LREAL'!H110="Real",'08. (a)TRIBUTOS LREAL'!H61*('09. RECEITA'!H60/'09. RECEITA'!H10),'08. (b)TRIBUTOS LPRESUMID'!H25)*('09. RECEITA'!H60/'09. RECEITA'!H10) -> 0 | I69: =IF('08. (a)TRIBUTOS LREAL'!I110="Real",'08. (a)TRIBUTOS LREAL'!I51*('09. RECEITA'!I60/'09. RECEITA'!I10),'08. (b)TRIBUTOS LPRESUMID'!I19)*('09. RECEITA'!I60/'09. RECEITA'!I10)+IF('08. (a)TRIBUTOS LREAL'!I110="Real",'08. (a)TRIBUTOS LREAL'!I61*('09. RECEITA'!I60/'09. RECEITA'!I10),'08. (b)TRIBUTOS LPRESUMID'!I25)*('09. RECEITA'!I60/'09. RECEITA'!I10) -> 0 | J69: =IF('08. (a)TRIBUTOS LREAL'!J110="Real",'08. (a)TRIBUTOS LREAL'!J51*('09. RECEITA'!J60/'09. RECEITA'!J10),'08. (b)TRIBUTOS LPRESUMID'!J19)*('09. RECEITA'!J60/'09. RECEITA'!J10)+IF('08. (a)TRIBUTOS LREAL'!J110="Real",'08. (a)TRIBUTOS LREAL'!J61*('09. RECEITA'!J60/'09. RECEITA'!J10),'08. (b)TRIBUTOS LPRESUMID'!J25)*('09. RECEITA'!J60/'09. RECEITA'!J10) -> 0 | K69: =IF('08. (a)TRIBUTOS LREAL'!K110="Real",'08. (a)TRIBUTOS LREAL'!K51*('09. RECEITA'!K60/'09. RECEITA'!K10),'08. (b)TRIBUTOS LPRESUMID'!K19)*('09. RECEITA'!K60/'09. RECEITA'!K10)+IF('08. (a)TRIBUTOS LREAL'!K110="Real",'08. (a)TRIBUTOS LREAL'!K61*('09. RECEITA'!K60/'09. RECEITA'!K10),'08. (b)TRIBUTOS LPRESUMID'!K25)*('09. RECEITA'!K60/'09. RECEITA'!K10) -> 0 | L69: =IF('08. (a)TRIBUTOS LREAL'!L110="Real",'08. (a)TRIBUTOS LREAL'!L51*('09. RECEITA'!L60/'09. RECEITA'!L10),'08. (b)TRIBUTOS LPRESUMID'!L19)*('09. RECEITA'!L60/'09. RECEITA'!L10)+IF('08. (a)TRIBUTOS LREAL'!L110="Real",'08. (a)TRIBUTOS LREAL'!L61*('09. RECEITA'!L60/'09. RECEITA'!L10),'08. (b)TRIBUTOS LPRESUMID'!L25)*('09. RECEITA'!L60/'09. RECEITA'!L10) -> 0 | M69: =IF('08. (a)TRIBUTOS LREAL'!M110="Real",'08. (a)TRIBUTOS LREAL'!M51*('09. RECEITA'!M60/'09. RECEITA'!M10),'08. (b)TRIBUTOS LPRESUMID'!W19)*('09. RECEITA'!M60/'09. RECEITA'!M10)+IF('08. (a)TRIBUTOS LREAL'!M110="Real",'08. (a)TRIBUTOS LREAL'!M61*('09. RECEITA'!M60/'09. RECEITA'!M10),'08. (b)TRIBUTOS LPRESUMID'!W25)*('09. RECEITA'!M60/'09. RECEITA'!M10) -> 0 | N69: =IF('08. (a)TRIBUTOS LREAL'!N110="Real",'08. (a)TRIBUTOS LREAL'!N51*('09. RECEITA'!N60/'09. RECEITA'!N10),'08. (b)TRIBUTOS LPRESUMID'!X19)*('09. RECEITA'!N60/'09. RECEITA'!N10)+IF('08. (a)TRIBUTOS LREAL'!N110="Real",'08. (a)TRIBUTOS LREAL'!N61*('09. RECEITA'!N60/'09. RECEITA'!N10),'08. (b)TRIBUTOS LPRESUMID'!X25)*('09. RECEITA'!N60/'09. RECEITA'!N10) -> 0 | O69: =IF('08. (a)TRIBUTOS LREAL'!O110="Real",'08. (a)TRIBUTOS LREAL'!O51*('09. RECEITA'!O60/'09. RECEITA'!O10),'08. (b)TRIBUTOS LPRESUMID'!Y19)*('09. RECEITA'!O60/'09. RECEITA'!O10)+IF('08. (a)TRIBUTOS LREAL'!O110="Real",'08. (a)TRIBUTOS LREAL'!O61*('09. RECEITA'!O60/'09. RECEITA'!O10),'08. (b)TRIBUTOS LPRESUMID'!Y25)*('09. RECEITA'!O60/'09. RECEITA'!O10) -> 0 | P69: =IF('08. (a)TRIBUTOS LREAL'!P110="Real",'08. (a)TRIBUTOS LREAL'!P51*('09. RECEITA'!P60/'09. RECEITA'!P10),'08. (b)TRIBUTOS LPRESUMID'!Z19)*('09. RECEITA'!P60/'09. RECEITA'!P10)+IF('08. (a)TRIBUTOS LREAL'!P110="Real",'08. (a)TRIBUTOS LREAL'!P61*('09. RECEITA'!P60/'09. RECEITA'!P10),'08. (b)TRIBUTOS LPRESUMID'!Z25)*('09. RECEITA'!P60/'09. RECEITA'!P10) -> 0 | Q69: =IF('08. (a)TRIBUTOS LREAL'!Q110="Real",'08. (a)TRIBUTOS LREAL'!Q51*('09. RECEITA'!Q60/'09. RECEITA'!Q10),'08. (b)TRIBUTOS LPRESUMID'!AA19)*('09. RECEITA'!Q60/'09. RECEITA'!Q10)+IF('08. (a)TRIBUTOS LREAL'!Q110="Real",'08. (a)TRIBUTOS LREAL'!Q61*('09. RECEITA'!Q60/'09. RECEITA'!Q10),'08. (b)TRIBUTOS LPRESUMID'!AA25)*('09. RECEITA'!Q60/'09. RECEITA'!Q10) -> 0 | R69: =IF('08. (a)TRIBUTOS LREAL'!R110="Real",'08. (a)TRIBUTOS LREAL'!R51*('09. RECEITA'!R60/'09. RECEITA'!R10),'08. (b)TRIBUTOS LPRESUMID'!AB19)*('09. RECEITA'!R60/'09. RECEITA'!R10)+IF('08. (a)TRIBUTOS LREAL'!R110="Real",'08. (a)TRIBUTOS LREAL'!R61*('09. RECEITA'!R60/'09. RECEITA'!R10),'08. (b)TRIBUTOS LPRESUMID'!AB25)*('09. RECEITA'!R60/'09. RECEITA'!R10) -> 0 | S69: =IF('08. (a)TRIBUTOS LREAL'!S110="Real",'08. (a)TRIBUTOS LREAL'!S51*('09. RECEITA'!S60/'09. RECEITA'!S10),'08. (b)TRIBUTOS LPRESUMID'!AC19)*('09. RECEITA'!S60/'09. RECEITA'!S10)+IF('08. (a)TRIBUTOS LREAL'!S110="Real",'08. (a)TRIBUTOS LREAL'!S61*('09. RECEITA'!S60/'09. RECEITA'!S10),'08. (b)TRIBUTOS LPRESUMID'!AC25)*('09. RECEITA'!S60/'09. RECEITA'!S10) -> 0 | T69: =IF('08. (a)TRIBUTOS LREAL'!T110="Real",'08. (a)TRIBUTOS LREAL'!T51*('09. RECEITA'!T60/'09. RECEITA'!T10),'08. (b)TRIBUTOS LPRESUMID'!AD19)*('09. RECEITA'!T60/'09. RECEITA'!T10)+IF('08. (a)TRIBUTOS LREAL'!T110="Real",'08. (a)TRIBUTOS LREAL'!T61*('09. RECEITA'!T60/'09. RECEITA'!T10),'08. (b)TRIBUTOS LPRESUMID'!AD25)*('09. RECEITA'!T60/'09. RECEITA'!T10) -> 0 | U69: =IF('08. (a)TRIBUTOS LREAL'!U110="Real",'08. (a)TRIBUTOS LREAL'!U51*('09. RECEITA'!U60/'09. RECEITA'!U10),'08. (b)TRIBUTOS LPRESUMID'!AE19)*('09. RECEITA'!U60/'09. RECEITA'!U10)+IF('08. (a)TRIBUTOS LREAL'!U110="Real",'08. (a)TRIBUTOS LREAL'!U61*('09. RECEITA'!U60/'09. RECEITA'!U10),'08. (b)TRIBUTOS LPRESUMID'!AE25)*('09. RECEITA'!U60/'09. RECEITA'!U10) -> 0 | V69: =IF('08. (a)TRIBUTOS LREAL'!V110="Real",'08. (a)TRIBUTOS LREAL'!V51*('09. RECEITA'!V60/'09. RECEITA'!V10),'08. (b)TRIBUTOS LPRESUMID'!AF19)*('09. RECEITA'!V60/'09. RECEITA'!V10)+IF('08. (a)TRIBUTOS LREAL'!V110="Real",'08. (a)TRIBUTOS LREAL'!V61*('09. RECEITA'!V60/'09. RECEITA'!V10),'08. (b)TRIBUTOS LPRESUMID'!AF25)*('09. RECEITA'!V60/'09. RECEITA'!V10) -> 0 | X69: 0 | Z69: =NPV('01. PC'!$C$9,'02 (b). FCL por Terminal'!D69:V69)+'02 (b). FCL por Terminal'!C69 -> 0
B70: NIG | C70: ='05. NIG'!C24*('07. OPEX'!C280/'07. OPEX'!C10) -> 0 | D70: ='05. NIG'!D24*('07. OPEX'!D280/'07. OPEX'!D10) -> -0.02429262528 | E70: ='05. NIG'!E24*('07. OPEX'!E280/'07. OPEX'!E10) -> -0.003632237388 | F70: ='05. NIG'!F24*('07. OPEX'!F280/'07. OPEX'!F10) -> -0.003632237388 | G70: ='05. NIG'!G24*('07. OPEX'!G280/'07. OPEX'!G10) -> -0.003632237388 | H70: ='05. NIG'!H24*('07. OPEX'!H280/'07. OPEX'!H10) -> -0.003632237388 | I70: ='05. NIG'!I24*('07. OPEX'!I280/'07. OPEX'!I10) -> -0.003632237388 | J70: ='05. NIG'!J24*('07. OPEX'!J280/'07. OPEX'!J10) -> -0.003632237388 | K70: ='05. NIG'!K24*('07. OPEX'!K280/'07. OPEX'!K10) -> -0.003632237388 | L70: ='05. NIG'!L24*('07. OPEX'!L280/'07. OPEX'!L10) -> -0.003632237388 | M70: ='05. NIG'!M24*('07. OPEX'!M280/'07. OPEX'!M10) -> -0.003632237388 | N70: ='05. NIG'!N24*('07. OPEX'!N280/'07. OPEX'!N10) -> -0.003632237388 | O70: ='05. NIG'!O24*('07. OPEX'!O280/'07. OPEX'!O10) -> -0.003632237388 | P70: ='05. NIG'!P24*('07. OPEX'!P280/'07. OPEX'!P10) -> -0.003632237388 | Q70: ='05. NIG'!Q24*('07. OPEX'!Q280/'07. OPEX'!Q10) -> -0.003632237388 | R70: ='05. NIG'!R24*('07. OPEX'!R280/'07. OPEX'!R10) -> -0.003632237388 | S70: ='05. NIG'!S24*('07. OPEX'!S280/'07. OPEX'!S10) -> -0.003632237388 | T70: ='05. NIG'!T24*('07. OPEX'!T280/'07. OPEX'!T10) -> -0.003632237388 | U70: ='05. NIG'!U24*('07. OPEX'!U280/'07. OPEX'!U10) -> -0.003632237388 | V70: ='05. NIG'!V24*('07. OPEX'!V280/'07. OPEX'!V10) -> 0.1210745796 | X70: 0.03503391873 | Z70: =NPV('01. PC'!$C$9,'02 (b). FCL por Terminal'!D70:V70)+'02 (b). FCL por Terminal'!C70 -> -0.02604869706
B71: FCL | C71: =C66+C67+C68+C69 -> -39.0234 | D71: =D66+D67+D68+D69 -> -1.283058836 | E71: -1.283058836 | F71: -1.283058836 | G71: -1.283058836 | H71: -1.283058836 | I71: -1.283058836 | J71: -1.283058836 | K71: -1.283058836 | L71: -1.283058836 | M71: -1.283058836 | N71: -1.283058836 | O71: -1.283058836 | P71: -1.283058836 | Q71: -1.283058836 | R71: -1.283058836 | S71: -1.283058836 | T71: -1.283058836 | U71: -1.283058836 | V71: -1.283058836 | X71: -63.40151788 | Z71: =NPV('01. PC'!$C$9,'02 (b). FCL por Terminal'!D71:V71)+'02 (b). FCL por Terminal'!C71 -> -50.98911364
B72: FCL Acumulado | C72: =C71 -> -39.0234 | D72: =D71 -> -1.283058836 | E72: -1.283058836 | F72: -1.283058836 | G72: -1.283058836 | H72: -1.283058836 | I72: -1.283058836 | J72: -1.283058836 | K72: -1.283058836 | L72: -1.283058836 | M72: -1.283058836 | N72: -1.283058836 | O72: -1.283058836 | P72: -1.283058836 | Q72: -1.283058836 | R72: -1.283058836 | S72: -1.283058836 | T72: -1.283058836 | U72: -1.283058836 | V72: -1.283058836 | X72: -63.40151788 | Z72: =NPV('01. PC'!$C$9,'02 (b). FCL por Terminal'!D72:V72)+'02 (b). FCL por Terminal'!C72 -> -50.98911364
B74: TIR de Projeto (% ao ano) | C74: =IRR(C71:V71) -> 
B75: VPL (em R$ Milhões) | C75: =NPV('01. PC'!$C$9,'02 (b). FCL por Terminal'!D71:V71)+'02 (b). FCL por Terminal'!C71 -> -50.98911364
B77: Terminais de Integração Eletrônica* | C77: =(C79+C80+C81+C82+C83+C84)*C$8 -> -5.30597376 | D77: =(D79+D80+D81+D82+D83+D84)*D$8 -> -0.5726130764 | E77: -0.5648338765 | F77: -0.5648338765 | G77: -0.5648338765 | H77: -0.5648338765 | I77: -0.5648338765 | J77: -0.5648338765 | K77: -0.5648338765 | L77: -0.5648338765 | M77: -0.5648338765 | N77: -0.5648338765 | O77: -0.5648338765 | P77: -0.5648338765 | Q77: -0.5648338765 | R77: -0.5648338765 | S77: -0.5648338765 | T77: -0.5648338765 | U77: -0.5648338765 | V77: -0.56346624 | X77: =SUM(C77:L77) -> -10.39725785 | Z77: =SUM(E77:X77) -> -20.56289999
B79: Receitas | C79: ='09. RECEITA'!C72 -> 0 | D79: ='09. RECEITA'!D72 -> 0 | E79: ='09. RECEITA'!E72 -> 0 | F79: ='09. RECEITA'!F72 -> 0 | G79: ='09. RECEITA'!G72 -> 0 | H79: ='09. RECEITA'!H72 -> 0 | I79: ='09. RECEITA'!I72 -> 0 | J79: ='09. RECEITA'!J72 -> 0 | K79: ='09. RECEITA'!K72 -> 0 | L79: ='09. RECEITA'!L72 -> 0 | M79: ='09. RECEITA'!M72 -> 0 | N79: ='09. RECEITA'!N72 -> 0 | O79: ='09. RECEITA'!O72 -> 0 | P79: ='09. RECEITA'!P72 -> 0 | Q79: ='09. RECEITA'!Q72 -> 0 | R79: ='09. RECEITA'!R72 -> 0 | S79: ='09. RECEITA'!S72 -> 0 | T79: ='09. RECEITA'!T72 -> 0 | U79: ='09. RECEITA'!U72 -> 0 | V79: ='09. RECEITA'!V72 -> 0 | X79: =SUM(C79:V79) -> 0 | Z79: =NPV('01. PC'!$C$9,'02 (b). FCL por Terminal'!D79:V79)+'02 (b). FCL por Terminal'!C79 -> 0
B80: Capex | C80: =-'6. CAPEX'!C23+('6. CAPEX'!C49/10^6) -> -2.347776 | D80: =-'6. CAPEX'!D23+('6. CAPEX'!D49/10^6) -> 0 | E80: =-'6. CAPEX'!E23+('6. CAPEX'!E49/10^6) -> 0 | F80: =-'6. CAPEX'!F23+('6. CAPEX'!F49/10^6) -> 0 | G80: =-'6. CAPEX'!G23+('6. CAPEX'!G49/10^6) -> 0 | H80: =-'6. CAPEX'!H23+('6. CAPEX'!H49/10^6) -> 0 | I80: =-'6. CAPEX'!I23+('6. CAPEX'!I49/10^6) -> 0 | J80: =-'6. CAPEX'!J23+('6. CAPEX'!J49/10^6) -> 0 | K80: =-'6. CAPEX'!K23+('6. CAPEX'!K49/10^6) -> 0 | L80: =-'6. CAPEX'!L23+('6. CAPEX'!L49/10^6) -> 0 | M80: =-'6. CAPEX'!M23+('6. CAPEX'!M49/10^6) -> 0 | N80: =-'6. CAPEX'!N23+('6. CAPEX'!N49/10^6) -> 0 | O80: =-'6. CAPEX'!O23+('6. CAPEX'!O49/10^6) -> 0 | P80: =-'6. CAPEX'!P23+('6. CAPEX'!P49/10^6) -> 0 | Q80: =-'6. CAPEX'!Q23+('6. CAPEX'!Q49/10^6) -> 0 | R80: =-'6. CAPEX'!R23+('6. CAPEX'!R49/10^6) -> 0 | S80: =-'6. CAPEX'!S23+('6. CAPEX'!S49/10^6) -> 0 | T80: =-'6. CAPEX'!T23+('6. CAPEX'!T49/10^6) -> 0 | U80: =-'6. CAPEX'!U23+('6. CAPEX'!U49/10^6) -> 0 | V80: =-'6. CAPEX'!V23+('6. CAPEX'!V49/10^6) -> 0 | X80: -2.347776 | Z80: =NPV('01. PC'!$C$9,'02 (b). FCL por Terminal'!D80:V80)+'02 (b). FCL por Terminal'!C80 -> -2.347776
B81: Opex | C81: =-'07. OPEX'!C347 -> -0.28173312 | D81: =-'07. OPEX'!D347 -> -0.28173312 | E81: =-'07. OPEX'!E347 -> -0.28173312 | F81: =-'07. OPEX'!F347 -> -0.28173312 | G81: =-'07. OPEX'!G347 -> -0.28173312 | H81: =-'07. OPEX'!H347 -> -0.28173312 | I81: =-'07. OPEX'!I347 -> -0.28173312 | J81: =-'07. OPEX'!J347 -> -0.28173312 | K81: =-'07. OPEX'!K347 -> -0.28173312 | L81: =-'07. OPEX'!L347 -> -0.28173312 | M81: =-'07. OPEX'!M347 -> -0.28173312 | N81: =-'07. OPEX'!N347 -> -0.28173312 | O81: =-'07. OPEX'!O347 -> -0.28173312 | P81: =-'07. OPEX'!P347 -> -0.28173312 | Q81: =-'07. OPEX'!Q347 -> -0.28173312 | R81: =-'07. OPEX'!R347 -> -0.28173312 | S81: =-'07. OPEX'!S347 -> -0.28173312 | T81: =-'07. OPEX'!T347 -> -0.28173312 | U81: =-'07. OPEX'!U347 -> -0.28173312 | V81: =-'07. OPEX'!V347 -> -0.28173312 | X81: -5.6346624 | Z81: =NPV('01. PC'!$C$9,'02 (b). FCL por Terminal'!D81:V81)+'02 (b). FCL por Terminal'!C81 -> -2.909155761
B82: Tributos | X82: 0 | Z82: =NPV('01. PC'!$C$9,'02 (b). FCL por Terminal'!D82:V82)+'02 (b). FCL por Terminal'!C82 -> 0
B83: NIG | C83: ='05. NIG'!C24*('07. OPEX'!D347/'07. OPEX'!C10) -> -0.02347776 | D83: ='05. NIG'!D24*('07. OPEX'!E347/'07. OPEX'!D10) -> -0.004573418196 | E83: ='05. NIG'!E24*('07. OPEX'!F347/'07. OPEX'!E10) -> -0.0006838182524 | F83: ='05. NIG'!F24*('07. OPEX'!G347/'07. OPEX'!F10) -> -0.0006838182524 | G83: ='05. NIG'!G24*('07. OPEX'!H347/'07. OPEX'!G10) -> -0.0006838182524 | H83: ='05. NIG'!H24*('07. OPEX'!I347/'07. OPEX'!H10) -> -0.0006838182524 | I83: ='05. NIG'!I24*('07. OPEX'!J347/'07. OPEX'!I10) -> -0.0006838182524 | J83: ='05. NIG'!J24*('07. OPEX'!K347/'07. OPEX'!J10) -> -0.0006838182524 | K83: ='05. NIG'!K24*('07. OPEX'!L347/'07. OPEX'!K10) -> -0.0006838182524 | L83: ='05. NIG'!L24*('07. OPEX'!M347/'07. OPEX'!L10) -> -0.0006838182524 | M83: ='05. NIG'!M24*('07. OPEX'!N347/'07. OPEX'!M10) -> -0.0006838182524 | N83: ='05. NIG'!N24*('07. OPEX'!O347/'07. OPEX'!N10) -> -0.0006838182524 | O83: ='05. NIG'!O24*('07. OPEX'!P347/'07. OPEX'!O10) -> -0.0006838182524 | P83: ='05. NIG'!P24*('07. OPEX'!Q347/'07. OPEX'!P10) -> -0.0006838182524 | Q83: ='05. NIG'!Q24*('07. OPEX'!R347/'07. OPEX'!Q10) -> -0.0006838182524 | R83: ='05. NIG'!R24*('07. OPEX'!S347/'07. OPEX'!R10) -> -0.0006838182524 | S83: ='05. NIG'!S24*('07. OPEX'!T347/'07. OPEX'!S10) -> -0.0006838182524 | T83: ='05. NIG'!T24*('07. OPEX'!U347/'07. OPEX'!T10) -> -0.0006838182524 | U83: ='05. NIG'!U24*('07. OPEX'!V347/'07. OPEX'!U10) -> -0.0006838182524 | V83: ='05. NIG'!V24*('07. OPEX'!W347/'07. OPEX'!V10) -> 0 | X83: -0.03967608849 | Z83: =NPV('01. PC'!$C$9,'02 (b). FCL por Terminal'!D83:V83)+'02 (b). FCL por Terminal'!C83 -> -0.03329540809
B84: FCL | C84: =C79+C80+C81+C82+C83 -> -2.65298688 | D84: =D79+D80+D81+D82+D83 -> -0.2863065382 | E84: -0.2824169383 | F84: -0.2824169383 | G84: -0.2824169383 | H84: -0.2824169383 | I84: -0.2824169383 | J84: -0.2824169383 | K84: -0.2824169383 | L84: -0.2824169383 | M84: -0.2824169383 | N84: -0.2824169383 | O84: -0.2824169383 | P84: -0.2824169383 | Q84: -0.2824169383 | R84: -0.2824169383 | S84: -0.2824169383 | T84: -0.2824169383 | U84: -0.2824169383 | V84: -0.28173312 | X84: -8.022114488 | Z84: =NPV('01. PC'!$C$9,'02 (b). FCL por Terminal'!D84:V84)+'02 (b). FCL por Terminal'!C84 -> -5.29022717
B85: FCL Acumulado | C85: =C84 -> -2.65298688 | D85: =D84 -> -0.2863065382 | E85: -0.2824169383 | F85: -0.2824169383 | G85: -0.2824169383 | H85: -0.2824169383 | I85: -0.2824169383 | J85: -0.2824169383 | K85: -0.2824169383 | L85: -0.2824169383 | M85: -0.2824169383 | N85: -0.2824169383 | O85: -0.2824169383 | P85: -0.2824169383 | Q85: -0.2824169383 | R85: -0.2824169383 | S85: -0.2824169383 | T85: -0.2824169383 | U85: -0.2824169383 | V85: -0.28173312 | X85: -8.022114488 | Z85: =NPV('01. PC'!$C$9,'02 (b). FCL por Terminal'!D85:V85)+'02 (b). FCL por Terminal'!C85 -> -5.29022717
B87: TIR de Projeto (% ao ano) | C87: =IRR(C84:V84) -> 
B88: VPL (em R$ Milhões) | C88: =NPV('01. PC'!$C$9,'02 (b). FCL por Terminal'!D84:V84)+'02 (b). FCL por Terminal'!C84 -> -5.29022717
B90: *Exceto Santa Paula

Sheet 03. WACC
B6: Lucro Real | F6: Lucro Presumido
B7: Variáveis | D7: Premissas | F7: Variáveis | H7: Premissas
B9: Custo de Capital Próprio (Ke) - Real | D9: =B9 -> Custo de Capital Próprio (Ke) - Real | F9: =B9 -> Custo de Capital Próprio (Ke) - Real | H9: =F9 -> Custo de Capital Próprio (Ke) - Real
B10: Taxa Livre de Risco (Rf) | C10: 0.05786818182 | D10: TESOURO NTNB 2035 (07/2022) | F10: =B10 -> Taxa Livre de Risco (Rf) | G10: =C10 -> 0.05786818182 | H10: =D10 -> TESOURO NTNB 2035 (07/2022)
B11: Prêmio de Risco de Mercado (Rm - Rf) | C11: 0.0531514471 | D11: Shiler | F11: =B11 -> Prêmio de Risco de Mercado (Rm - Rf) | G11: 0.0531514471 | H11: =D11 -> Shiler
B12: Beta Alavancado | C12: 1.310056572 | D12: Setor de transportes | F12: Beta Alavancado | G12: 1.310056572 | H12: =D12 -> Setor de transportes
B13: Ke (BRL Real) | C13: =C12*C11+C10 -> 0.1274995844 | D13: Ke (BRL Real) = Rf + B(Rm - Rf) + CRP | F13: Ke (BRL Real) | G13: =G12*G11+G10 -> 0.1274995844 | H13: =D13 -> Ke (BRL Real) = Rf + B(Rm - Rf) + CRP
B15: Custo da Dívida (Kd) - Real | D15: =B15 -> Custo da Dívida (Kd) - Real | F15: =B15 -> Custo da Dívida (Kd) - Real | H15: =F15 -> Custo da Dívida (Kd) - Real
B16: Alíquota do Imposto de Renda e Contribuição Social Efetivos (t) | C16: 0.34 | D16: Alíquota de IRPJ e CSLL sobre o Lucro Líquido vigente no Brasil | F16: =B16 -> Alíquota do Imposto de Renda e Contribuição Social Efetivos (t) | H16: =D16 -> Alíquota de IRPJ e CSLL sobre o Lucro Líquido vigente no Brasil
B17: Inflação Brasil | C17: 0.04444 | D17: Média expectativa focus para próximos 5 anos | F17: =B17 -> Inflação Brasil | G17: 0.04444 | H17: =D17 -> Média expectativa focus para próximos 5 anos
B18: Taxa de Juros Nominal | C18: 0.1330866667 | D18: Demonstrações Financeiras Empresas do setor 1T2022 | F18: Taxa de Juros Nominal | G18: =C18 -> 0.1330866667 | H18: =D18 -> Demonstrações Financeiras Empresas do setor 1T2022
B19: Kd nominal com benefício fiscal | C19: 0.0878372 | D19: Kd - Alíquota de imposto | F19: Kd nominal com benefício fiscal | G19: =G18*(1-G16) -> 0.1330866667 | H19: =D19 -> Kd - Alíquota de imposto
B21: Kd real com benefício fiscal | C21: =(1+C19)/(1+C17) -1 -> 0.04155068745 | D21: =B21 -> Kd real com benefício fiscal | F21: =B21 -> Kd real com benefício fiscal | G21: =(1+G19)/(1+G17) -1 -> 0.08487482925 | H21: =D21 -> Kd real com benefício fiscal
B23: Estrutura de Capital | D23: =B23 -> Estrutura de Capital | F23: Estrutura de Capital | H23: =F23 -> Estrutura de Capital
B24: Dívida Bruta / Capital Total (D) | C24: 0.5047937586 | D24: Média do setor: Transportes 2015-2T2022 | F24: Dívida Bruta / Capital Total (D) | G24: =C24 -> 0.5047937586 | H24: =D24 -> Média do setor: Transportes 2015-2T2022
B25: Equity / Capital Total (E) | C25: 0.4952062414 | D25: Média do setor: Transportes 2015-2T2022 | F25: Equity / Capital Total (E) | G25: 0.4952062414 | H25: =D25 -> Média do setor: Transportes 2015-2T2022
B27: WACC Lucro Real | C27: =C24*C21+C25*C13 -> 0.08411311767 | D27: Kd x Wd + Ke x We | F27: WACC Lucro Presumido | G27: =G24*G21+G25*G13 -> 0.105982874 | H27: =D27 -> Kd x Wd + Ke x We

Sheet 04. D&A Fiscal
B6: D&A (R$ Milhões)
B8: PRAZO | C8: =IF(C10<=('01. PC'!$C$17),1,0) -> 1 | D8: =IF(D10<=('01. PC'!$C$17),1,0) -> 1 | E8: =IF(E10<=('01. PC'!$C$17),1,0) -> 1 | F8: =IF(F10<=('01. PC'!$C$17),1,0) -> 1 | G8: =IF(G10<=('01. PC'!$C$17),1,0) -> 1 | H8: =IF(H10<=('01. PC'!$C$17),1,0) -> 1 | I8: =IF(I10<=('01. PC'!$C$17),1,0) -> 1 | J8: =IF(J10<=('01. PC'!$C$17),1,0) -> 1 | K8: =IF(K10<=('01. PC'!$C$17),1,0) -> 1 | L8: =IF(L10<=('01. PC'!$C$17),1,0) -> 1 | M8: =IF(M10<=('01. PC'!$C$17),1,0) -> 1 | N8: =IF(N10<=('01. PC'!$C$17),1,0) -> 1 | O8: =IF(O10<=('01. PC'!$C$17),1,0) -> 1 | P8: =IF(P10<=('01. PC'!$C$17),1,0) -> 1 | Q8: =IF(Q10<=('01. PC'!$C$17),1,0) -> 1 | R8: =IF(R10<=('01. PC'!$C$17),1,0) -> 1 | S8: =IF(S10<=('01. PC'!$C$17),1,0) -> 1 | T8: =IF(T10<=('01. PC'!$C$17),1,0) -> 1 | U8: =IF(U10<=('01. PC'!$C$17),1,0) -> 1 | V8: =IF(V10<=('01. PC'!$C$17),1,0) -> 1
B10: ANO | C10: 1 | D10: =C10+1 -> 2 | E10: =D10+1 -> 3 | F10: 4 | G10: 5 | H10: 6 | I10: 7 | J10: 8 | K10: 9 | L10: 10 | M10: =L10+1 -> 11 | N10: =M10+1 -> 12 | O10: =N10+1 -> 13 | P10: =O10+1 -> 14 | Q10: =P10+1 -> 15 | R10: =Q10+1 -> 16 | S10: =R10+1 -> 17 | T10: =S10+1 -> 18 | U10: =T10+1 -> 19 | V10: =U10+1 -> 20 | X10: TOTAL
B12: Capex | C12: =C14+C15+C16+C17+C18+C19+C20 -> 45.379471 | D12: =D14+D15+D16+D17+D18+D19+D20 -> 0 | E12: 0 | F12: 0 | G12: 0 | H12: 0 | I12: 0 | J12: 0 | K12: 0 | L12: 0 | M12: 0 | N12: 0 | O12: 0 | P12: 0 | Q12: 0 | R12: 0 | S12: 0 | T12: 0 | U12: 0 | V12: 0 | X12: =SUM(C12:V12) -> 45.379471
B14: Terminal Santa Paula - Construção de Terminal | C14: ='6. CAPEX'!C13 -> 36.3689 | D14: ='6. CAPEX'!D13 -> 0 | E14: ='6. CAPEX'!E13 -> 0 | F14: ='6. CAPEX'!F13 -> 0 | G14: ='6. CAPEX'!G13 -> 0 | H14: ='6. CAPEX'!H13 -> 0 | I14: ='6. CAPEX'!I13 -> 0 | J14: ='6. CAPEX'!J13 -> 0 | K14: ='6. CAPEX'!K13 -> 0 | L14: ='6. CAPEX'!L13 -> 0 | M14: ='6. CAPEX'!M13 -> 0 | N14: ='6. CAPEX'!N13 -> 0 | O14: ='6. CAPEX'!O13 -> 0 | P14: ='6. CAPEX'!P13 -> 0 | Q14: ='6. CAPEX'!Q13 -> 0 | R14: ='6. CAPEX'!R13 -> 0 | S14: ='6. CAPEX'!S13 -> 0 | T14: ='6. CAPEX'!T13 -> 0 | U14: ='6. CAPEX'!U13 -> 0 | V14: ='6. CAPEX'!V13 -> 0 | X14: =SUM(C14:V14) -> 36.3689
B15: Terminais de Integração Eletrônica (TEI) | C15: ='6. CAPEX'!C23 -> 2.347776 | D15: ='6. CAPEX'!D23 -> 0 | E15: ='6. CAPEX'!E23 -> 0 | F15: ='6. CAPEX'!F23 -> 0 | G15: ='6. CAPEX'!G23 -> 0 | H15: ='6. CAPEX'!H23 -> 0 | I15: ='6. CAPEX'!I23 -> 0 | J15: ='6. CAPEX'!J23 -> 0 | K15: ='6. CAPEX'!K23 -> 0 | L15: ='6. CAPEX'!L23 -> 0 | M15: ='6. CAPEX'!M23 -> 0 | N15: ='6. CAPEX'!N23 -> 0 | O15: ='6. CAPEX'!O23 -> 0 | P15: ='6. CAPEX'!P23 -> 0 | Q15: ='6. CAPEX'!Q23 -> 0 | R15: ='6. CAPEX'!R23 -> 0 | S15: ='6. CAPEX'!S23 -> 0 | T15: ='6. CAPEX'!T23 -> 0 | U15: ='6. CAPEX'!U23 -> 0 | V15: ='6. CAPEX'!V23 -> 0 | X15: 2.347776
B16: Terminal Central- Construção de Áreas Comerciais* | C16: ='6. CAPEX'!C53 -> 0 | D16: ='6. CAPEX'!D53 -> 0 | E16: ='6. CAPEX'!E53 -> 0 | F16: ='6. CAPEX'!F53 -> 0 | G16: ='6. CAPEX'!G53 -> 0 | H16: ='6. CAPEX'!H53 -> 0 | I16: ='6. CAPEX'!I53 -> 0 | J16: ='6. CAPEX'!J53 -> 0 | K16: ='6. CAPEX'!K53 -> 0 | L16: ='6. CAPEX'!L53 -> 0 | M16: ='6. CAPEX'!M53 -> 0 | N16: ='6. CAPEX'!N53 -> 0 | O16: ='6. CAPEX'!O53 -> 0 | P16: ='6. CAPEX'!P53 -> 0 | Q16: ='6. CAPEX'!Q53 -> 0 | R16: ='6. CAPEX'!R53 -> 0 | S16: ='6. CAPEX'!S53 -> 0 | T16: ='6. CAPEX'!T53 -> 0 | U16: ='6. CAPEX'!U53 -> 0 | V16: ='6. CAPEX'!V53 -> 0 | X16: 0
B17: Terminal Uvaranas - Construção de Áreas Comerciais | C17: ='6. CAPEX'!C57 -> 2.33596 | D17: ='6. CAPEX'!D57 -> 0 | E17: ='6. CAPEX'!E57 -> 0 | F17: ='6. CAPEX'!F57 -> 0 | G17: ='6. CAPEX'!G57 -> 0 | H17: ='6. CAPEX'!H57 -> 0 | I17: ='6. CAPEX'!I57 -> 0 | J17: ='6. CAPEX'!J57 -> 0 | K17: ='6. CAPEX'!K57 -> 0 | L17: ='6. CAPEX'!L57 -> 0 | M17: ='6. CAPEX'!M57 -> 0 | N17: ='6. CAPEX'!N57 -> 0 | O17: ='6. CAPEX'!O57 -> 0 | P17: ='6. CAPEX'!P57 -> 0 | Q17: ='6. CAPEX'!Q57 -> 0 | R17: ='6. CAPEX'!R57 -> 0 | S17: ='6. CAPEX'!S57 -> 0 | T17: ='6. CAPEX'!T57 -> 0 | U17: ='6. CAPEX'!U57 -> 0 | V17: ='6. CAPEX'!V57 -> 0 | X17: 2.33596
B18: Terminal Oficinas - Construção de Áreas Comerciais | C18: ='6. CAPEX'!C61 -> 1.672335 | D18: ='6. CAPEX'!D61 -> 0 | E18: ='6. CAPEX'!E61 -> 0 | F18: ='6. CAPEX'!F61 -> 0 | G18: ='6. CAPEX'!G61 -> 0 | H18: ='6. CAPEX'!H61 -> 0 | I18: ='6. CAPEX'!I61 -> 0 | J18: ='6. CAPEX'!J61 -> 0 | K18: ='6. CAPEX'!K61 -> 0 | L18: ='6. CAPEX'!L61 -> 0 | M18: ='6. CAPEX'!M61 -> 0 | N18: ='6. CAPEX'!N61 -> 0 | O18: ='6. CAPEX'!O61 -> 0 | P18: ='6. CAPEX'!P61 -> 0 | Q18: ='6. CAPEX'!Q61 -> 0 | R18: ='6. CAPEX'!R61 -> 0 | S18: ='6. CAPEX'!S61 -> 0 | T18: ='6. CAPEX'!T61 -> 0 | U18: ='6. CAPEX'!U61 -> 0 | V18: ='6. CAPEX'!V61 -> 0 | X18: 1.672335
B19: Terminal Nova Rússia - Construção de Áreas Comerciais* | C19: ='6. CAPEX'!C65 -> 0 | D19: ='6. CAPEX'!D65 -> 0 | E19: ='6. CAPEX'!E65 -> 0 | F19: ='6. CAPEX'!F65 -> 0 | G19: ='6. CAPEX'!G65 -> 0 | H19: ='6. CAPEX'!H65 -> 0 | I19: ='6. CAPEX'!I65 -> 0 | J19: ='6. CAPEX'!J65 -> 0 | K19: ='6. CAPEX'!K65 -> 0 | L19: ='6. CAPEX'!L65 -> 0 | M19: ='6. CAPEX'!M65 -> 0 | N19: ='6. CAPEX'!N65 -> 0 | O19: ='6. CAPEX'!O65 -> 0 | P19: ='6. CAPEX'!P65 -> 0 | Q19: ='6. CAPEX'!Q65 -> 0 | R19: ='6. CAPEX'!R65 -> 0 | S19: ='6. CAPEX'!S65 -> 0 | T19: ='6. CAPEX'!T65 -> 0 | U19: ='6. CAPEX'!U65 -> 0 | V19: ='6. CAPEX'!V65 -> 0 | X19: 0
B20: Terminal Santa Paula - Construção de Áreas Comerciais | C20: ='6. CAPEX'!C69 -> 2.6545 | D20: ='6. CAPEX'!D69 -> 0 | E20: ='6. CAPEX'!E69 -> 0 | F20: ='6. CAPEX'!F69 -> 0 | G20: ='6. CAPEX'!G69 -> 0 | H20: ='6. CAPEX'!H69 -> 0 | I20: ='6. CAPEX'!I69 -> 0 | J20: ='6. CAPEX'!J69 -> 0 | K20: ='6. CAPEX'!K69 -> 0 | L20: ='6. CAPEX'!L69 -> 0 | M20: ='6. CAPEX'!M69 -> 0 | N20: ='6. CAPEX'!N69 -> 0 | O20: ='6. CAPEX'!O69 -> 0 | P20: ='6. CAPEX'!P69 -> 0 | Q20: ='6. CAPEX'!Q69 -> 0 | R20: ='6. CAPEX'!R69 -> 0 | S20: ='6. CAPEX'!S69 -> 0 | T20: ='6. CAPEX'!T69 -> 0 | U20: ='6. CAPEX'!U69 -> 0 | V20: ='6. CAPEX'!V69 -> 0 | X20: 2.6545
B21: Cronograma | C21: =C23+C45+C67+C89+C111+C133+C155 -> 45.379471 | D21: =D23+D45+D67+D89+D111+D133+D155 -> 0 | E21: 0 | F21: 0 | G21: 0 | H21: 0 | I21: 0 | J21: 0 | K21: 0 | L21: 0 | M21: =M23+M45+M67+M89+M111+M133+M155 -> 0 | N21: 0 | O21: 0 | P21: 0 | Q21: 0 | R21: 0 | S21: 0 | T21: 0 | U21: 0 | V21: 0 | X21: 45.379471
B23: Terminal Santa Paula - Construção de Terminal | C23: =SUM(C24:C33) -> 36.3689 | D23: 0 | E23: 0 | F23: 0 | G23: 0 | H23: 0 | I23: 0 | J23: 0 | K23: 0 | L23: 0 | M23: =SUM(M24:M33) -> 0 | N23: 0 | O23: 0 | P23: 0 | Q23: 0 | R23: 0 | S23: 0 | T23: 0 | U23: 0 | V23: 0 | X23: =SUM(C23:V23) -> 36.3689
B24: 1 | C24: =C$14 -> 36.3689 | X24: 36.3689
B25: =B24+1 -> 2 | D25: =D$14 -> 0 | X25: 0
B26: =B25+1 -> 3 | E26: =E$14 -> 0 | X26: 0
B27: 4 | F27: =F$14 -> 0 | X27: 0
B28: 5 | G28: =G$14 -> 0 | X28: 0
B29: 6 | H29: =H$14 -> 0 | X29: 0
B30: 7 | I30: =I$14 -> 0 | X30: 0
B31: 8 | J31: =J$14 -> 0 | X31: 0
B32: =B31+1 -> 9 | K32: =K$14 -> 0 | X32: 0
B33: 10 | L33: =L$14 -> 0 | X33: 0
B34: 11 | M34: =M$14 -> 0 | X34: =SUM(C34:V34) -> 0
B35: 12 | N35: =N$14 -> 0 | X35: 0
B36: 13 | O36: =O$14 -> 0 | X36: 0
B37: 14 | P37: =P$14 -> 0 | X37: 0
B38: 15 | Q38: =Q$14 -> 0 | X38: 0
B39: 16 | R39: =R$14 -> 0 | X39: 0
B40: 17 | S40: =S$14 -> 0 | X40: 0
B41: 18 | T41: =T$14 -> 0 | X41: 0
B42: 19 | U42: =U$14 -> 0 | X42: 0
B43: 20 | V43: =V$14 -> 0 | X43: 0
B45: Terminais de Integração Eletrônica (TEI) | C45: =SUM(C46:C55) -> 2.347776 | D45: 0 | E45: 0 | F45: 0 | G45: 0 | H45: 0 | I45: 0 | J45: 0 | K45: 0 | L45: 0 | M45: =SUM(M46:M55) -> 0 | N45: 0 | O45: 0 | P45: 0 | Q45: 0 | R45: 0 | S45: 0 | T45: 0 | U45: 0 | V45: 0 | X45: =SUM(C45:V45) -> 2.347776
B46: 1 | C46: =C$15 -> 2.347776 | X46: 2.347776
B47: =B46+1 -> 2 | D47: =D$15 -> 0 | X47: 0
B48: =B47+1 -> 3 | E48: =E$15 -> 0 | X48: 0
B49: 4 | F49: =F$15 -> 0 | X49: 0
B50: 5 | G50: =G$15 -> 0 | X50: 0
B51: 6 | H51: =H$15 -> 0 | X51: 0
B52: 7 | I52: =I$15 -> 0 | X52: 0
B53: 8 | J53: =J$15 -> 0 | X53: 0
B54: 9 | K54: =K$15 -> 0 | X54: 0
B55: 10 | L55: =L$15 -> 0 | X55: 0
B56: 11 | M56: =M$15 -> 0 | X56: =SUM(C56:V56) -> 0
B57: 12 | N57: =N$15 -> 0 | X57: 0
B58: 13 | O58: =O$15 -> 0 | X58: 0
B59: 14 | P59: =P$15 -> 0 | X59: 0
B60: 15 | Q60: =Q$15 -> 0 | X60: 0
B61: 16 | R61: =R$15 -> 0 | X61: 0
B62: 17 | S62: =S$15 -> 0 | X62: 0
B63: 18 | T63: =T$15 -> 0 | X63: 0
B64: 19 | U64: =U$15 -> 0 | X64: 0
B65: 20 | V65: =V$15 -> 0 | X65: 0
B67: Terminal Central - Construção de Áreas Comerciais* | C67: =SUM(C68:C77) -> 0 | D67: 0 | E67: 0 | F67: 0 | G67: 0 | H67: 0 | I67: 0 | J67: 0 | K67: 0 | L67: 0 | M67: =SUM(M68:M77) -> 0 | N67: 0 | O67: 0 | P67: 0 | Q67: 0 | R67: 0 | S67: 0 | T67: 0 | U67: 0 | V67: 0 | X67: =SUM(C67:V67) -> 0
B68: 1 | C68: =C$16 -> 0 | X68: 0
B69: =B68+1 -> 2 | D69: =D$16 -> 0 | X69: 0
B70: =B69+1 -> 3 | E70: =E$16 -> 0 | X70: 0
B71: 4 | F71: =F$16 -> 0 | X71: 0
B72: 5 | G72: =G$16 -> 0 | X72: 0
B73: 6 | H73: =H$16 -> 0 | X73: 0
B74: 7 | I74: =I$16 -> 0 | X74: 0
B75: 8 | J75: =J$16 -> 0 | X75: 0
B76: 9 | K76: =K$16 -> 0 | X76: 0
B77: 10 | L77: =L$16 -> 0 | X77: 0
B78: 11 | M78: =M$16 -> 0 | X78: =SUM(C78:V78) -> 0
B79: 12 | N79: =N$16 -> 0 | X79: 0
B80: 13 | O80: =O$16 -> 0 | X80: 0
B81: 14 | P81: =P$16 -> 0 | X81: 0
B82: 15 | Q82: =Q$16 -> 0 | X82: 0
B83: 16 | R83: =R$16 -> 0 | X83: 0
B84: 17 | S84: =S$16 -> 0 | X84: 0
B85: 18 | T85: =T$16 -> 0 | X85: 0
B86: 19 | U86: =U$16 -> 0 | X86: 0
B87: 20 | V87: =V$16 -> 0 | X87: 0
B89: Terminal Uvaranas - Construção de Áreas Comerciais | C89: =SUM(C90:C99) -> 2.33596 | D89: 0 | E89: 0 | F89: 0 | G89: 0 | H89: 0 | I89: 0 | J89: 0 | K89: 0 | L89: 0 | M89: =SUM(M90:M99) -> 0 | N89: 0 | O89: 0 | P89: 0 | Q89: 0 | R89: 0 | S89: 0 | T89: 0 | U89: 0 | V89: 0 | X89: =SUM(C89:V89) -> 2.33596
B90: 1 | C90: =C$17 -> 2.33596 | X90: 2.33596
B91: =B90+1 -> 2 | D91: =D$17 -> 0 | X91: 0
B92: =B91+1 -> 3 | E92: =E$17 -> 0 | X92: 0
B93: 4 | F93: =F$17 -> 0 | X93: 0
B94: 5 | G94: =G$17 -> 0 | X94: 0
B95: 6 | H95: =H$17 -> 0 | X95: 0
B96: 7 | I96: =I$17 -> 0 | X96: 0
B97: 8 | J97: =J$17 -> 0 | X97: 0
B98: 9 | K98: =K$17 -> 0 | X98: 0
B99: 10 | L99: =L$17 -> 0 | X99: 0
B100: 11 | M100: =M$17 -> 0 | X100: =SUM(C100:V100) -> 0
B101: 12 | N101: =N$17 -> 0 | X101: 0
B102: 13 | O102: =O$17 -> 0 | X102: 0
B103: 14 | P103: =P$17 -> 0 | X103: 0
B104: 15 | Q104: =Q$17 -> 0 | X104: 0
B105: 16 | R105: =R$17 -> 0 | X105: 0
B106: 17 | S106: =S$17 -> 0 | X106: 0
B107: 18 | T107: =T$17 -> 0 | X107: 0
B108: 19 | U108: =U$17 -> 0 | X108: 0
B109: 20 | V109: =V$17 -> 0 | X109: 0
B111: Terminal Oficinas - Construção de Áreas Comerciais | C111: =SUM(C112:C121) -> 1.672335 | D111: 0 | E111: 0 | F111: 0 | G111: 0 | H111: 0 | I111: 0 | J111: 0 | K111: 0 | L111: 0 | M111: =SUM(M112:M121) -> 0 | N111: 0 | O111: 0 | P111: 0 | Q111: 0 | R111: 0 | S111: 0 | T111: 0 | U111: 0 | V111: 0 | X111: =SUM(C111:V111) -> 1.672335
B112: 1 | C112: =C$18 -> 1.672335 | X112: 1.672335
B113: =B112+1 -> 2 | D113: =D$18 -> 0 | X113: 0
B114: =B113+1 -> 3 | E114: =E$18 -> 0 | X114: 0
B115: 4 | F115: =F$18 -> 0 | X115: 0
B116: 5 | G116: =G$18 -> 0 | X116: 0
B117: 6 | H117: =H$18 -> 0 | X117: 0
B118: 7 | I118: =I$18 -> 0 | X118: 0
B119: 8 | J119: =J$18 -> 0 | X119: 0
B120: 9 | K120: =K$18 -> 0 | X120: 0
B121: 10 | L121: =L$18 -> 0 | X121: 0
B122: 11 | M122: =M$18 -> 0 | X122: =SUM(C122:V122) -> 0
B123: 12 | N123: =N$18 -> 0 | X123: 0
B124: 13 | O124: =O$18 -> 0 | X124: 0
B125: 14 | P125: =P$18 -> 0 | X125: 0
B126: 15 | Q126: =Q$18 -> 0 | X126: 0
B127: 16 | R127: =R$18 -> 0 | X127: 0
B128: 17 | S128: =S$18 -> 0 | X128: 0
B129: 18 | T129: =T$18 -> 0 | X129: 0
B130: 19 | U130: =U$18 -> 0 | X130: 0
B131: 20 | V131: =V$18 -> 0 | X131: 0
B133: Terminal Nova Rússia - Construção de Áreas Comerciais* | C133: =SUM(C134:C143) -> 0 | D133: 0 | E133: 0 | F133: 0 | G133: 0 | H133: 0 | I133: 0 | J133: 0 | K133: 0 | L133: 0 | M133: =SUM(M134:M143) -> 0 | N133: 0 | O133: 0 | P133: 0 | Q133: 0 | R133: 0 | S133: 0 | T133: 0 | U133: 0 | V133: 0 | X133: =SUM(C133:V133) -> 0
B134: 1 | C134: =C$19 -> 0 | X134: 0
B135: =B134+1 -> 2 | D135: =D$19 -> 0 | X135: 0
B136: =B135+1 -> 3 | E136: =E$19 -> 0 | X136: 0
B137: 4 | F137: =F$19 -> 0 | X137: 0
B138: 5 | G138: =G$19 -> 0 | X138: 0
B139: 6 | H139: =H$19 -> 0 | X139: 0
B140: 7 | I140: =I$19 -> 0 | X140: 0
B141: 8 | J141: =J$19 -> 0 | X141: 0
B142: 9 | K142: =K$19 -> 0 | X142: 0
B143: 10 | L143: =L$19 -> 0 | X143: 0
B144: 11 | M144: =M$19 -> 0 | X144: =SUM(C144:V144) -> 0
B145: 12 | N145: =N$19 -> 0 | X145: 0
B146: 13 | O146: =O$19 -> 0 | X146: 0
B147: 14 | P147: =P$19 -> 0 | X147: 0
B148: 15 | Q148: =Q$19 -> 0 | X148: 0
B149: 16 | R149: =R$19 -> 0 | X149: 0
B150: 17 | S150: =S$19 -> 0 | X150: 0
B151: 18 | T151: =T$19 -> 0 | X151: 0
B152: 19 | U152: =U$19 -> 0 | X152: 0
B153: 20 | V153: =V$19 -> 0 | X153: 0
B155: Terminal Santa Paula - Construção de Áreas Comerciais | C155: =SUM(C156:C165) -> 2.6545 | D155: 0 | E155: 0 | F155: 0 | G155: 0 | H155: 0 | I155: 0 | J155: 0 | K155: 0 | L155: 0 | M155: =SUM(M156:M165) -> 0 | N155: 0 | O155: 0 | P155: 0 | Q155: 0 | R155: 0 | S155: 0 | T155: 0 | U155: 0 | V155: 0 | X155: =SUM(C155:V155) -> 2.6545
B156: 1 | C156: =C$20 -> 2.6545 | X156: 2.6545
B157: =B156+1 -> 2 | D157: =D$20 -> 0 | X157: 0
B158: =B157+1 -> 3 | E158: =E$20 -> 0 | X158: 0
B159: 4 | F159: =F$20 -> 0 | X159: 0
B160: 5 | G160: =G$20 -> 0 | X160: 0
B161: 6 | H161: =H$20 -> 0 | X161: 0
B162: 7 | I162: =I$20 -> 0 | X162: 0
B163: 8 | J163: =J$20 -> 0 | X163: 0
B164: 9 | K164: =K$20 -> 0 | X164: 0
B165: 10 | L165: =L$20 -> 0 | X165: 0
B166: 11 | M166: =M$20 -> 0 | X166: =SUM(C166:V166) -> 0
B167: 12 | N167: =N$20 -> 0 | X167: 0
B168: 13 | O168: =O$20 -> 0 | X168: 0
B169: 14 | P169: =P$20 -> 0 | X169: 0
B170: 15 | Q170: =Q$20 -> 0 | X170: 0
B171: 16 | R171: =R$20 -> 0 | X171: 0
B172: 17 | S172: =S$20 -> 0 | X172: 0
B173: 18 | T173: =T$20 -> 0 | X173: 0
B174: 19 | U174: =U$20 -> 0 | X174: 0
B175: 20 | V175: =V$20 -> 0 | X175: 0
B177: Dep. sem perdas reais | C177: =C179+C201+C223+C245+C267+C289+C311 -> 2.26897355 | D177: =D179+D201+D223+D245+D267+D289+D311 -> 2.26897355 | E177: 2.26897355 | F177: 2.26897355 | G177: 2.26897355 | H177: 2.26897355 | I177: 2.26897355 | J177: 2.26897355 | K177: 2.26897355 | L177: 2.26897355 | M177: =M179+M201+M223+M245+M267+M289+M311 -> 2.26897355 | N177: 2.26897355 | O177: 2.26897355 | P177: 2.26897355 | Q177: 2.26897355 | R177: 2.26897355 | S177: 2.26897355 | T177: 2.26897355 | U177: 2.26897355 | V177: 2.26897355 | X177: =SUM(C177:V177) -> 45.379471
B179: Terminal Santa Paula - Construção de Terminal | C179: =SUM(C180:C189) -> 1.818445 | D179: 1.818445 | E179: 1.818445 | F179: 1.818445 | G179: 1.818445 | H179: 1.818445 | I179: 1.818445 | J179: 1.818445 | K179: 1.818445 | L179: 1.818445 | M179: =SUM(M180:M189) -> 1.818445 | N179: 1.818445 | O179: 1.818445 | P179: 1.818445 | Q179: 1.818445 | R179: 1.818445 | S179: 1.818445 | T179: 1.818445 | U179: 1.818445 | V179: 1.818445 | X179: =SUM(C179:V179) -> 36.3689
B180: 1 | C180: =$X180*(1/$Y180)*C$8 -> 1.818445 | D180: =$X180*(1/$Y180)*D$8 -> 1.818445 | E180: 1.818445 | F180: 1.818445 | G180: 1.818445 | H180: 1.818445 | I180: 1.818445 | J180: 1.818445 | K180: 1.818445 | L180: 1.818445 | M180: 1.818445 | N180: 1.818445 | O180: 1.818445 | P180: 1.818445 | Q180: 1.818445 | R180: 1.818445 | S180: 1.818445 | T180: 1.818445 | U180: 1.818445 | V180: 1.818445 | X180: =X24 -> 36.3689 | Y180: 20
B181: =B180+1 -> 2 | D181: =IFERROR(IF(SUM($C181:C181)<$X181,$X181*(1/$Y181),0),0)*D$8 -> 0 | E181: =IFERROR(IF(SUM($C181:D181)<$X181,$X181*(1/$Y181),0),0)*E$8 -> 0 | F181: =IFERROR(IF(SUM($C181:E181)<$X181,$X181*(1/$Y181),0),0)*F$8 -> 0 | G181: =IFERROR(IF(SUM($C181:F181)<$X181,$X181*(1/$Y181),0),0)*G$8 -> 0 | H181: =IFERROR(IF(SUM($C181:G181)<$X181,$X181*(1/$Y181),0),0)*H$8 -> 0 | I181: =IFERROR(IF(SUM($C181:H181)<$X181,$X181*(1/$Y181),0),0)*I$8 -> 0 | J181: =IFERROR(IF(SUM($C181:I181)<$X181,$X181*(1/$Y181),0),0)*J$8 -> 0 | K181: =IFERROR(IF(SUM($C181:J181)<$X181,$X181*(1/$Y181),0),0)*K$8 -> 0 | L181: =IFERROR(IF(SUM($C181:K181)<$X181,$X181*(1/$Y181),0),0)*L$8 -> 0 | M181: =IFERROR(IF(SUM($C181:L181)<$X181,$X181*(1/$Y181),0),0)*M$8 -> 0 | N181: =IFERROR(IF(SUM($C181:M181)<$X181,$X181*(1/$Y181),0),0)*N$8 -> 0 | O181: =IFERROR(IF(SUM($C181:N181)<$X181,$X181*(1/$Y181),0),0)*O$8 -> 0 | P181: =IFERROR(IF(SUM($C181:O181)<$X181,$X181*(1/$Y181),0),0)*P$8 -> 0 | Q181: =IFERROR(IF(SUM($C181:P181)<$X181,$X181*(1/$Y181),0),0)*Q$8 -> 0 | R181: =IFERROR(IF(SUM($C181:Q181)<$X181,$X181*(1/$Y181),0),0)*R$8 -> 0 | S181: =IFERROR(IF(SUM($C181:R181)<$X181,$X181*(1/$Y181),0),0)*S$8 -> 0 | T181: =IFERROR(IF(SUM($C181:S181)<$X181,$X181*(1/$Y181),0),0)*T$8 -> 0 | U181: =IFERROR(IF(SUM($C181:T181)<$X181,$X181*(1/$Y181),0),0)*U$8 -> 0 | V181: =IFERROR(IF(SUM($C181:U181)<$X181,$X181*(1/$Y181),0),0)*V$8 -> 0 | X181: 0 | Y181: =Y180 -> 20
B182: =B181+1 -> 3 | E182: =IFERROR(IF(SUM($C182:D182)<$X182,$X182*(1/$Y182),0),0)*E$8 -> 0 | F182: =IFERROR(IF(SUM($C182:E182)<$X182,$X182*(1/$Y182),0),0)*F$8 -> 0 | G182: =IFERROR(IF(SUM($C182:F182)<$X182,$X182*(1/$Y182),0),0)*G$8 -> 0 | H182: =IFERROR(IF(SUM($C182:G182)<$X182,$X182*(1/$Y182),0),0)*H$8 -> 0 | I182: =IFERROR(IF(SUM($C182:H182)<$X182,$X182*(1/$Y182),0),0)*I$8 -> 0 | J182: =IFERROR(IF(SUM($C182:I182)<$X182,$X182*(1/$Y182),0),0)*J$8 -> 0 | K182: =IFERROR(IF(SUM($C182:J182)<$X182,$X182*(1/$Y182),0),0)*K$8 -> 0 | L182: =IFERROR(IF(SUM($C182:K182)<$X182,$X182*(1/$Y182),0),0)*L$8 -> 0 | M182: =IFERROR(IF(SUM($C182:L182)<$X182,$X182*(1/$Y182),0),0)*M$8 -> 0 | N182: =IFERROR(IF(SUM($C182:M182)<$X182,$X182*(1/$Y182),0),0)*N$8 -> 0 | O182: =IFERROR(IF(SUM($C182:N182)<$X182,$X182*(1/$Y182),0),0)*O$8 -> 0 | P182: =IFERROR(IF(SUM($C182:O182)<$X182,$X182*(1/$Y182),0),0)*P$8 -> 0 | Q182: =IFERROR(IF(SUM($C182:P182)<$X182,$X182*(1/$Y182),0),0)*Q$8 -> 0 | R182: =IFERROR(IF(SUM($C182:Q182)<$X182,$X182*(1/$Y182),0),0)*R$8 -> 0 | S182: =IFERROR(IF(SUM($C182:R182)<$X182,$X182*(1/$Y182),0),0)*S$8 -> 0 | T182: =IFERROR(IF(SUM($C182:S182)<$X182,$X182*(1/$Y182),0),0)*T$8 -> 0 | U182: =IFERROR(IF(SUM($C182:T182)<$X182,$X182*(1/$Y182),0),0)*U$8 -> 0 | V182: =IFERROR(IF(SUM($C182:U182)<$X182,$X182*(1/$Y182),0),0)*V$8 -> 0 | X182: 0 | Y182: =Y181 -> 20
B183: 4 | F183: =IFERROR(IF(SUM($C183:E183)<$X183,$X183*(1/$Y183),0),0)*F$8 -> 0 | G183: =IFERROR(IF(SUM($C183:F183)<$X183,$X183*(1/$Y183),0),0)*G$8 -> 0 | H183: =IFERROR(IF(SUM($C183:G183)<$X183,$X183*(1/$Y183),0),0)*H$8 -> 0 | I183: =IFERROR(IF(SUM($C183:H183)<$X183,$X183*(1/$Y183),0),0)*I$8 -> 0 | J183: =IFERROR(IF(SUM($C183:I183)<$X183,$X183*(1/$Y183),0),0)*J$8 -> 0 | K183: =IFERROR(IF(SUM($C183:J183)<$X183,$X183*(1/$Y183),0),0)*K$8 -> 0 | L183: =IFERROR(IF(SUM($C183:K183)<$X183,$X183*(1/$Y183),0),0)*L$8 -> 0 | M183: =IFERROR(IF(SUM($C183:L183)<$X183,$X183*(1/$Y183),0),0)*M$8 -> 0 | N183: =IFERROR(IF(SUM($C183:M183)<$X183,$X183*(1/$Y183),0),0)*N$8 -> 0 | O183: =IFERROR(IF(SUM($C183:N183)<$X183,$X183*(1/$Y183),0),0)*O$8 -> 0 | P183: =IFERROR(IF(SUM($C183:O183)<$X183,$X183*(1/$Y183),0),0)*P$8 -> 0 | Q183: =IFERROR(IF(SUM($C183:P183)<$X183,$X183*(1/$Y183),0),0)*Q$8 -> 0 | R183: =IFERROR(IF(SUM($C183:Q183)<$X183,$X183*(1/$Y183),0),0)*R$8 -> 0 | S183: =IFERROR(IF(SUM($C183:R183)<$X183,$X183*(1/$Y183),0),0)*S$8 -> 0 | T183: =IFERROR(IF(SUM($C183:S183)<$X183,$X183*(1/$Y183),0),0)*T$8 -> 0 | U183: =IFERROR(IF(SUM($C183:T183)<$X183,$X183*(1/$Y183),0),0)*U$8 -> 0 | V183: =IFERROR(IF(SUM($C183:U183)<$X183,$X183*(1/$Y183),0),0)*V$8 -> 0 | X183: 0 | Y183: 20
B184: 5 | G184: =IFERROR(IF(SUM($C184:F184)<$X184,$X184*(1/$Y184),0),0)*G$8 -> 0 | H184: =IFERROR(IF(SUM($C184:G184)<$X184,$X184*(1/$Y184),0),0)*H$8 -> 0 | I184: =IFERROR(IF(SUM($C184:H184)<$X184,$X184*(1/$Y184),0),0)*I$8 -> 0 | J184: =IFERROR(IF(SUM($C184:I184)<$X184,$X184*(1/$Y184),0),0)*J$8 -> 0 | K184: =IFERROR(IF(SUM($C184:J184)<$X184,$X184*(1/$Y184),0),0)*K$8 -> 0 | L184: =IFERROR(IF(SUM($C184:K184)<$X184,$X184*(1/$Y184),0),0)*L$8 -> 0 | M184: =IFERROR(IF(SUM($C184:L184)<$X184,$X184*(1/$Y184),0),0)*M$8 -> 0 | N184: =IFERROR(IF(SUM($C184:M184)<$X184,$X184*(1/$Y184),0),0)*N$8 -> 0 | O184: =IFERROR(IF(SUM($C184:N184)<$X184,$X184*(1/$Y184),0),0)*O$8 -> 0 | P184: =IFERROR(IF(SUM($C184:O184)<$X184,$X184*(1/$Y184),0),0)*P$8 -> 0 | Q184: =IFERROR(IF(SUM($C184:P184)<$X184,$X184*(1/$Y184),0),0)*Q$8 -> 0 | R184: =IFERROR(IF(SUM($C184:Q184)<$X184,$X184*(1/$Y184),0),0)*R$8 -> 0 | S184: =IFERROR(IF(SUM($C184:R184)<$X184,$X184*(1/$Y184),0),0)*S$8 -> 0 | T184: =IFERROR(IF(SUM($C184:S184)<$X184,$X184*(1/$Y184),0),0)*T$8 -> 0 | U184: =IFERROR(IF(SUM($C184:T184)<$X184,$X184*(1/$Y184),0),0)*U$8 -> 0 | V184: =IFERROR(IF(SUM($C184:U184)<$X184,$X184*(1/$Y184),0),0)*V$8 -> 0 | X184: 0 | Y184: 20
B185: 6 | H185: =IFERROR(IF(SUM($C185:G185)<$X185,$X185*(1/$Y185),0),0)*H$8 -> 0 | I185: =IFERROR(IF(SUM($C185:H185)<$X185,$X185*(1/$Y185),0),0)*I$8 -> 0 | J185: =IFERROR(IF(SUM($C185:I185)<$X185,$X185*(1/$Y185),0),0)*J$8 -> 0 | K185: =IFERROR(IF(SUM($C185:J185)<$X185,$X185*(1/$Y185),0),0)*K$8 -> 0 | L185: =IFERROR(IF(SUM($C185:K185)<$X185,$X185*(1/$Y185),0),0)*L$8 -> 0 | M185: =IFERROR(IF(SUM($C185:L185)<$X185,$X185*(1/$Y185),0),0)*M$8 -> 0 | N185: =IFERROR(IF(SUM($C185:M185)<$X185,$X185*(1/$Y185),0),0)*N$8 -> 0 | O185: =IFERROR(IF(SUM($C185:N185)<$X185,$X185*(1/$Y185),0),0)*O$8 -> 0 | P185: =IFERROR(IF(SUM($C185:O185)<$X185,$X185*(1/$Y185),0),0)*P$8 -> 0 | Q185: =IFERROR(IF(SUM($C185:P185)<$X185,$X185*(1/$Y185),0),0)*Q$8 -> 0 | R185: =IFERROR(IF(SUM($C185:Q185)<$X185,$X185*(1/$Y185),0),0)*R$8 -> 0 | S185: =IFERROR(IF(SUM($C185:R185)<$X185,$X185*(1/$Y185),0),0)*S$8 -> 0 | T185: =IFERROR(IF(SUM($C185:S185)<$X185,$X185*(1/$Y185),0),0)*T$8 -> 0 | U185: =IFERROR(IF(SUM($C185:T185)<$X185,$X185*(1/$Y185),0),0)*U$8 -> 0 | V185: =IFERROR(IF(SUM($C185:U185)<$X185,$X185*(1/$Y185),0),0)*V$8 -> 0 | X185: 0 | Y185: 20
B186: 7 | I186: =IFERROR(IF(SUM($C186:H186)<$X186,$X186*(1/$Y186),0),0)*I$8 -> 0 | J186: =IFERROR(IF(SUM($C186:I186)<$X186,$X186*(1/$Y186),0),0)*J$8 -> 0 | K186: =IFERROR(IF(SUM($C186:J186)<$X186,$X186*(1/$Y186),0),0)*K$8 -> 0 | L186: =IFERROR(IF(SUM($C186:K186)<$X186,$X186*(1/$Y186),0),0)*L$8 -> 0 | M186: =IFERROR(IF(SUM($C186:L186)<$X186,$X186*(1/$Y186),0),0)*M$8 -> 0 | N186: =IFERROR(IF(SUM($C186:M186)<$X186,$X186*(1/$Y186),0),0)*N$8 -> 0 | O186: =IFERROR(IF(SUM($C186:N186)<$X186,$X186*(1/$Y186),0),0)*O$8 -> 0 | P186: =IFERROR(IF(SUM($C186:O186)<$X186,$X186*(1/$Y186),0),0)*P$8 -> 0 | Q186: =IFERROR(IF(SUM($C186:P186)<$X186,$X186*(1/$Y186),0),0)*Q$8 -> 0 | R186: =IFERROR(IF(SUM($C186:Q186)<$X186,$X186*(1/$Y186),0),0)*R$8 -> 0 | S186: =IFERROR(IF(SUM($C186:R186)<$X186,$X186*(1/$Y186),0),0)*S$8 -> 0 | T186: =IFERROR(IF(SUM($C186:S186)<$X186,$X186*(1/$Y186),0),0)*T$8 -> 0 | U186: =IFERROR(IF(SUM($C186:T186)<$X186,$X186*(1/$Y186),0),0)*U$8 -> 0 | V186: =IFERROR(IF(SUM($C186:U186)<$X186,$X186*(1/$Y186),0),0)*V$8 -> 0 | X186: 0 | Y186: 20
B187: 8 | J187: =IFERROR(IF(SUM($C187:I187)<$X187,$X187*(1/$Y187),0),0)*J$8 -> 0 | K187: =IFERROR(IF(SUM($C187:J187)<$X187,$X187*(1/$Y187),0),0)*K$8 -> 0 | L187: =IFERROR(IF(SUM($C187:K187)<$X187,$X187*(1/$Y187),0),0)*L$8 -> 0 | M187: =IFERROR(IF(SUM($C187:L187)<$X187,$X187*(1/$Y187),0),0)*M$8 -> 0 | N187: =IFERROR(IF(SUM($C187:M187)<$X187,$X187*(1/$Y187),0),0)*N$8 -> 0 | O187: =IFERROR(IF(SUM($C187:N187)<$X187,$X187*(1/$Y187),0),0)*O$8 -> 0 | P187: =IFERROR(IF(SUM($C187:O187)<$X187,$X187*(1/$Y187),0),0)*P$8 -> 0 | Q187: =IFERROR(IF(SUM($C187:P187)<$X187,$X187*(1/$Y187),0),0)*Q$8 -> 0 | R187: =IFERROR(IF(SUM($C187:Q187)<$X187,$X187*(1/$Y187),0),0)*R$8 -> 0 | S187: =IFERROR(IF(SUM($C187:R187)<$X187,$X187*(1/$Y187),0),0)*S$8 -> 0 | T187: =IFERROR(IF(SUM($C187:S187)<$X187,$X187*(1/$Y187),0),0)*T$8 -> 0 | U187: =IFERROR(IF(SUM($C187:T187)<$X187,$X187*(1/$Y187),0),0)*U$8 -> 0 | V187: =IFERROR(IF(SUM($C187:U187)<$X187,$X187*(1/$Y187),0),0)*V$8 -> 0 | X187: 0 | Y187: 20
B188: 9 | K188: =IFERROR(IF(SUM($C188:J188)<$X188,$X188*(1/$Y188),0),0)*K$8 -> 0 | L188: =IFERROR(IF(SUM($C188:K188)<$X188,$X188*(1/$Y188),0),0)*L$8 -> 0 | M188: =IFERROR(IF(SUM($C188:L188)<$X188,$X188*(1/$Y188),0),0)*M$8 -> 0 | N188: =IFERROR(IF(SUM($C188:M188)<$X188,$X188*(1/$Y188),0),0)*N$8 -> 0 | O188: =IFERROR(IF(SUM($C188:N188)<$X188,$X188*(1/$Y188),0),0)*O$8 -> 0 | P188: =IFERROR(IF(SUM($C188:O188)<$X188,$X188*(1/$Y188),0),0)*P$8 -> 0 | Q188: =IFERROR(IF(SUM($C188:P188)<$X188,$X188*(1/$Y188),0),0)*Q$8 -> 0 | R188: =IFERROR(IF(SUM($C188:Q188)<$X188,$X188*(1/$Y188),0),0)*R$8 -> 0 | S188: =IFERROR(IF(SUM($C188:R188)<$X188,$X188*(1/$Y188),0),0)*S$8 -> 0 | T188: =IFERROR(IF(SUM($C188:S188)<$X188,$X188*(1/$Y188),0),0)*T$8 -> 0 | U188: =IFERROR(IF(SUM($C188:T188)<$X188,$X188*(1/$Y188),0),0)*U$8 -> 0 | V188: =IFERROR(IF(SUM($C188:U188)<$X188,$X188*(1/$Y188),0),0)*V$8 -> 0 | X188: 0 | Y188: 20
B189: 10 | L189: =IFERROR(IF(SUM($C189:K189)<$X189,$X189*(1/$Y189),0),0)*L$8 -> 0 | M189: =IFERROR(IF(SUM($C189:L189)<$X189,$X189*(1/$Y189),0),0)*M$8 -> 0 | N189: =IFERROR(IF(SUM($C189:M189)<$X189,$X189*(1/$Y189),0),0)*N$8 -> 0 | O189: =IFERROR(IF(SUM($C189:N189)<$X189,$X189*(1/$Y189),0),0)*O$8 -> 0 | P189: =IFERROR(IF(SUM($C189:O189)<$X189,$X189*(1/$Y189),0),0)*P$8 -> 0 | Q189: =IFERROR(IF(SUM($C189:P189)<$X189,$X189*(1/$Y189),0),0)*Q$8 -> 0 | R189: =IFERROR(IF(SUM($C189:Q189)<$X189,$X189*(1/$Y189),0),0)*R$8 -> 0 | S189: =IFERROR(IF(SUM($C189:R189)<$X189,$X189*(1/$Y189),0),0)*S$8 -> 0 | T189: =IFERROR(IF(SUM($C189:S189)<$X189,$X189*(1/$Y189),0),0)*T$8 -> 0 | U189: =IFERROR(IF(SUM($C189:T189)<$X189,$X189*(1/$Y189),0),0)*U$8 -> 0 | V189: =IFERROR(IF(SUM($C189:U189)<$X189,$X189*(1/$Y189),0),0)*V$8 -> 0 | X189: 0 | Y189: 20
B190: 11 | M190: =IFERROR(IF(SUM($C190:L190)<$X190,$X190*(1/$Y190),0),0)*M$8 -> 0 | N190: =IFERROR(IF(SUM($C190:M190)<$X190,$X190*(1/$Y190),0),0)*N$8 -> 0 | O190: =IFERROR(IF(SUM($C190:N190)<$X190,$X190*(1/$Y190),0),0)*O$8 -> 0 | P190: =IFERROR(IF(SUM($C190:O190)<$X190,$X190*(1/$Y190),0),0)*P$8 -> 0 | Q190: =IFERROR(IF(SUM($C190:P190)<$X190,$X190*(1/$Y190),0),0)*Q$8 -> 0 | R190: =IFERROR(IF(SUM($C190:Q190)<$X190,$X190*(1/$Y190),0),0)*R$8 -> 0 | S190: =IFERROR(IF(SUM($C190:R190)<$X190,$X190*(1/$Y190),0),0)*S$8 -> 0 | T190: =IFERROR(IF(SUM($C190:S190)<$X190,$X190*(1/$Y190),0),0)*T$8 -> 0 | U190: =IFERROR(IF(SUM($C190:T190)<$X190,$X190*(1/$Y190),0),0)*U$8 -> 0 | V190: =IFERROR(IF(SUM($C190:U190)<$X190,$X190*(1/$Y190),0),0)*V$8 -> 0 | X190: 0 | Y190: 20
B191: 12 | N191: =IFERROR(IF(SUM($C191:M191)<$X191,$X191*(1/$Y191),0),0)*N$8 -> 0 | O191: =IFERROR(IF(SUM($C191:N191)<$X191,$X191*(1/$Y191),0),0)*O$8 -> 0 | P191: =IFERROR(IF(SUM($C191:O191)<$X191,$X191*(1/$Y191),0),0)*P$8 -> 0 | Q191: =IFERROR(IF(SUM($C191:P191)<$X191,$X191*(1/$Y191),0),0)*Q$8 -> 0 | R191: =IFERROR(IF(SUM($C191:Q191)<$X191,$X191*(1/$Y191),0),0)*R$8 -> 0 | S191: =IFERROR(IF(SUM($C191:R191)<$X191,$X191*(1/$Y191),0),0)*S$8 -> 0 | T191: =IFERROR(IF(SUM($C191:S191)<$X191,$X191*(1/$Y191),0),0)*T$8 -> 0 | U191: =IFERROR(IF(SUM($C191:T191)<$X191,$X191*(1/$Y191),0),0)*U$8 -> 0 | V191: =IFERROR(IF(SUM($C191:U191)<$X191,$X191*(1/$Y191),0),0)*V$8 -> 0 | Y191: 20
B192: 13 | O192: =IFERROR(IF(SUM($C192:N192)<$X192,$X192*(1/$Y192),0),0)*O$8 -> 0 | P192: =IFERROR(IF(SUM($C192:O192)<$X192,$X192*(1/$Y192),0),0)*P$8 -> 0 | Q192: =IFERROR(IF(SUM($C192:P192)<$X192,$X192*(1/$Y192),0),0)*Q$8 -> 0 | R192: =IFERROR(IF(SUM($C192:Q192)<$X192,$X192*(1/$Y192),0),0)*R$8 -> 0 | S192: =IFERROR(IF(SUM($C192:R192)<$X192,$X192*(1/$Y192),0),0)*S$8 -> 0 | T192: =IFERROR(IF(SUM($C192:S192)<$X192,$X192*(1/$Y192),0),0)*T$8 -> 0 | U192: =IFERROR(IF(SUM($C192:T192)<$X192,$X192*(1/$Y192),0),0)*U$8 -> 0 | V192: =IFERROR(IF(SUM($C192:U192)<$X192,$X192*(1/$Y192),0),0)*V$8 -> 0 | Y192: 20
B193: 14 | P193: =IFERROR(IF(SUM($C193:O193)<$X193,$X193*(1/$Y193),0),0)*P$8 -> 0 | Q193: =IFERROR(IF(SUM($C193:P193)<$X193,$X193*(1/$Y193),0),0)*Q$8 -> 0 | R193: =IFERROR(IF(SUM($C193:Q193)<$X193,$X193*(1/$Y193),0),0)*R$8 -> 0 | S193: =IFERROR(IF(SUM($C193:R193)<$X193,$X193*(1/$Y193),0),0)*S$8 -> 0 | T193: =IFERROR(IF(SUM($C193:S193)<$X193,$X193*(1/$Y193),0),0)*T$8 -> 0 | U193: =IFERROR(IF(SUM($C193:T193)<$X193,$X193*(1/$Y193),0),0)*U$8 -> 0 | V193: =IFERROR(IF(SUM($C193:U193)<$X193,$X193*(1/$Y193),0),0)*V$8 -> 0 | Y193: 20
B194: 15 | Q194: =IFERROR(IF(SUM($C194:P194)<$X194,$X194*(1/$Y194),0),0)*Q$8 -> 0 | R194: =IFERROR(IF(SUM($C194:Q194)<$X194,$X194*(1/$Y194),0),0)*R$8 -> 0 | S194: =IFERROR(IF(SUM($C194:R194)<$X194,$X194*(1/$Y194),0),0)*S$8 -> 0 | T194: =IFERROR(IF(SUM($C194:S194)<$X194,$X194*(1/$Y194),0),0)*T$8 -> 0 | U194: =IFERROR(IF(SUM($C194:T194)<$X194,$X194*(1/$Y194),0),0)*U$8 -> 0 | V194: =IFERROR(IF(SUM($C194:U194)<$X194,$X194*(1/$Y194),0),0)*V$8 -> 0 | Y194: 20
B195: 16 | R195: =IFERROR(IF(SUM($C195:Q195)<$X195,$X195*(1/$Y195),0),0)*R$8 -> 0 | S195: =IFERROR(IF(SUM($C195:R195)<$X195,$X195*(1/$Y195),0),0)*S$8 -> 0 | T195: =IFERROR(IF(SUM($C195:S195)<$X195,$X195*(1/$Y195),0),0)*T$8 -> 0 | U195: =IFERROR(IF(SUM($C195:T195)<$X195,$X195*(1/$Y195),0),0)*U$8 -> 0 | V195: =IFERROR(IF(SUM($C195:U195)<$X195,$X195*(1/$Y195),0),0)*V$8 -> 0 | Y195: 20
B196: 17 | S196: =IFERROR(IF(SUM($C196:R196)<$X196,$X196*(1/$Y196),0),0)*S$8 -> 0 | T196: =IFERROR(IF(SUM($C196:S196)<$X196,$X196*(1/$Y196),0),0)*T$8 -> 0 | U196: =IFERROR(IF(SUM($C196:T196)<$X196,$X196*(1/$Y196),0),0)*U$8 -> 0 | V196: =IFERROR(IF(SUM($C196:U196)<$X196,$X196*(1/$Y196),0),0)*V$8 -> 0 | Y196: 20
B197: 18 | T197: =IFERROR(IF(SUM($C197:S197)<$X197,$X197*(1/$Y197),0),0)*T$8 -> 0 | U197: =IFERROR(IF(SUM($C197:T197)<$X197,$X197*(1/$Y197),0),0)*U$8 -> 0 | V197: =IFERROR(IF(SUM($C197:U197)<$X197,$X197*(1/$Y197),0),0)*V$8 -> 0 | Y197: 20
B198: 19 | U198: =IFERROR(IF(SUM($C198:T198)<$X198,$X198*(1/$Y198),0),0)*U$8 -> 0 | V198: =IFERROR(IF(SUM($C198:U198)<$X198,$X198*(1/$Y198),0),0)*V$8 -> 0 | Y198: 20
B199: 20 | V199: =IFERROR(IF(SUM($C199:U199)<$X199,$X199*(1/$Y199),0),0)*V$8 -> 0 | Y199: 20
B201: Terminais de Integração Eletrônica (TEI) | C201: =SUM(C202:C211) -> 0.1173888 | D201: 0.1173888 | E201: 0.1173888 | F201: 0.1173888 | G201: 0.1173888 | H201: 0.1173888 | I201: 0.1173888 | J201: 0.1173888 | K201: 0.1173888 | L201: 0.1173888 | M201: =SUM(M202:M211) -> 0.1173888 | N201: 0.1173888 | O201: 0.1173888 | P201: 0.1173888 | Q201: 0.1173888 | R201: 0.1173888 | S201: 0.1173888 | T201: 0.1173888 | U201: 0.1173888 | V201: 0.1173888 | X201: =SUM(C201:V201) -> 2.347776
B202: 1 | C202: =$X202*(1/$Y202)*C$8 -> 0.1173888 | D202: =$X202*(1/$Y202)*D$8 -> 0.1173888 | E202: 0.1173888 | F202: 0.1173888 | G202: 0.1173888 | H202: 0.1173888 | I202: 0.1173888 | J202: 0.1173888 | K202: 0.1173888 | L202: 0.1173888 | M202: 0.1173888 | N202: 0.1173888 | O202: 0.1173888 | P202: 0.1173888 | Q202: 0.1173888 | R202: 0.1173888 | S202: 0.1173888 | T202: 0.1173888 | U202: 0.1173888 | V202: 0.1173888 | X202: =X46 -> 2.347776 | Y202: 20
B203: =B202+1 -> 2 | D203: =IFERROR(IF(SUM($C203:C203)<$X203,$X203*(1/$Y203),0),0)*D$8 -> 0 | E203: =IFERROR(IF(SUM($C203:D203)<$X203,$X203*(1/$Y203),0),0)*E$8 -> 0 | F203: =IFERROR(IF(SUM($C203:E203)<$X203,$X203*(1/$Y203),0),0)*F$8 -> 0 | G203: =IFERROR(IF(SUM($C203:F203)<$X203,$X203*(1/$Y203),0),0)*G$8 -> 0 | H203: =IFERROR(IF(SUM($C203:G203)<$X203,$X203*(1/$Y203),0),0)*H$8 -> 0 | I203: =IFERROR(IF(SUM($C203:H203)<$X203,$X203*(1/$Y203),0),0)*I$8 -> 0 | J203: =IFERROR(IF(SUM($C203:I203)<$X203,$X203*(1/$Y203),0),0)*J$8 -> 0 | K203: =IFERROR(IF(SUM($C203:J203)<$X203,$X203*(1/$Y203),0),0)*K$8 -> 0 | L203: =IFERROR(IF(SUM($C203:K203)<$X203,$X203*(1/$Y203),0),0)*L$8 -> 0 | M203: =IFERROR(IF(SUM($C203:L203)<$X203,$X203*(1/$Y203),0),0)*M$8 -> 0 | N203: =IFERROR(IF(SUM($C203:M203)<$X203,$X203*(1/$Y203),0),0)*N$8 -> 0 | O203: =IFERROR(IF(SUM($C203:N203)<$X203,$X203*(1/$Y203),0),0)*O$8 -> 0 | P203: =IFERROR(IF(SUM($C203:O203)<$X203,$X203*(1/$Y203),0),0)*P$8 -> 0 | Q203: =IFERROR(IF(SUM($C203:P203)<$X203,$X203*(1/$Y203),0),0)*Q$8 -> 0 | R203: =IFERROR(IF(SUM($C203:Q203)<$X203,$X203*(1/$Y203),0),0)*R$8 -> 0 | S203: =IFERROR(IF(SUM($C203:R203)<$X203,$X203*(1/$Y203),0),0)*S$8 -> 0 | T203: =IFERROR(IF(SUM($C203:S203)<$X203,$X203*(1/$Y203),0),0)*T$8 -> 0 | U203: =IFERROR(IF(SUM($C203:T203)<$X203,$X203*(1/$Y203),0),0)*U$8 -> 0 | V203: =IFERROR(IF(SUM($C203:U203)<$X203,$X203*(1/$Y203),0),0)*V$8 -> 0 | X203: 0 | Y203: =Y202 -> 20
B204: =B203+1 -> 3 | E204: =IFERROR(IF(SUM($C204:D204)<$X204,$X204*(1/$Y204),0),0)*E$8 -> 0 | F204: =IFERROR(IF(SUM($C204:E204)<$X204,$X204*(1/$Y204),0),0)*F$8 -> 0 | G204: =IFERROR(IF(SUM($C204:F204)<$X204,$X204*(1/$Y204),0),0)*G$8 -> 0 | H204: =IFERROR(IF(SUM($C204:G204)<$X204,$X204*(1/$Y204),0),0)*H$8 -> 0 | I204: =IFERROR(IF(SUM($C204:H204)<$X204,$X204*(1/$Y204),0),0)*I$8 -> 0 | J204: =IFERROR(IF(SUM($C204:I204)<$X204,$X204*(1/$Y204),0),0)*J$8 -> 0 | K204: =IFERROR(IF(SUM($C204:J204)<$X204,$X204*(1/$Y204),0),0)*K$8 -> 0 | L204: =IFERROR(IF(SUM($C204:K204)<$X204,$X204*(1/$Y204),0),0)*L$8 -> 0 | M204: =IFERROR(IF(SUM($C204:L204)<$X204,$X204*(1/$Y204),0),0)*M$8 -> 0 | N204: =IFERROR(IF(SUM($C204:M204)<$X204,$X204*(1/$Y204),0),0)*N$8 -> 0 | O204: =IFERROR(IF(SUM($C204:N204)<$X204,$X204*(1/$Y204),0),0)*O$8 -> 0 | P204: =IFERROR(IF(SUM($C204:O204)<$X204,$X204*(1/$Y204),0),0)*P$8 -> 0 | Q204: =IFERROR(IF(SUM($C204:P204)<$X204,$X204*(1/$Y204),0),0)*Q$8 -> 0 | R204: =IFERROR(IF(SUM($C204:Q204)<$X204,$X204*(1/$Y204),0),0)*R$8 -> 0 | S204: =IFERROR(IF(SUM($C204:R204)<$X204,$X204*(1/$Y204),0),0)*S$8 -> 0 | T204: =IFERROR(IF(SUM($C204:S204)<$X204,$X204*(1/$Y204),0),0)*T$8 -> 0 | U204: =IFERROR(IF(SUM($C204:T204)<$X204,$X204*(1/$Y204),0),0)*U$8 -> 0 | V204: =IFERROR(IF(SUM($C204:U204)<$X204,$X204*(1/$Y204),0),0)*V$8 -> 0 | X204: 0 | Y204: =Y203 -> 20
B205: 4 | F205: =IFERROR(IF(SUM($C205:E205)<$X205,$X205*(1/$Y205),0),0)*F$8 -> 0 | G205: =IFERROR(IF(SUM($C205:F205)<$X205,$X205*(1/$Y205),0),0)*G$8 -> 0 | H205: =IFERROR(IF(SUM($C205:G205)<$X205,$X205*(1/$Y205),0),0)*H$8 -> 0 | I205: =IFERROR(IF(SUM($C205:H205)<$X205,$X205*(1/$Y205),0),0)*I$8 -> 0 | J205: =IFERROR(IF(SUM($C205:I205)<$X205,$X205*(1/$Y205),0),0)*J$8 -> 0 | K205: =IFERROR(IF(SUM($C205:J205)<$X205,$X205*(1/$Y205),0),0)*K$8 -> 0 | L205: =IFERROR(IF(SUM($C205:K205)<$X205,$X205*(1/$Y205),0),0)*L$8 -> 0 | M205: =IFERROR(IF(SUM($C205:L205)<$X205,$X205*(1/$Y205),0),0)*M$8 -> 0 | N205: =IFERROR(IF(SUM($C205:M205)<$X205,$X205*(1/$Y205),0),0)*N$8 -> 0 | O205: =IFERROR(IF(SUM($C205:N205)<$X205,$X205*(1/$Y205),0),0)*O$8 -> 0 | P205: =IFERROR(IF(SUM($C205:O205)<$X205,$X205*(1/$Y205),0),0)*P$8 -> 0 | Q205: =IFERROR(IF(SUM($C205:P205)<$X205,$X205*(1/$Y205),0),0)*Q$8 -> 0 | R205: =IFERROR(IF(SUM($C205:Q205)<$X205,$X205*(1/$Y205),0),0)*R$8 -> 0 | S205: =IFERROR(IF(SUM($C205:R205)<$X205,$X205*(1/$Y205),0),0)*S$8 -> 0 | T205: =IFERROR(IF(SUM($C205:S205)<$X205,$X205*(1/$Y205),0),0)*T$8 -> 0 | U205: =IFERROR(IF(SUM($C205:T205)<$X205,$X205*(1/$Y205),0),0)*U$8 -> 0 | V205: =IFERROR(IF(SUM($C205:U205)<$X205,$X205*(1/$Y205),0),0)*V$8 -> 0 | X205: 0 | Y205: 20
B206: 5 | G206: =IFERROR(IF(SUM($C206:F206)<$X206,$X206*(1/$Y206),0),0)*G$8 -> 0 | H206: =IFERROR(IF(SUM($C206:G206)<$X206,$X206*(1/$Y206),0),0)*H$8 -> 0 | I206: =IFERROR(IF(SUM($C206:H206)<$X206,$X206*(1/$Y206),0),0)*I$8 -> 0 | J206: =IFERROR(IF(SUM($C206:I206)<$X206,$X206*(1/$Y206),0),0)*J$8 -> 0 | K206: =IFERROR(IF(SUM($C206:J206)<$X206,$X206*(1/$Y206),0),0)*K$8 -> 0 | L206: =IFERROR(IF(SUM($C206:K206)<$X206,$X206*(1/$Y206),0),0)*L$8 -> 0 | M206: =IFERROR(IF(SUM($C206:L206)<$X206,$X206*(1/$Y206),0),0)*M$8 -> 0 | N206: =IFERROR(IF(SUM($C206:M206)<$X206,$X206*(1/$Y206),0),0)*N$8 -> 0 | O206: =IFERROR(IF(SUM($C206:N206)<$X206,$X206*(1/$Y206),0),0)*O$8 -> 0 | P206: =IFERROR(IF(SUM($C206:O206)<$X206,$X206*(1/$Y206),0),0)*P$8 -> 0 | Q206: =IFERROR(IF(SUM($C206:P206)<$X206,$X206*(1/$Y206),0),0)*Q$8 -> 0 | R206: =IFERROR(IF(SUM($C206:Q206)<$X206,$X206*(1/$Y206),0),0)*R$8 -> 0 | S206: =IFERROR(IF(SUM($C206:R206)<$X206,$X206*(1/$Y206),0),0)*S$8 -> 0 | T206: =IFERROR(IF(SUM($C206:S206)<$X206,$X206*(1/$Y206),0),0)*T$8 -> 0 | U206: =IFERROR(IF(SUM($C206:T206)<$X206,$X206*(1/$Y206),0),0)*U$8 -> 0 | V206: =IFERROR(IF(SUM($C206:U206)<$X206,$X206*(1/$Y206),0),0)*V$8 -> 0 | X206: 0 | Y206: 20
B207: 6 | H207: =IFERROR(IF(SUM($C207:G207)<$X207,$X207*(1/$Y207),0),0)*H$8 -> 0 | I207: =IFERROR(IF(SUM($C207:H207)<$X207,$X207*(1/$Y207),0),0)*I$8 -> 0 | J207: =IFERROR(IF(SUM($C207:I207)<$X207,$X207*(1/$Y207),0),0)*J$8 -> 0 | K207: =IFERROR(IF(SUM($C207:J207)<$X207,$X207*(1/$Y207),0),0)*K$8 -> 0 | L207: =IFERROR(IF(SUM($C207:K207)<$X207,$X207*(1/$Y207),0),0)*L$8 -> 0 | M207: =IFERROR(IF(SUM($C207:L207)<$X207,$X207*(1/$Y207),0),0)*M$8 -> 0 | N207: =IFERROR(IF(SUM($C207:M207)<$X207,$X207*(1/$Y207),0),0)*N$8 -> 0 | O207: =IFERROR(IF(SUM($C207:N207)<$X207,$X207*(1/$Y207),0),0)*O$8 -> 0 | P207: =IFERROR(IF(SUM($C207:O207)<$X207,$X207*(1/$Y207),0),0)*P$8 -> 0 | Q207: =IFERROR(IF(SUM($C207:P207)<$X207,$X207*(1/$Y207),0),0)*Q$8 -> 0 | R207: =IFERROR(IF(SUM($C207:Q207)<$X207,$X207*(1/$Y207),0),0)*R$8 -> 0 | S207: =IFERROR(IF(SUM($C207:R207)<$X207,$X207*(1/$Y207),0),0)*S$8 -> 0 | T207: =IFERROR(IF(SUM($C207:S207)<$X207,$X207*(1/$Y207),0),0)*T$8 -> 0 | U207: =IFERROR(IF(SUM($C207:T207)<$X207,$X207*(1/$Y207),0),0)*U$8 -> 0 | V207: =IFERROR(IF(SUM($C207:U207)<$X207,$X207*(1/$Y207),0),0)*V$8 -> 0 | X207: 0 | Y207: 20
B208: 7 | I208: =IFERROR(IF(SUM($C208:H208)<$X208,$X208*(1/$Y208),0),0)*I$8 -> 0 | J208: =IFERROR(IF(SUM($C208:I208)<$X208,$X208*(1/$Y208),0),0)*J$8 -> 0 | K208: =IFERROR(IF(SUM($C208:J208)<$X208,$X208*(1/$Y208),0),0)*K$8 -> 0 | L208: =IFERROR(IF(SUM($C208:K208)<$X208,$X208*(1/$Y208),0),0)*L$8 -> 0 | M208: =IFERROR(IF(SUM($C208:L208)<$X208,$X208*(1/$Y208),0),0)*M$8 -> 0 | N208: =IFERROR(IF(SUM($C208:M208)<$X208,$X208*(1/$Y208),0),0)*N$8 -> 0 | O208: =IFERROR(IF(SUM($C208:N208)<$X208,$X208*(1/$Y208),0),0)*O$8 -> 0 | P208: =IFERROR(IF(SUM($C208:O208)<$X208,$X208*(1/$Y208),0),0)*P$8 -> 0 | Q208: =IFERROR(IF(SUM($C208:P208)<$X208,$X208*(1/$Y208),0),0)*Q$8 -> 0 | R208: =IFERROR(IF(SUM($C208:Q208)<$X208,$X208*(1/$Y208),0),0)*R$8 -> 0 | S208: =IFERROR(IF(SUM($C208:R208)<$X208,$X208*(1/$Y208),0),0)*S$8 -> 0 | T208: =IFERROR(IF(SUM($C208:S208)<$X208,$X208*(1/$Y208),0),0)*T$8 -> 0 | U208: =IFERROR(IF(SUM($C208:T208)<$X208,$X208*(1/$Y208),0),0)*U$8 -> 0 | V208: =IFERROR(IF(SUM($C208:U208)<$X208,$X208*(1/$Y208),0),0)*V$8 -> 0 | X208: 0 | Y208: 20
B209: 8 | J209: =IFERROR(IF(SUM($C209:I209)<$X209,$X209*(1/$Y209),0),0)*J$8 -> 0 | K209: =IFERROR(IF(SUM($C209:J209)<$X209,$X209*(1/$Y209),0),0)*K$8 -> 0 | L209: =IFERROR(IF(SUM($C209:K209)<$X209,$X209*(1/$Y209),0),0)*L$8 -> 0 | M209: =IFERROR(IF(SUM($C209:L209)<$X209,$X209*(1/$Y209),0),0)*M$8 -> 0 | N209: =IFERROR(IF(SUM($C209:M209)<$X209,$X209*(1/$Y209),0),0)*N$8 -> 0 | O209: =IFERROR(IF(SUM($C209:N209)<$X209,$X209*(1/$Y209),0),0)*O$8 -> 0 | P209: =IFERROR(IF(SUM($C209:O209)<$X209,$X209*(1/$Y209),0),0)*P$8 -> 0 | Q209: =IFERROR(IF(SUM($C209:P209)<$X209,$X209*(1/$Y209),0),0)*Q$8 -> 0 | R209: =IFERROR(IF(SUM($C209:Q209)<$X209,$X209*(1/$Y209),0),0)*R$8 -> 0 | S209: =IFERROR(IF(SUM($C209:R209)<$X209,$X209*(1/$Y209),0),0)*S$8 -> 0 | T209: =IFERROR(IF(SUM($C209:S209)<$X209,$X209*(1/$Y209),0),0)*T$8 -> 0 | U209: =IFERROR(IF(SUM($C209:T209)<$X209,$X209*(1/$Y209),0),0)*U$8 -> 0 | V209: =IFERROR(IF(SUM($C209:U209)<$X209,$X209*(1/$Y209),0),0)*V$8 -> 0 | X209: 0 | Y209: 20
B210: 9 | K210: =IFERROR(IF(SUM($C210:J210)<$X210,$X210*(1/$Y210),0),0)*K$8 -> 0 | L210: =IFERROR(IF(SUM($C210:K210)<$X210,$X210*(1/$Y210),0),0)*L$8 -> 0 | M210: =IFERROR(IF(SUM($C210:L210)<$X210,$X210*(1/$Y210),0),0)*M$8 -> 0 | N210: =IFERROR(IF(SUM($C210:M210)<$X210,$X210*(1/$Y210),0),0)*N$8 -> 0 | O210: =IFERROR(IF(SUM($C210:N210)<$X210,$X210*(1/$Y210),0),0)*O$8 -> 0 | P210: =IFERROR(IF(SUM($C210:O210)<$X210,$X210*(1/$Y210),0),0)*P$8 -> 0 | Q210: =IFERROR(IF(SUM($C210:P210)<$X210,$X210*(1/$Y210),0),0)*Q$8 -> 0 | R210: =IFERROR(IF(SUM($C210:Q210)<$X210,$X210*(1/$Y210),0),0)*R$8 -> 0 | S210: =IFERROR(IF(SUM($C210:R210)<$X210,$X210*(1/$Y210),0),0)*S$8 -> 0 | T210: =IFERROR(IF(SUM($C210:S210)<$X210,$X210*(1/$Y210),0),0)*T$8 -> 0 | U210: =IFERROR(IF(SUM($C210:T210)<$X210,$X210*(1/$Y210),0),0)*U$8 -> 0 | V210: =IFERROR(IF(SUM($C210:U210)<$X210,$X210*(1/$Y210),0),0)*V$8 -> 0 | X210: 0 | Y210: 20
B211: 10 | L211: =IFERROR(IF(SUM($C211:K211)<$X211,$X211*(1/$Y211),0),0)*L$8 -> 0 | M211: =IFERROR(IF(SUM($C211:L211)<$X211,$X211*(1/$Y211),0),0)*M$8 -> 0 | N211: =IFERROR(IF(SUM($C211:M211)<$X211,$X211*(1/$Y211),0),0)*N$8 -> 0 | O211: =IFERROR(IF(SUM($C211:N211)<$X211,$X211*(1/$Y211),0),0)*O$8 -> 0 | P211: =IFERROR(IF(SUM($C211:O211)<$X211,$X211*(1/$Y211),0),0)*P$8 -> 0 | Q211: =IFERROR(IF(SUM($C211:P211)<$X211,$X211*(1/$Y211),0),0)*Q$8 -> 0 | R211: =IFERROR(IF(SUM($C211:Q211)<$X211,$X211*(1/$Y211),0),0)*R$8 -> 0 | S211: =IFERROR(IF(SUM($C211:R211)<$X211,$X211*(1/$Y211),0),0)*S$8 -> 0 | T211: =IFERROR(IF(SUM($C211:S211)<$X211,$X211*(1/$Y211),0),0)*T$8 -> 0 | U211: =IFERROR(IF(SUM($C211:T211)<$X211,$X211*(1/$Y211),0),0)*U$8 -> 0 | V211: =IFERROR(IF(SUM($C211:U211)<$X211,$X211*(1/$Y211),0),0)*V$8 -> 0 | X211: 0 | Y211: 20
B212: 11 | M212: =IFERROR(IF(SUM($C212:L212)<$X212,$X212*(1/$Y212),0),0)*M$8 -> 0 | N212: =IFERROR(IF(SUM($C212:M212)<$X212,$X212*(1/$Y212),0),0)*N$8 -> 0 | O212: =IFERROR(IF(SUM($C212:N212)<$X212,$X212*(1/$Y212),0),0)*O$8 -> 0 | P212: =IFERROR(IF(SUM($C212:O212)<$X212,$X212*(1/$Y212),0),0)*P$8 -> 0 | Q212: =IFERROR(IF(SUM($C212:P212)<$X212,$X212*(1/$Y212),0),0)*Q$8 -> 0 | R212: =IFERROR(IF(SUM($C212:Q212)<$X212,$X212*(1/$Y212),0),0)*R$8 -> 0 | S212: =IFERROR(IF(SUM($C212:R212)<$X212,$X212*(1/$Y212),0),0)*S$8 -> 0 | T212: =IFERROR(IF(SUM($C212:S212)<$X212,$X212*(1/$Y212),0),0)*T$8 -> 0 | U212: =IFERROR(IF(SUM($C212:T212)<$X212,$X212*(1/$Y212),0),0)*U$8 -> 0 | V212: =IFERROR(IF(SUM($C212:U212)<$X212,$X212*(1/$Y212),0),0)*V$8 -> 0 | Y212: 20
B213: 12 | N213: =IFERROR(IF(SUM($C213:M213)<$X213,$X213*(1/$Y213),0),0)*N$8 -> 0 | O213: =IFERROR(IF(SUM($C213:N213)<$X213,$X213*(1/$Y213),0),0)*O$8 -> 0 | P213: =IFERROR(IF(SUM($C213:O213)<$X213,$X213*(1/$Y213),0),0)*P$8 -> 0 | Q213: =IFERROR(IF(SUM($C213:P213)<$X213,$X213*(1/$Y213),0),0)*Q$8 -> 0 | R213: =IFERROR(IF(SUM($C213:Q213)<$X213,$X213*(1/$Y213),0),0)*R$8 -> 0 | S213: =IFERROR(IF(SUM($C213:R213)<$X213,$X213*(1/$Y213),0),0)*S$8 -> 0 | T213: =IFERROR(IF(SUM($C213:S213)<$X213,$X213*(1/$Y213),0),0)*T$8 -> 0 | U213: =IFERROR(IF(SUM($C213:T213)<$X213,$X213*(1/$Y213),0),0)*U$8 -> 0 | V213: =IFERROR(IF(SUM($C213:U213)<$X213,$X213*(1/$Y213),0),0)*V$8 -> 0 | Y213: 20
B214: 13 | O214: =IFERROR(IF(SUM($C214:N214)<$X214,$X214*(1/$Y214),0),0)*O$8 -> 0 | P214: =IFERROR(IF(SUM($C214:O214)<$X214,$X214*(1/$Y214),0),0)*P$8 -> 0 | Q214: =IFERROR(IF(SUM($C214:P214)<$X214,$X214*(1/$Y214),0),0)*Q$8 -> 0 | R214: =IFERROR(IF(SUM($C214:Q214)<$X214,$X214*(1/$Y214),0),0)*R$8 -> 0 | S214: =IFERROR(IF(SUM($C214:R214)<$X214,$X214*(1/$Y214),0),0)*S$8 -> 0 | T214: =IFERROR(IF(SUM($C214:S214)<$X214,$X214*(1/$Y214),0),0)*T$8 -> 0 | U214: =IFERROR(IF(SUM($C214:T214)<$X214,$X214*(1/$Y214),0),0)*U$8 -> 0 | V214: =IFERROR(IF(SUM($C214:U214)<$X214,$X214*(1/$Y214),0),0)*V$8 -> 0 | Y214: 20
B215: 14 | P215: =IFERROR(IF(SUM($C215:O215)<$X215,$X215*(1/$Y215),0),0)*P$8 -> 0 | Q215: =IFERROR(IF(SUM($C215:P215)<$X215,$X215*(1/$Y215),0),0)*Q$8 -> 0 | R215: =IFERROR(IF(SUM($C215:Q215)<$X215,$X215*(1/$Y215),0),0)*R$8 -> 0 | S215: =IFERROR(IF(SUM($C215:R215)<$X215,$X215*(1/$Y215),0),0)*S$8 -> 0 | T215: =IFERROR(IF(SUM($C215:S215)<$X215,$X215*(1/$Y215),0),0)*T$8 -> 0 | U215: =IFERROR(IF(SUM($C215:T215)<$X215,$X215*(1/$Y215),0),0)*U$8 -> 0 | V215: =IFERROR(IF(SUM($C215:U215)<$X215,$X215*(1/$Y215),0),0)*V$8 -> 0 | Y215: 20
B216: 15 | Q216: =IFERROR(IF(SUM($C216:P216)<$X216,$X216*(1/$Y216),0),0)*Q$8 -> 0 | R216: =IFERROR(IF(SUM($C216:Q216)<$X216,$X216*(1/$Y216),0),0)*R$8 -> 0 | S216: =IFERROR(IF(SUM($C216:R216)<$X216,$X216*(1/$Y216),0),0)*S$8 -> 0 | T216: =IFERROR(IF(SUM($C216:S216)<$X216,$X216*(1/$Y216),0),0)*T$8 -> 0 | U216: =IFERROR(IF(SUM($C216:T216)<$X216,$X216*(1/$Y216),0),0)*U$8 -> 0 | V216: =IFERROR(IF(SUM($C216:U216)<$X216,$X216*(1/$Y216),0),0)*V$8 -> 0 | Y216: 20
B217: 16 | R217: =IFERROR(IF(SUM($C217:Q217)<$X217,$X217*(1/$Y217),0),0)*R$8 -> 0 | S217: =IFERROR(IF(SUM($C217:R217)<$X217,$X217*(1/$Y217),0),0)*S$8 -> 0 | T217: =IFERROR(IF(SUM($C217:S217)<$X217,$X217*(1/$Y217),0),0)*T$8 -> 0 | U217: =IFERROR(IF(SUM($C217:T217)<$X217,$X217*(1/$Y217),0),0)*U$8 -> 0 | V217: =IFERROR(IF(SUM($C217:U217)<$X217,$X217*(1/$Y217),0),0)*V$8 -> 0 | Y217: 20
B218: 17 | S218: =IFERROR(IF(SUM($C218:R218)<$X218,$X218*(1/$Y218),0),0)*S$8 -> 0 | T218: =IFERROR(IF(SUM($C218:S218)<$X218,$X218*(1/$Y218),0),0)*T$8 -> 0 | U218: =IFERROR(IF(SUM($C218:T218)<$X218,$X218*(1/$Y218),0),0)*U$8 -> 0 | V218: =IFERROR(IF(SUM($C218:U218)<$X218,$X218*(1/$Y218),0),0)*V$8 -> 0 | Y218: 20
B219: 18 | T219: =IFERROR(IF(SUM($C219:S219)<$X219,$X219*(1/$Y219),0),0)*T$8 -> 0 | U219: =IFERROR(IF(SUM($C219:T219)<$X219,$X219*(1/$Y219),0),0)*U$8 -> 0 | V219: =IFERROR(IF(SUM($C219:U219)<$X219,$X219*(1/$Y219),0),0)*V$8 -> 0 | Y219: 20
... 171 more rows

Sheet 05. NIG
B6: NIG (R$ Milhões)
B8: PRAZO | C8: =IF(C10<=('01. PC'!$C$17),1,0) -> 1 | D8: =IF(D10<=('01. PC'!$C$17),1,0) -> 1 | E8: =IF(E10<=('01. PC'!$C$17),1,0) -> 1 | F8: =IF(F10<=('01. PC'!$C$17),1,0) -> 1 | G8: =IF(G10<=('01. PC'!$C$17),1,0) -> 1 | H8: =IF(H10<=('01. PC'!$C$17),1,0) -> 1 | I8: =IF(I10<=('01. PC'!$C$17),1,0) -> 1 | J8: =IF(J10<=('01. PC'!$C$17),1,0) -> 1 | K8: =IF(K10<=('01. PC'!$C$17),1,0) -> 1 | L8: =IF(L10<=('01. PC'!$C$17),1,0) -> 1 | M8: =IF(M10<=('01. PC'!$C$17),1,0) -> 1 | N8: =IF(N10<=('01. PC'!$C$17),1,0) -> 1 | O8: =IF(O10<=('01. PC'!$C$17),1,0) -> 1 | P8: =IF(P10<=('01. PC'!$C$17),1,0) -> 1 | Q8: =IF(Q10<=('01. PC'!$C$17),1,0) -> 1 | R8: =IF(R10<=('01. PC'!$C$17),1,0) -> 1 | S8: =IF(S10<=('01. PC'!$C$17),1,0) -> 1 | T8: =IF(T10<=('01. PC'!$C$17),1,0) -> 1 | U8: =IF(U10<=('01. PC'!$C$17),1,0) -> 1 | V8: =IF(V10<=('01. PC'!$C$17),1,0) -> 1
B10: ANO | C10: 1 | D10: =C10+1 -> 2 | E10: =D10+1 -> 3 | F10: 4 | G10: 5 | H10: 6 | I10: 7 | J10: 8 | K10: 9 | L10: 10 | M10: =L10+1 -> 11 | N10: =M10+1 -> 12 | O10: =N10+1 -> 13 | P10: =O10+1 -> 14 | Q10: =P10+1 -> 15 | R10: =Q10+1 -> 16 | S10: =R10+1 -> 17 | T10: =S10+1 -> 18 | U10: =T10+1 -> 19 | V10: 20 | X10: TOTAL
B12: OPEX TOTAL | C12: =-(C13+C14+C15+C16+C17+C18)*C$8 -> -7.37793099 | D12: =-(D13+D14+D15+D16+D17+D18)*D$8 -> -8.874412794 | E12: -8.874412794 | F12: -8.874412794 | G12: -8.874412794 | H12: -8.874412794 | I12: -8.874412794 | J12: -8.874412794 | K12: -8.874412794 | L12: -8.874412794 | M12: -8.874412794 | N12: -8.874412794 | O12: -8.874412794 | P12: -8.874412794 | Q12: -8.874412794 | R12: -8.874412794 | S12: -8.874412794 | T12: -8.874412794 | U12: -8.874412794 | V12: -8.874412794 | X12: =SUM(C12:L12) -> -87.24764614
B13: Terminal Central | C13: ='07. OPEX'!C12 -> 2.606752458 | D13: ='07. OPEX'!D12 -> 2.606752458 | E13: ='07. OPEX'!E12 -> 2.606752458 | F13: ='07. OPEX'!F12 -> 2.606752458 | G13: ='07. OPEX'!G12 -> 2.606752458 | H13: ='07. OPEX'!H12 -> 2.606752458 | I13: ='07. OPEX'!I12 -> 2.606752458 | J13: ='07. OPEX'!J12 -> 2.606752458 | K13: ='07. OPEX'!K12 -> 2.606752458 | L13: ='07. OPEX'!L12 -> 2.606752458 | M13: ='07. OPEX'!M12 -> 2.606752458 | N13: ='07. OPEX'!N12 -> 2.606752458 | O13: ='07. OPEX'!O12 -> 2.606752458 | P13: ='07. OPEX'!P12 -> 2.606752458 | Q13: ='07. OPEX'!Q12 -> 2.606752458 | R13: ='07. OPEX'!R12 -> 2.606752458 | S13: ='07. OPEX'!S12 -> 2.606752458 | T13: ='07. OPEX'!T12 -> 2.606752458 | U13: ='07. OPEX'!U12 -> 2.606752458 | V13: ='07. OPEX'!V12 -> 2.606752458 | X13: 26.06752458
B14: Terminal Uvaranas | C14: ='07. OPEX'!C79 -> 1.496481804 | D14: ='07. OPEX'!D79 -> 1.496481804 | E14: ='07. OPEX'!E79 -> 1.496481804 | F14: ='07. OPEX'!F79 -> 1.496481804 | G14: ='07. OPEX'!G79 -> 1.496481804 | H14: ='07. OPEX'!H79 -> 1.496481804 | I14: ='07. OPEX'!I79 -> 1.496481804 | J14: ='07. OPEX'!J79 -> 1.496481804 | K14: ='07. OPEX'!K79 -> 1.496481804 | L14: ='07. OPEX'!L79 -> 1.496481804 | M14: ='07. OPEX'!M79 -> 1.496481804 | N14: ='07. OPEX'!N79 -> 1.496481804 | O14: ='07. OPEX'!O79 -> 1.496481804 | P14: ='07. OPEX'!P79 -> 1.496481804 | Q14: ='07. OPEX'!Q79 -> 1.496481804 | R14: ='07. OPEX'!R79 -> 1.496481804 | S14: ='07. OPEX'!S79 -> 1.496481804 | T14: ='07. OPEX'!T79 -> 1.496481804 | U14: ='07. OPEX'!U79 -> 1.496481804 | V14: ='07. OPEX'!V79 -> 1.496481804 | X14: 14.96481804
B15: Terminal Oficinas | C15: ='07. OPEX'!C146 -> 1.496481804 | D15: ='07. OPEX'!D146 -> 1.496481804 | E15: ='07. OPEX'!E146 -> 1.496481804 | F15: ='07. OPEX'!F146 -> 1.496481804 | G15: ='07. OPEX'!G146 -> 1.496481804 | H15: ='07. OPEX'!H146 -> 1.496481804 | I15: ='07. OPEX'!I146 -> 1.496481804 | J15: ='07. OPEX'!J146 -> 1.496481804 | K15: ='07. OPEX'!K146 -> 1.496481804 | L15: ='07. OPEX'!L146 -> 1.496481804 | M15: ='07. OPEX'!M146 -> 1.496481804 | N15: ='07. OPEX'!N146 -> 1.496481804 | O15: ='07. OPEX'!O146 -> 1.496481804 | P15: ='07. OPEX'!P146 -> 1.496481804 | Q15: ='07. OPEX'!Q146 -> 1.496481804 | R15: ='07. OPEX'!R146 -> 1.496481804 | S15: ='07. OPEX'!S146 -> 1.496481804 | T15: ='07. OPEX'!T146 -> 1.496481804 | U15: ='07. OPEX'!U146 -> 1.496481804 | V15: ='07. OPEX'!V146 -> 1.496481804 | X15: 14.96481804
B16: Terminal Nova Rússia | C16: ='07. OPEX'!C213 -> 1.496481804 | D16: ='07. OPEX'!D213 -> 1.496481804 | E16: ='07. OPEX'!E213 -> 1.496481804 | F16: ='07. OPEX'!F213 -> 1.496481804 | G16: ='07. OPEX'!G213 -> 1.496481804 | H16: ='07. OPEX'!H213 -> 1.496481804 | I16: ='07. OPEX'!I213 -> 1.496481804 | J16: ='07. OPEX'!J213 -> 1.496481804 | K16: ='07. OPEX'!K213 -> 1.496481804 | L16: ='07. OPEX'!L213 -> 1.496481804 | M16: ='07. OPEX'!M213 -> 1.496481804 | N16: ='07. OPEX'!N213 -> 1.496481804 | O16: ='07. OPEX'!O213 -> 1.496481804 | P16: ='07. OPEX'!P213 -> 1.496481804 | Q16: ='07. OPEX'!Q213 -> 1.496481804 | R16: ='07. OPEX'!R213 -> 1.496481804 | S16: ='07. OPEX'!S213 -> 1.496481804 | T16: ='07. OPEX'!T213 -> 1.496481804 | U16: ='07. OPEX'!U213 -> 1.496481804 | V16: ='07. OPEX'!V213 -> 1.496481804 | X16: 14.96481804
B17: Terminal Santa Paula | C17: ='07. OPEX'!C280 -> 0 | D17: ='07. OPEX'!D280 -> 1.496481804 | E17: ='07. OPEX'!E280 -> 1.496481804 | F17: ='07. OPEX'!F280 -> 1.496481804 | G17: ='07. OPEX'!G280 -> 1.496481804 | H17: ='07. OPEX'!H280 -> 1.496481804 | I17: ='07. OPEX'!I280 -> 1.496481804 | J17: ='07. OPEX'!J280 -> 1.496481804 | K17: ='07. OPEX'!K280 -> 1.496481804 | L17: ='07. OPEX'!L280 -> 1.496481804 | M17: ='07. OPEX'!M280 -> 1.496481804 | N17: ='07. OPEX'!N280 -> 1.496481804 | O17: ='07. OPEX'!O280 -> 1.496481804 | P17: ='07. OPEX'!P280 -> 1.496481804 | Q17: ='07. OPEX'!Q280 -> 1.496481804 | R17: ='07. OPEX'!R280 -> 1.496481804 | S17: ='07. OPEX'!S280 -> 1.496481804 | T17: ='07. OPEX'!T280 -> 1.496481804 | U17: ='07. OPEX'!U280 -> 1.496481804 | V17: ='07. OPEX'!V280 -> 1.496481804 | X17: 13.46833624
B18: Terminais de Integração Eletrônica | C18: ='07. OPEX'!C347 -> 0.28173312 | D18: ='07. OPEX'!D347 -> 0.28173312 | E18: ='07. OPEX'!E347 -> 0.28173312 | F18: ='07. OPEX'!F347 -> 0.28173312 | G18: ='07. OPEX'!G347 -> 0.28173312 | H18: ='07. OPEX'!H347 -> 0.28173312 | I18: ='07. OPEX'!I347 -> 0.28173312 | J18: ='07. OPEX'!J347 -> 0.28173312 | K18: ='07. OPEX'!K347 -> 0.28173312 | L18: ='07. OPEX'!L347 -> 0.28173312 | M18: ='07. OPEX'!M347 -> 0.28173312 | N18: ='07. OPEX'!N347 -> 0.28173312 | O18: ='07. OPEX'!O347 -> 0.28173312 | P18: ='07. OPEX'!P347 -> 0.28173312 | Q18: ='07. OPEX'!Q347 -> 0.28173312 | R18: ='07. OPEX'!R347 -> 0.28173312 | S18: ='07. OPEX'!S347 -> 0.28173312 | T18: ='07. OPEX'!T347 -> 0.28173312 | U18: ='07. OPEX'!U347 -> 0.28173312 | V18: ='07. OPEX'!V347 -> 0.28173312 | X18: 2.8173312
B20: NIG - Real | C20: =C12*('01. PC'!$C$15/12) -> -0.6148275825 | D20: =D12*('01. PC'!$C$15/12) -SUM($C20:C20) -> -0.124706817 | E20: =E12*('01. PC'!$C$15/12) -SUM($C20:D20) -> 0 | F20: =F12*('01. PC'!$C$15/12) -SUM($C20:E20) -> 0 | G20: =G12*('01. PC'!$C$15/12) -SUM($C20:F20) -> 0 | H20: =H12*('01. PC'!$C$15/12) -SUM($C20:G20) -> 0 | I20: =I12*('01. PC'!$C$15/12) -SUM($C20:H20) -> 0 | J20: =J12*('01. PC'!$C$15/12) -SUM($C20:I20) -> 0 | K20: =K12*('01. PC'!$C$15/12) -SUM($C20:J20) -> 0 | L20: =L12*('01. PC'!$C$15/12) -SUM($C20:K20) -> 0 | M20: =M12*('01. PC'!$C$15/12) -SUM($C20:L20) -> 0 | N20: =N12*('01. PC'!$C$15/12) -SUM($C20:M20) -> 0 | O20: =O12*('01. PC'!$C$15/12) -SUM($C20:N20) -> 0 | P20: =P12*('01. PC'!$C$15/12) -SUM($C20:O20) -> 0 | Q20: =Q12*('01. PC'!$C$15/12) -SUM($C20:P20) -> 0 | R20: =R12*('01. PC'!$C$15/12) -SUM($C20:Q20) -> 0 | S20: =S12*('01. PC'!$C$15/12) -SUM($C20:R20) -> 0 | T20: =T12*('01. PC'!$C$15/12) -SUM($C20:S20) -> 0 | U20: =U12*('01. PC'!$C$15/12) -SUM($C20:T20) -> 0 | V20: =-SUM(C20:U20) -> 0.7395343995 | X20: =SUM(C20:V20) -> 0
B22: Perda inflacionária | D22: =(C12*('01. PC'!D46/(1+'01. PC'!D46)))*D8*('01. PC'!$C$15/12) -> -0.01935292633 | E22: =(D12*('01. PC'!E46/(1+'01. PC'!E46)))*E8*('01. PC'!$C$15/12) -> -0.02153983688 | F22: =(E12*('01. PC'!F46/(1+'01. PC'!F46)))*F8*('01. PC'!$C$15/12) -> -0.02153983688 | G22: =(F12*('01. PC'!G46/(1+'01. PC'!G46)))*G8*('01. PC'!$C$15/12) -> -0.02153983688 | H22: =(G12*('01. PC'!H46/(1+'01. PC'!H46)))*H8*('01. PC'!$C$15/12) -> -0.02153983688 | I22: =(H12*('01. PC'!I46/(1+'01. PC'!I46)))*I8*('01. PC'!$C$15/12) -> -0.02153983688 | J22: =(I12*('01. PC'!J46/(1+'01. PC'!J46)))*J8*('01. PC'!$C$15/12) -> -0.02153983688 | K22: =(J12*('01. PC'!K46/(1+'01. PC'!K46)))*K8*('01. PC'!$C$15/12) -> -0.02153983688 | L22: =(K12*('01. PC'!L46/(1+'01. PC'!L46)))*L8*('01. PC'!$C$15/12) -> -0.02153983688 | M22: =(L12*('01. PC'!M46/(1+'01. PC'!M46)))*M8*('01. PC'!$C$15/12) -> -0.02153983688 | N22: =(M12*('01. PC'!N46/(1+'01. PC'!N46)))*N8*('01. PC'!$C$15/12) -> -0.02153983688 | O22: =(N12*('01. PC'!O46/(1+'01. PC'!O46)))*O8*('01. PC'!$C$15/12) -> -0.02153983688 | P22: =(O12*('01. PC'!P46/(1+'01. PC'!P46)))*P8*('01. PC'!$C$15/12) -> -0.02153983688 | Q22: =(P12*('01. PC'!Q46/(1+'01. PC'!Q46)))*Q8*('01. PC'!$C$15/12) -> -0.02153983688 | R22: =(Q12*('01. PC'!R46/(1+'01. PC'!R46)))*R8*('01. PC'!$C$15/12) -> -0.02153983688 | S22: =(R12*('01. PC'!S46/(1+'01. PC'!S46)))*S8*('01. PC'!$C$15/12) -> -0.02153983688 | T22: =(S12*('01. PC'!T46/(1+'01. PC'!T46)))*T8*('01. PC'!$C$15/12) -> -0.02153983688 | U22: =(T12*('01. PC'!U46/(1+'01. PC'!U46)))*U8*('01. PC'!$C$15/12) -> -0.02153983688 | V22: =(U12*('01. PC'!V46/(1+'01. PC'!V46)))*V8*('01. PC'!$C$15/12) -> -0.02153983688 | X22: =SUM(C22:L22) -> -0.1916716214
B24: NIG Real com Perda inflacionária | C24: =C20+C22 -> -0.6148275825 | D24: =D20+D22 -> -0.1440597433 | E24: -0.02153983688 | F24: -0.02153983688 | G24: -0.02153983688 | H24: -0.02153983688 | I24: -0.02153983688 | J24: -0.02153983688 | K24: -0.02153983688 | L24: -0.02153983688 | M24: -0.02153983688 | N24: -0.02153983688 | O24: -0.02153983688 | P24: -0.02153983688 | Q24: -0.02153983688 | R24: -0.02153983688 | S24: -0.02153983688 | T24: -0.02153983688 | U24: -0.02153983688 | V24: 0.7179945626 | X24: =SUM(C24:L24) -> -0.9312060209

Sheet 6. CAPEX
B7: Capex (R$ Milhões)
B9: Ano | C9: 1 | D9: =C9+1 -> 2 | E9: 3 | F9: 4 | G9: 5 | H9: 6 | I9: 7 | J9: 8 | K9: 9 | L9: 10 | M9: =L9+1 -> 11 | N9: =M9+1 -> 12 | O9: =N9+1 -> 13 | P9: =O9+1 -> 14 | Q9: =P9+1 -> 15 | R9: =Q9+1 -> 16 | S9: =R9+1 -> 17 | T9: =S9+1 -> 18 | U9: =T9+1 -> 19 | V9: =U9+1 -> 20 | X9: TOTAL | Z9: RISCO
B11: Total Capex | C11: =(C13+C23+C53+C57+C61+C65+C69) -> 45.379471 | D11: =(D13+D23+D53+D57+D61+D65+D69) -> 0 | E11: 0 | F11: 0 | G11: 0 | H11: 0 | I11: 0 | J11: 0 | K11: 0 | L11: 0 | M11: =(M13+M23+M53+M57+M61+M65+M69) -> 0 | N11: 0 | O11: 0 | P11: 0 | Q11: 0 | R11: 0 | S11: 0 | T11: 0 | U11: 0 | V11: 0 | X11: =SUM(C11:V11) -> 45.379471 | Z11: =SensibilidadeOpex -> 0
B13: Terminal Santa Paula - Construção de Terminal | C13: =((C15+C19)/10^6)*(1+$Z$11) -> 36.3689 | D13: =((D15+D19)/10^6)*(1+$Z$11) -> 0 | E13: 0 | F13: 0 | G13: 0 | H13: 0 | I13: 0 | J13: 0 | K13: 0 | L13: 0 | M13: =((M15+M19)/10^6)*(1+$Z$11) -> 0 | N13: 0 | O13: 0 | P13: 0 | Q13: 0 | R13: 0 | S13: 0 | T13: 0 | U13: 0 | V13: 0 | X13: =SUM(C13:V13) -> 36.3689
B15: Desapropriação | C15: =C16*C17 -> 3500000
B16: Área desapropriada (M²) | C16: 7000
B17: Custo de desapropriação (R$/M²) | C17: 500
B19: Obras e Instalações | C19: =C20*C21 -> 32868900
B20: Área Construída (M²) | C20: 6000
B21: Custo de construção (R$/M²) | C21: 5478.15
B23: Terminais de Integração Eletrônica (TEI) | C23: =((C25+C29+C33+C37+C41+C45+C49)/10^6)*(1+$Z$11) -> 2.347776 | D23: =((D25+D29+D33+D37+D41+D45+D49)/10^6)*(1+$Z$11) -> 0 | E23: 0 | F23: 0 | G23: 0 | H23: 0 | I23: 0 | J23: 0 | K23: 0 | L23: 0 | M23: =((M25+M29+M33+M37+M41+M45+M49)/10^6)*(1+$Z$11) -> 0 | N23: 0 | O23: 0 | P23: 0 | Q23: 0 | R23: 0 | S23: 0 | T23: 0 | U23: 0 | V23: 0 | X23: =SUM(C23:V23) -> 2.347776
B25: TEI - Valério Ronchi | C25: =C26*C27 -> 391296
B26: Abrigos por TEI | C26: 8
B27: Custo de construção do abrigo (R$/Unidade) | C27: 48912
B29: TEI - Boa Vista | C29: =C30*C31 -> 391296
B30: Abrigos por TEI | C30: 8
B31: Custo de construção do abrigo (R$/Unidade) | C31: 48912
B33: TEI - Siqueira Campos 1 | C33: =C34*C35 -> 391296
B34: Abrigos por TEI | C34: 8
B35: Custo de construção do abrigo (R$/Unidade) | C35: 48912
B37: TEI - Siqueira Campos 2 | C37: =C38*C39 -> 391296
B38: Abrigos por TEI | C38: 8
B39: Custo de construção do abrigo (R$/Unidade) | C39: 48912
B41: TEI - Jardim Carvalho | C41: =C42*C43 -> 391296
B42: Abrigos por TEI | C42: 8
B43: Custo de construção do abrigo (R$/Unidade) | C43: 48912
B45: TEI - Palmeirinha | C45: =C46*C47 -> 391296
B46: Abrigos por TEI | C46: 8
B47: Custo de construção do abrigo (R$/Unidade) | C47: 48912
B49: TEI - Terminal Santa Paula | C49: =C50*C51 -> 0
B50: Abrigos por TEI
B51: Custo de construção do abrigo (R$/Unidade) | C51: 48912
B53: Terminal Central - Construção de Áreas Comerciais* | C53: =((C54*C55)/10^6)*(1+$Z$11) -> 0 | D53: =((D54*D55)/10^6)*(1+$Z$11) -> 0 | E53: 0 | F53: 0 | G53: 0 | H53: 0 | I53: 0 | J53: 0 | K53: 0 | L53: 0 | M53: =((M54*M55)/10^6)*(1+$Z$11) -> 0 | N53: 0 | O53: 0 | P53: 0 | Q53: 0 | R53: 0 | S53: 0 | T53: 0 | U53: 0 | V53: 0 | X53: =SUM(C53:V53) -> 0
B54: Área edificável (M²) | C54: 71.5
B55: Custo de edificação (R$/M²) | C55: 0
B57: Terminal Uvaranas - Construção de Áreas Comerciais | C57: =((C58*C59)/10^6)*(1+$Z$11) -> 2.33596 | D57: =((D58*D59)/10^6)*(1+$Z$11) -> 0 | E57: 0 | F57: 0 | G57: 0 | H57: 0 | I57: 0 | J57: 0 | K57: 0 | L57: 0 | M57: =((M58*M59)/10^6)*(1+$Z$11) -> 0 | N57: 0 | O57: 0 | P57: 0 | Q57: 0 | R57: 0 | S57: 0 | T57: 0 | U57: 0 | V57: 0 | X57: =SUM(C57:V57) -> 2.33596
B58: Área edificável (M²) | C58: 880
B59: Custo de edificação (R$/M²) | C59: 2654.5
B61: Terminal Oficinas - Construção de Áreas Comerciais | C61: =((C62*C63)/10^6)*(1+$Z$11) -> 1.672335 | D61: =((D62*D63)/10^6)*(1+$Z$11) -> 0 | E61: 0 | F61: 0 | G61: 0 | H61: 0 | I61: 0 | J61: 0 | K61: 0 | L61: 0 | M61: =((M62*M63)/10^6)*(1+$Z$11) -> 0 | N61: 0 | O61: 0 | P61: 0 | Q61: 0 | R61: 0 | S61: 0 | T61: 0 | U61: 0 | V61: 0 | X61: =SUM(C61:V61) -> 1.672335
B62: Área edificável (M²) | C62: 630
B63: Custo de edificação (R$/M²) | C63: 2654.5
B65: Terminal Nova Rússia - Construção de Áreas Comerciais* | C65: =((C66*C67)/10^6)*(1+$Z$11) -> 0 | D65: =((D66*D67)/10^6)*(1+$Z$11) -> 0 | E65: 0 | F65: 0 | G65: 0 | H65: 0 | I65: 0 | J65: 0 | K65: 0 | L65: 0 | M65: =((M66*M67)/10^6)*(1+$Z$11) -> 0 | N65: 0 | O65: 0 | P65: 0 | Q65: 0 | R65: 0 | S65: 0 | T65: 0 | U65: 0 | V65: 0 | X65: =SUM(C65:V65) -> 0
B66: Área edificável (M²) | C66: 24
B67: Custo de edificação (R$/M²) | C67: 0
B69: Terminal Santa Paula - Construção de Áreas Comerciais | C69: =((C70*C71)/10^6)*(1+$Z$11) -> 2.6545 | D69: =((D70*D71)/10^6)*(1+$Z$11) -> 0 | E69: 0 | F69: 0 | G69: 0 | H69: 0 | I69: 0 | J69: 0 | K69: 0 | L69: 0 | M69: =((M70*M71)/10^6)*(1+$Z$11) -> 0 | N69: 0 | O69: 0 | P69: 0 | Q69: 0 | R69: 0 | S69: 0 | T69: 0 | U69: 0 | V69: 0 | X69: =SUM(C69:V69) -> 2.6545
B70: Área edificável (M²) | C70: 1000
B71: Custo de edificação (R$/M²) | C71: 2654.5
B73: *Terminais com áreas comerciais já disponíveis

Sheet 07. OPEX
B6: Opex (R$ Milhões)
B8: Ano | C8: 1 | D8: =C8+1 -> 2 | E8: 3 | F8: 4 | G8: 5 | H8: 6 | I8: 7 | J8: 8 | K8: 9 | L8: 10 | M8: =L8+1 -> 11 | N8: =M8+1 -> 12 | O8: =N8+1 -> 13 | P8: =O8+1 -> 14 | Q8: =P8+1 -> 15 | R8: =Q8+1 -> 16 | S8: =R8+1 -> 17 | T8: =S8+1 -> 18 | U8: =T8+1 -> 19 | V8: =U8+1 -> 20 | X8: TOTAL | Z8: RISCO
B10: Total Opex | C10: =(C12+C79+C146+C213+C280+C347) -> 7.37793099 | D10: =(D12+D79+D146+D213+D280+D347) -> 8.874412794 | E10: 8.874412794 | F10: 8.874412794 | G10: 8.874412794 | H10: 8.874412794 | I10: 8.874412794 | J10: 8.874412794 | K10: 8.874412794 | L10: 8.874412794 | M10: 8.874412794 | N10: 8.874412794 | O10: 8.874412794 | P10: 8.874412794 | Q10: 8.874412794 | R10: 8.874412794 | S10: 8.874412794 | T10: 8.874412794 | U10: 8.874412794 | V10: 8.874412794 | X10: =SUM(C10:V10) -> 175.9917741 | Z10: =SensibilidadeOpex -> 0
B12: Terminal Central | C12: =(C14+C70+C72+C77)*(1+$Z$10) -> 2.606752458 | D12: 2.606752458 | E12: 2.606752458 | F12: 2.606752458 | G12: 2.606752458 | H12: 2.606752458 | I12: 2.606752458 | J12: 2.606752458 | K12: 2.606752458 | L12: 2.606752458 | M12: =(M14+M70+M72+M77)*(1+$Z$10) -> 2.606752458 | N12: 2.606752458 | O12: 2.606752458 | P12: 2.606752458 | Q12: 2.606752458 | R12: 2.606752458 | S12: 2.606752458 | T12: 2.606752458 | U12: 2.606752458 | V12: 2.606752458 | X12: =SUM(C12:V12) -> 52.13504916
B14: Mão de Obra | C14: =12*(C15+C24+C33+C42+C51+C60)/10^6 -> 1.811801966 | D14: =12*(D15+D24+D33+D42+D51+D60)/10^6 -> 1.811801966 | E14: =12*(E15+E24+E33+E42+E51+E60)/10^6 -> 1.811801966 | F14: =12*(F15+F24+F33+F42+F51+F60)/10^6 -> 1.811801966 | G14: =12*(G15+G24+G33+G42+G51+G60)/10^6 -> 1.811801966 | H14: =12*(H15+H24+H33+H42+H51+H60)/10^6 -> 1.811801966 | I14: =12*(I15+I24+I33+I42+I51+I60)/10^6 -> 1.811801966 | J14: =12*(J15+J24+J33+J42+J51+J60)/10^6 -> 1.811801966 | K14: =12*(K15+K24+K33+K42+K51+K60)/10^6 -> 1.811801966 | L14: =12*(L15+L24+L33+L42+L51+L60)/10^6 -> 1.811801966 | M14: =12*(M15+M24+M33+M42+M51+M60)/10^6 -> 1.811801966 | N14: =12*(N15+N24+N33+N42+N51+N60)/10^6 -> 1.811801966 | O14: =12*(O15+O24+O33+O42+O51+O60)/10^6 -> 1.811801966 | P14: =12*(P15+P24+P33+P42+P51+P60)/10^6 -> 1.811801966 | Q14: =12*(Q15+Q24+Q33+Q42+Q51+Q60)/10^6 -> 1.811801966 | R14: =12*(R15+R24+R33+R42+R51+R60)/10^6 -> 1.811801966 | S14: =12*(S15+S24+S33+S42+S51+S60)/10^6 -> 1.811801966 | T14: =12*(T15+T24+T33+T42+T51+T60)/10^6 -> 1.811801966 | U14: =12*(U15+U24+U33+U42+U51+U60)/10^6 -> 1.811801966 | V14: =12*(V15+V24+V33+V42+V51+V60)/10^6 -> 1.811801966 | X14: =SUM(C14:V14) -> 36.23603933
B15: Líder Limpeza | C15: =C16*C19 -> 21926.6992 | D15: 21926.6992 | E15: 21926.6992 | F15: 21926.6992 | G15: 21926.6992 | H15: 21926.6992 | I15: 21926.6992 | J15: 21926.6992 | K15: 21926.6992 | L15: 21926.6992 | M15: =M16*M19 -> 21926.6992 | N15: =N16*N19 -> 21926.6992 | O15: =O16*O19 -> 21926.6992 | P15: =P16*P19 -> 21926.6992 | Q15: =Q16*Q19 -> 21926.6992 | R15: =R16*R19 -> 21926.6992 | S15: =S16*S19 -> 21926.6992 | T15: =T16*T19 -> 21926.6992 | U15: =U16*U19 -> 21926.6992 | V15: =V16*V19 -> 21926.6992
B16: Funcionários Equivalentes | C16: =C17*C18 -> 4.936 | D16: =D17*D18 -> 4.936 | E16: 4.936 | F16: 4.936 | G16: 4.936 | H16: 4.936 | I16: 4.936 | J16: 4.936 | K16: 4.936 | L16: 4.936 | M16: =M17*M18 -> 4.936 | N16: 4.936 | O16: 4.936 | P16: 4.936 | Q16: 4.936 | R16: 4.936 | S16: 4.936 | T16: 4.936 | U16: 4.936 | V16: 4.936
B17: Quantidade de funcionários sem reposição | C17: 4 | D17: =C17 -> 4 | E17: =D17 -> 4 | F17: 4 | G17: 4 | H17: 4 | I17: 4 | J17: 4 | K17: 4 | L17: 4 | M17: =L17 -> 4 | N17: =M17 -> 4 | O17: =N17 -> 4 | P17: =O17 -> 4 | Q17: =P17 -> 4 | R17: =Q17 -> 4 | S17: =R17 -> 4 | T17: =S17 -> 4 | U17: =T17 -> 4 | V17: =U17 -> 4
B18: Índice de Reposição para folgas e férias | C18: 1.234 | D18: =C18 -> 1.234 | E18: 1.234 | F18: 1.234 | G18: 1.234 | H18: 1.234 | I18: 1.234 | J18: 1.234 | K18: 1.234 | L18: 1.234 | M18: 1.234 | N18: 1.234 | O18: 1.234 | P18: 1.234 | Q18: 1.234 | R18: 1.234 | S18: 1.234 | T18: 1.234 | U18: 1.234 | V18: 1.234
B19: Salários Com Encargos e Benefícios | C19: =(C20*C21*C22)+C23 -> 4442.2 | D19: =(D20*D21*D22)+D23 -> 4442.2 | E19: 4442.2 | F19: 4442.2 | G19: 4442.2 | H19: 4442.2 | I19: 4442.2 | J19: 4442.2 | K19: 4442.2 | L19: 4442.2 | M19: =(M20*M21*M22)+M23 -> 4442.2 | N19: 4442.2 | O19: 4442.2 | P19: 4442.2 | Q19: 4442.2 | R19: 4442.2 | S19: 4442.2 | T19: 4442.2 | U19: 4442.2 | V19: 4442.2
B20: Salário Base | C20: 1620 | D20: =C20 -> 1620 | E20: 1620 | F20: 1620 | G20: 1620 | H20: 1620 | I20: 1620 | J20: 1620 | K20: 1620 | L20: 1620 | M20: =L20 -> 1620 | N20: =M20 -> 1620 | O20: =N20 -> 1620 | P20: =O20 -> 1620 | Q20: =P20 -> 1620 | R20: =Q20 -> 1620 | S20: =R20 -> 1620 | T20: =S20 -> 1620 | U20: =T20 -> 1620 | V20: =U20 -> 1620
B21: Adicional Insalubridade | C21: 1.4 | D21: =C21 -> 1.4 | E21: 1.4 | F21: 1.4 | G21: 1.4 | H21: 1.4 | I21: 1.4 | J21: 1.4 | K21: 1.4 | L21: 1.4 | M21: 1.4 | N21: 1.4 | O21: 1.4 | P21: 1.4 | Q21: 1.4 | R21: 1.4 | S21: 1.4 | T21: 1.4 | U21: 1.4 | V21: 1.4
B22: Encargos Sociais | C22: 1.65 | D22: =C22 -> 1.65 | E22: 1.65 | F22: 1.65 | G22: 1.65 | H22: 1.65 | I22: 1.65 | J22: 1.65 | K22: 1.65 | L22: 1.65 | M22: 1.65 | N22: 1.65 | O22: 1.65 | P22: 1.65 | Q22: 1.65 | R22: 1.65 | S22: 1.65 | T22: 1.65 | U22: 1.65 | V22: 1.65
B23: Benefícios | C23: 700 | D23: =C23 -> 700 | E23: 700 | F23: 700 | G23: 700 | H23: 700 | I23: 700 | J23: 700 | K23: 700 | L23: 700 | M23: 700 | N23: 700 | O23: 700 | P23: 700 | Q23: 700 | R23: 700 | S23: 700 | T23: 700 | U23: 700 | V23: 700
B24: Auxiliar Limpeza | C24: =C25*C28 -> 56544.348 | D24: 56544.348 | E24: 56544.348 | F24: 56544.348 | G24: 56544.348 | H24: 56544.348 | I24: 56544.348 | J24: 56544.348 | K24: 56544.348 | L24: 56544.348 | M24: =M25*M28 -> 56544.348 | N24: =N25*N28 -> 56544.348 | O24: =O25*O28 -> 56544.348 | P24: =P25*P28 -> 56544.348 | Q24: =Q25*Q28 -> 56544.348 | R24: =R25*R28 -> 56544.348 | S24: =S25*S28 -> 56544.348 | T24: =T25*T28 -> 56544.348 | U24: =U25*U28 -> 56544.348 | V24: =V25*V28 -> 56544.348
B25: Funcionários Equivalentes | C25: =C26*C27 -> 14.808 | D25: =D26*D27 -> 14.808 | E25: 14.808 | F25: 14.808 | G25: 14.808 | H25: 14.808 | I25: 14.808 | J25: 14.808 | K25: 14.808 | L25: 14.808 | M25: =M26*M27 -> 14.808 | N25: 14.808 | O25: 14.808 | P25: 14.808 | Q25: 14.808 | R25: 14.808 | S25: 14.808 | T25: 14.808 | U25: 14.808 | V25: 14.808
B26: Quantidade de funcionários sem reposição | C26: 12 | D26: =C26 -> 12 | E26: =D26 -> 12 | F26: 12 | G26: 12 | H26: 12 | I26: 12 | J26: 12 | K26: 12 | L26: 12 | M26: =L26 -> 12 | N26: =M26 -> 12 | O26: =N26 -> 12 | P26: =O26 -> 12 | Q26: =P26 -> 12 | R26: =Q26 -> 12 | S26: =R26 -> 12 | T26: =S26 -> 12 | U26: =T26 -> 12 | V26: =U26 -> 12
B27: Índice de Reposição para folgas e férias | C27: 1.234 | D27: =C27 -> 1.234 | E27: 1.234 | F27: 1.234 | G27: 1.234 | H27: 1.234 | I27: 1.234 | J27: 1.234 | K27: 1.234 | L27: 1.234 | M27: 1.234 | N27: 1.234 | O27: 1.234 | P27: 1.234 | Q27: 1.234 | R27: 1.234 | S27: 1.234 | T27: 1.234 | U27: 1.234 | V27: 1.234
B28: Salários Com Encargos e Benefícios | C28: =(C29*C30*C31)+C32 -> 3818.5 | D28: =(D29*D30*D31)+D32 -> 3818.5 | E28: 3818.5 | F28: 3818.5 | G28: 3818.5 | H28: 3818.5 | I28: 3818.5 | J28: 3818.5 | K28: 3818.5 | L28: 3818.5 | M28: =(M29*M30*M31)+M32 -> 3818.5 | N28: 3818.5 | O28: 3818.5 | P28: 3818.5 | Q28: 3818.5 | R28: 3818.5 | S28: 3818.5 | T28: 3818.5 | U28: 3818.5 | V28: 3818.5
B29: Salário Base | C29: 1350 | D29: =C29 -> 1350 | E29: =D29 -> 1350 | F29: 1350 | G29: 1350 | H29: 1350 | I29: 1350 | J29: 1350 | K29: 1350 | L29: 1350 | M29: =L29 -> 1350 | N29: =M29 -> 1350 | O29: =N29 -> 1350 | P29: =O29 -> 1350 | Q29: =P29 -> 1350 | R29: =Q29 -> 1350 | S29: =R29 -> 1350 | T29: =S29 -> 1350 | U29: =T29 -> 1350 | V29: =U29 -> 1350
B30: Adicional Insalubridade | C30: 1.4 | D30: =C30 -> 1.4 | E30: 1.4 | F30: 1.4 | G30: 1.4 | H30: 1.4 | I30: 1.4 | J30: 1.4 | K30: 1.4 | L30: 1.4 | M30: 1.4 | N30: 1.4 | O30: 1.4 | P30: 1.4 | Q30: 1.4 | R30: 1.4 | S30: 1.4 | T30: 1.4 | U30: 1.4 | V30: 1.4
B31: Encargos Sociais | C31: 1.65 | D31: =C31 -> 1.65 | E31: 1.65 | F31: 1.65 | G31: 1.65 | H31: 1.65 | I31: 1.65 | J31: 1.65 | K31: 1.65 | L31: 1.65 | M31: 1.65 | N31: 1.65 | O31: 1.65 | P31: 1.65 | Q31: 1.65 | R31: 1.65 | S31: 1.65 | T31: 1.65 | U31: 1.65 | V31: 1.65
B32: Benefícios | C32: 700 | D32: =C32 -> 700 | E32: 700 | F32: 700 | G32: 700 | H32: 700 | I32: 700 | J32: 700 | K32: 700 | L32: 700 | M32: 700 | N32: 700 | O32: 700 | P32: 700 | Q32: 700 | R32: 700 | S32: 700 | T32: 700 | U32: 700 | V32: 700
B33: Porteiro e Vigia | C33: =C34*C37 -> 29871.58 | D33: 29871.58 | E33: 29871.58 | F33: 29871.58 | G33: 29871.58 | H33: 29871.58 | I33: 29871.58 | J33: 29871.58 | K33: 29871.58 | L33: 29871.58 | M33: =M34*M37 -> 29871.58 | N33: =N34*N37 -> 29871.58 | O33: =O34*O37 -> 29871.58 | P33: =P34*P37 -> 29871.58 | Q33: =Q34*Q37 -> 29871.58 | R33: =R34*R37 -> 29871.58 | S33: =S34*S37 -> 29871.58 | T33: =T34*T37 -> 29871.58 | U33: =U34*U37 -> 29871.58 | V33: =V34*V37 -> 29871.58
B34: Funcionários Equivalentes | C34: =C35*C36 -> 8.728 | D34: =D35*D36 -> 8.728 | E34: 8.728 | F34: 8.728 | G34: 8.728 | H34: 8.728 | I34: 8.728 | J34: 8.728 | K34: 8.728 | L34: 8.728 | M34: =M35*M36 -> 8.728 | N34: 8.728 | O34: 8.728 | P34: 8.728 | Q34: 8.728 | R34: 8.728 | S34: 8.728 | T34: 8.728 | U34: 8.728 | V34: 8.728
B35: Quantidade de funcionários sem reposição | C35: 8 | D35: =C35 -> 8 | E35: =D35 -> 8 | F35: 8 | G35: 8 | H35: 8 | I35: 8 | J35: 8 | K35: 8 | L35: 8 | M35: =L35 -> 8 | N35: =M35 -> 8 | O35: =N35 -> 8 | P35: =O35 -> 8 | Q35: =P35 -> 8 | R35: =Q35 -> 8 | S35: =R35 -> 8 | T35: =S35 -> 8 | U35: =T35 -> 8 | V35: =U35 -> 8
B36: Índice de Reposição para folgas e férias | C36: 1.091 | D36: =C36 -> 1.091 | E36: 1.091 | F36: 1.091 | G36: 1.091 | H36: 1.091 | I36: 1.091 | J36: 1.091 | K36: 1.091 | L36: 1.091 | M36: 1.091 | N36: 1.091 | O36: 1.091 | P36: 1.091 | Q36: 1.091 | R36: 1.091 | S36: 1.091 | T36: 1.091 | U36: 1.091 | V36: 1.091
B37: Salários Com Encargos e Benefícios | C37: =(C38*C39*C40)+C41 -> 3422.5 | D37: =(D38*D39*D40)+D41 -> 3422.5 | E37: 3422.5 | F37: 3422.5 | G37: 3422.5 | H37: 3422.5 | I37: 3422.5 | J37: 3422.5 | K37: 3422.5 | L37: 3422.5 | M37: =(M38*M39*M40)+M41 -> 3422.5 | N37: 3422.5 | O37: 3422.5 | P37: 3422.5 | Q37: 3422.5 | R37: 3422.5 | S37: 3422.5 | T37: 3422.5 | U37: 3422.5 | V37: 3422.5
B38: Salário Base | C38: 1650 | D38: =C38 -> 1650 | E38: =D38 -> 1650 | F38: 1650 | G38: 1650 | H38: 1650 | I38: 1650 | J38: 1650 | K38: 1650 | L38: 1650 | M38: =L38 -> 1650 | N38: =M38 -> 1650 | O38: =N38 -> 1650 | P38: =O38 -> 1650 | Q38: =P38 -> 1650 | R38: =Q38 -> 1650 | S38: =R38 -> 1650 | T38: =S38 -> 1650 | U38: =T38 -> 1650 | V38: =U38 -> 1650
B39: Adicional Insalubridade | C39: 1 | D39: =C39 -> 1 | E39: 1 | F39: 1 | G39: 1 | H39: 1 | I39: 1 | J39: 1 | K39: 1 | L39: 1 | M39: 1 | N39: 1 | O39: 1 | P39: 1 | Q39: 1 | R39: 1 | S39: 1 | T39: 1 | U39: 1 | V39: 1
B40: Encargos Sociais | C40: 1.65 | D40: =C40 -> 1.65 | E40: 1.65 | F40: 1.65 | G40: 1.65 | H40: 1.65 | I40: 1.65 | J40: 1.65 | K40: 1.65 | L40: 1.65 | M40: 1.65 | N40: 1.65 | O40: 1.65 | P40: 1.65 | Q40: 1.65 | R40: 1.65 | S40: 1.65 | T40: 1.65 | U40: 1.65 | V40: 1.65
B41: Benefícios | C41: 700 | D41: =C41 -> 700 | E41: 700 | F41: 700 | G41: 700 | H41: 700 | I41: 700 | J41: 700 | K41: 700 | L41: 700 | M41: 700 | N41: 700 | O41: 700 | P41: 700 | Q41: 700 | R41: 700 | S41: 700 | T41: 700 | U41: 700 | V41: 700
B42: Atendente | C42: =C43*C46 -> 16893.46 | D42: 16893.46 | E42: 16893.46 | F42: 16893.46 | G42: 16893.46 | H42: 16893.46 | I42: 16893.46 | J42: 16893.46 | K42: 16893.46 | L42: 16893.46 | M42: =M43*M46 -> 16893.46 | N42: =N43*N46 -> 16893.46 | O42: =O43*O46 -> 16893.46 | P42: =P43*P46 -> 16893.46 | Q42: =Q43*Q46 -> 16893.46 | R42: =R43*R46 -> 16893.46 | S42: =S43*S46 -> 16893.46 | T42: =T43*T46 -> 16893.46 | U42: =U43*U46 -> 16893.46 | V42: =V43*V46 -> 16893.46
B43: Funcionários Equivalentes | C43: =C44*C45 -> 4.936 | D43: =D44*D45 -> 4.936 | E43: 4.936 | F43: 4.936 | G43: 4.936 | H43: 4.936 | I43: 4.936 | J43: 4.936 | K43: 4.936 | L43: 4.936 | M43: =M44*M45 -> 4.936 | N43: 4.936 | O43: 4.936 | P43: 4.936 | Q43: 4.936 | R43: 4.936 | S43: 4.936 | T43: 4.936 | U43: 4.936 | V43: 4.936
B44: Quantidade de funcionários sem reposição | C44: 4 | D44: =C44 -> 4 | E44: =D44 -> 4 | F44: 4 | G44: 4 | H44: 4 | I44: 4 | J44: 4 | K44: 4 | L44: 4 | M44: =L44 -> 4 | N44: =M44 -> 4 | O44: =N44 -> 4 | P44: =O44 -> 4 | Q44: =P44 -> 4 | R44: =Q44 -> 4 | S44: =R44 -> 4 | T44: =S44 -> 4 | U44: =T44 -> 4 | V44: =U44 -> 4
B45: Índice de Reposição para folgas e férias | C45: 1.234 | D45: =C45 -> 1.234 | E45: 1.234 | F45: 1.234 | G45: 1.234 | H45: 1.234 | I45: 1.234 | J45: 1.234 | K45: 1.234 | L45: 1.234 | M45: 1.234 | N45: 1.234 | O45: 1.234 | P45: 1.234 | Q45: 1.234 | R45: 1.234 | S45: 1.234 | T45: 1.234 | U45: 1.234 | V45: 1.234
B46: Salários Com Encargos e Benefícios | C46: =(C47*C48*C49)+C50 -> 3422.5 | D46: =(D47*D48*D49)+D50 -> 3422.5 | E46: 3422.5 | F46: 3422.5 | G46: 3422.5 | H46: 3422.5 | I46: 3422.5 | J46: 3422.5 | K46: 3422.5 | L46: 3422.5 | M46: =(M47*M48*M49)+M50 -> 3422.5 | N46: 3422.5 | O46: 3422.5 | P46: 3422.5 | Q46: 3422.5 | R46: 3422.5 | S46: 3422.5 | T46: 3422.5 | U46: 3422.5 | V46: 3422.5
B47: Salário Base | C47: 1650 | D47: =C47 -> 1650 | E47: =D47 -> 1650 | F47: 1650 | G47: 1650 | H47: 1650 | I47: 1650 | J47: 1650 | K47: 1650 | L47: 1650 | M47: =L47 -> 1650 | N47: =M47 -> 1650 | O47: =N47 -> 1650 | P47: =O47 -> 1650 | Q47: =P47 -> 1650 | R47: =Q47 -> 1650 | S47: =R47 -> 1650 | T47: =S47 -> 1650 | U47: =T47 -> 1650 | V47: =U47 -> 1650
B48: Adicional Insalubridade | C48: 1 | D48: =C48 -> 1 | E48: 1 | F48: 1 | G48: 1 | H48: 1 | I48: 1 | J48: 1 | K48: 1 | L48: 1 | M48: 1 | N48: 1 | O48: 1 | P48: 1 | Q48: 1 | R48: 1 | S48: 1 | T48: 1 | U48: 1 | V48: 1
B49: Encargos Sociais | C49: 1.65 | D49: =C49 -> 1.65 | E49: 1.65 | F49: 1.65 | G49: 1.65 | H49: 1.65 | I49: 1.65 | J49: 1.65 | K49: 1.65 | L49: 1.65 | M49: 1.65 | N49: 1.65 | O49: 1.65 | P49: 1.65 | Q49: 1.65 | R49: 1.65 | S49: 1.65 | T49: 1.65 | U49: 1.65 | V49: 1.65
B50: Benefícios | C50: 700 | D50: =C50 -> 700 | E50: 700 | F50: 700 | G50: 700 | H50: 700 | I50: 700 | J50: 700 | K50: 700 | L50: 700 | M50: 700 | N50: 700 | O50: 700 | P50: 700 | Q50: 700 | R50: 700 | S50: 700 | T50: 700 | U50: 700 | V50: 700
B51: Manutenção | C51: =C52*C55 -> 18522.34 | D51: 18522.34 | E51: 18522.34 | F51: 18522.34 | G51: 18522.34 | H51: 18522.34 | I51: 18522.34 | J51: 18522.34 | K51: 18522.34 | L51: 18522.34 | M51: =M52*M55 -> 18522.34 | N51: =N52*N55 -> 18522.34 | O51: =O52*O55 -> 18522.34 | P51: =P52*P55 -> 18522.34 | Q51: =Q52*Q55 -> 18522.34 | R51: =R52*R55 -> 18522.34 | S51: =S52*S55 -> 18522.34 | T51: =T52*T55 -> 18522.34 | U51: =U52*U55 -> 18522.34 | V51: =V52*V55 -> 18522.34
B52: Funcionários Equivalentes | C52: =C53*C54 -> 4.936 | D52: =D53*D54 -> 4.936 | E52: 4.936 | F52: 4.936 | G52: 4.936 | H52: 4.936 | I52: 4.936 | J52: 4.936 | K52: 4.936 | L52: 4.936 | M52: =M53*M54 -> 4.936 | N52: 4.936 | O52: 4.936 | P52: 4.936 | Q52: 4.936 | R52: 4.936 | S52: 4.936 | T52: 4.936 | U52: 4.936 | V52: 4.936
B53: Quantidade de funcionários sem reposição | C53: 4 | D53: =C53 -> 4 | E53: =D53 -> 4 | F53: 4 | G53: 4 | H53: 4 | I53: 4 | J53: 4 | K53: 4 | L53: 4 | M53: =L53 -> 4 | N53: =M53 -> 4 | O53: =N53 -> 4 | P53: =O53 -> 4 | Q53: =P53 -> 4 | R53: =Q53 -> 4 | S53: =R53 -> 4 | T53: =S53 -> 4 | U53: =T53 -> 4 | V53: =U53 -> 4
B54: Índice de Reposição para folgas e férias | C54: 1.234 | D54: =C54 -> 1.234 | E54: 1.234 | F54: 1.234 | G54: 1.234 | H54: 1.234 | I54: 1.234 | J54: 1.234 | K54: 1.234 | L54: 1.234 | M54: 1.234 | N54: 1.234 | O54: 1.234 | P54: 1.234 | Q54: 1.234 | R54: 1.234 | S54: 1.234 | T54: 1.234 | U54: 1.234 | V54: 1.234
B55: Salários Com Encargos e Benefícios | C55: =(C56*C57*C58)+C59 -> 3752.5 | D55: =(D56*D57*D58)+D59 -> 3752.5 | E55: 3752.5 | F55: 3752.5 | G55: 3752.5 | H55: 3752.5 | I55: 3752.5 | J55: 3752.5 | K55: 3752.5 | L55: 3752.5 | M55: =(M56*M57*M58)+M59 -> 3752.5 | N55: 3752.5 | O55: 3752.5 | P55: 3752.5 | Q55: 3752.5 | R55: 3752.5 | S55: 3752.5 | T55: 3752.5 | U55: 3752.5 | V55: 3752.5
B56: Salário Base | C56: 1850 | D56: =C56 -> 1850 | E56: =D56 -> 1850 | F56: 1850 | G56: 1850 | H56: 1850 | I56: 1850 | J56: 1850 | K56: 1850 | L56: 1850 | M56: =L56 -> 1850 | N56: =M56 -> 1850 | O56: =N56 -> 1850 | P56: =O56 -> 1850 | Q56: =P56 -> 1850 | R56: =Q56 -> 1850 | S56: =R56 -> 1850 | T56: =S56 -> 1850 | U56: =T56 -> 1850 | V56: =U56 -> 1850
B57: Adicional Insalubridade | C57: 1 | D57: =C57 -> 1 | E57: 1 | F57: 1 | G57: 1 | H57: 1 | I57: 1 | J57: 1 | K57: 1 | L57: 1 | M57: 1 | N57: 1 | O57: 1 | P57: 1 | Q57: 1 | R57: 1 | S57: 1 | T57: 1 | U57: 1 | V57: 1
B58: Encargos Sociais | C58: 1.65 | D58: =C58 -> 1.65 | E58: 1.65 | F58: 1.65 | G58: 1.65 | H58: 1.65 | I58: 1.65 | J58: 1.65 | K58: 1.65 | L58: 1.65 | M58: 1.65 | N58: 1.65 | O58: 1.65 | P58: 1.65 | Q58: 1.65 | R58: 1.65 | S58: 1.65 | T58: 1.65 | U58: 1.65 | V58: 1.65
B59: Benefícios | C59: 700 | D59: =C59 -> 700 | E59: 700 | F59: 700 | G59: 700 | H59: 700 | I59: 700 | J59: 700 | K59: 700 | L59: 700 | M59: 700 | N59: 700 | O59: 700 | P59: 700 | Q59: 700 | R59: 700 | S59: 700 | T59: 700 | U59: 700 | V59: 700
B60: Jardineiro | C60: =C61*C64 -> 7225.07 | D60: 7225.07 | E60: 7225.07 | F60: 7225.07 | G60: 7225.07 | H60: 7225.07 | I60: 7225.07 | J60: 7225.07 | K60: 7225.07 | L60: 7225.07 | M60: =M61*M64 -> 7225.07 | N60: =N61*N64 -> 7225.07 | O60: =O61*O64 -> 7225.07 | P60: =P61*P64 -> 7225.07 | Q60: =Q61*Q64 -> 7225.07 | R60: =R61*R64 -> 7225.07 | S60: =S61*S64 -> 7225.07 | T60: =T61*T64 -> 7225.07 | U60: =U61*U64 -> 7225.07 | V60: =V61*V64 -> 7225.07
B61: Funcionários Equivalentes | C61: =C62*C63 -> 2.468 | D61: =D62*D63 -> 2.468 | E61: 2.468 | F61: 2.468 | G61: 2.468 | H61: 2.468 | I61: 2.468 | J61: 2.468 | K61: 2.468 | L61: 2.468 | M61: =M62*M63 -> 2.468 | N61: 2.468 | O61: 2.468 | P61: 2.468 | Q61: 2.468 | R61: 2.468 | S61: 2.468 | T61: 2.468 | U61: 2.468 | V61: 2.468
B62: Quantidade de funcionários sem reposição | C62: 2 | D62: =C62 -> 2 | E62: =D62 -> 2 | F62: 2 | G62: 2 | H62: 2 | I62: 2 | J62: 2 | K62: 2 | L62: 2 | M62: =L62 -> 2 | N62: =M62 -> 2 | O62: =N62 -> 2 | P62: =O62 -> 2 | Q62: =P62 -> 2 | R62: =Q62 -> 2 | S62: =R62 -> 2 | T62: =S62 -> 2 | U62: =T62 -> 2 | V62: =U62 -> 2
B63: Índice de Reposição para folgas e férias | C63: 1.234 | D63: =C63 -> 1.234 | E63: 1.234 | F63: 1.234 | G63: 1.234 | H63: 1.234 | I63: 1.234 | J63: 1.234 | K63: 1.234 | L63: 1.234 | M63: 1.234 | N63: 1.234 | O63: 1.234 | P63: 1.234 | Q63: 1.234 | R63: 1.234 | S63: 1.234 | T63: 1.234 | U63: 1.234 | V63: 1.234
B64: Salários Com Encargos e Benefícios | C64: =(C65*C66*C67)+C68 -> 2927.5 | D64: =(D65*D66*D67)+D68 -> 2927.5 | E64: 2927.5 | F64: 2927.5 | G64: 2927.5 | H64: 2927.5 | I64: 2927.5 | J64: 2927.5 | K64: 2927.5 | L64: 2927.5 | M64: =(M65*M66*M67)+M68 -> 2927.5 | N64: 2927.5 | O64: 2927.5 | P64: 2927.5 | Q64: 2927.5 | R64: 2927.5 | S64: 2927.5 | T64: 2927.5 | U64: 2927.5 | V64: 2927.5
B65: Salário Base | C65: 1350 | D65: =C65 -> 1350 | E65: =D65 -> 1350 | F65: 1350 | G65: 1350 | H65: 1350 | I65: 1350 | J65: 1350 | K65: 1350 | L65: 1350 | M65: =L65 -> 1350 | N65: =M65 -> 1350 | O65: =N65 -> 1350 | P65: =O65 -> 1350 | Q65: =P65 -> 1350 | R65: =Q65 -> 1350 | S65: =R65 -> 1350 | T65: =S65 -> 1350 | U65: =T65 -> 1350 | V65: =U65 -> 1350
B66: Adicional Insalubridade | C66: 1 | D66: =C66 -> 1 | E66: 1 | F66: 1 | G66: 1 | H66: 1 | I66: 1 | J66: 1 | K66: 1 | L66: 1 | M66: 1 | N66: 1 | O66: 1 | P66: 1 | Q66: 1 | R66: 1 | S66: 1 | T66: 1 | U66: 1 | V66: 1
B67: Encargos Sociais | C67: 1.65 | D67: =C67 -> 1.65 | E67: 1.65 | F67: 1.65 | G67: 1.65 | H67: 1.65 | I67: 1.65 | J67: 1.65 | K67: 1.65 | L67: 1.65 | M67: 1.65 | N67: 1.65 | O67: 1.65 | P67: 1.65 | Q67: 1.65 | R67: 1.65 | S67: 1.65 | T67: 1.65 | U67: 1.65 | V67: 1.65
B68: Benefícios | C68: 700 | D68: =C68 -> 700 | E68: 700 | F68: 700 | G68: 700 | H68: 700 | I68: 700 | J68: 700 | K68: 700 | L68: 700 | M68: 700 | N68: 700 | O68: 700 | P68: 700 | Q68: 700 | R68: 700 | S68: 700 | T68: 700 | U68: 700 | V68: 700
B70: Materiais | C70: =12*10000/10^6 -> 0.12 | D70: =C70 -> 0.12 | E70: =D70 -> 0.12 | F70: 0.12 | G70: 0.12 | H70: 0.12 | I70: 0.12 | J70: 0.12 | K70: 0.12 | L70: 0.12 | M70: =L70 -> 0.12 | N70: =M70 -> 0.12 | O70: =N70 -> 0.12 | P70: =O70 -> 0.12 | Q70: =P70 -> 0.12 | R70: =Q70 -> 0.12 | S70: =R70 -> 0.12 | T70: =S70 -> 0.12 | U70: =T70 -> 0.12 | V70: =U70 -> 0.12 | X70: =SUM(C70:V70) -> 2.4
B72: Custos Indiretos | C72: =(C73+C74)*C75 -> 0.4829504916 | D72: =(D73+D74)*D75 -> 0.4829504916 | E72: 0.4829504916 | F72: 0.4829504916 | G72: 0.4829504916 | H72: 0.4829504916 | I72: 0.4829504916 | J72: 0.4829504916 | K72: 0.4829504916 | L72: 0.4829504916 | M72: =(M73+M74)*M75 -> 0.4829504916 | N72: 0.4829504916 | O72: 0.4829504916 | P72: 0.4829504916 | Q72: 0.4829504916 | R72: 0.4829504916 | S72: 0.4829504916 | T72: 0.4829504916 | U72: 0.4829504916 | V72: 0.4829504916 | W72: 0.1 | X72: =SUM(C72:V72) -> 9.659009832
B73: Custos com Pessoal (R$) | C73: =C14 -> 1.811801966 | D73: 1.811801966 | E73: 1.811801966 | F73: 1.811801966 | G73: 1.811801966 | H73: 1.811801966 | I73: 1.811801966 | J73: 1.811801966 | K73: 1.811801966 | L73: 1.811801966 | M73: =M14 -> 1.811801966 | N73: 1.811801966 | O73: 1.811801966 | P73: 1.811801966 | Q73: 1.811801966 | R73: 1.811801966 | S73: 1.811801966 | T73: 1.811801966 | U73: 1.811801966 | V73: 1.811801966
B74: Custos com Materiais (R$) | C74: =C70 -> 0.12 | D74: =D70 -> 0.12 | E74: 0.12 | F74: 0.12 | G74: 0.12 | H74: 0.12 | I74: 0.12 | J74: 0.12 | K74: 0.12 | L74: 0.12 | M74: =M70 -> 0.12 | N74: 0.12 | O74: 0.12 | P74: 0.12 | Q74: 0.12 | R74: 0.12 | S74: 0.12 | T74: 0.12 | U74: 0.12 | V74: 0.12
B75: Incidência (%) | C75: 0.25 | D75: =C75 -> 0.25 | E75: =D75 -> 0.25 | F75: 0.25 | G75: 0.25 | H75: 0.25 | I75: 0.25 | J75: 0.25 | K75: 0.25 | L75: 0.25 | M75: 0.25 | N75: 0.25 | O75: 0.25 | P75: 0.25 | Q75: 0.25 | R75: 0.25 | S75: 0.25 | T75: 0.25 | U75: 0.25 | V75: 0.25
B77: Eletricidade, Água e Esgoto | C77: =12*16000/10^6 -> 0.192 | D77: =C77 -> 0.192 | E77: =D77 -> 0.192 | F77: 0.192 | G77: 0.192 | H77: 0.192 | I77: 0.192 | J77: 0.192 | K77: 0.192 | L77: 0.192 | M77: =L77 -> 0.192 | N77: =M77 -> 0.192 | O77: =N77 -> 0.192 | P77: =O77 -> 0.192 | Q77: =P77 -> 0.192 | R77: =Q77 -> 0.192 | S77: =R77 -> 0.192 | T77: =S77 -> 0.192 | U77: =T77 -> 0.192 | V77: =U77 -> 0.192 | W77: 0.1 | X77: =SUM(C77:V77) -> 3.84
B79: Terminal Uvaranas | C79: =(C81+C137+C139+C144)*(1+$Z$10) -> 1.496481804 | D79: 1.496481804 | E79: 1.496481804 | F79: 1.496481804 | G79: 1.496481804 | H79: 1.496481804 | I79: 1.496481804 | J79: 1.496481804 | K79: 1.496481804 | L79: 1.496481804 | M79: =(M81+M137+M139+M144)*(1+$Z$10) -> 1.496481804 | N79: 1.496481804 | O79: 1.496481804 | P79: 1.496481804 | Q79: 1.496481804 | R79: 1.496481804 | S79: 1.496481804 | T79: 1.496481804 | U79: 1.496481804 | V79: 1.496481804 | X79: =SUM(C79:V79) -> 29.92963608
B81: Mão de Obra | C81: =12*(C82+C91+C100+C109+C118+C127)/10^6 -> 1.060385443 | D81: =12*(D82+D91+D100+D109+D118+D127)/10^6 -> 1.060385443 | E81: =12*(E82+E91+E100+E109+E118+E127)/10^6 -> 1.060385443 | F81: =12*(F82+F91+F100+F109+F118+F127)/10^6 -> 1.060385443 | G81: =12*(G82+G91+G100+G109+G118+G127)/10^6 -> 1.060385443 | H81: =12*(H82+H91+H100+H109+H118+H127)/10^6 -> 1.060385443 | I81: =12*(I82+I91+I100+I109+I118+I127)/10^6 -> 1.060385443 | J81: =12*(J82+J91+J100+J109+J118+J127)/10^6 -> 1.060385443 | K81: =12*(K82+K91+K100+K109+K118+K127)/10^6 -> 1.060385443 | L81: =12*(L82+L91+L100+L109+L118+L127)/10^6 -> 1.060385443 | M81: =12*(M82+M91+M100+M109+M118+M127)/10^6 -> 1.060385443 | N81: =12*(N82+N91+N100+N109+N118+N127)/10^6 -> 1.060385443 | O81: =12*(O82+O91+O100+O109+O118+O127)/10^6 -> 1.060385443 | P81: =12*(P82+P91+P100+P109+P118+P127)/10^6 -> 1.060385443 | Q81: =12*(Q82+Q91+Q100+Q109+Q118+Q127)/10^6 -> 1.060385443 | R81: =12*(R82+R91+R100+R109+R118+R127)/10^6 -> 1.060385443 | S81: =12*(S82+S91+S100+S109+S118+S127)/10^6 -> 1.060385443 | T81: =12*(T82+T91+T100+T109+T118+T127)/10^6 -> 1.060385443 | U81: =12*(U82+U91+U100+U109+U118+U127)/10^6 -> 1.060385443 | V81: =12*(V82+V91+V100+V109+V118+V127)/10^6 -> 1.060385443 | X81: =SUM(C81:V81) -> 21.20770886
B82: Líder Limpeza | C82: =C83*C86 -> 10963.3496 | D82: 10963.3496 | E82: 10963.3496 | F82: 10963.3496 | G82: 10963.3496 | H82: 10963.3496 | I82: 10963.3496 | J82: 10963.3496 | K82: 10963.3496 | L82: 10963.3496 | M82: =M83*M86 -> 10963.3496 | N82: =N83*N86 -> 10963.3496 | O82: =O83*O86 -> 10963.3496 | P82: =P83*P86 -> 10963.3496 | Q82: =Q83*Q86 -> 10963.3496 | R82: =R83*R86 -> 10963.3496 | S82: =S83*S86 -> 10963.3496 | T82: =T83*T86 -> 10963.3496 | U82: =U83*U86 -> 10963.3496 | V82: =V83*V86 -> 10963.3496
B83: Funcionários Equivalentes | C83: =C84*C85 -> 2.468 | D83: =D84*D85 -> 2.468 | E83: 2.468 | F83: 2.468 | G83: 2.468 | H83: 2.468 | I83: 2.468 | J83: 2.468 | K83: 2.468 | L83: 2.468 | M83: =M84*M85 -> 2.468 | N83: 2.468 | O83: 2.468 | P83: 2.468 | Q83: 2.468 | R83: 2.468 | S83: 2.468 | T83: 2.468 | U83: 2.468 | V83: 2.468
B84: Quantidade de funcionários sem reposição | C84: 2 | D84: =C84 -> 2 | E84: =D84 -> 2 | F84: =E84 -> 2 | G84: =F84 -> 2 | H84: =G84 -> 2 | I84: =H84 -> 2 | J84: =I84 -> 2 | K84: =J84 -> 2 | L84: =K84 -> 2 | M84: =L84 -> 2 | N84: =M84 -> 2 | O84: =N84 -> 2 | P84: =O84 -> 2 | Q84: =P84 -> 2 | R84: =Q84 -> 2 | S84: =R84 -> 2 | T84: =S84 -> 2 | U84: =T84 -> 2 | V84: =U84 -> 2
B85: Índice de Reposição para folgas e férias | C85: 1.234 | D85: =C85 -> 1.234 | E85: 1.234 | F85: 1.234 | G85: 1.234 | H85: 1.234 | I85: 1.234 | J85: 1.234 | K85: 1.234 | L85: 1.234 | M85: 1.234 | N85: 1.234 | O85: 1.234 | P85: 1.234 | Q85: 1.234 | R85: 1.234 | S85: 1.234 | T85: 1.234 | U85: 1.234 | V85: 1.234
B86: Salários Com Encargos e Benefícios | C86: =(C87*C88*C89)+C90 -> 4442.2 | D86: =(D87*D88*D89)+D90 -> 4442.2 | E86: 4442.2 | F86: 4442.2 | G86: 4442.2 | H86: 4442.2 | I86: 4442.2 | J86: 4442.2 | K86: 4442.2 | L86: 4442.2 | M86: =(M87*M88*M89)+M90 -> 4442.2 | N86: 4442.2 | O86: 4442.2 | P86: 4442.2 | Q86: 4442.2 | R86: 4442.2 | S86: 4442.2 | T86: 4442.2 | U86: 4442.2 | V86: 4442.2
B87: Salário Base | C87: 1620 | D87: =C87 -> 1620 | E87: =D87 -> 1620 | F87: =E87 -> 1620 | G87: =F87 -> 1620 | H87: =G87 -> 1620 | I87: =H87 -> 1620 | J87: =I87 -> 1620 | K87: =J87 -> 1620 | L87: =K87 -> 1620 | M87: =L87 -> 1620 | N87: =M87 -> 1620 | O87: =N87 -> 1620 | P87: =O87 -> 1620 | Q87: =P87 -> 1620 | R87: =Q87 -> 1620 | S87: =R87 -> 1620 | T87: =S87 -> 1620 | U87: =T87 -> 1620 | V87: =U87 -> 1620
B88: Adicional Insalubridade | C88: 1.4 | D88: =C88 -> 1.4 | E88: 1.4 | F88: 1.4 | G88: 1.4 | H88: 1.4 | I88: 1.4 | J88: 1.4 | K88: 1.4 | L88: 1.4 | M88: 1.4 | N88: 1.4 | O88: 1.4 | P88: 1.4 | Q88: 1.4 | R88: 1.4 | S88: 1.4 | T88: 1.4 | U88: 1.4 | V88: 1.4
B89: Encargos Sociais | C89: 1.65 | D89: =C89 -> 1.65 | E89: 1.65 | F89: 1.65 | G89: 1.65 | H89: 1.65 | I89: 1.65 | J89: 1.65 | K89: 1.65 | L89: 1.65 | M89: 1.65 | N89: 1.65 | O89: 1.65 | P89: 1.65 | Q89: 1.65 | R89: 1.65 | S89: 1.65 | T89: 1.65 | U89: 1.65 | V89: 1.65
B90: Benefícios | C90: 700 | D90: =C90 -> 700 | E90: 700 | F90: 700 | G90: 700 | H90: 700 | I90: 700 | J90: 700 | K90: 700 | L90: 700 | M90: 700 | N90: 700 | O90: 700 | P90: 700 | Q90: 700 | R90: 700 | S90: 700 | T90: 700 | U90: 700 | V90: 700
B91: Auxiliar Limpeza | C91: =C92*C95 -> 28272.174 | D91: 28272.174 | E91: 28272.174 | F91: 28272.174 | G91: 28272.174 | H91: 28272.174 | I91: 28272.174 | J91: 28272.174 | K91: 28272.174 | L91: 28272.174 | M91: =M92*M95 -> 28272.174 | N91: =N92*N95 -> 28272.174 | O91: =O92*O95 -> 28272.174 | P91: =P92*P95 -> 28272.174 | Q91: =Q92*Q95 -> 28272.174 | R91: =R92*R95 -> 28272.174 | S91: =S92*S95 -> 28272.174 | T91: =T92*T95 -> 28272.174 | U91: =U92*U95 -> 28272.174 | V91: =V92*V95 -> 28272.174
B92: Funcionários Equivalentes | C92: =C93*C94 -> 7.404 | D92: =D93*D94 -> 7.404 | E92: 7.404 | F92: 7.404 | G92: 7.404 | H92: 7.404 | I92: 7.404 | J92: 7.404 | K92: 7.404 | L92: 7.404 | M92: =M93*M94 -> 7.404 | N92: 7.404 | O92: 7.404 | P92: 7.404 | Q92: 7.404 | R92: 7.404 | S92: 7.404 | T92: 7.404 | U92: 7.404 | V92: 7.404
B93: Quantidade de funcionários sem reposição | C93: 6 | D93: =C93 -> 6 | E93: =D93 -> 6 | F93: =E93 -> 6 | G93: =F93 -> 6 | H93: =G93 -> 6 | I93: =H93 -> 6 | J93: =I93 -> 6 | K93: =J93 -> 6 | L93: =K93 -> 6 | M93: =L93 -> 6 | N93: =M93 -> 6 | O93: =N93 -> 6 | P93: =O93 -> 6 | Q93: =P93 -> 6 | R93: =Q93 -> 6 | S93: =R93 -> 6 | T93: =S93 -> 6 | U93: =T93 -> 6 | V93: =U93 -> 6
B94: Índice de Reposição para folgas e férias | C94: 1.234 | D94: =C94 -> 1.234 | E94: 1.234 | F94: 1.234 | G94: 1.234 | H94: 1.234 | I94: 1.234 | J94: 1.234 | K94: 1.234 | L94: 1.234 | M94: 1.234 | N94: 1.234 | O94: 1.234 | P94: 1.234 | Q94: 1.234 | R94: 1.234 | S94: 1.234 | T94: 1.234 | U94: 1.234 | V94: 1.234
B95: Salários Com Encargos e Benefícios | C95: =(C96*C97*C98)+C99 -> 3818.5 | D95: =(D96*D97*D98)+D99 -> 3818.5 | E95: 3818.5 | F95: 3818.5 | G95: 3818.5 | H95: 3818.5 | I95: 3818.5 | J95: 3818.5 | K95: 3818.5 | L95: 3818.5 | M95: =(M96*M97*M98)+M99 -> 3818.5 | N95: 3818.5 | O95: 3818.5 | P95: 3818.5 | Q95: 3818.5 | R95: 3818.5 | S95: 3818.5 | T95: 3818.5 | U95: 3818.5 | V95: 3818.5
B96: Salário Base | C96: 1350 | D96: =C96 -> 1350 | E96: =D96 -> 1350 | F96: =E96 -> 1350 | G96: =F96 -> 1350 | H96: =G96 -> 1350 | I96: =H96 -> 1350 | J96: =I96 -> 1350 | K96: =J96 -> 1350 | L96: =K96 -> 1350 | M96: =L96 -> 1350 | N96: =M96 -> 1350 | O96: =N96 -> 1350 | P96: =O96 -> 1350 | Q96: =P96 -> 1350 | R96: =Q96 -> 1350 | S96: =R96 -> 1350 | T96: =S96 -> 1350 | U96: =T96 -> 1350 | V96: =U96 -> 1350
B97: Adicional Insalubridade | C97: 1.4 | D97: =C97 -> 1.4 | E97: 1.4 | F97: 1.4 | G97: 1.4 | H97: 1.4 | I97: 1.4 | J97: 1.4 | K97: 1.4 | L97: 1.4 | M97: 1.4 | N97: 1.4 | O97: 1.4 | P97: 1.4 | Q97: 1.4 | R97: 1.4 | S97: 1.4 | T97: 1.4 | U97: 1.4 | V97: 1.4
B98: Encargos Sociais | C98: 1.65 | D98: =C98 -> 1.65 | E98: 1.65 | F98: 1.65 | G98: 1.65 | H98: 1.65 | I98: 1.65 | J98: 1.65 | K98: 1.65 | L98: 1.65 | M98: 1.65 | N98: 1.65 | O98: 1.65 | P98: 1.65 | Q98: 1.65 | R98: 1.65 | S98: 1.65 | T98: 1.65 | U98: 1.65 | V98: 1.65
B99: Benefícios | C99: 700 | D99: =C99 -> 700 | E99: 700 | F99: 700 | G99: 700 | H99: 700 | I99: 700 | J99: 700 | K99: 700 | L99: 700 | M99: 700 | N99: 700 | O99: 700 | P99: 700 | Q99: 700 | R99: 700 | S99: 700 | T99: 700 | U99: 700 | V99: 700
B100: Porteiro e Vigia | C100: =C101*C104 -> 14935.79 | D100: 14935.79 | E100: 14935.79 | F100: 14935.79 | G100: 14935.79 | H100: 14935.79 | I100: 14935.79 | J100: 14935.79 | K100: 14935.79 | L100: 14935.79 | M100: =M101*M104 -> 14935.79 | N100: =N101*N104 -> 14935.79 | O100: =O101*O104 -> 14935.79 | P100: =P101*P104 -> 14935.79 | Q100: =Q101*Q104 -> 14935.79 | R100: =R101*R104 -> 14935.79 | S100: =S101*S104 -> 14935.79 | T100: =T101*T104 -> 14935.79 | U100: =U101*U104 -> 14935.79 | V100: =V101*V104 -> 14935.79
B101: Funcionários Equivalentes | C101: =C102*C103 -> 4.364 | D101: =D102*D103 -> 4.364 | E101: 4.364 | F101: 4.364 | G101: 4.364 | H101: 4.364 | I101: 4.364 | J101: 4.364 | K101: 4.364 | L101: 4.364 | M101: =M102*M103 -> 4.364 | N101: 4.364 | O101: 4.364 | P101: 4.364 | Q101: 4.364 | R101: 4.364 | S101: 4.364 | T101: 4.364 | U101: 4.364 | V101: 4.364
B102: Quantidade de funcionários sem reposição | C102: 4 | D102: =C102 -> 4 | E102: =D102 -> 4 | F102: =E102 -> 4 | G102: =F102 -> 4 | H102: =G102 -> 4 | I102: =H102 -> 4 | J102: =I102 -> 4 | K102: =J102 -> 4 | L102: =K102 -> 4 | M102: =L102 -> 4 | N102: =M102 -> 4 | O102: =N102 -> 4 | P102: =O102 -> 4 | Q102: =P102 -> 4 | R102: =Q102 -> 4 | S102: =R102 -> 4 | T102: =S102 -> 4 | U102: =T102 -> 4 | V102: =U102 -> 4
B103: Índice de Reposição para folgas e férias | C103: 1.091 | D103: =C103 -> 1.091 | E103: 1.091 | F103: 1.091 | G103: 1.091 | H103: 1.091 | I103: 1.091 | J103: 1.091 | K103: 1.091 | L103: 1.091 | M103: 1.091 | N103: 1.091 | O103: 1.091 | P103: 1.091 | Q103: 1.091 | R103: 1.091 | S103: 1.091 | T103: 1.091 | U103: 1.091 | V103: 1.091
B104: Salários Com Encargos e Benefícios | C104: =(C105*C106*C107)+C108 -> 3422.5 | D104: =(D105*D106*D107)+D108 -> 3422.5 | E104: 3422.5 | F104: 3422.5 | G104: 3422.5 | H104: 3422.5 | I104: 3422.5 | J104: 3422.5 | K104: 3422.5 | L104: 3422.5 | M104: =(M105*M106*M107)+M108 -> 3422.5 | N104: 3422.5 | O104: 3422.5 | P104: 3422.5 | Q104: 3422.5 | R104: 3422.5 | S104: 3422.5 | T104: 3422.5 | U104: 3422.5 | V104: 3422.5
B105: Salário Base | C105: 1650 | D105: =C105 -> 1650 | E105: =D105 -> 1650 | F105: =E105 -> 1650 | G105: =F105 -> 1650 | H105: =G105 -> 1650 | I105: =H105 -> 1650 | J105: =I105 -> 1650 | K105: =J105 -> 1650 | L105: =K105 -> 1650 | M105: =L105 -> 1650 | N105: =M105 -> 1650 | O105: =N105 -> 1650 | P105: =O105 -> 1650 | Q105: =P105 -> 1650 | R105: =Q105 -> 1650 | S105: =R105 -> 1650 | T105: =S105 -> 1650 | U105: =T105 -> 1650 | V105: =U105 -> 1650
B106: Adicional Insalubridade | C106: 1 | D106: =C106 -> 1 | E106: 1 | F106: 1 | G106: 1 | H106: 1 | I106: 1 | J106: 1 | K106: 1 | L106: 1 | M106: 1 | N106: 1 | O106: 1 | P106: 1 | Q106: 1 | R106: 1 | S106: 1 | T106: 1 | U106: 1 | V106: 1
B107: Encargos Sociais | C107: 1.65 | D107: =C107 -> 1.65 | E107: 1.65 | F107: 1.65 | G107: 1.65 | H107: 1.65 | I107: 1.65 | J107: 1.65 | K107: 1.65 | L107: 1.65 | M107: 1.65 | N107: 1.65 | O107: 1.65 | P107: 1.65 | Q107: 1.65 | R107: 1.65 | S107: 1.65 | T107: 1.65 | U107: 1.65 | V107: 1.65
B108: Benefícios | C108: 700 | D108: =C108 -> 700 | E108: 700 | F108: 700 | G108: 700 | H108: 700 | I108: 700 | J108: 700 | K108: 700 | L108: 700 | M108: 700 | N108: 700 | O108: 700 | P108: 700 | Q108: 700 | R108: 700 | S108: 700 | T108: 700 | U108: 700 | V108: 700
B109: Atendente | C109: =C110*C113 -> 8446.73 | D109: 8446.73 | E109: 8446.73 | F109: 8446.73 | G109: 8446.73 | H109: 8446.73 | I109: 8446.73 | J109: 8446.73 | K109: 8446.73 | L109: 8446.73 | M109: =M110*M113 -> 8446.73 | N109: =N110*N113 -> 8446.73 | O109: =O110*O113 -> 8446.73 | P109: =P110*P113 -> 8446.73 | Q109: =Q110*Q113 -> 8446.73 | R109: =R110*R113 -> 8446.73 | S109: =S110*S113 -> 8446.73 | T109: =T110*T113 -> 8446.73 | U109: =U110*U113 -> 8446.73 | V109: =V110*V113 -> 8446.73
B110: Funcionários Equivalentes | C110: =C111*C112 -> 2.468 | D110: =D111*D112 -> 2.468 | E110: 2.468 | F110: 2.468 | G110: 2.468 | H110: 2.468 | I110: 2.468 | J110: 2.468 | K110: 2.468 | L110: 2.468 | M110: =M111*M112 -> 2.468 | N110: 2.468 | O110: 2.468 | P110: 2.468 | Q110: 2.468 | R110: 2.468 | S110: 2.468 | T110: 2.468 | U110: 2.468 | V110: 2.468
B111: Quantidade de funcionários sem reposição | C111: 2 | D111: =C111 -> 2 | E111: =D111 -> 2 | F111: =E111 -> 2 | G111: =F111 -> 2 | H111: =G111 -> 2 | I111: =H111 -> 2 | J111: =I111 -> 2 | K111: =J111 -> 2 | L111: =K111 -> 2 | M111: =L111 -> 2 | N111: =M111 -> 2 | O111: =N111 -> 2 | P111: =O111 -> 2 | Q111: =P111 -> 2 | R111: =Q111 -> 2 | S111: =R111 -> 2 | T111: =S111 -> 2 | U111: =T111 -> 2 | V111: =U111 -> 2
B112: Índice de Reposição para folgas e férias | C112: 1.234 | D112: =C112 -> 1.234 | E112: 1.234 | F112: 1.234 | G112: 1.234 | H112: 1.234 | I112: 1.234 | J112: 1.234 | K112: 1.234 | L112: 1.234 | M112: 1.234 | N112: 1.234 | O112: 1.234 | P112: 1.234 | Q112: 1.234 | R112: 1.234 | S112: 1.234 | T112: 1.234 | U112: 1.234 | V112: 1.234
B113: Salários Com Encargos e Benefícios | C113: =(C114*C115*C116)+C117 -> 3422.5 | D113: =(D114*D115*D116)+D117 -> 3422.5 | E113: 3422.5 | F113: 3422.5 | G113: 3422.5 | H113: 3422.5 | I113: 3422.5 | J113: 3422.5 | K113: 3422.5 | L113: 3422.5 | M113: =(M114*M115*M116)+M117 -> 3422.5 | N113: 3422.5 | O113: 3422.5 | P113: 3422.5 | Q113: 3422.5 | R113: 3422.5 | S113: 3422.5 | T113: 3422.5 | U113: 3422.5 | V113: 3422.5
B114: Salário Base | C114: 1650 | D114: =C114 -> 1650 | E114: =D114 -> 1650 | F114: =E114 -> 1650 | G114: =F114 -> 1650 | H114: =G114 -> 1650 | I114: =H114 -> 1650 | J114: =I114 -> 1650 | K114: =J114 -> 1650 | L114: =K114 -> 1650 | M114: =L114 -> 1650 | N114: =M114 -> 1650 | O114: =N114 -> 1650 | P114: =O114 -> 1650 | Q114: =P114 -> 1650 | R114: =Q114 -> 1650 | S114: =R114 -> 1650 | T114: =S114 -> 1650 | U114: =T114 -> 1650 | V114: =U114 -> 1650
B115: Adicional Insalubridade | C115: 1 | D115: =C115 -> 1 | E115: 1 | F115: 1 | G115: 1 | H115: 1 | I115: 1 | J115: 1 | K115: 1 | L115: 1 | M115: 1 | N115: 1 | O115: 1 | P115: 1 | Q115: 1 | R115: 1 | S115: 1 | T115: 1 | U115: 1 | V115: 1
B116: Encargos Sociais | C116: 1.65 | D116: =C116 -> 1.65 | E116: 1.65 | F116: 1.65 | G116: 1.65 | H116: 1.65 | I116: 1.65 | J116: 1.65 | K116: 1.65 | L116: 1.65 | M116: 1.65 | N116: 1.65 | O116: 1.65 | P116: 1.65 | Q116: 1.65 | R116: 1.65 | S116: 1.65 | T116: 1.65 | U116: 1.65 | V116: 1.65
B117: Benefícios | C117: 700 | D117: =C117 -> 700 | E117: 700 | F117: 700 | G117: 700 | H117: 700 | I117: 700 | J117: 700 | K117: 700 | L117: 700 | M117: 700 | N117: 700 | O117: 700 | P117: 700 | Q117: 700 | R117: 700 | S117: 700 | T117: 700 | U117: 700 | V117: 700
B118: Manutenção | C118: =C119*C122 -> 18522.34 | D118: 18522.34 | E118: 18522.34 | F118: 18522.34 | G118: 18522.34 | H118: 18522.34 | I118: 18522.34 | J118: 18522.34 | K118: 18522.34 | L118: 18522.34 | M118: =M119*M122 -> 18522.34 | N118: =N119*N122 -> 18522.34 | O118: =O119*O122 -> 18522.34 | P118: =P119*P122 -> 18522.34 | Q118: =Q119*Q122 -> 18522.34 | R118: =R119*R122 -> 18522.34 | S118: =S119*S122 -> 18522.34 | T118: =T119*T122 -> 18522.34 | U118: =U119*U122 -> 18522.34 | V118: =V119*V122 -> 18522.34
B119: Funcionários Equivalentes | C119: =C120*C121 -> 4.936 | D119: =D120*D121 -> 4.936 | E119: 4.936 | F119: 4.936 | G119: 4.936 | H119: 4.936 | I119: 4.936 | J119: 4.936 | K119: 4.936 | L119: 4.936 | M119: =M120*M121 -> 4.936 | N119: 4.936 | O119: 4.936 | P119: 4.936 | Q119: 4.936 | R119: 4.936 | S119: 4.936 | T119: 4.936 | U119: 4.936 | V119: 4.936
B120: Quantidade de funcionários sem reposição | C120: 4 | D120: =C120 -> 4 | E120: =D120 -> 4 | F120: =E120 -> 4 | G120: =F120 -> 4 | H120: =G120 -> 4 | I120: =H120 -> 4 | J120: =I120 -> 4 | K120: =J120 -> 4 | L120: =K120 -> 4 | M120: =L120 -> 4 | N120: =M120 -> 4 | O120: =N120 -> 4 | P120: =O120 -> 4 | Q120: =P120 -> 4 | R120: =Q120 -> 4 | S120: =R120 -> 4 | T120: =S120 -> 4 | U120: =T120 -> 4 | V120: =U120 -> 4
B121: Índice de Reposição para folgas e férias | C121: 1.234 | D121: =C121 -> 1.234 | E121: 1.234 | F121: 1.234 | G121: 1.234 | H121: 1.234 | I121: 1.234 | J121: 1.234 | K121: 1.234 | L121: 1.234 | M121: 1.234 | N121: 1.234 | O121: 1.234 | P121: 1.234 | Q121: 1.234 | R121: 1.234 | S121: 1.234 | T121: 1.234 | U121: 1.234 | V121: 1.234
B122: Salários Com Encargos e Benefícios | C122: =(C123*C124*C125)+C126 -> 3752.5 | D122: =(D123*D124*D125)+D126 -> 3752.5 | E122: 3752.5 | F122: 3752.5 | G122: 3752.5 | H122: 3752.5 | I122: 3752.5 | J122: 3752.5 | K122: 3752.5 | L122: 3752.5 | M122: =(M123*M124*M125)+M126 -> 3752.5 | N122: 3752.5 | O122: 3752.5 | P122: 3752.5 | Q122: 3752.5 | R122: 3752.5 | S122: 3752.5 | T122: 3752.5 | U122: 3752.5 | V122: 3752.5
B123: Salário Base | C123: 1850 | D123: =C123 -> 1850 | E123: =D123 -> 1850 | F123: =E123 -> 1850 | G123: =F123 -> 1850 | H123: =G123 -> 1850 | I123: =H123 -> 1850 | J123: =I123 -> 1850 | K123: =J123 -> 1850 | L123: =K123 -> 1850 | M123: =L123 -> 1850 | N123: =M123 -> 1850 | O123: =N123 -> 1850 | P123: =O123 -> 1850 | Q123: =P123 -> 1850 | R123: =Q123 -> 1850 | S123: =R123 -> 1850 | T123: =S123 -> 1850 | U123: =T123 -> 1850 | V123: =U123 -> 1850
B124: Adicional Insalubridade | C124: 1 | D124: =C124 -> 1 | E124: 1 | F124: 1 | G124: 1 | H124: 1 | I124: 1 | J124: 1 | K124: 1 | L124: 1 | M124: 1 | N124: 1 | O124: 1 | P124: 1 | Q124: 1 | R124: 1 | S124: 1 | T124: 1 | U124: 1 | V124: 1
B125: Encargos Sociais | C125: 1.65 | D125: =C125 -> 1.65 | E125: 1.65 | F125: 1.65 | G125: 1.65 | H125: 1.65 | I125: 1.65 | J125: 1.65 | K125: 1.65 | L125: 1.65 | M125: 1.65 | N125: 1.65 | O125: 1.65 | P125: 1.65 | Q125: 1.65 | R125: 1.65 | S125: 1.65 | T125: 1.65 | U125: 1.65 | V125: 1.65
B126: Benefícios | C126: 700 | D126: =C126 -> 700 | E126: 700 | F126: 700 | G126: 700 | H126: 700 | I126: 700 | J126: 700 | K126: 700 | L126: 700 | M126: 700 | N126: 700 | O126: 700 | P126: 700 | Q126: 700 | R126: 700 | S126: 700 | T126: 700 | U126: 700 | V126: 700
B127: Jardineiro | C127: =C128*C131 -> 7225.07 | D127: 7225.07 | E127: 7225.07 | F127: 7225.07 | G127: 7225.07 | H127: 7225.07 | I127: 7225.07 | J127: 7225.07 | K127: 7225.07 | L127: 7225.07 | M127: =M128*M131 -> 7225.07 | N127: =N128*N131 -> 7225.07 | O127: =O128*O131 -> 7225.07 | P127: =P128*P131 -> 7225.07 | Q127: =Q128*Q131 -> 7225.07 | R127: =R128*R131 -> 7225.07 | S127: =S128*S131 -> 7225.07 | T127: =T128*T131 -> 7225.07 | U127: =U128*U131 -> 7225.07 | V127: =V128*V131 -> 7225.07
B128: Funcionários Equivalentes | C128: =C129*C130 -> 2.468 | D128: =D129*D130 -> 2.468 | E128: 2.468 | F128: 2.468 | G128: 2.468 | H128: 2.468 | I128: 2.468 | J128: 2.468 | K128: 2.468 | L128: 2.468 | M128: =M129*M130 -> 2.468 | N128: 2.468 | O128: 2.468 | P128: 2.468 | Q128: 2.468 | R128: 2.468 | S128: 2.468 | T128: 2.468 | U128: 2.468 | V128: 2.468
B129: Quantidade de funcionários sem reposição | C129: 2 | D129: =C129 -> 2 | E129: =D129 -> 2 | F129: =E129 -> 2 | G129: =F129 -> 2 | H129: =G129 -> 2 | I129: =H129 -> 2 | J129: =I129 -> 2 | K129: =J129 -> 2 | L129: =K129 -> 2 | M129: =L129 -> 2 | N129: =M129 -> 2 | O129: =N129 -> 2 | P129: =O129 -> 2 | Q129: =P129 -> 2 | R129: =Q129 -> 2 | S129: =R129 -> 2 | T129: =S129 -> 2 | U129: =T129 -> 2 | V129: =U129 -> 2
B130: Índice de Reposição para folgas e férias | C130: 1.234 | D130: =C130 -> 1.234 | E130: 1.234 | F130: 1.234 | G130: 1.234 | H130: 1.234 | I130: 1.234 | J130: 1.234 | K130: 1.234 | L130: 1.234 | M130: 1.234 | N130: 1.234 | O130: 1.234 | P130: 1.234 | Q130: 1.234 | R130: 1.234 | S130: 1.234 | T130: 1.234 | U130: 1.234 | V130: 1.234
B131: Salários Com Encargos e Benefícios | C131: =(C132*C133*C134)+C135 -> 2927.5 | D131: =(D132*D133*D134)+D135 -> 2927.5 | E131: 2927.5 | F131: 2927.5 | G131: 2927.5 | H131: 2927.5 | I131: 2927.5 | J131: 2927.5 | K131: 2927.5 | L131: 2927.5 | M131: =(M132*M133*M134)+M135 -> 2927.5 | N131: 2927.5 | O131: 2927.5 | P131: 2927.5 | Q131: 2927.5 | R131: 2927.5 | S131: 2927.5 | T131: 2927.5 | U131: 2927.5 | V131: 2927.5
B132: Salário Base | C132: 1350 | D132: =C132 -> 1350 | E132: =D132 -> 1350 | F132: =E132 -> 1350 | G132: =F132 -> 1350 | H132: =G132 -> 1350 | I132: =H132 -> 1350 | J132: =I132 -> 1350 | K132: =J132 -> 1350 | L132: =K132 -> 1350 | M132: =L132 -> 1350 | N132: =M132 -> 1350 | O132: =N132 -> 1350 | P132: =O132 -> 1350 | Q132: =P132 -> 1350 | R132: =Q132 -> 1350 | S132: =R132 -> 1350 | T132: =S132 -> 1350 | U132: =T132 -> 1350 | V132: =U132 -> 1350
B133: Adicional Insalubridade | C133: 1 | D133: =C133 -> 1 | E133: 1 | F133: 1 | G133: 1 | H133: 1 | I133: 1 | J133: 1 | K133: 1 | L133: 1 | M133: 1 | N133: 1 | O133: 1 | P133: 1 | Q133: 1 | R133: 1 | S133: 1 | T133: 1 | U133: 1 | V133: 1
B134: Encargos Sociais | C134: 1.65 | D134: =C134 -> 1.65 | E134: 1.65 | F134: 1.65 | G134: 1.65 | H134: 1.65 | I134: 1.65 | J134: 1.65 | K134: 1.65 | L134: 1.65 | M134: 1.65 | N134: 1.65 | O134: 1.65 | P134: 1.65 | Q134: 1.65 | R134: 1.65 | S134: 1.65 | T134: 1.65 | U134: 1.65 | V134: 1.65
B135: Benefícios | C135: 700 | D135: =C135 -> 700 | E135: 700 | F135: 700 | G135: 700 | H135: 700 | I135: 700 | J135: 700 | K135: 700 | L135: 700 | M135: 700 | N135: 700 | O135: 700 | P135: 700 | Q135: 700 | R135: 700 | S135: 700 | T135: 700 | U135: 700 | V135: 700
B137: Materiais | C137: =12*5000/10^6 -> 0.06 | D137: =C137 -> 0.06 | E137: =D137 -> 0.06 | F137: 0.06 | G137: 0.06 | H137: 0.06 | I137: 0.06 | J137: 0.06 | K137: 0.06 | L137: 0.06 | M137: =L137 -> 0.06 | N137: =M137 -> 0.06 | O137: =N137 -> 0.06 | P137: =O137 -> 0.06 | Q137: =P137 -> 0.06 | R137: =Q137 -> 0.06 | S137: =R137 -> 0.06 | T137: =S137 -> 0.06 | U137: =T137 -> 0.06 | V137: =U137 -> 0.06 | X137: =SUM(C137:V137) -> 1.2
B139: Custos Indiretos | C139: =(C140+C141)*C142 -> 0.2800963608 | D139: =(D140+D141)*D142 -> 0.2800963608 | E139: =(E140+E141)*E142 -> 0.2800963608 | F139: =(F140+F141)*F142 -> 0.2800963608 | G139: =(G140+G141)*G142 -> 0.2800963608 | H139: =(H140+H141)*H142 -> 0.2800963608 | I139: =(I140+I141)*I142 -> 0.2800963608 | J139: =(J140+J141)*J142 -> 0.2800963608 | K139: =(K140+K141)*K142 -> 0.2800963608 | L139: =(L140+L141)*L142 -> 0.2800963608 | M139: 0.2800963608 | N139: 0.2800963608 | O139: 0.2800963608 | P139: 0.2800963608 | Q139: 0.2800963608 | R139: 0.2800963608 | S139: 0.2800963608 | T139: 0.2800963608 | U139: 0.2800963608 | V139: 0.2800963608 | W139: 0.1 | X139: =SUM(C139:V139) -> 5.601927216
B140: Custos com Pessoal (R$) | C140: =C81 -> 1.060385443 | D140: 1.060385443 | E140: 1.060385443 | F140: 1.060385443 | G140: 1.060385443 | H140: 1.060385443 | I140: 1.060385443 | J140: 1.060385443 | K140: 1.060385443 | L140: 1.060385443 | M140: =M81 -> 1.060385443 | N140: 1.060385443 | O140: 1.060385443 | P140: 1.060385443 | Q140: 1.060385443 | R140: 1.060385443 | S140: 1.060385443 | T140: 1.060385443 | U140: 1.060385443 | V140: 1.060385443
B141: Custos com Materiais (R$) | C141: =C137 -> 0.06 | D141: =D137 -> 0.06 | E141: 0.06 | F141: 0.06 | G141: 0.06 | H141: 0.06 | I141: 0.06 | J141: 0.06 | K141: 0.06 | L141: 0.06 | M141: =M137 -> 0.06 | N141: 0.06 | O141: 0.06 | P141: 0.06 | Q141: 0.06 | R141: 0.06 | S141: 0.06 | T141: 0.06 | U141: 0.06 | V141: 0.06
B142: Incidência (%) | C142: 0.25 | D142: =C142 -> 0.25 | E142: =D142 -> 0.25 | F142: 0.25 | G142: 0.25 | H142: 0.25 | I142: 0.25 | J142: 0.25 | K142: 0.25 | L142: 0.25 | M142: 0.25 | N142: 0.25 | O142: 0.25 | P142: 0.25 | Q142: 0.25 | R142: 0.25 | S142: 0.25 | T142: 0.25 | U142: 0.25 | V142: 0.25
B144: Eletricidade, Água e Esgoto | C144: =12*8000/10^6 -> 0.096 | D144: =C144 -> 0.096 | E144: =D144 -> 0.096 | F144: 0.096 | G144: 0.096 | H144: 0.096 | I144: 0.096 | J144: 0.096 | K144: 0.096 | L144: 0.096 | M144: =L144 -> 0.096 | N144: =M144 -> 0.096 | O144: =N144 -> 0.096 | P144: =O144 -> 0.096 | Q144: =P144 -> 0.096 | R144: =Q144 -> 0.096 | S144: =R144 -> 0.096 | T144: =S144 -> 0.096 | U144: =T144 -> 0.096 | V144: =U144 -> 0.096 | W144: 0.1 | X144: =SUM(C144:V144) -> 1.92
B146: Terminal Oficinas | C146: =(C148+C204+C206+C211)*(1+$Z$10) -> 1.496481804 | D146: 1.496481804 | E146: 1.496481804 | F146: 1.496481804 | G146: 1.496481804 | H146: 1.496481804 | I146: 1.496481804 | J146: 1.496481804 | K146: 1.496481804 | L146: 1.496481804 | M146: =(M148+M204+M206+M211)*(1+$Z$10) -> 1.496481804 | N146: 1.496481804 | O146: 1.496481804 | P146: 1.496481804 | Q146: 1.496481804 | R146: 1.496481804 | S146: 1.496481804 | T146: 1.496481804 | U146: 1.496481804 | V146: 1.496481804 | X146: =SUM(C146:V146) -> 29.92963608
B148: Mão de Obra | C148: =12*(C149+C158+C167+C176+C185+C194)/10^6 -> 1.060385443 | D148: =12*(D149+D158+D167+D176+D185+D194)/10^6 -> 1.060385443 | E148: =12*(E149+E158+E167+E176+E185+E194)/10^6 -> 1.060385443 | F148: =12*(F149+F158+F167+F176+F185+F194)/10^6 -> 1.060385443 | G148: =12*(G149+G158+G167+G176+G185+G194)/10^6 -> 1.060385443 | H148: =12*(H149+H158+H167+H176+H185+H194)/10^6 -> 1.060385443 | I148: =12*(I149+I158+I167+I176+I185+I194)/10^6 -> 1.060385443 | J148: =12*(J149+J158+J167+J176+J185+J194)/10^6 -> 1.060385443 | K148: =12*(K149+K158+K167+K176+K185+K194)/10^6 -> 1.060385443 | L148: =12*(L149+L158+L167+L176+L185+L194)/10^6 -> 1.060385443 | M148: =12*(M149+M158+M167+M176+M185+M194)/10^6 -> 1.060385443 | N148: =12*(N149+N158+N167+N176+N185+N194)/10^6 -> 1.060385443 | O148: =12*(O149+O158+O167+O176+O185+O194)/10^6 -> 1.060385443 | P148: =12*(P149+P158+P167+P176+P185+P194)/10^6 -> 1.060385443 | Q148: =12*(Q149+Q158+Q167+Q176+Q185+Q194)/10^6 -> 1.060385443 | R148: =12*(R149+R158+R167+R176+R185+R194)/10^6 -> 1.060385443 | S148: =12*(S149+S158+S167+S176+S185+S194)/10^6 -> 1.060385443 | T148: =12*(T149+T158+T167+T176+T185+T194)/10^6 -> 1.060385443 | U148: =12*(U149+U158+U167+U176+U185+U194)/10^6 -> 1.060385443 | V148: =12*(V149+V158+V167+V176+V185+V194)/10^6 -> 1.060385443 | X148: =SUM(C148:V148) -> 21.20770886
B149: Líder Limpeza | C149: =C150*C153 -> 10963.3496 | D149: 10963.3496 | E149: 10963.3496 | F149: 10963.3496 | G149: 10963.3496 | H149: 10963.3496 | I149: 10963.3496 | J149: 10963.3496 | K149: 10963.3496 | L149: 10963.3496 | M149: =M150*M153 -> 10963.3496 | N149: =N150*N153 -> 10963.3496 | O149: =O150*O153 -> 10963.3496 | P149: =P150*P153 -> 10963.3496 | Q149: =Q150*Q153 -> 10963.3496 | R149: =R150*R153 -> 10963.3496 | S149: =S150*S153 -> 10963.3496 | T149: =T150*T153 -> 10963.3496 | U149: =U150*U153 -> 10963.3496 | V149: =V150*V153 -> 10963.3496
B150: Funcionários Equivalentes | C150: =C151*C152 -> 2.468 | D150: =D151*D152 -> 2.468 | E150: 2.468 | F150: 2.468 | G150: 2.468 | H150: 2.468 | I150: 2.468 | J150: 2.468 | K150: 2.468 | L150: 2.468 | M150: =M151*M152 -> 2.468 | N150: 2.468 | O150: 2.468 | P150: 2.468 | Q150: 2.468 | R150: 2.468 | S150: 2.468 | T150: 2.468 | U150: 2.468 | V150: 2.468
B151: Quantidade de funcionários sem reposição | C151: 2 | D151: =C151 -> 2 | E151: =D151 -> 2 | F151: =E151 -> 2 | G151: =F151 -> 2 | H151: =G151 -> 2 | I151: =H151 -> 2 | J151: =I151 -> 2 | K151: =J151 -> 2 | L151: =K151 -> 2 | M151: =L151 -> 2 | N151: =M151 -> 2 | O151: =N151 -> 2 | P151: =O151 -> 2 | Q151: =P151 -> 2 | R151: =Q151 -> 2 | S151: =R151 -> 2 | T151: =S151 -> 2 | U151: =T151 -> 2 | V151: =U151 -> 2
B152: Índice de Reposição para folgas e férias | C152: 1.234 | D152: =C152 -> 1.234 | E152: 1.234 | F152: 1.234 | G152: 1.234 | H152: 1.234 | I152: 1.234 | J152: 1.234 | K152: 1.234 | L152: 1.234 | M152: 1.234 | N152: 1.234 | O152: 1.234 | P152: 1.234 | Q152: 1.234 | R152: 1.234 | S152: 1.234 | T152: 1.234 | U152: 1.234 | V152: 1.234
B153: Salários Com Encargos e Benefícios | C153: =(C154*C155*C156)+C157 -> 4442.2 | D153: =(D154*D155*D156)+D157 -> 4442.2 | E153: 4442.2 | F153: 4442.2 | G153: 4442.2 | H153: 4442.2 | I153: 4442.2 | J153: 4442.2 | K153: 4442.2 | L153: 4442.2 | M153: =(M154*M155*M156)+M157 -> 4442.2 | N153: 4442.2 | O153: 4442.2 | P153: 4442.2 | Q153: 4442.2 | R153: 4442.2 | S153: 4442.2 | T153: 4442.2 | U153: 4442.2 | V153: 4442.2
B154: Salário Base | C154: 1620 | D154: =C154 -> 1620 | E154: =D154 -> 1620 | F154: =E154 -> 1620 | G154: =F154 -> 1620 | H154: =G154 -> 1620 | I154: =H154 -> 1620 | J154: =I154 -> 1620 | K154: =J154 -> 1620 | L154: =K154 -> 1620 | M154: =L154 -> 1620 | N154: =M154 -> 1620 | O154: =N154 -> 1620 | P154: =O154 -> 1620 | Q154: =P154 -> 1620 | R154: =Q154 -> 1620 | S154: =R154 -> 1620 | T154: =S154 -> 1620 | U154: =T154 -> 1620 | V154: =U154 -> 1620
B155: Adicional Insalubridade | C155: 1.4 | D155: =C155 -> 1.4 | E155: 1.4 | F155: 1.4 | G155: 1.4 | H155: 1.4 | I155: 1.4 | J155: 1.4 | K155: 1.4 | L155: 1.4 | M155: 1.4 | N155: 1.4 | O155: 1.4 | P155: 1.4 | Q155: 1.4 | R155: 1.4 | S155: 1.4 | T155: 1.4 | U155: 1.4 | V155: 1.4
B156: Encargos Sociais | C156: 1.65 | D156: =C156 -> 1.65 | E156: 1.65 | F156: 1.65 | G156: 1.65 | H156: 1.65 | I156: 1.65 | J156: 1.65 | K156: 1.65 | L156: 1.65 | M156: 1.65 | N156: 1.65 | O156: 1.65 | P156: 1.65 | Q156: 1.65 | R156: 1.65 | S156: 1.65 | T156: 1.65 | U156: 1.65 | V156: 1.65
B157: Benefícios | C157: 700 | D157: =C157 -> 700 | E157: 700 | F157: 700 | G157: 700 | H157: 700 | I157: 700 | J157: 700 | K157: 700 | L157: 700 | M157: 700 | N157: 700 | O157: 700 | P157: 700 | Q157: 700 | R157: 700 | S157: 700 | T157: 700 | U157: 700 | V157: 700
B158: Auxiliar Limpeza | C158: =C159*C162 -> 28272.174 | D158: 28272.174 | E158: 28272.174 | F158: 28272.174 | G158: 28272.174 | H158: 28272.174 | I158: 28272.174 | J158: 28272.174 | K158: 28272.174 | L158: 28272.174 | M158: =M159*M162 -> 28272.174 | N158: =N159*N162 -> 28272.174 | O158: =O159*O162 -> 28272.174 | P158: =P159*P162 -> 28272.174 | Q158: =Q159*Q162 -> 28272.174 | R158: =R159*R162 -> 28272.174 | S158: =S159*S162 -> 28272.174 | T158: =T159*T162 -> 28272.174 | U158: =U159*U162 -> 28272.174 | V158: =V159*V162 -> 28272.174
B159: Funcionários Equivalentes | C159: =C160*C161 -> 7.404 | D159: =D160*D161 -> 7.404 | E159: 7.404 | F159: 7.404 | G159: 7.404 | H159: 7.404 | I159: 7.404 | J159: 7.404 | K159: 7.404 | L159: 7.404 | M159: =M160*M161 -> 7.404 | N159: 7.404 | O159: 7.404 | P159: 7.404 | Q159: 7.404 | R159: 7.404 | S159: 7.404 | T159: 7.404 | U159: 7.404 | V159: 7.404
B160: Quantidade de funcionários sem reposição | C160: 6 | D160: =C160 -> 6 | E160: =D160 -> 6 | F160: =E160 -> 6 | G160: =F160 -> 6 | H160: =G160 -> 6 | I160: =H160 -> 6 | J160: =I160 -> 6 | K160: =J160 -> 6 | L160: =K160 -> 6 | M160: =L160 -> 6 | N160: =M160 -> 6 | O160: =N160 -> 6 | P160: =O160 -> 6 | Q160: =P160 -> 6 | R160: =Q160 -> 6 | S160: =R160 -> 6 | T160: =S160 -> 6 | U160: =T160 -> 6 | V160: =U160 -> 6
B161: Índice de Reposição para folgas e férias | C161: 1.234 | D161: =C161 -> 1.234 | E161: 1.234 | F161: 1.234 | G161: 1.234 | H161: 1.234 | I161: 1.234 | J161: 1.234 | K161: 1.234 | L161: 1.234 | M161: 1.234 | N161: 1.234 | O161: 1.234 | P161: 1.234 | Q161: 1.234 | R161: 1.234 | S161: 1.234 | T161: 1.234 | U161: 1.234 | V161: 1.234
B162: Salários Com Encargos e Benefícios | C162: =(C163*C164*C165)+C166 -> 3818.5 | D162: =(D163*D164*D165)+D166 -> 3818.5 | E162: 3818.5 | F162: 3818.5 | G162: 3818.5 | H162: 3818.5 | I162: 3818.5 | J162: 3818.5 | K162: 3818.5 | L162: 3818.5 | M162: =(M163*M164*M165)+M166 -> 3818.5 | N162: 3818.5 | O162: 3818.5 | P162: 3818.5 | Q162: 3818.5 | R162: 3818.5 | S162: 3818.5 | T162: 3818.5 | U162: 3818.5 | V162: 3818.5
B163: Salário Base | C163: 1350 | D163: =C163 -> 1350 | E163: =D163 -> 1350 | F163: =E163 -> 1350 | G163: =F163 -> 1350 | H163: =G163 -> 1350 | I163: =H163 -> 1350 | J163: =I163 -> 1350 | K163: =J163 -> 1350 | L163: =K163 -> 1350 | M163: =L163 -> 1350 | N163: =M163 -> 1350 | O163: =N163 -> 1350 | P163: =O163 -> 1350 | Q163: =P163 -> 1350 | R163: =Q163 -> 1350 | S163: =R163 -> 1350 | T163: =S163 -> 1350 | U163: =T163 -> 1350 | V163: =U163 -> 1350
B164: Adicional Insalubridade | C164: 1.4 | D164: =C164 -> 1.4 | E164: 1.4 | F164: 1.4 | G164: 1.4 | H164: 1.4 | I164: 1.4 | J164: 1.4 | K164: 1.4 | L164: 1.4 | M164: 1.4 | N164: 1.4 | O164: 1.4 | P164: 1.4 | Q164: 1.4 | R164: 1.4 | S164: 1.4 | T164: 1.4 | U164: 1.4 | V164: 1.4
B165: Encargos Sociais | C165: 1.65 | D165: =C165 -> 1.65 | E165: 1.65 | F165: 1.65 | G165: 1.65 | H165: 1.65 | I165: 1.65 | J165: 1.65 | K165: 1.65 | L165: 1.65 | M165: 1.65 | N165: 1.65 | O165: 1.65 | P165: 1.65 | Q165: 1.65 | R165: 1.65 | S165: 1.65 | T165: 1.65 | U165: 1.65 | V165: 1.65
B166: Benefícios | C166: 700 | D166: =C166 -> 700 | E166: 700 | F166: 700 | G166: 700 | H166: 700 | I166: 700 | J166: 700 | K166: 700 | L166: 700 | M166: 700 | N166: 700 | O166: 700 | P166: 700 | Q166: 700 | R166: 700 | S166: 700 | T166: 700 | U166: 700 | V166: 700
B167: Porteiro e Vigia | C167: =C168*C171 -> 14935.79 | D167: 14935.79 | E167: 14935.79 | F167: 14935.79 | G167: 14935.79 | H167: 14935.79 | I167: 14935.79 | J167: 14935.79 | K167: 14935.79 | L167: 14935.79 | M167: =M168*M171 -> 14935.79 | N167: =N168*N171 -> 14935.79 | O167: =O168*O171 -> 14935.79 | P167: =P168*P171 -> 14935.79 | Q167: =Q168*Q171 -> 14935.79 | R167: =R168*R171 -> 14935.79 | S167: =S168*S171 -> 14935.79 | T167: =T168*T171 -> 14935.79 | U167: =U168*U171 -> 14935.79 | V167: =V168*V171 -> 14935.79
B168: Funcionários Equivalentes | C168: =C169*C170 -> 4.364 | D168: =D169*D170 -> 4.364 | E168: 4.364 | F168: 4.364 | G168: 4.364 | H168: 4.364 | I168: 4.364 | J168: 4.364 | K168: 4.364 | L168: 4.364 | M168: =M169*M170 -> 4.364 | N168: 4.364 | O168: 4.364 | P168: 4.364 | Q168: 4.364 | R168: 4.364 | S168: 4.364 | T168: 4.364 | U168: 4.364 | V168: 4.364
B169: Quantidade de funcionários sem reposição | C169: 4 | D169: =C169 -> 4 | E169: =D169 -> 4 | F169: =E169 -> 4 | G169: =F169 -> 4 | H169: =G169 -> 4 | I169: =H169 -> 4 | J169: =I169 -> 4 | K169: =J169 -> 4 | L169: =K169 -> 4 | M169: =L169 -> 4 | N169: =M169 -> 4 | O169: =N169 -> 4 | P169: =O169 -> 4 | Q169: =P169 -> 4 | R169: =Q169 -> 4 | S169: =R169 -> 4 | T169: =S169 -> 4 | U169: =T169 -> 4 | V169: =U169 -> 4
B170: Índice de Reposição para folgas e férias | C170: 1.091 | D170: =C170 -> 1.091 | E170: 1.091 | F170: 1.091 | G170: 1.091 | H170: 1.091 | I170: 1.091 | J170: 1.091 | K170: 1.091 | L170: 1.091 | M170: 1.091 | N170: 1.091 | O170: 1.091 | P170: 1.091 | Q170: 1.091 | R170: 1.091 | S170: 1.091 | T170: 1.091 | U170: 1.091 | V170: 1.091
B171: Salários Com Encargos e Benefícios | C171: =(C172*C173*C174)+C175 -> 3422.5 | D171: =(D172*D173*D174)+D175 -> 3422.5 | E171: 3422.5 | F171: 3422.5 | G171: 3422.5 | H171: 3422.5 | I171: 3422.5 | J171: 3422.5 | K171: 3422.5 | L171: 3422.5 | M171: =(M172*M173*M174)+M175 -> 3422.5 | N171: 3422.5 | O171: 3422.5 | P171: 3422.5 | Q171: 3422.5 | R171: 3422.5 | S171: 3422.5 | T171: 3422.5 | U171: 3422.5 | V171: 3422.5
B172: Salário Base | C172: 1650 | D172: =C172 -> 1650 | E172: =D172 -> 1650 | F172: =E172 -> 1650 | G172: =F172 -> 1650 | H172: =G172 -> 1650 | I172: =H172 -> 1650 | J172: =I172 -> 1650 | K172: =J172 -> 1650 | L172: =K172 -> 1650 | M172: =L172 -> 1650 | N172: =M172 -> 1650 | O172: =N172 -> 1650 | P172: =O172 -> 1650 | Q172: =P172 -> 1650 | R172: =Q172 -> 1650 | S172: =R172 -> 1650 | T172: =S172 -> 1650 | U172: =T172 -> 1650 | V172: =U172 -> 1650
B173: Adicional Insalubridade | C173: 1 | D173: =C173 -> 1 | E173: 1 | F173: 1 | G173: 1 | H173: 1 | I173: 1 | J173: 1 | K173: 1 | L173: 1 | M173: 1 | N173: 1 | O173: 1 | P173: 1 | Q173: 1 | R173: 1 | S173: 1 | T173: 1 | U173: 1 | V173: 1
B174: Encargos Sociais | C174: 1.65 | D174: =C174 -> 1.65 | E174: 1.65 | F174: 1.65 | G174: 1.65 | H174: 1.65 | I174: 1.65 | J174: 1.65 | K174: 1.65 | L174: 1.65 | M174: 1.65 | N174: 1.65 | O174: 1.65 | P174: 1.65 | Q174: 1.65 | R174: 1.65 | S174: 1.65 | T174: 1.65 | U174: 1.65 | V174: 1.65
B175: Benefícios | C175: 700 | D175: =C175 -> 700 | E175: 700 | F175: 700 | G175: 700 | H175: 700 | I175: 700 | J175: 700 | K175: 700 | L175: 700 | M175: 700 | N175: 700 | O175: 700 | P175: 700 | Q175: 700 | R175: 700 | S175: 700 | T175: 700 | U175: 700 | V175: 700
B176: Atendente | C176: =C177*C180 -> 8446.73 | D176: 8446.73 | E176: 8446.73 | F176: 8446.73 | G176: 8446.73 | H176: 8446.73 | I176: 8446.73 | J176: 8446.73 | K176: 8446.73 | L176: 8446.73 | M176: =M177*M180 -> 8446.73 | N176: =N177*N180 -> 8446.73 | O176: =O177*O180 -> 8446.73 | P176: =P177*P180 -> 8446.73 | Q176: =Q177*Q180 -> 8446.73 | R176: =R177*R180 -> 8446.73 | S176: =S177*S180 -> 8446.73 | T176: =T177*T180 -> 8446.73 | U176: =U177*U180 -> 8446.73 | V176: =V177*V180 -> 8446.73
B177: Funcionários Equivalentes | C177: =C178*C179 -> 2.468 | D177: =D178*D179 -> 2.468 | E177: 2.468 | F177: 2.468 | G177: 2.468 | H177: 2.468 | I177: 2.468 | J177: 2.468 | K177: 2.468 | L177: 2.468 | M177: =M178*M179 -> 2.468 | N177: 2.468 | O177: 2.468 | P177: 2.468 | Q177: 2.468 | R177: 2.468 | S177: 2.468 | T177: 2.468 | U177: 2.468 | V177: 2.468
B178: Quantidade de funcionários sem reposição | C178: 2 | D178: =C178 -> 2 | E178: =D178 -> 2 | F178: =E178 -> 2 | G178: =F178 -> 2 | H178: =G178 -> 2 | I178: =H178 -> 2 | J178: =I178 -> 2 | K178: =J178 -> 2 | L178: =K178 -> 2 | M178: =L178 -> 2 | N178: =M178 -> 2 | O178: =N178 -> 2 | P178: =O178 -> 2 | Q178: =P178 -> 2 | R178: =Q178 -> 2 | S178: =R178 -> 2 | T178: =S178 -> 2 | U178: =T178 -> 2 | V178: =U178 -> 2
B179: Índice de Reposição para folgas e férias | C179: 1.234 | D179: =C179 -> 1.234 | E179: 1.234 | F179: 1.234 | G179: 1.234 | H179: 1.234 | I179: 1.234 | J179: 1.234 | K179: 1.234 | L179: 1.234 | M179: 1.234 | N179: 1.234 | O179: 1.234 | P179: 1.234 | Q179: 1.234 | R179: 1.234 | S179: 1.234 | T179: 1.234 | U179: 1.234 | V179: 1.234
B180: Salários Com Encargos e Benefícios | C180: =(C181*C182*C183)+C184 -> 3422.5 | D180: =(D181*D182*D183)+D184 -> 3422.5 | E180: 3422.5 | F180: 3422.5 | G180: 3422.5 | H180: 3422.5 | I180: 3422.5 | J180: 3422.5 | K180: 3422.5 | L180: 3422.5 | M180: =(M181*M182*M183)+M184 -> 3422.5 | N180: 3422.5 | O180: 3422.5 | P180: 3422.5 | Q180: 3422.5 | R180: 3422.5 | S180: 3422.5 | T180: 3422.5 | U180: 3422.5 | V180: 3422.5
B181: Salário Base | C181: 1650 | D181: =C181 -> 1650 | E181: =D181 -> 1650 | F181: =E181 -> 1650 | G181: =F181 -> 1650 | H181: =G181 -> 1650 | I181: =H181 -> 1650 | J181: =I181 -> 1650 | K181: =J181 -> 1650 | L181: =K181 -> 1650 | M181: =L181 -> 1650 | N181: =M181 -> 1650 | O181: =N181 -> 1650 | P181: =O181 -> 1650 | Q181: =P181 -> 1650 | R181: =Q181 -> 1650 | S181: =R181 -> 1650 | T181: =S181 -> 1650 | U181: =T181 -> 1650 | V181: =U181 -> 1650
B182: Adicional Insalubridade | C182: 1 | D182: =C182 -> 1 | E182: 1 | F182: 1 | G182: 1 | H182: 1 | I182: 1 | J182: 1 | K182: 1 | L182: 1 | M182: 1 | N182: 1 | O182: 1 | P182: 1 | Q182: 1 | R182: 1 | S182: 1 | T182: 1 | U182: 1 | V182: 1
B183: Encargos Sociais | C183: 1.65 | D183: =C183 -> 1.65 | E183: 1.65 | F183: 1.65 | G183: 1.65 | H183: 1.65 | I183: 1.65 | J183: 1.65 | K183: 1.65 | L183: 1.65 | M183: 1.65 | N183: 1.65 | O183: 1.65 | P183: 1.65 | Q183: 1.65 | R183: 1.65 | S183: 1.65 | T183: 1.65 | U183: 1.65 | V183: 1.65
B184: Benefícios | C184: 700 | D184: =C184 -> 700 | E184: 700 | F184: 700 | G184: 700 | H184: 700 | I184: 700 | J184: 700 | K184: 700 | L184: 700 | M184: 700 | N184: 700 | O184: 700 | P184: 700 | Q184: 700 | R184: 700 | S184: 700 | T184: 700 | U184: 700 | V184: 700
B185: Manutenção | C185: =C186*C189 -> 18522.34 | D185: 18522.34 | E185: 18522.34 | F185: 18522.34 | G185: 18522.34 | H185: 18522.34 | I185: 18522.34 | J185: 18522.34 | K185: 18522.34 | L185: 18522.34 | M185: =M186*M189 -> 18522.34 | N185: =N186*N189 -> 18522.34 | O185: =O186*O189 -> 18522.34 | P185: =P186*P189 -> 18522.34 | Q185: =Q186*Q189 -> 18522.34 | R185: =R186*R189 -> 18522.34 | S185: =S186*S189 -> 18522.34 | T185: =T186*T189 -> 18522.34 | U185: =U186*U189 -> 18522.34 | V185: =V186*V189 -> 18522.34
B186: Funcionários Equivalentes | C186: =C187*C188 -> 4.936 | D186: =D187*D188 -> 4.936 | E186: 4.936 | F186: 4.936 | G186: 4.936 | H186: 4.936 | I186: 4.936 | J186: 4.936 | K186: 4.936 | L186: 4.936 | M186: =M187*M188 -> 4.936 | N186: 4.936 | O186: 4.936 | P186: 4.936 | Q186: 4.936 | R186: 4.936 | S186: 4.936 | T186: 4.936 | U186: 4.936 | V186: 4.936
B187: Quantidade de funcionários sem reposição | C187: 4 | D187: =C187 -> 4 | E187: =D187 -> 4 | F187: =E187 -> 4 | G187: =F187 -> 4 | H187: =G187 -> 4 | I187: =H187 -> 4 | J187: =I187 -> 4 | K187: =J187 -> 4 | L187: =K187 -> 4 | M187: =L187 -> 4 | N187: =M187 -> 4 | O187: =N187 -> 4 | P187: =O187 -> 4 | Q187: =P187 -> 4 | R187: =Q187 -> 4 | S187: =R187 -> 4 | T187: =S187 -> 4 | U187: =T187 -> 4 | V187: =U187 -> 4
B188: Índice de Reposição para folgas e férias | C188: 1.234 | D188: =C188 -> 1.234 | E188: 1.234 | F188: 1.234 | G188: 1.234 | H188: 1.234 | I188: 1.234 | J188: 1.234 | K188: 1.234 | L188: 1.234 | M188: 1.234 | N188: 1.234 | O188: 1.234 | P188: 1.234 | Q188: 1.234 | R188: 1.234 | S188: 1.234 | T188: 1.234 | U188: 1.234 | V188: 1.234
B189: Salários Com Encargos e Benefícios | C189: =(C190*C191*C192)+C193 -> 3752.5 | D189: =(D190*D191*D192)+D193 -> 3752.5 | E189: 3752.5 | F189: 3752.5 | G189: 3752.5 | H189: 3752.5 | I189: 3752.5 | J189: 3752.5 | K189: 3752.5 | L189: 3752.5 | M189: =(M190*M191*M192)+M193 -> 3752.5 | N189: 3752.5 | O189: 3752.5 | P189: 3752.5 | Q189: 3752.5 | R189: 3752.5 | S189: 3752.5 | T189: 3752.5 | U189: 3752.5 | V189: 3752.5
B190: Salário Base | C190: 1850 | D190: =C190 -> 1850 | E190: =D190 -> 1850 | F190: =E190 -> 1850 | G190: =F190 -> 1850 | H190: =G190 -> 1850 | I190: =H190 -> 1850 | J190: =I190 -> 1850 | K190: =J190 -> 1850 | L190: =K190 -> 1850 | M190: =L190 -> 1850 | N190: =M190 -> 1850 | O190: =N190 -> 1850 | P190: =O190 -> 1850 | Q190: =P190 -> 1850 | R190: =Q190 -> 1850 | S190: =R190 -> 1850 | T190: =S190 -> 1850 | U190: =T190 -> 1850 | V190: =U190 -> 1850
B191: Adicional Insalubridade | C191: 1 | D191: =C191 -> 1 | E191: 1 | F191: 1 | G191: 1 | H191: 1 | I191: 1 | J191: 1 | K191: 1 | L191: 1 | M191: 1 | N191: 1 | O191: 1 | P191: 1 | Q191: 1 | R191: 1 | S191: 1 | T191: 1 | U191: 1 | V191: 1
B192: Encargos Sociais | C192: 1.65 | D192: =C192 -> 1.65 | E192: 1.65 | F192: 1.65 | G192: 1.65 | H192: 1.65 | I192: 1.65 | J192: 1.65 | K192: 1.65 | L192: 1.65 | M192: 1.65 | N192: 1.65 | O192: 1.65 | P192: 1.65 | Q192: 1.65 | R192: 1.65 | S192: 1.65 | T192: 1.65 | U192: 1.65 | V192: 1.65
B193: Benefícios | C193: 700 | D193: =C193 -> 700 | E193: 700 | F193: 700 | G193: 700 | H193: 700 | I193: 700 | J193: 700 | K193: 700 | L193: 700 | M193: 700 | N193: 700 | O193: 700 | P193: 700 | Q193: 700 | R193: 700 | S193: 700 | T193: 700 | U193: 700 | V193: 700
B194: Jardineiro | C194: =C195*C198 -> 7225.07 | D194: 7225.07 | E194: 7225.07 | F194: 7225.07 | G194: 7225.07 | H194: 7225.07 | I194: 7225.07 | J194: 7225.07 | K194: 7225.07 | L194: 7225.07 | M194: =M195*M198 -> 7225.07 | N194: =N195*N198 -> 7225.07 | O194: =O195*O198 -> 7225.07 | P194: =P195*P198 -> 7225.07 | Q194: =Q195*Q198 -> 7225.07 | R194: =R195*R198 -> 7225.07 | S194: =S195*S198 -> 7225.07 | T194: =T195*T198 -> 7225.07 | U194: =U195*U198 -> 7225.07 | V194: =V195*V198 -> 7225.07
B195: Funcionários Equivalentes | C195: =C196*C197 -> 2.468 | D195: =D196*D197 -> 2.468 | E195: 2.468 | F195: 2.468 | G195: 2.468 | H195: 2.468 | I195: 2.468 | J195: 2.468 | K195: 2.468 | L195: 2.468 | M195: =M196*M197 -> 2.468 | N195: 2.468 | O195: 2.468 | P195: 2.468 | Q195: 2.468 | R195: 2.468 | S195: 2.468 | T195: 2.468 | U195: 2.468 | V195: 2.468
B196: Quantidade de funcionários sem reposição | C196: 2 | D196: =C196 -> 2 | E196: =D196 -> 2 | F196: =E196 -> 2 | G196: =F196 -> 2 | H196: =G196 -> 2 | I196: =H196 -> 2 | J196: =I196 -> 2 | K196: =J196 -> 2 | L196: =K196 -> 2 | M196: =L196 -> 2 | N196: =M196 -> 2 | O196: =N196 -> 2 | P196: =O196 -> 2 | Q196: =P196 -> 2 | R196: =Q196 -> 2 | S196: =R196 -> 2 | T196: =S196 -> 2 | U196: =T196 -> 2 | V196: =U196 -> 2
B197: Índice de Reposição para folgas e férias | C197: 1.234 | D197: =C197 -> 1.234 | E197: 1.234 | F197: 1.234 | G197: 1.234 | H197: 1.234 | I197: 1.234 | J197: 1.234 | K197: 1.234 | L197: 1.234 | M197: 1.234 | N197: 1.234 | O197: 1.234 | P197: 1.234 | Q197: 1.234 | R197: 1.234 | S197: 1.234 | T197: 1.234 | U197: 1.234 | V197: 1.234
B198: Salários Com Encargos e Benefícios | C198: =(C199*C200*C201)+C202 -> 2927.5 | D198: =(D199*D200*D201)+D202 -> 2927.5 | E198: 2927.5 | F198: 2927.5 | G198: 2927.5 | H198: 2927.5 | I198: 2927.5 | J198: 2927.5 | K198: 2927.5 | L198: 2927.5 | M198: =(M199*M200*M201)+M202 -> 2927.5 | N198: 2927.5 | O198: 2927.5 | P198: 2927.5 | Q198: 2927.5 | R198: 2927.5 | S198: 2927.5 | T198: 2927.5 | U198: 2927.5 | V198: 2927.5
B199: Salário Base | C199: 1350 | D199: =C199 -> 1350 | E199: =D199 -> 1350 | F199: =E199 -> 1350 | G199: =F199 -> 1350 | H199: =G199 -> 1350 | I199: =H199 -> 1350 | J199: =I199 -> 1350 | K199: =J199 -> 1350 | L199: =K199 -> 1350 | M199: =L199 -> 1350 | N199: =M199 -> 1350 | O199: =N199 -> 1350 | P199: =O199 -> 1350 | Q199: =P199 -> 1350 | R199: =Q199 -> 1350 | S199: =R199 -> 1350 | T199: =S199 -> 1350 | U199: =T199 -> 1350 | V199: =U199 -> 1350
B200: Adicional Insalubridade | C200: 1 | D200: =C200 -> 1 | E200: 1 | F200: 1 | G200: 1 | H200: 1 | I200: 1 | J200: 1 | K200: 1 | L200: 1 | M200: 1 | N200: 1 | O200: 1 | P200: 1 | Q200: 1 | R200: 1 | S200: 1 | T200: 1 | U200: 1 | V200: 1
B201: Encargos Sociais | C201: 1.65 | D201: =C201 -> 1.65 | E201: 1.65 | F201: 1.65 | G201: 1.65 | H201: 1.65 | I201: 1.65 | J201: 1.65 | K201: 1.65 | L201: 1.65 | M201: 1.65 | N201: 1.65 | O201: 1.65 | P201: 1.65 | Q201: 1.65 | R201: 1.65 | S201: 1.65 | T201: 1.65 | U201: 1.65 | V201: 1.65
B202: Benefícios | C202: 700 | D202: =C202 -> 700 | E202: 700 | F202: 700 | G202: 700 | H202: 700 | I202: 700 | J202: 700 | K202: 700 | L202: 700 | M202: 700 | N202: 700 | O202: 700 | P202: 700 | Q202: 700 | R202: 700 | S202: 700 | T202: 700 | U202: 700 | V202: 700
B204: Materiais | C204: =12*5000/10^6 -> 0.06 | D204: =C204 -> 0.06 | E204: =D204 -> 0.06 | F204: 0.06 | G204: 0.06 | H204: 0.06 | I204: 0.06 | J204: 0.06 | K204: 0.06 | L204: 0.06 | M204: =L204 -> 0.06 | N204: =M204 -> 0.06 | O204: =N204 -> 0.06 | P204: =O204 -> 0.06 | Q204: =P204 -> 0.06 | R204: =Q204 -> 0.06 | S204: =R204 -> 0.06 | T204: =S204 -> 0.06 | U204: =T204 -> 0.06 | V204: =U204 -> 0.06 | X204: =SUM(C204:V204) -> 1.2
B206: Custos Indiretos | C206: =(C207+C208)*C209 -> 0.2800963608 | D206: =(D207+D208)*D209 -> 0.2800963608 | E206: =(E207+E208)*E209 -> 0.2800963608 | F206: =(F207+F208)*F209 -> 0.2800963608 | G206: =(G207+G208)*G209 -> 0.2800963608 | H206: =(H207+H208)*H209 -> 0.2800963608 | I206: =(I207+I208)*I209 -> 0.2800963608 | J206: =(J207+J208)*J209 -> 0.2800963608 | K206: =(K207+K208)*K209 -> 0.2800963608 | L206: =(L207+L208)*L209 -> 0.2800963608 | M206: 0.2800963608 | N206: 0.2800963608 | O206: 0.2800963608 | P206: 0.2800963608 | Q206: 0.2800963608 | R206: 0.2800963608 | S206: 0.2800963608 | T206: 0.2800963608 | U206: 0.2800963608 | V206: 0.2800963608 | W206: 0.1 | X206: =SUM(C206:V206) -> 5.601927216
B207: Custos com Pessoal (R$) | C207: =C148 -> 1.060385443 | D207: 1.060385443 | E207: 1.060385443 | F207: 1.060385443 | G207: 1.060385443 | H207: 1.060385443 | I207: 1.060385443 | J207: 1.060385443 | K207: 1.060385443 | L207: 1.060385443 | M207: =M148 -> 1.060385443 | N207: 1.060385443 | O207: 1.060385443 | P207: 1.060385443 | Q207: 1.060385443 | R207: 1.060385443 | S207: 1.060385443 | T207: 1.060385443 | U207: 1.060385443 | V207: 1.060385443
B208: Custos com Materiais (R$) | C208: =C204 -> 0.06 | D208: =D204 -> 0.06 | E208: 0.06 | F208: 0.06 | G208: 0.06 | H208: 0.06 | I208: 0.06 | J208: 0.06 | K208: 0.06 | L208: 0.06 | M208: =M204 -> 0.06 | N208: 0.06 | O208: 0.06 | P208: 0.06 | Q208: 0.06 | R208: 0.06 | S208: 0.06 | T208: 0.06 | U208: 0.06 | V208: 0.06
B209: Incidência (%) | C209: 0.25 | D209: =C209 -> 0.25 | E209: =D209 -> 0.25 | F209: 0.25 | G209: 0.25 | H209: 0.25 | I209: 0.25 | J209: 0.25 | K209: 0.25 | L209: 0.25 | M209: 0.25 | N209: 0.25 | O209: 0.25 | P209: 0.25 | Q209: 0.25 | R209: 0.25 | S209: 0.25 | T209: 0.25 | U209: 0.25 | V209: 0.25
B211: Eletricidade, Água e Esgoto | C211: =12*8000/10^6 -> 0.096 | D211: =C211 -> 0.096 | E211: =D211 -> 0.096 | F211: 0.096 | G211: 0.096 | H211: 0.096 | I211: 0.096 | J211: 0.096 | K211: 0.096 | L211: 0.096 | M211: =L211 -> 0.096 | N211: =M211 -> 0.096 | O211: =N211 -> 0.096 | P211: =O211 -> 0.096 | Q211: =P211 -> 0.096 | R211: =Q211 -> 0.096 | S211: =R211 -> 0.096 | T211: =S211 -> 0.096 | U211: =T211 -> 0.096 | V211: =U211 -> 0.096 | W211: 0.1 | X211: =SUM(C211:V211) -> 1.92
B213: Terminal Nova Rússia | C213: =(C215+C271+C273+C278)*(1+$Z$10) -> 1.496481804 | D213: 1.496481804 | E213: 1.496481804 | F213: 1.496481804 | G213: 1.496481804 | H213: 1.496481804 | I213: 1.496481804 | J213: 1.496481804 | K213: 1.496481804 | L213: 1.496481804 | M213: =(M215+M271+M273+M278)*(1+$Z$10) -> 1.496481804 | N213: 1.496481804 | O213: 1.496481804 | P213: 1.496481804 | Q213: 1.496481804 | R213: 1.496481804 | S213: 1.496481804 | T213: 1.496481804 | U213: 1.496481804 | V213: 1.496481804 | X213: =SUM(C213:V213) -> 29.92963608
B215: Mão de Obra | C215: =12*(C216+C225+C234+C243+C252+C261)/10^6 -> 1.060385443 | D215: 1.060385443 | E215: 1.060385443 | F215: 1.060385443 | G215: 1.060385443 | H215: 1.060385443 | I215: 1.060385443 | J215: 1.060385443 | K215: 1.060385443 | L215: 1.060385443 | M215: 1.060385443 | N215: 1.060385443 | O215: 1.060385443 | P215: 1.060385443 | Q215: 1.060385443 | R215: 1.060385443 | S215: 1.060385443 | T215: 1.060385443 | U215: 1.060385443 | V215: 1.060385443 | X215: =SUM(C215:V215) -> 21.20770886
B216: Líder Limpeza | C216: =C217*C220 -> 10963.3496 | D216: 10963.3496 | E216: 10963.3496 | F216: 10963.3496 | G216: 10963.3496 | H216: 10963.3496 | I216: 10963.3496 | J216: 10963.3496 | K216: 10963.3496 | L216: 10963.3496 | M216: =M217*M220 -> 10963.3496 | N216: =N217*N220 -> 10963.3496 | O216: =O217*O220 -> 10963.3496 | P216: =P217*P220 -> 10963.3496 | Q216: =Q217*Q220 -> 10963.3496 | R216: =R217*R220 -> 10963.3496 | S216: =S217*S220 -> 10963.3496 | T216: =T217*T220 -> 10963.3496 | U216: =U217*U220 -> 10963.3496 | V216: =V217*V220 -> 10963.3496
B217: Funcionários Equivalentes | C217: =C218*C219 -> 2.468 | D217: =D218*D219 -> 2.468 | E217: 2.468 | F217: 2.468 | G217: 2.468 | H217: 2.468 | I217: 2.468 | J217: 2.468 | K217: 2.468 | L217: 2.468 | M217: =M218*M219 -> 2.468 | N217: 2.468 | O217: 2.468 | P217: 2.468 | Q217: 2.468 | R217: 2.468 | S217: 2.468 | T217: 2.468 | U217: 2.468 | V217: 2.468
B218: Quantidade de funcionários sem reposição | C218: 2 | D218: =C218 -> 2 | E218: =D218 -> 2 | F218: =E218 -> 2 | G218: =F218 -> 2 | H218: =G218 -> 2 | I218: =H218 -> 2 | J218: =I218 -> 2 | K218: =J218 -> 2 | L218: =K218 -> 2 | M218: =L218 -> 2 | N218: =M218 -> 2 | O218: =N218 -> 2 | P218: =O218 -> 2 | Q218: =P218 -> 2 | R218: =Q218 -> 2 | S218: =R218 -> 2 | T218: =S218 -> 2 | U218: =T218 -> 2 | V218: =U218 -> 2
B219: Índice de Reposição para folgas e férias | C219: 1.234 | D219: =C219 -> 1.234 | E219: 1.234 | F219: 1.234 | G219: 1.234 | H219: 1.234 | I219: 1.234 | J219: 1.234 | K219: 1.234 | L219: 1.234 | M219: 1.234 | N219: 1.234 | O219: 1.234 | P219: 1.234 | Q219: 1.234 | R219: 1.234 | S219: 1.234 | T219: 1.234 | U219: 1.234 | V219: 1.234
B220: Salários Com Encargos e Benefícios | C220: =(C221*C222*C223)+C224 -> 4442.2 | D220: =(D221*D222*D223)+D224 -> 4442.2 | E220: 4442.2 | F220: 4442.2 | G220: 4442.2 | H220: 4442.2 | I220: 4442.2 | J220: 4442.2 | K220: 4442.2 | L220: 4442.2 | M220: =(M221*M222*M223)+M224 -> 4442.2 | N220: 4442.2 | O220: 4442.2 | P220: 4442.2 | Q220: 4442.2 | R220: 4442.2 | S220: 4442.2 | T220: 4442.2 | U220: 4442.2 | V220: 4442.2
B221: Salário Base | C221: 1620 | D221: =C221 -> 1620 | E221: =D221 -> 1620 | F221: =E221 -> 1620 | G221: =F221 -> 1620 | H221: =G221 -> 1620 | I221: =H221 -> 1620 | J221: =I221 -> 1620 | K221: =J221 -> 1620 | L221: =K221 -> 1620 | M221: =L221 -> 1620 | N221: =M221 -> 1620 | O221: =N221 -> 1620 | P221: =O221 -> 1620 | Q221: =P221 -> 1620 | R221: =Q221 -> 1620 | S221: =R221 -> 1620 | T221: =S221 -> 1620 | U221: =T221 -> 1620 | V221: =U221 -> 1620
B222: Adicional Insalubridade | C222: 1.4 | D222: =C222 -> 1.4 | E222: 1.4 | F222: 1.4 | G222: 1.4 | H222: 1.4 | I222: 1.4 | J222: 1.4 | K222: 1.4 | L222: 1.4 | M222: 1.4 | N222: 1.4 | O222: 1.4 | P222: 1.4 | Q222: 1.4 | R222: 1.4 | S222: 1.4 | T222: 1.4 | U222: 1.4 | V222: 1.4
B223: Encargos Sociais | C223: 1.65 | D223: =C223 -> 1.65 | E223: 1.65 | F223: 1.65 | G223: 1.65 | H223: 1.65 | I223: 1.65 | J223: 1.65 | K223: 1.65 | L223: 1.65 | M223: 1.65 | N223: 1.65 | O223: 1.65 | P223: 1.65 | Q223: 1.65 | R223: 1.65 | S223: 1.65 | T223: 1.65 | U223: 1.65 | V223: 1.65
B224: Benefícios | C224: 700 | D224: =C224 -> 700 | E224: 700 | F224: 700 | G224: 700 | H224: 700 | I224: 700 | J224: 700 | K224: 700 | L224: 700 | M224: 700 | N224: 700 | O224: 700 | P224: 700 | Q224: 700 | R224: 700 | S224: 700 | T224: 700 | U224: 700 | V224: 700
... 157 more rows

Sheet 08. (a)TRIBUTOS LREAL
Y1: REGIME | Z1: PIS | AA1: COFINS | AB1: IR | AC1: CS | AD1: ISS | AE1: INSS | AF1: RESEGE
Y2: REAL | Z2: 0.0165 | AA2: 0.076 | AB2: 0.25 | AC2: 0.09 | AD2: 0 | AE2: 0 | AF2: 0
B6: Tributos Agregados (R$ Milhões)
B8: ANO | C8: 1 | D8: 2 | E8: 3 | F8: 4 | G8: 5 | H8: 6 | I8: 7 | J8: 8 | K8: 9 | L8: 10 | M8: 11 | N8: 12 | O8: 13 | P8: 14 | Q8: 15 | R8: 16 | S8: 17 | T8: 18 | U8: 19 | V8: 20 | X8: Total
B10: Receitas | C10: =C12+C13+C14+C15+C16+C17 -> 0.02815386552 | D10: =D12+D13+D14+D15+D16+D17 -> 0.6830611483 | E10: 0.6830611483 | F10: 0.6830611483 | G10: 0.6830611483 | H10: 0.6830611483 | I10: 0.6830611483 | J10: 0.6830611483 | K10: 0.6830611483 | L10: 0.6830611483 | M10: 0.6830611483 | N10: 0.6830611483 | O10: 0.6830611483 | P10: 0.6830611483 | Q10: 0.6830611483 | R10: 0.6830611483 | S10: 0.6830611483 | T10: 0.6830611483 | U10: 0.6830611483 | V10: 0.6830611483 | X10: =SUM(C10:V10) -> 13.00631568
B12: Receita de Aluguel - Terminal Central | C12: ='09. RECEITA'!C14 -> 0.0222082192 | D12: ='09. RECEITA'!D14 -> 0.0222082192 | E12: ='09. RECEITA'!E14 -> 0.0222082192 | F12: ='09. RECEITA'!F14 -> 0.0222082192 | G12: ='09. RECEITA'!G14 -> 0.0222082192 | H12: ='09. RECEITA'!H14 -> 0.0222082192 | I12: ='09. RECEITA'!I14 -> 0.0222082192 | J12: ='09. RECEITA'!J14 -> 0.0222082192 | K12: ='09. RECEITA'!K14 -> 0.0222082192 | L12: ='09. RECEITA'!L14 -> 0.0222082192 | M12: ='09. RECEITA'!M14 -> 0.0222082192 | N12: ='09. RECEITA'!N14 -> 0.0222082192 | O12: ='09. RECEITA'!O14 -> 0.0222082192 | P12: ='09. RECEITA'!P14 -> 0.0222082192 | Q12: ='09. RECEITA'!Q14 -> 0.0222082192 | R12: ='09. RECEITA'!R14 -> 0.0222082192 | S12: ='09. RECEITA'!S14 -> 0.0222082192 | T12: ='09. RECEITA'!T14 -> 0.0222082192 | U12: ='09. RECEITA'!U14 -> 0.0222082192 | V12: ='09. RECEITA'!V14 -> 0.0222082192 | X12: =SUM(C12:V12) -> 0.444164384
B13: Receita de Aluguel - Terminal Uvaranas | C13: ='09. RECEITA'!C26 -> 0 | D13: ='09. RECEITA'!D26 -> 0.2459519153 | E13: ='09. RECEITA'!E26 -> 0.2459519153 | F13: ='09. RECEITA'!F26 -> 0.2459519153 | G13: ='09. RECEITA'!G26 -> 0.2459519153 | H13: ='09. RECEITA'!H26 -> 0.2459519153 | I13: ='09. RECEITA'!I26 -> 0.2459519153 | J13: ='09. RECEITA'!J26 -> 0.2459519153 | K13: ='09. RECEITA'!K26 -> 0.2459519153 | L13: ='09. RECEITA'!L26 -> 0.2459519153 | M13: ='09. RECEITA'!M26 -> 0.2459519153 | N13: ='09. RECEITA'!N26 -> 0.2459519153 | O13: ='09. RECEITA'!O26 -> 0.2459519153 | P13: ='09. RECEITA'!P26 -> 0.2459519153 | Q13: ='09. RECEITA'!Q26 -> 0.2459519153 | R13: ='09. RECEITA'!R26 -> 0.2459519153 | S13: ='09. RECEITA'!S26 -> 0.2459519153 | T13: ='09. RECEITA'!T26 -> 0.2459519153 | U13: ='09. RECEITA'!U26 -> 0.2459519153 | V13: ='09. RECEITA'!V26 -> 0.2459519153 | X13: 4.673086391
B14: Receita de Aluguel - Terminal Oficinas | C14: ='09. RECEITA'!C38 -> 0 | D14: ='09. RECEITA'!D38 -> 0.1744246332 | E14: ='09. RECEITA'!E38 -> 0.1744246332 | F14: ='09. RECEITA'!F38 -> 0.1744246332 | G14: ='09. RECEITA'!G38 -> 0.1744246332 | H14: ='09. RECEITA'!H38 -> 0.1744246332 | I14: ='09. RECEITA'!I38 -> 0.1744246332 | J14: ='09. RECEITA'!J38 -> 0.1744246332 | K14: ='09. RECEITA'!K38 -> 0.1744246332 | L14: ='09. RECEITA'!L38 -> 0.1744246332 | M14: ='09. RECEITA'!M38 -> 0.1744246332 | N14: ='09. RECEITA'!N38 -> 0.1744246332 | O14: ='09. RECEITA'!O38 -> 0.1744246332 | P14: ='09. RECEITA'!P38 -> 0.1744246332 | Q14: ='09. RECEITA'!Q38 -> 0.1744246332 | R14: ='09. RECEITA'!R38 -> 0.1744246332 | S14: ='09. RECEITA'!S38 -> 0.1744246332 | T14: ='09. RECEITA'!T38 -> 0.1744246332 | U14: ='09. RECEITA'!U38 -> 0.1744246332 | V14: ='09. RECEITA'!V38 -> 0.1744246332 | X14: 3.31406803
B15: Receita de Aluguel - Terminal Nova Rússia | C15: ='09. RECEITA'!C50 -> 0.005945646316 | D15: ='09. RECEITA'!D50 -> 0.005945646316 | E15: ='09. RECEITA'!E50 -> 0.005945646316 | F15: ='09. RECEITA'!F50 -> 0.005945646316 | G15: ='09. RECEITA'!G50 -> 0.005945646316 | H15: ='09. RECEITA'!H50 -> 0.005945646316 | I15: ='09. RECEITA'!I50 -> 0.005945646316 | J15: ='09. RECEITA'!J50 -> 0.005945646316 | K15: ='09. RECEITA'!K50 -> 0.005945646316 | L15: ='09. RECEITA'!L50 -> 0.005945646316 | M15: ='09. RECEITA'!M50 -> 0.005945646316 | N15: ='09. RECEITA'!N50 -> 0.005945646316 | O15: ='09. RECEITA'!O50 -> 0.005945646316 | P15: ='09. RECEITA'!P50 -> 0.005945646316 | Q15: ='09. RECEITA'!Q50 -> 0.005945646316 | R15: ='09. RECEITA'!R50 -> 0.005945646316 | S15: ='09. RECEITA'!S50 -> 0.005945646316 | T15: ='09. RECEITA'!T50 -> 0.005945646316 | U15: ='09. RECEITA'!U50 -> 0.005945646316 | V15: ='09. RECEITA'!V50 -> 0.005945646316 | X15: 0.1189129263
B16: Receita de Aluguel - Terminal Santa Paula | C16: ='09. RECEITA'!C62 -> 0 | D16: ='09. RECEITA'!D62 -> 0.2345307343 | E16: ='09. RECEITA'!E62 -> 0.2345307343 | F16: ='09. RECEITA'!F62 -> 0.2345307343 | G16: ='09. RECEITA'!G62 -> 0.2345307343 | H16: ='09. RECEITA'!H62 -> 0.2345307343 | I16: ='09. RECEITA'!I62 -> 0.2345307343 | J16: ='09. RECEITA'!J62 -> 0.2345307343 | K16: ='09. RECEITA'!K62 -> 0.2345307343 | L16: ='09. RECEITA'!L62 -> 0.2345307343 | M16: ='09. RECEITA'!M62 -> 0.2345307343 | N16: ='09. RECEITA'!N62 -> 0.2345307343 | O16: ='09. RECEITA'!O62 -> 0.2345307343 | P16: ='09. RECEITA'!P62 -> 0.2345307343 | Q16: ='09. RECEITA'!Q62 -> 0.2345307343 | R16: ='09. RECEITA'!R62 -> 0.2345307343 | S16: ='09. RECEITA'!S62 -> 0.2345307343 | T16: ='09. RECEITA'!T62 -> 0.2345307343 | U16: ='09. RECEITA'!U62 -> 0.2345307343 | V16: ='09. RECEITA'!V62 -> 0.2345307343 | X16: 4.456083952
B17: Receita de Aluguel - TEI | C17: ='09. RECEITA'!C72 -> 0 | D17: ='09. RECEITA'!D72 -> 0 | E17: ='09. RECEITA'!E72 -> 0 | F17: ='09. RECEITA'!F72 -> 0 | G17: ='09. RECEITA'!G72 -> 0 | H17: ='09. RECEITA'!H72 -> 0 | I17: ='09. RECEITA'!I72 -> 0 | J17: ='09. RECEITA'!J72 -> 0 | K17: ='09. RECEITA'!K72 -> 0 | L17: ='09. RECEITA'!L72 -> 0 | M17: ='09. RECEITA'!M72 -> 0 | N17: ='09. RECEITA'!N72 -> 0 | O17: ='09. RECEITA'!O72 -> 0 | P17: ='09. RECEITA'!P72 -> 0 | Q17: ='09. RECEITA'!Q72 -> 0 | R17: ='09. RECEITA'!R72 -> 0 | S17: ='09. RECEITA'!S72 -> 0 | T17: ='09. RECEITA'!T72 -> 0 | U17: ='09. RECEITA'!U72 -> 0 | V17: ='09. RECEITA'!V72 -> 0 | X17: 0
B19: PIS E COFINS DEVIDO | C19: =C21*($Z$2+$AA$2) -> 0.00260423256 | D19: =D21*($Z$2+$AA$2) -> 0.06318315622 | E19: 0.06318315622 | F19: 0.06318315622 | G19: 0.06318315622 | H19: 0.06318315622 | I19: 0.06318315622 | J19: 0.06318315622 | K19: 0.06318315622 | L19: 0.06318315622 | M19: =M21*($Z$2+$AA$2) -> 0.06318315622 | N19: 0.06318315622 | O19: 0.06318315622 | P19: 0.06318315622 | Q19: 0.06318315622 | R19: 0.06318315622 | S19: 0.06318315622 | T19: 0.06318315622 | U19: 0.06318315622 | V19: 0.06318315622 | X19: =SUM(C19:L19) -> 0.5712526385
B21: Receita de Aluguel | C21: =C10 -> 0.02815386552 | D21: 0.6830611483 | E21: 0.6830611483 | F21: 0.6830611483 | G21: 0.6830611483 | H21: 0.6830611483 | I21: 0.6830611483 | J21: 0.6830611483 | K21: 0.6830611483 | L21: 0.6830611483 | M21: =M10 -> 0.6830611483 | N21: 0.6830611483 | O21: 0.6830611483 | P21: 0.6830611483 | Q21: 0.6830611483 | R21: 0.6830611483 | S21: 0.6830611483 | T21: 0.6830611483 | U21: 0.6830611483 | V21: 0.6830611483
B23: PIS E COFINS - CRÉDITO | C23: =(C25+C27)*($Z$2+$AA$2) -> 0.4204767044 | D23: =(D25+D27)*($Z$2+$AA$2) -> 0.4545244132 | E23: 0.4488862911 | F23: 0.4434123861 | G23: 0.4380979153 | H23: 0.4329382349 | I23: 0.4279288364 | J23: 0.4230653427 | K23: 0.4183435042 | L23: 0.413759195 | M23: =(M25+M27)*($Z$2+$AA$2) -> 0.4093084094 | N23: 0.4049872582 | O23: 0.4007919659 | P23: 0.3967188665 | Q23: 0.3927644011 | R23: 0.3889251143 | S23: 0.3851976514 | T23: 0.3815787554 | U23: 0.3780652641 | V23: 0.3746541075 | X23: =SUM(C23:L23) -> 4.321432823
B25: Opex exceto mão de obra direta | C25: ='07. OPEX'!C10-'07. OPEX'!C14-'07. OPEX'!C81-'07. OPEX'!C148-'07. OPEX'!C215-'07. OPEX'!C282 -> 2.384972694 | D25: ='07. OPEX'!D10-'07. OPEX'!D14-'07. OPEX'!D81-'07. OPEX'!D148-'07. OPEX'!D215-'07. OPEX'!D282 -> 2.821069055 | E25: ='07. OPEX'!E10-'07. OPEX'!E14-'07. OPEX'!E81-'07. OPEX'!E148-'07. OPEX'!E215-'07. OPEX'!E282 -> 2.821069055 | F25: ='07. OPEX'!F10-'07. OPEX'!F14-'07. OPEX'!F81-'07. OPEX'!F148-'07. OPEX'!F215-'07. OPEX'!F282 -> 2.821069055 | G25: ='07. OPEX'!G10-'07. OPEX'!G14-'07. OPEX'!G81-'07. OPEX'!G148-'07. OPEX'!G215-'07. OPEX'!G282 -> 2.821069055 | H25: ='07. OPEX'!H10-'07. OPEX'!H14-'07. OPEX'!H81-'07. OPEX'!H148-'07. OPEX'!H215-'07. OPEX'!H282 -> 2.821069055 | I25: ='07. OPEX'!I10-'07. OPEX'!I14-'07. OPEX'!I81-'07. OPEX'!I148-'07. OPEX'!I215-'07. OPEX'!I282 -> 2.821069055 | J25: ='07. OPEX'!J10-'07. OPEX'!J14-'07. OPEX'!J81-'07. OPEX'!J148-'07. OPEX'!J215-'07. OPEX'!J282 -> 2.821069055 | K25: ='07. OPEX'!K10-'07. OPEX'!K14-'07. OPEX'!K81-'07. OPEX'!K148-'07. OPEX'!K215-'07. OPEX'!K282 -> 2.821069055 | L25: ='07. OPEX'!L10-'07. OPEX'!L14-'07. OPEX'!L81-'07. OPEX'!L148-'07. OPEX'!L215-'07. OPEX'!L282 -> 2.821069055 | M25: ='07. OPEX'!M10-'07. OPEX'!M14-'07. OPEX'!M81-'07. OPEX'!M148-'07. OPEX'!M215-'07. OPEX'!M282 -> 2.821069055 | N25: ='07. OPEX'!N10-'07. OPEX'!N14-'07. OPEX'!N81-'07. OPEX'!N148-'07. OPEX'!N215-'07. OPEX'!N282 -> 2.821069055 | O25: ='07. OPEX'!O10-'07. OPEX'!O14-'07. OPEX'!O81-'07. OPEX'!O148-'07. OPEX'!O215-'07. OPEX'!O282 -> 2.821069055 | P25: ='07. OPEX'!P10-'07. OPEX'!P14-'07. OPEX'!P81-'07. OPEX'!P148-'07. OPEX'!P215-'07. OPEX'!P282 -> 2.821069055 | Q25: ='07. OPEX'!Q10-'07. OPEX'!Q14-'07. OPEX'!Q81-'07. OPEX'!Q148-'07. OPEX'!Q215-'07. OPEX'!Q282 -> 2.821069055 | R25: ='07. OPEX'!R10-'07. OPEX'!R14-'07. OPEX'!R81-'07. OPEX'!R148-'07. OPEX'!R215-'07. OPEX'!R282 -> 2.821069055 | S25: ='07. OPEX'!S10-'07. OPEX'!S14-'07. OPEX'!S81-'07. OPEX'!S148-'07. OPEX'!S215-'07. OPEX'!S282 -> 2.821069055 | T25: ='07. OPEX'!T10-'07. OPEX'!T14-'07. OPEX'!T81-'07. OPEX'!T148-'07. OPEX'!T215-'07. OPEX'!T282 -> 2.821069055 | U25: ='07. OPEX'!U10-'07. OPEX'!U14-'07. OPEX'!U81-'07. OPEX'!U148-'07. OPEX'!U215-'07. OPEX'!U282 -> 2.821069055 | V25: ='07. OPEX'!V10-'07. OPEX'!V14-'07. OPEX'!V81-'07. OPEX'!V148-'07. OPEX'!V215-'07. OPEX'!V282 -> 2.821069055
B27: Depreciação Real | C27: ='04. D&A Fiscal'!C333 -> 2.160721407 | D27: ='04. D&A Fiscal'!D333 -> 2.092708385 | E27: ='04. D&A Fiscal'!E333 -> 2.031755714 | F27: ='04. D&A Fiscal'!F333 -> 1.972578363 | G27: ='04. D&A Fiscal'!G333 -> 1.915124624 | H27: ='04. D&A Fiscal'!H333 -> 1.859344295 | I27: ='04. D&A Fiscal'!I333 -> 1.805188636 | J27: ='04. D&A Fiscal'!J333 -> 1.752610326 | K27: ='04. D&A Fiscal'!K333 -> 1.701563424 | L27: ='04. D&A Fiscal'!L333 -> 1.652003324 | M27: ='04. D&A Fiscal'!M333 -> 1.603886722 | N27: ='04. D&A Fiscal'!N333 -> 1.557171575 | O27: ='04. D&A Fiscal'!O333 -> 1.511817063 | P27: ='04. D&A Fiscal'!P333 -> 1.467783556 | Q27: ='04. D&A Fiscal'!Q333 -> 1.425032579 | R27: ='04. D&A Fiscal'!R333 -> 1.383526776 | S27: ='04. D&A Fiscal'!S333 -> 1.343229879 | T27: ='04. D&A Fiscal'!T333 -> 1.304106679 | U27: ='04. D&A Fiscal'!U333 -> 1.266122989 | V27: ='04. D&A Fiscal'!V333 -> 1.229245621 | X27: =SUM(C27:L27) -> 18.9435985
B29: Direito de Uso Crédito Tributário | C29: =IF((C10)>0,(C19),0) -> 0.00260423256 | D29: =IF((D10)>0,(D19),0) -> 0.06318315622 | E29: 0.06318315622 | F29: 0.06318315622 | G29: 0.06318315622 | H29: 0.06318315622 | I29: 0.06318315622 | J29: 0.06318315622 | K29: 0.06318315622 | L29: 0.06318315622 | M29: =IF((M10)>0,(M19),0) -> 0.06318315622 | N29: 0.06318315622 | O29: 0.06318315622 | P29: 0.06318315622 | Q29: 0.06318315622 | R29: 0.06318315622 | S29: 0.06318315622 | T29: 0.06318315622 | U29: 0.06318315622 | V29: 0.06318315622 | X29: =SUM(C29:L29) -> 0.5712526385
B31: Uso Crédito Tributário Real | C31: =IF(C29>0,IF(C29<C37,C29,C37),0) -> 0.00260423256 | D31: =IF(D29>0,IF(C35/((1+D88)^1)+D37>0,IF(D29-(C35/((1+D88)^1)+D37)>0,C35/((1+D88)^1)+D37,D29),0),0) -> 0.06318315622 | E31: 0.06318315622 | F31: 0.06318315622 | G31: 0.06318315622 | H31: 0.06318315622 | I31: 0.06318315622 | J31: 0.06318315622 | K31: 0.06318315622 | L31: 0.06318315622 | M31: =IF(M29>0,IF(L35/((1+M88)^1)+M37>0,IF(M29-(L35/((1+M88)^1)+M37)>0,L35/((1+M88)^1)+M37,M29),0),0) -> 0.06318315622 | N31: =IF(N29>0,IF(M35/((1+N88)^1)+N37>0,IF(N29-(M35/((1+N88)^1)+N37)>0,M35/((1+N88)^1)+N37,N29),0),0) -> 0.06318315622 | O31: =IF(O29>0,IF(N35/((1+O88)^1)+O37>0,IF(O29-(N35/((1+O88)^1)+O37)>0,N35/((1+O88)^1)+O37,O29),0),0) -> 0.06318315622 | P31: =IF(P29>0,IF(O35/((1+P88)^1)+P37>0,IF(P29-(O35/((1+P88)^1)+P37)>0,O35/((1+P88)^1)+P37,P29),0),0) -> 0.06318315622 | Q31: =IF(Q29>0,IF(P35/((1+Q88)^1)+Q37>0,IF(Q29-(P35/((1+Q88)^1)+Q37)>0,P35/((1+Q88)^1)+Q37,Q29),0),0) -> 0.06318315622 | R31: =IF(R29>0,IF(Q35/((1+R88)^1)+R37>0,IF(R29-(Q35/((1+R88)^1)+R37)>0,Q35/((1+R88)^1)+R37,R29),0),0) -> 0.06318315622 | S31: =IF(S29>0,IF(R35/((1+S88)^1)+S37>0,IF(S29-(R35/((1+S88)^1)+S37)>0,R35/((1+S88)^1)+S37,S29),0),0) -> 0.06318315622 | T31: =IF(T29>0,IF(S35/((1+T88)^1)+T37>0,IF(T29-(S35/((1+T88)^1)+T37)>0,S35/((1+T88)^1)+T37,T29),0),0) -> 0.06318315622 | U31: =IF(U29>0,IF(T35/((1+U88)^1)+U37>0,IF(U29-(T35/((1+U88)^1)+U37)>0,T35/((1+U88)^1)+U37,U29),0),0) -> 0.06318315622 | V31: =IF(V29>0,IF(U35/((1+V88)^1)+V37>0,IF(V29-(U35/((1+V88)^1)+V37)>0,U35/((1+V88)^1)+V37,V29),0),0) -> 0.06318315622 | X31: =SUM(C31:L31) -> 0.5712526385
B33: Despesas Tributária | C33: =IF(C29>0,IF(C29<C37,C29,C37),0) -> 0.00260423256 | D33: =IF(D29>0,IF(D29<D37,D29,D37),0) -> 0.06318315622 | E33: 0.06318315622 | F33: 0.06318315622 | G33: 0.06318315622 | H33: 0.06318315622 | I33: 0.06318315622 | J33: 0.06318315622 | K33: 0.06318315622 | L33: 0.06318315622 | M33: =IF(M29>0,IF(M29<M37,M29,M37),0) -> 0.06318315622 | N33: 0.06318315622 | O33: 0.06318315622 | P33: 0.06318315622 | Q33: 0.06318315622 | R33: 0.06318315622 | S33: 0.06318315622 | T33: 0.06318315622 | U33: 0.06318315622 | V33: 0.06318315622 | X33: =SUM(C33:L33) -> 0.5712526385
B35: Estoque de Crédito Tributário | C35: =C37-C31 -> 0.4178724718 | D35: =C35/(1+D88)^1+D37-D31 -> 0.796060358 | E35: 1.158577269 | F35: 1.50506153 | G35: 1.836139545 | H35: 2.152414831 | I35: 2.454468817 | J35: 2.742861621 | K35: 3.018132795 | L35: 3.280802054 | M35: =L35/(1+M88)^1+M37-M31 -> 3.531369966 | N35: =M35/(1+N88)^1+N37-N31 -> 3.770318632 | O35: =N35/(1+O88)^1+O37-O31 -> 3.998112336 | P35: =O35/(1+P88)^1+P37-P31 -> 4.215198172 | Q35: =P35/(1+Q88)^1+Q37-Q31 -> 4.422006655 | R35: =Q35/(1+R88)^1+R37-R31 -> 4.618952302 | S35: =R35/(1+S88)^1+S37-S31 -> 4.806434206 | T35: =S35/(1+T88)^1+T37-T31 -> 4.984836576 | U35: =T35/(1+U88)^1+U37-U31 -> 5.154529269 | V35: =U35/(1+V88)^1+V37-V31 -> 5.3158683 | X35: =SUM(C35:L35) -> 19.36239129
B37: Criação de Crédito Tributário Nominal | C37: =SUM(C39:C48) -> 0.4204767044 | D37: 0.4545244132 | E37: 0.4488862911 | F37: 0.4434123861 | G37: 0.4380979153 | H37: 0.4329382349 | I37: 0.4279288364 | J37: 0.4230653427 | K37: 0.4183435042 | L37: 0.413759195 | M37: =SUM(M39:M48) -> 0.4093084094 | N37: 0.4049872582 | O37: 0.4007919659 | P37: 0.3967188665 | Q37: 0.3927644011 | R37: 0.3889251143 | S37: 0.3851976514 | T37: 0.3815787554 | U37: 0.3780652641 | V37: 0.3746541075 | X37: =SUM(C37:L37) -> 4.321432823
B39: 1 | C39: =C$23 -> 0.4204767044 | X39: =SUM(C39:L39) -> 0.4204767044
B40: 2 | D40: =D$23 -> 0.4545244132 | X40: 0.4545244132
B41: 3 | E41: =E$23 -> 0.4488862911 | X41: 0.4488862911
B42: 4 | F42: =F$23 -> 0.4434123861 | X42: 0.4434123861
B43: 5 | G43: =G$23 -> 0.4380979153 | X43: 0.4380979153
B44: 6 | H44: =H$23 -> 0.4329382349 | X44: 0.4329382349
B45: 7 | I45: =I$23 -> 0.4279288364 | X45: 0.4279288364
B46: 8 | J46: =J$23 -> 0.4230653427 | X46: 0.4230653427
B47: 9 | K47: =K$23 -> 0.4183435042 | X47: 0.4183435042
B48: 10 | L48: =L$23 -> 0.413759195 | M48: =M$23 -> 0.4093084094 | N48: 0.4049872582 | O48: 0.4007919659 | P48: 0.3967188665 | Q48: 0.3927644011 | R48: 0.3889251143 | S48: 0.3851976514 | T48: 0.3815787554 | U48: 0.3780652641 | V48: 0.3746541075 | X48: 0.413759195
B51: PIS E COFINS LÍQUIDO | C51: =C33-C31 -> 0 | D51: 0 | E51: 0 | F51: 0 | G51: 0 | H51: 0 | I51: 0 | J51: 0 | K51: 0 | L51: 0 | M51: =M33-M31 -> 0 | N51: 0 | O51: 0 | P51: 0 | Q51: 0 | R51: 0 | S51: 0 | T51: 0 | U51: 0 | V51: 0 | X51: =SUM(C51:L51) -> 0
B53: Opex Total | C53: ='07. OPEX'!C10 -> 7.37793099 | D53: ='07. OPEX'!D10 -> 8.874412794 | E53: ='07. OPEX'!E10 -> 8.874412794 | F53: ='07. OPEX'!F10 -> 8.874412794 | G53: ='07. OPEX'!G10 -> 8.874412794 | H53: ='07. OPEX'!H10 -> 8.874412794 | I53: ='07. OPEX'!I10 -> 8.874412794 | J53: ='07. OPEX'!J10 -> 8.874412794 | K53: ='07. OPEX'!K10 -> 8.874412794 | L53: ='07. OPEX'!L10 -> 8.874412794 | M53: ='07. OPEX'!M10 -> 8.874412794 | N53: ='07. OPEX'!N10 -> 8.874412794 | O53: ='07. OPEX'!O10 -> 8.874412794 | P53: ='07. OPEX'!P10 -> 8.874412794 | Q53: ='07. OPEX'!Q10 -> 8.874412794 | R53: ='07. OPEX'!R10 -> 8.874412794 | S53: ='07. OPEX'!S10 -> 8.874412794 | T53: ='07. OPEX'!T10 -> 8.874412794 | U53: ='07. OPEX'!U10 -> 8.874412794 | V53: ='07. OPEX'!V10 -> 8.874412794 | X53: =SUM(C53:L53) -> 87.24764614
B55: Depreciação Real | C55: ='04. D&A Fiscal'!C333 -> 2.160721407 | D55: ='04. D&A Fiscal'!D333 -> 2.092708385 | E55: ='04. D&A Fiscal'!E333 -> 2.031755714 | F55: ='04. D&A Fiscal'!F333 -> 1.972578363 | G55: ='04. D&A Fiscal'!G333 -> 1.915124624 | H55: ='04. D&A Fiscal'!H333 -> 1.859344295 | I55: ='04. D&A Fiscal'!I333 -> 1.805188636 | J55: ='04. D&A Fiscal'!J333 -> 1.752610326 | K55: ='04. D&A Fiscal'!K333 -> 1.701563424 | L55: ='04. D&A Fiscal'!L333 -> 1.652003324 | M55: ='04. D&A Fiscal'!M333 -> 1.603886722 | N55: ='04. D&A Fiscal'!N333 -> 1.557171575 | O55: ='04. D&A Fiscal'!O333 -> 1.511817063 | P55: ='04. D&A Fiscal'!P333 -> 1.467783556 | Q55: ='04. D&A Fiscal'!Q333 -> 1.425032579 | R55: ='04. D&A Fiscal'!R333 -> 1.383526776 | S55: ='04. D&A Fiscal'!S333 -> 1.343229879 | T55: ='04. D&A Fiscal'!T333 -> 1.304106679 | U55: ='04. D&A Fiscal'!U333 -> 1.266122989 | V55: ='04. D&A Fiscal'!V333 -> 1.229245621 | X55: =SUM(C55:L55) -> 18.9435985
B57: LAIR | C57: =C10-IF(C19<C23,0,C19-C23)-C55-C53 -> -9.510498532 | D57: =D10-IF(D19<D23,0,D19-D23)-D55-D53 -> -10.28406003 | E57: -10.22310736 | F57: -10.16393001 | G57: -10.10647627 | H57: -10.05069594 | I57: -9.996540282 | J57: -9.943961972 | K57: -9.892915069 | L57: -9.84335497 | M57: -9.795238368 | N57: -9.748523221 | O57: -9.703168709 | P57: -9.659135202 | Q57: -9.616384225 | R57: -9.574878421 | S57: -9.534581525 | T57: -9.495458325 | U57: -9.457474635 | V57: -9.420597266 | X57: =SUM(C57:L57) -> -100.0155404
B59: ANO | C59: 1 | D59: 2 | E59: 3 | F59: 4 | G59: 5 | H59: 6 | I59: 7 | J59: 8 | K59: 9 | L59: 10 | M59: 11 | N59: 12 | O59: 13 | P59: 14 | Q59: 15 | R59: 16 | S59: 17 | T59: 18 | U59: 19 | V59: 20 | X59: Total
B61: IRPJ/CSLL | C61: =IF(C57>0,C86-C84,0) -> 0 | D61: 0 | E61: 0 | F61: 0 | G61: 0 | H61: 0 | I61: 0 | J61: 0 | K61: 0 | L61: 0 | M61: =IF(M57>0,M86-M84,0) -> 0 | N61: 0 | O61: 0 | P61: 0 | Q61: 0 | R61: 0 | S61: 0 | T61: 0 | U61: 0 | V61: 0 | X61: =SUM(C61:L61) -> 0
B63: Alíquotas Efetivas (%) | C63: =IFERROR(IF(C57<0,0,C61/C57),0) -> 0 | D63: =IFERROR(IF(D57<0,0,D61/D57),0) -> 0 | E63: 0 | F63: 0 | G63: 0 | H63: 0 | I63: 0 | J63: 0 | K63: 0 | L63: 0 | M63: =IFERROR(IF(M57<0,0,M61/M57),0) -> 0 | N63: 0 | O63: 0 | P63: 0 | Q63: 0 | R63: 0 | S63: 0 | T63: 0 | U63: 0 | V63: 0 | X63: =SUM(C63:L63) -> 0
B65: Criação de Crédito Tributário | C65: =IF(C57<0,-C57*($AB$2+$AC$2),0) -> 3.233569501 | D65: 3.49658041 | E65: 3.475856502 | F65: 3.455736203 | G65: 3.436201932 | H65: 3.41723662 | I65: 3.398823696 | J65: 3.38094707 | K65: 3.363591124 | L65: 3.34674069 | M65: =IF(M57<0,-M57*($AB$2+$AC$2),0) -> 3.330381045 | N65: 3.314497895 | O65: 3.299077361 | P65: 3.284105969 | Q65: 3.269570636 | R65: 3.255458663 | S65: 3.241757719 | T65: 3.22845583 | U65: 3.215541376 | V65: 3.203003071 | X65: =SUM(C65:L65) -> 34.00528375
B67: Estoque de Crédito Tributário | C67: =C69 -> 3.233569501 | D67: =C67/(1+D88)^1+D69-D84 -> 6.628366852 | E67: 9.911164125 | F67: 13.07822564 | G67: 16.13350838 | H67: 19.08083699 | I67: 21.92390815 | J67: 24.66629479 | K67: 27.31145015 | L67: 29.8627117 | M67: =L67/(1+M88)^1+M69-M84 -> 32.32330503 | N67: =M67/(1+N88)^1+N69-N84 -> 34.69634744 | O67: =N67/(1+O88)^1+O69-O84 -> 36.98485157 | P67: =O67/(1+P88)^1+P69-P84 -> 39.19172886 | Q67: =P67/(1+Q88)^1+Q69-Q84 -> 41.31979283 | R67: =Q67/(1+R88)^1+R69-R84 -> 43.37176238 | S67: =R67/(1+S88)^1+S69-S84 -> 45.35026488 | T67: =S67/(1+T88)^1+T69-T84 -> 47.25783921 | U67: =T67/(1+U88)^1+U69-U84 -> 49.09693867 | V67: =U67/(1+V88)^1+V69-V84 -> 50.86993382 | X67: =SUM(C67:L67) -> 171.8300363
B69: Crédito Tributário | C69: =SUM(C71:C80) -> 3.233569501 | D69: 3.49658041 | E69: 3.475856502 | F69: 3.455736203 | G69: 3.436201932 | H69: 3.41723662 | I69: 3.398823696 | J69: 3.38094707 | K69: 3.363591124 | L69: 3.34674069 | M69: =SUM(M71:M80) -> 3.330381045 | N69: 3.314497895 | O69: 3.299077361 | P69: 3.284105969 | Q69: 3.269570636 | R69: 3.255458663 | S69: 3.241757719 | T69: 3.22845583 | U69: 3.215541376 | V69: 3.203003071 | X69: =SUM(C69:L69) -> 34.00528375
B71: 1 | C71: =C$65 -> 3.233569501 | X71: =SUM(C71:L71) -> 3.233569501
B72: 2 | D72: =D$65 -> 3.49658041 | X72: 3.49658041
B73: 3 | E73: =E$65 -> 3.475856502 | X73: 3.475856502
B74: 4 | F74: =F$65 -> 3.455736203 | X74: 3.455736203
B75: 5 | G75: =G$65 -> 3.436201932 | X75: 3.436201932
B76: 6 | H76: =H$65 -> 3.41723662 | X76: 3.41723662
B77: 7 | I77: =I$65 -> 3.398823696 | X77: 3.398823696
B78: 8 | J78: =J$65 -> 3.38094707 | X78: 3.38094707
B79: 9 | K79: =K$65 -> 3.363591124 | X79: 3.363591124
B80: 10 | L80: =L$65 -> 3.34674069 | M80: =M$65 -> 3.330381045 | N80: 3.314497895 | O80: 3.299077361 | P80: 3.284105969 | Q80: 3.269570636 | R80: 3.255458663 | S80: 3.241757719 | T80: 3.22845583 | U80: 3.215541376 | V80: 3.203003071 | X80: 3.34674069
B82: Direito de Uso de Crédito Tributário | C82: =IF(C57>0,C57*($AB$2+$AC$2)*0.3,0) -> 0 | D82: 0 | E82: 0 | F82: 0 | G82: 0 | H82: 0 | I82: 0 | J82: 0 | K82: 0 | L82: 0 | M82: =IF(M57>0,M57*($AB$2+$AC$2)*0.3,0) -> 0 | N82: 0 | O82: 0 | P82: 0 | Q82: 0 | R82: 0 | S82: 0 | T82: 0 | U82: 0 | V82: 0 | X82: =SUM(C82:L82) -> 0
B84: Uso de Crédito Tributário Real | C84: =IF(C57>0,0,C82) -> 0 | D84: =IF(D82>0,IF(C67/((1+D88)^1)>0,IF(D82-C67/((1+D88)^1)>0,C67/((1+D88)^1),D82),0),0) -> 0 | E84: 0 | F84: 0 | G84: 0 | H84: 0 | I84: 0 | J84: 0 | K84: 0 | L84: 0 | M84: =IF(M82>0,IF(L67/((1+M88)^1)>0,IF(M82-L67/((1+M88)^1)>0,L67/((1+M88)^1),M82),0),0) -> 0 | N84: =IF(N82>0,IF(M67/((1+N88)^1)>0,IF(N82-M67/((1+N88)^1)>0,M67/((1+N88)^1),N82),0),0) -> 0 | O84: =IF(O82>0,IF(N67/((1+O88)^1)>0,IF(O82-N67/((1+O88)^1)>0,N67/((1+O88)^1),O82),0),0) -> 0 | P84: =IF(P82>0,IF(O67/((1+P88)^1)>0,IF(P82-O67/((1+P88)^1)>0,O67/((1+P88)^1),P82),0),0) -> 0 | Q84: =IF(Q82>0,IF(P67/((1+Q88)^1)>0,IF(Q82-P67/((1+Q88)^1)>0,P67/((1+Q88)^1),Q82),0),0) -> 0 | R84: =IF(R82>0,IF(Q67/((1+R88)^1)>0,IF(R82-Q67/((1+R88)^1)>0,Q67/((1+R88)^1),R82),0),0) -> 0 | S84: =IF(S82>0,IF(R67/((1+S88)^1)>0,IF(S82-R67/((1+S88)^1)>0,R67/((1+S88)^1),S82),0),0) -> 0 | T84: =IF(T82>0,IF(S67/((1+T88)^1)>0,IF(T82-S67/((1+T88)^1)>0,S67/((1+T88)^1),T82),0),0) -> 0 | U84: =IF(U82>0,IF(T67/((1+U88)^1)>0,IF(U82-T67/((1+U88)^1)>0,T67/((1+U88)^1),U82),0),0) -> 0 | V84: =IF(V82>0,IF(U67/((1+V88)^1)>0,IF(V82-U67/((1+V88)^1)>0,U67/((1+V88)^1),V82),0),0) -> 0 | X84: =SUM(C84:L84) -> 0
B86: Despesas Tributárias | C86: =IF(C57>0,C57*($AB$2+$AC$2),0) -> 0 | D86: 0 | E86: 0 | F86: 0 | G86: 0 | H86: 0 | I86: 0 | J86: 0 | K86: 0 | L86: 0 | M86: =IF(M57>0,M57*($AB$2+$AC$2),0) -> 0 | N86: 0 | O86: 0 | P86: 0 | Q86: 0 | R86: 0 | S86: 0 | T86: 0 | U86: 0 | V86: 0 | X86: =SUM(C86:L86) -> 0
B88: Inflação Anual | C88: ='01. PC'!C46 -> 0.0501 | D88: ='01. PC'!D46 -> 0.0325 | E88: ='01. PC'!E46 -> 0.03 | F88: ='01. PC'!F46 -> 0.03 | G88: ='01. PC'!G46 -> 0.03 | H88: ='01. PC'!H46 -> 0.03 | I88: ='01. PC'!I46 -> 0.03 | J88: ='01. PC'!J46 -> 0.03 | K88: ='01. PC'!K46 -> 0.03 | L88: ='01. PC'!L46 -> 0.03 | M88: ='01. PC'!M46 -> 0.03 | N88: ='01. PC'!N46 -> 0.03 | O88: ='01. PC'!O46 -> 0.03 | P88: ='01. PC'!P46 -> 0.03 | Q88: ='01. PC'!Q46 -> 0.03 | R88: ='01. PC'!R46 -> 0.03 | S88: ='01. PC'!S46 -> 0.03 | T88: ='01. PC'!T46 -> 0.03 | U88: ='01. PC'!U46 -> 0.03 | V88: ='01. PC'!V46 -> 0.03
B90: Inflação Acumulada | C90: =C88 -> 0.0501 | D90: =(1+D88)*(1+C90)-1 -> 0.08422825 | E90: =(1+E88)*(1+D90)-1 -> 0.1167550975 | F90: 0.1502577504 | G90: 0.1847654829 | H90: 0.2203084474 | I90: 0.2569177008 | J90: 0.2946252319 | K90: 0.3334639888 | L90: 0.3734679085 | M90: =(1+M88)*(1+L90)-1 -> 0.4146719458 | N90: =(1+N88)*(1+M90)-1 -> 0.4571121041 | O90: =(1+O88)*(1+N90)-1 -> 0.5008254672 | P90: =(1+P88)*(1+O90)-1 -> 0.5458502313 | Q90: =(1+Q88)*(1+P90)-1 -> 0.5922257382 | R90: =(1+R88)*(1+Q90)-1 -> 0.6399925103 | S90: =(1+S88)*(1+R90)-1 -> 0.6891922857 | T90: =(1+T88)*(1+S90)-1 -> 0.7398680542 | U90: =(1+U88)*(1+T90)-1 -> 0.7920640959 | V90: =(1+V88)*(1+U90)-1 -> 0.8458260187
B92: Simulação VPL - Regime Lucro Real - R$ Milhões
B94: Receita | C94: ='02 (a). FCL Agregado'!C12 -> 0.02562001762 | D94: ='02 (a). FCL Agregado'!D12 -> 0.621585645 | E94: ='02 (a). FCL Agregado'!E12 -> 0.621585645 | F94: ='02 (a). FCL Agregado'!F12 -> 0.621585645 | G94: ='02 (a). FCL Agregado'!G12 -> 0.621585645 | H94: ='02 (a). FCL Agregado'!H12 -> 0.621585645 | I94: ='02 (a). FCL Agregado'!I12 -> 0.621585645 | J94: ='02 (a). FCL Agregado'!J12 -> 0.621585645 | K94: ='02 (a). FCL Agregado'!K12 -> 0.621585645 | L94: ='02 (a). FCL Agregado'!L12 -> 0.621585645 | M94: ='02 (a). FCL Agregado'!W12 -> 0 | N94: ='02 (a). FCL Agregado'!X12 -> 11.83574727 | O94: ='02 (a). FCL Agregado'!Y12 -> 0 | P94: ='02 (a). FCL Agregado'!Z12 -> 5.822482655 | Q94: ='02 (a). FCL Agregado'!AA12 -> 0 | R94: ='02 (a). FCL Agregado'!AB12 -> 0 | S94: ='02 (a). FCL Agregado'!AC12 -> 0 | T94: ='02 (a). FCL Agregado'!AD12 -> 0 | U94: ='02 (a). FCL Agregado'!AE12 -> 0 | V94: ='02 (a). FCL Agregado'!AF12 -> 0 | X94: =SUM(C94:L94) -> 5.619890822
B96: Opex | C96: ='02 (a). FCL Agregado'!C21 -> -7.37793099 | D96: ='02 (a). FCL Agregado'!D21 -> -8.874412794 | E96: ='02 (a). FCL Agregado'!E21 -> -8.874412794 | F96: ='02 (a). FCL Agregado'!F21 -> -8.874412794 | G96: ='02 (a). FCL Agregado'!G21 -> -8.874412794 | H96: ='02 (a). FCL Agregado'!H21 -> -8.874412794 | I96: ='02 (a). FCL Agregado'!I21 -> -8.874412794 | J96: ='02 (a). FCL Agregado'!J21 -> -8.874412794 | K96: ='02 (a). FCL Agregado'!K21 -> -8.874412794 | L96: ='02 (a). FCL Agregado'!L21 -> -8.874412794 | M96: ='02 (a). FCL Agregado'!W21 -> 0 | N96: ='02 (a). FCL Agregado'!X21 -> -175.9917741 | O96: ='02 (a). FCL Agregado'!Y21 -> 0 | P96: ='02 (a). FCL Agregado'!Z21 -> -90.140061 | Q96: ='02 (a). FCL Agregado'!AA21 -> 0 | R96: ='02 (a). FCL Agregado'!AB21 -> 0 | S96: ='02 (a). FCL Agregado'!AC21 -> 0 | T96: ='02 (a). FCL Agregado'!AD21 -> 0 | U96: ='02 (a). FCL Agregado'!AE21 -> 0 | V96: ='02 (a). FCL Agregado'!AF21 -> 0 | X96: =SUM(C96:L96) -> -87.24764614
B98: CAPEX | C98: ='02 (a). FCL Agregado'!C30 -> -45.379471 | D98: ='02 (a). FCL Agregado'!D30 -> 0 | E98: ='02 (a). FCL Agregado'!E30 -> 0 | F98: ='02 (a). FCL Agregado'!F30 -> 0 | G98: ='02 (a). FCL Agregado'!G30 -> 0 | H98: ='02 (a). FCL Agregado'!H30 -> 0 | I98: ='02 (a). FCL Agregado'!I30 -> 0 | J98: ='02 (a). FCL Agregado'!J30 -> 0 | K98: ='02 (a). FCL Agregado'!K30 -> 0 | L98: ='02 (a). FCL Agregado'!L30 -> 0 | M98: ='02 (a). FCL Agregado'!W30 -> 0 | N98: ='02 (a). FCL Agregado'!X30 -> -45.379471 | O98: ='02 (a). FCL Agregado'!Y30 -> 0 | P98: ='02 (a). FCL Agregado'!Z30 -> -45.379471 | Q98: ='02 (a). FCL Agregado'!AA30 -> 0 | R98: ='02 (a). FCL Agregado'!AB30 -> 0 | S98: ='02 (a). FCL Agregado'!AC30 -> 0 | T98: ='02 (a). FCL Agregado'!AD30 -> 0 | U98: ='02 (a). FCL Agregado'!AE30 -> 0 | V98: ='02 (a). FCL Agregado'!AF30 -> 0 | X98: =SUM(C98:L98) -> -45.379471
B100: Impostos Total | C100: =-(C51+C61) -> 0 | D100: =-(D51+D61) -> 0 | E100: 0 | F100: 0 | G100: 0 | H100: 0 | I100: 0 | J100: 0 | K100: 0 | L100: 0 | M100: =-(M51+M61) -> 0 | N100: 0 | O100: 0 | P100: 0 | Q100: 0 | R100: 0 | S100: 0 | T100: 0 | U100: 0 | V100: 0 | X100: =SUM(C100:L100) -> 0
B102: NIG | C102: ='02 (a). FCL Agregado'!C45 -> -0.6148275825 | D102: ='02 (a). FCL Agregado'!D45 -> -0.1440597433 | E102: ='02 (a). FCL Agregado'!E45 -> -0.02153983688 | F102: ='02 (a). FCL Agregado'!F45 -> -0.02153983688 | G102: ='02 (a). FCL Agregado'!G45 -> -0.02153983688 | H102: ='02 (a). FCL Agregado'!H45 -> -0.02153983688 | I102: ='02 (a). FCL Agregado'!I45 -> -0.02153983688 | J102: ='02 (a). FCL Agregado'!J45 -> -0.02153983688 | K102: ='02 (a). FCL Agregado'!K45 -> -0.02153983688 | L102: ='02 (a). FCL Agregado'!L45 -> -0.02153983688 | M102: ='02 (a). FCL Agregado'!W45 -> 0 | N102: ='02 (a). FCL Agregado'!X45 -> -0.4070699901 | O102: ='02 (a). FCL Agregado'!Y45 -> 0 | P102: ='02 (a). FCL Agregado'!Z45 -> -0.769301155 | Q102: ='02 (a). FCL Agregado'!AA45 -> 0 | R102: ='02 (a). FCL Agregado'!AB45 -> 0 | S102: ='02 (a). FCL Agregado'!AC45 -> 0 | T102: ='02 (a). FCL Agregado'!AD45 -> 0 | U102: ='02 (a). FCL Agregado'!AE45 -> 0 | V102: ='02 (a). FCL Agregado'!AF45 -> 0 | X102: =SUM(C102:L102) -> -0.9312060209
B104: Saldo Caixa | C104: =C94+C96+C98+C100+C102 -> -53.34660955 | D104: =D94+D96+D98+D100+D102 -> -8.396886892 | E104: -8.274366986 | F104: -8.274366986 | G104: -8.274366986 | H104: -8.274366986 | I104: -8.274366986 | J104: -8.274366986 | K104: -8.274366986 | L104: -8.274366986 | M104: =M94+M96+M98+M100+M102 -> 0 | N104: -209.9425678 | O104: 0 | P104: -130.4663505 | Q104: 0 | R104: 0 | S104: 0 | T104: 0 | U104: 0 | V104: 0 | X104: =SUM(C104:L104) -> -127.9384323
B106: VPL - Ano 0 - Real | C106: =C104 -> -53.34660955 | D106: =D104/((1+D112)*(1+C116)) -> -7.144454989 | E106: -6.493980508 | F106: -5.990131844 | G106: -5.525375301 | H106: -5.096677838 | I106: -4.701241739 | J106: -4.336486352 | K106: -4.000031252 | L106: -3.689680705 | M106: =M104/((1+M112)*(1+L116)) -> 0 | N106: =N104/((1+N112)*(1+M116)) -> -79.65358228 | O106: =O104/((1+O112)*(1+N116)) -> 0 | P106: =P104/((1+P112)*(1+O116)) -> -42.1166794 | Q106: =Q104/((1+Q112)*(1+P116)) -> 0 | R106: =R104/((1+R112)*(1+Q116)) -> 0 | S106: =S104/((1+S112)*(1+R116)) -> 0 | T106: =T104/((1+T112)*(1+S116)) -> 0 | U106: =U104/((1+U112)*(1+T116)) -> 0 | V106: =V104/((1+V112)*(1+U116)) -> 0 | X106: =SUM(C106:L106) -> -100.3246701
B108: VPL - Ano 0 - Presumido | C108: ='08. (b)TRIBUTOS LPRESUMID'!C47 -> -53.35070031 | D108: ='08. (b)TRIBUTOS LPRESUMID'!D47 -> -7.228900389 | E108: ='08. (b)TRIBUTOS LPRESUMID'!E47 -> -6.571874041 | F108: ='08. (b)TRIBUTOS LPRESUMID'!F47 -> -6.061981848 | G108: ='08. (b)TRIBUTOS LPRESUMID'!G47 -> -5.591650677 | H108: ='08. (b)TRIBUTOS LPRESUMID'!H47 -> -5.157811105 | I108: ='08. (b)TRIBUTOS LPRESUMID'!I47 -> -4.757631856 | J108: ='08. (b)TRIBUTOS LPRESUMID'!J47 -> -4.388501328 | K108: ='08. (b)TRIBUTOS LPRESUMID'!K47 -> -4.048010541 | L108: ='08. (b)TRIBUTOS LPRESUMID'!L47 -> -3.733937423 | M108: ='08. (b)TRIBUTOS LPRESUMID'!W47 -> 0 | N108: ='08. (b)TRIBUTOS LPRESUMID'!X47 -> -100.8909995 | O108: ='08. (b)TRIBUTOS LPRESUMID'!Y47 -> 0 | P108: ='08. (b)TRIBUTOS LPRESUMID'!Z47 -> 0 | Q108: ='08. (b)TRIBUTOS LPRESUMID'!AA47 -> 0 | R108: ='08. (b)TRIBUTOS LPRESUMID'!AB47 -> 0 | S108: ='08. (b)TRIBUTOS LPRESUMID'!AC47 -> 0 | T108: ='08. (b)TRIBUTOS LPRESUMID'!AD47 -> 0 | U108: ='08. (b)TRIBUTOS LPRESUMID'!AE47 -> 0 | V108: ='08. (b)TRIBUTOS LPRESUMID'!AF47 -> 0 | X108: =SUM(C108:L108) -> -100.8909995
B110: Regime escolhido | C110: =IF(C108>C106,"Pres.","Real") -> Real | D110: =IF(D108>D106,"Pres.","Real") -> Real | E110: Real | F110: Real | G110: Real | H110: Real | I110: Real | J110: Real | K110: Real | L110: Real | M110: =IF(M108>M106,"Pres.","Real") -> Real | N110: Real | O110: Real | P110: Pres. | Q110: Real | R110: Real | S110: Real | T110: Real | U110: Real | V110: Real
B112: WACC real | C112: ='01. PC'!$C$9 -> 0.08411311767 | D112: ='01. PC'!$C$9 -> 0.08411311767 | E112: ='01. PC'!$C$9 -> 0.08411311767 | F112: ='01. PC'!$C$9 -> 0.08411311767 | G112: ='01. PC'!$C$9 -> 0.08411311767 | H112: ='01. PC'!$C$9 -> 0.08411311767 | I112: ='01. PC'!$C$9 -> 0.08411311767 | J112: ='01. PC'!$C$9 -> 0.08411311767 | K112: ='01. PC'!$C$9 -> 0.08411311767 | L112: ='01. PC'!$C$9 -> 0.08411311767 | M112: ='01. PC'!$C$9 -> 0.08411311767 | N112: ='01. PC'!$C$9 -> 0.08411311767 | O112: ='01. PC'!$C$9 -> 0.08411311767 | P112: ='01. PC'!$C$9 -> 0.08411311767 | Q112: ='01. PC'!$C$9 -> 0.08411311767 | R112: ='01. PC'!$C$9 -> 0.08411311767 | S112: ='01. PC'!$C$9 -> 0.08411311767 | T112: ='01. PC'!$C$9 -> 0.08411311767 | U112: ='01. PC'!$C$9 -> 0.08411311767 | V112: ='01. PC'!$C$9 -> 0.08411311767
B114: WACC Escohido | C114: =IF(C110="Real",C112,'08. (b)TRIBUTOS LPRESUMID'!C51) -> 0.08411311767 | D114: =IF(D110="Real",D112,'08. (b)TRIBUTOS LPRESUMID'!D51) -> 0.08411311767 | E114: =IF(E110="Real",E112,'08. (b)TRIBUTOS LPRESUMID'!E51) -> 0.08411311767 | F114: =IF(F110="Real",F112,'08. (b)TRIBUTOS LPRESUMID'!F51) -> 0.08411311767 | G114: =IF(G110="Real",G112,'08. (b)TRIBUTOS LPRESUMID'!G51) -> 0.08411311767 | H114: =IF(H110="Real",H112,'08. (b)TRIBUTOS LPRESUMID'!H51) -> 0.08411311767 | I114: =IF(I110="Real",I112,'08. (b)TRIBUTOS LPRESUMID'!I51) -> 0.08411311767 | J114: =IF(J110="Real",J112,'08. (b)TRIBUTOS LPRESUMID'!J51) -> 0.08411311767 | K114: =IF(K110="Real",K112,'08. (b)TRIBUTOS LPRESUMID'!K51) -> 0.08411311767 | L114: =IF(L110="Real",L112,'08. (b)TRIBUTOS LPRESUMID'!L51) -> 0.08411311767 | M114: =IF(M110="Real",M112,'08. (b)TRIBUTOS LPRESUMID'!W51) -> 0.08411311767 | N114: =IF(N110="Real",N112,'08. (b)TRIBUTOS LPRESUMID'!X51) -> 0.08411311767 | O114: =IF(O110="Real",O112,'08. (b)TRIBUTOS LPRESUMID'!Y51) -> 0.08411311767 | P114: =IF(P110="Real",P112,'08. (b)TRIBUTOS LPRESUMID'!Z51) -> 0 | Q114: =IF(Q110="Real",Q112,'08. (b)TRIBUTOS LPRESUMID'!AA51) -> 0.08411311767 | R114: =IF(R110="Real",R112,'08. (b)TRIBUTOS LPRESUMID'!AB51) -> 0.08411311767 | S114: =IF(S110="Real",S112,'08. (b)TRIBUTOS LPRESUMID'!AC51) -> 0.08411311767 | T114: =IF(T110="Real",T112,'08. (b)TRIBUTOS LPRESUMID'!AD51) -> 0.08411311767 | U114: =IF(U110="Real",U112,'08. (b)TRIBUTOS LPRESUMID'!AE51) -> 0.08411311767 | V114: =IF(V110="Real",V112,'08. (b)TRIBUTOS LPRESUMID'!AF51) -> 0.08411311767
B116: WACC Acumulado | C116: =IF(C110="Real",C112,'08. (b)TRIBUTOS LPRESUMID'!C55) -> 0.08411311767 | D116: =(1+C116)*(1+D114)-1 -> 0.1753012519 | E116: 0.2741595044 | F116: 0.3813330327 | G116: 0.4975212606 | H116: 0.6234824427 | I116: 0.7600386124 | J116: 0.9080809473 | K116: 1.068575585 | L116: 1.242569926 | M116: =(1+L116)*(1+M114)-1 -> 1.431199474 | N116: =(1+M116)*(1+N114)-1 -> 1.635695242 | O116: =(1+N116)*(1+O114)-1 -> 1.857391786 | P116: =(1+O116)*(1+P114)-1 -> 1.857391786 | Q116: =(1+P116)*(1+Q114)-1 -> 2.097735917 | R116: =(1+Q116)*(1+R114)-1 -> 2.358296143 | S116: =(1+R116)*(1+S114)-1 -> 2.640772901 | T116: =(1+S116)*(1+T114)-1 -> 2.947009661 | U116: =(1+T116)*(1+U114)-1 -> 3.279004949 | V116: =(1+U116)*(1+V114)-1 -> 3.638925396

Sheet 08. (b)TRIBUTOS LPRESUMID
Y1: REGIME | Z1: PIS | AA1: COFINS | AB1: IR | AC1: CS | AD1: ISS | AE1: INSS | AF1: RESEGE | AG1: PRESUNÇÃO
Y2: PRESUMIDO | Z2: 0.0065 | AA2: 0.03 | AB2: 0.25 | AC2: 0.09 | AD2: 0 | AE2: 0 | AF2: 0 | AG2: 0.32
B6: Tributos Agregados (R$ Milhões)
B8: ANO | C8: 1 | D8: 2 | E8: 3 | F8: 4 | G8: 5 | H8: 6 | I8: 7 | J8: 8 | K8: 9 | L8: 10 | M8: 11 | N8: 12 | O8: 13 | P8: 14 | Q8: 15 | R8: 16 | S8: 17 | T8: 18 | U8: 19 | V8: 20 | X8: Total
B10: Receitas | C10: =SUM(C12:C17) -> 0.02815386552 | D10: =SUM(D12:D17) -> 0.6830611483 | E10: 0.6830611483 | F10: 0.6830611483 | G10: 0.6830611483 | H10: 0.6830611483 | I10: 0.6830611483 | J10: 0.6830611483 | K10: 0.6830611483 | L10: 0.6830611483 | M10: 0.6830611483 | N10: 0.6830611483 | O10: 0.6830611483 | P10: 0.6830611483 | Q10: 0.6830611483 | R10: 0.6830611483 | S10: 0.6830611483 | T10: 0.6830611483 | U10: 0.6830611483 | V10: 0.6830611483 | X10: =SUM(C10:V10) -> 13.00631568
B12: Receita de Aluguel - Terminal Central | C12: ='09. RECEITA'!C14 -> 0.0222082192 | D12: ='09. RECEITA'!D14 -> 0.0222082192 | E12: ='09. RECEITA'!E14 -> 0.0222082192 | F12: ='09. RECEITA'!F14 -> 0.0222082192 | G12: ='09. RECEITA'!G14 -> 0.0222082192 | H12: ='09. RECEITA'!H14 -> 0.0222082192 | I12: ='09. RECEITA'!I14 -> 0.0222082192 | J12: ='09. RECEITA'!J14 -> 0.0222082192 | K12: ='09. RECEITA'!K14 -> 0.0222082192 | L12: ='09. RECEITA'!L14 -> 0.0222082192 | M12: ='09. RECEITA'!M14 -> 0.0222082192 | N12: ='09. RECEITA'!N14 -> 0.0222082192 | O12: ='09. RECEITA'!O14 -> 0.0222082192 | P12: ='09. RECEITA'!P14 -> 0.0222082192 | Q12: ='09. RECEITA'!Q14 -> 0.0222082192 | R12: ='09. RECEITA'!R14 -> 0.0222082192 | S12: ='09. RECEITA'!S14 -> 0.0222082192 | T12: ='09. RECEITA'!T14 -> 0.0222082192 | U12: ='09. RECEITA'!U14 -> 0.0222082192 | V12: ='09. RECEITA'!V14 -> 0.0222082192 | X12: =SUM(C12:L12) -> 0.222082192
B13: Receita de Aluguel - Terminal Uvaranas | C13: ='09. RECEITA'!C26 -> 0 | D13: ='09. RECEITA'!D26 -> 0.2459519153 | E13: ='09. RECEITA'!E26 -> 0.2459519153 | F13: ='09. RECEITA'!F26 -> 0.2459519153 | G13: ='09. RECEITA'!G26 -> 0.2459519153 | H13: ='09. RECEITA'!H26 -> 0.2459519153 | I13: ='09. RECEITA'!I26 -> 0.2459519153 | J13: ='09. RECEITA'!J26 -> 0.2459519153 | K13: ='09. RECEITA'!K26 -> 0.2459519153 | L13: ='09. RECEITA'!L26 -> 0.2459519153 | M13: ='09. RECEITA'!M26 -> 0.2459519153 | N13: ='09. RECEITA'!N26 -> 0.2459519153 | O13: ='09. RECEITA'!O26 -> 0.2459519153 | P13: ='09. RECEITA'!P26 -> 0.2459519153 | Q13: ='09. RECEITA'!Q26 -> 0.2459519153 | R13: ='09. RECEITA'!R26 -> 0.2459519153 | S13: ='09. RECEITA'!S26 -> 0.2459519153 | T13: ='09. RECEITA'!T26 -> 0.2459519153 | U13: ='09. RECEITA'!U26 -> 0.2459519153 | V13: ='09. RECEITA'!V26 -> 0.2459519153 | X13: =SUM(C13:L13) -> 2.213567238
B14: Receita de Aluguel - Terminal Oficinas | C14: ='09. RECEITA'!C38 -> 0 | D14: ='09. RECEITA'!D38 -> 0.1744246332 | E14: ='09. RECEITA'!E38 -> 0.1744246332 | F14: ='09. RECEITA'!F38 -> 0.1744246332 | G14: ='09. RECEITA'!G38 -> 0.1744246332 | H14: ='09. RECEITA'!H38 -> 0.1744246332 | I14: ='09. RECEITA'!I38 -> 0.1744246332 | J14: ='09. RECEITA'!J38 -> 0.1744246332 | K14: ='09. RECEITA'!K38 -> 0.1744246332 | L14: ='09. RECEITA'!L38 -> 0.1744246332 | M14: ='09. RECEITA'!M38 -> 0.1744246332 | N14: ='09. RECEITA'!N38 -> 0.1744246332 | O14: ='09. RECEITA'!O38 -> 0.1744246332 | P14: ='09. RECEITA'!P38 -> 0.1744246332 | Q14: ='09. RECEITA'!Q38 -> 0.1744246332 | R14: ='09. RECEITA'!R38 -> 0.1744246332 | S14: ='09. RECEITA'!S38 -> 0.1744246332 | T14: ='09. RECEITA'!T38 -> 0.1744246332 | U14: ='09. RECEITA'!U38 -> 0.1744246332 | V14: ='09. RECEITA'!V38 -> 0.1744246332 | X14: =SUM(C14:L14) -> 1.569821699
B15: Receita de Aluguel - Terminal Nova Rússia | C15: ='09. RECEITA'!C50 -> 0.005945646316 | D15: ='09. RECEITA'!D50 -> 0.005945646316 | E15: ='09. RECEITA'!E50 -> 0.005945646316 | F15: ='09. RECEITA'!F50 -> 0.005945646316 | G15: ='09. RECEITA'!G50 -> 0.005945646316 | H15: ='09. RECEITA'!H50 -> 0.005945646316 | I15: ='09. RECEITA'!I50 -> 0.005945646316 | J15: ='09. RECEITA'!J50 -> 0.005945646316 | K15: ='09. RECEITA'!K50 -> 0.005945646316 | L15: ='09. RECEITA'!L50 -> 0.005945646316 | M15: ='09. RECEITA'!M50 -> 0.005945646316 | N15: ='09. RECEITA'!N50 -> 0.005945646316 | O15: ='09. RECEITA'!O50 -> 0.005945646316 | P15: ='09. RECEITA'!P50 -> 0.005945646316 | Q15: ='09. RECEITA'!Q50 -> 0.005945646316 | R15: ='09. RECEITA'!R50 -> 0.005945646316 | S15: ='09. RECEITA'!S50 -> 0.005945646316 | T15: ='09. RECEITA'!T50 -> 0.005945646316 | U15: ='09. RECEITA'!U50 -> 0.005945646316 | V15: ='09. RECEITA'!V50 -> 0.005945646316 | X15: =SUM(C15:L15) -> 0.05945646316
B16: Receita de Aluguel - Terminal Santa Paula | C16: ='09. RECEITA'!C62 -> 0 | D16: ='09. RECEITA'!D62 -> 0.2345307343 | E16: ='09. RECEITA'!E62 -> 0.2345307343 | F16: ='09. RECEITA'!F62 -> 0.2345307343 | G16: ='09. RECEITA'!G62 -> 0.2345307343 | H16: ='09. RECEITA'!H62 -> 0.2345307343 | I16: ='09. RECEITA'!I62 -> 0.2345307343 | J16: ='09. RECEITA'!J62 -> 0.2345307343 | K16: ='09. RECEITA'!K62 -> 0.2345307343 | L16: ='09. RECEITA'!L62 -> 0.2345307343 | M16: ='09. RECEITA'!M62 -> 0.2345307343 | N16: ='09. RECEITA'!N62 -> 0.2345307343 | O16: ='09. RECEITA'!O62 -> 0.2345307343 | P16: ='09. RECEITA'!P62 -> 0.2345307343 | Q16: ='09. RECEITA'!Q62 -> 0.2345307343 | R16: ='09. RECEITA'!R62 -> 0.2345307343 | S16: ='09. RECEITA'!S62 -> 0.2345307343 | T16: ='09. RECEITA'!T62 -> 0.2345307343 | U16: ='09. RECEITA'!U62 -> 0.2345307343 | V16: ='09. RECEITA'!V62 -> 0.2345307343 | X16: =SUM(C16:L16) -> 2.110776609
B17: Receita de Aluguel - TEI | C17: ='09. RECEITA'!C72 -> 0 | D17: ='09. RECEITA'!D72 -> 0 | E17: ='09. RECEITA'!E72 -> 0 | F17: ='09. RECEITA'!F72 -> 0 | G17: ='09. RECEITA'!G72 -> 0 | H17: ='09. RECEITA'!H72 -> 0 | I17: ='09. RECEITA'!I72 -> 0 | J17: ='09. RECEITA'!J72 -> 0 | K17: ='09. RECEITA'!K72 -> 0 | L17: ='09. RECEITA'!L72 -> 0 | M17: ='09. RECEITA'!M72 -> 0 | N17: ='09. RECEITA'!N72 -> 0 | O17: ='09. RECEITA'!O72 -> 0 | P17: ='09. RECEITA'!P72 -> 0 | Q17: ='09. RECEITA'!Q72 -> 0 | R17: ='09. RECEITA'!R72 -> 0 | S17: ='09. RECEITA'!S72 -> 0 | T17: ='09. RECEITA'!T72 -> 0 | U17: ='09. RECEITA'!U72 -> 0 | V17: ='09. RECEITA'!V72 -> 0 | X17: =SUM(C17:V17) -> 0
B19: PIS e Cofins | C19: =(C21)*($Z$2+$AA$2) -> 0.001027616091 | D19: =(D21)*($Z$2+$AA$2) -> 0.02493173191 | E19: 0.02493173191 | F19: 0.02493173191 | G19: 0.02493173191 | H19: 0.02493173191 | I19: 0.02493173191 | J19: 0.02493173191 | K19: 0.02493173191 | L19: 0.02493173191 | M19: =(M21)*($Z$2+$AA$2) -> 0.02493173191 | N19: 0.02493173191 | O19: 0.02493173191 | P19: 0.02493173191 | Q19: 0.02493173191 | R19: 0.02493173191 | S19: 0.02493173191 | T19: 0.02493173191 | U19: 0.02493173191 | V19: 0.02493173191 | X19: =SUM(C19:V19) -> 0.4747305224
B21: Receita de Aluguel | C21: =C10 -> 0.02815386552 | D21: =D10 -> 0.6830611483 | E21: 0.6830611483 | F21: 0.6830611483 | G21: 0.6830611483 | H21: 0.6830611483 | I21: 0.6830611483 | J21: 0.6830611483 | K21: 0.6830611483 | L21: 0.6830611483 | M21: =M10 -> 0.6830611483 | N21: 0.6830611483 | O21: 0.6830611483 | P21: 0.6830611483 | Q21: 0.6830611483 | R21: 0.6830611483 | S21: 0.6830611483 | T21: 0.6830611483 | U21: 0.6830611483 | V21: 0.6830611483 | X21: =SUM(C21:L21) -> 6.1757042
B23: LAIR Presumido | C23: =C10*$AG$2 -> 0.009009236965 | D23: 0.2185795675 | E23: 0.2185795675 | F23: 0.2185795675 | G23: 0.2185795675 | H23: 0.2185795675 | I23: 0.2185795675 | J23: 0.2185795675 | K23: 0.2185795675 | L23: 0.2185795675 | M23: =M10*$AG$2 -> 0.2185795675 | N23: 0.2185795675 | O23: 0.2185795675 | P23: 0.2185795675 | Q23: 0.2185795675 | R23: 0.2185795675 | S23: 0.2185795675 | T23: 0.2185795675 | U23: 0.2185795675 | V23: 0.2185795675 | X23: =SUM(C23:V23) -> 4.162021019
B25: IRPJ/CSLL | C25: =IF(C23<=0,C23*0%,C23*($AB$2+$AC$2)) -> 0.003063140568 | D25: =IF(D23<=0,D23*0%,D23*($AB$2+$AC$2)) -> 0.07431705294 | E25: 0.07431705294 | F25: 0.07431705294 | G25: 0.07431705294 | H25: 0.07431705294 | I25: 0.07431705294 | J25: 0.07431705294 | K25: 0.07431705294 | L25: 0.07431705294 | M25: =IF(M23<=0,M23*0%,M23*($AB$2+$AC$2)) -> 0.07431705294 | N25: 0.07431705294 | O25: 0.07431705294 | P25: 0.07431705294 | Q25: 0.07431705294 | R25: 0.07431705294 | S25: 0.07431705294 | T25: 0.07431705294 | U25: 0.07431705294 | V25: 0.07431705294 | X25: =SUM(C25:V25) -> 1.415087146
B27: Total de Impostos (R$ Mil) | C27: =C19+C25 -> 0.00409075666 | D27: =D19+D25 -> 0.09924878485 | E27: 0.09924878485 | F27: 0.09924878485 | G27: 0.09924878485 | H27: 0.09924878485 | I27: 0.09924878485 | J27: 0.09924878485 | K27: 0.09924878485 | L27: 0.09924878485 | M27: =M19+M25 -> 0.09924878485 | N27: 0.09924878485 | O27: 0.09924878485 | P27: 0.09924878485 | Q27: 0.09924878485 | R27: 0.09924878485 | S27: 0.09924878485 | T27: 0.09924878485 | U27: 0.09924878485 | V27: 0.09924878485 | X27: =SUM(C27:V27) -> 1.889817669
B30: Simulação VPL - Regime Lucro Presumido - R$ Milhões
B33: Receita | C33: ='02 (a). FCL Agregado'!C12 -> 0.02562001762 | D33: ='02 (a). FCL Agregado'!D12 -> 0.621585645 | E33: ='02 (a). FCL Agregado'!E12 -> 0.621585645 | F33: ='02 (a). FCL Agregado'!F12 -> 0.621585645 | G33: ='02 (a). FCL Agregado'!G12 -> 0.621585645 | H33: ='02 (a). FCL Agregado'!H12 -> 0.621585645 | I33: ='02 (a). FCL Agregado'!I12 -> 0.621585645 | J33: ='02 (a). FCL Agregado'!J12 -> 0.621585645 | K33: ='02 (a). FCL Agregado'!K12 -> 0.621585645 | L33: ='02 (a). FCL Agregado'!L12 -> 0.621585645 | M33: ='02 (a). FCL Agregado'!M12 -> 0.621585645 | N33: ='02 (a). FCL Agregado'!N12 -> 0.621585645 | O33: ='02 (a). FCL Agregado'!O12 -> 0.621585645 | P33: ='02 (a). FCL Agregado'!P12 -> 0.621585645 | Q33: ='02 (a). FCL Agregado'!Q12 -> 0.621585645 | R33: ='02 (a). FCL Agregado'!R12 -> 0.621585645 | S33: ='02 (a). FCL Agregado'!S12 -> 0.621585645 | T33: ='02 (a). FCL Agregado'!T12 -> 0.621585645 | U33: ='02 (a). FCL Agregado'!U12 -> 0.621585645 | V33: ='02 (a). FCL Agregado'!V12 -> 0.621585645 | X33: =SUM(C33:L33) -> 5.619890822
B35: Opex | C35: ='02 (a). FCL Agregado'!C21 -> -7.37793099 | D35: ='02 (a). FCL Agregado'!D21 -> -8.874412794 | E35: ='02 (a). FCL Agregado'!E21 -> -8.874412794 | F35: ='02 (a). FCL Agregado'!F21 -> -8.874412794 | G35: ='02 (a). FCL Agregado'!G21 -> -8.874412794 | H35: ='02 (a). FCL Agregado'!H21 -> -8.874412794 | I35: ='02 (a). FCL Agregado'!I21 -> -8.874412794 | J35: ='02 (a). FCL Agregado'!J21 -> -8.874412794 | K35: ='02 (a). FCL Agregado'!K21 -> -8.874412794 | L35: ='02 (a). FCL Agregado'!L21 -> -8.874412794 | M35: ='02 (a). FCL Agregado'!M21 -> -8.874412794 | N35: ='02 (a). FCL Agregado'!N21 -> -8.874412794 | O35: ='02 (a). FCL Agregado'!O21 -> -8.874412794 | P35: ='02 (a). FCL Agregado'!P21 -> -8.874412794 | Q35: ='02 (a). FCL Agregado'!Q21 -> -8.874412794 | R35: ='02 (a). FCL Agregado'!R21 -> -8.874412794 | S35: ='02 (a). FCL Agregado'!S21 -> -8.874412794 | T35: ='02 (a). FCL Agregado'!T21 -> -8.874412794 | U35: ='02 (a). FCL Agregado'!U21 -> -8.874412794 | V35: ='02 (a). FCL Agregado'!V21 -> -8.874412794 | X35: =SUM(C35:L35) -> -87.24764614
B37: CAPEX | C37: ='02 (a). FCL Agregado'!C30 -> -45.379471 | D37: ='02 (a). FCL Agregado'!D30 -> 0 | E37: ='02 (a). FCL Agregado'!E30 -> 0 | F37: ='02 (a). FCL Agregado'!F30 -> 0 | G37: ='02 (a). FCL Agregado'!G30 -> 0 | H37: ='02 (a). FCL Agregado'!H30 -> 0 | I37: ='02 (a). FCL Agregado'!I30 -> 0 | J37: ='02 (a). FCL Agregado'!J30 -> 0 | K37: ='02 (a). FCL Agregado'!K30 -> 0 | L37: ='02 (a). FCL Agregado'!L30 -> 0 | M37: ='02 (a). FCL Agregado'!M30 -> 0 | N37: ='02 (a). FCL Agregado'!N30 -> 0 | O37: ='02 (a). FCL Agregado'!O30 -> 0 | P37: ='02 (a). FCL Agregado'!P30 -> 0 | Q37: ='02 (a). FCL Agregado'!Q30 -> 0 | R37: ='02 (a). FCL Agregado'!R30 -> 0 | S37: ='02 (a). FCL Agregado'!S30 -> 0 | T37: ='02 (a). FCL Agregado'!T30 -> 0 | U37: ='02 (a). FCL Agregado'!U30 -> 0 | V37: ='02 (a). FCL Agregado'!V30 -> 0 | X37: =SUM(C37:L37) -> -45.379471
B39: Impostos Total | C39: =-C27 -> -0.00409075666 | D39: =-D27 -> -0.09924878485 | E39: -0.09924878485 | F39: -0.09924878485 | G39: -0.09924878485 | H39: -0.09924878485 | I39: -0.09924878485 | J39: -0.09924878485 | K39: -0.09924878485 | L39: -0.09924878485 | M39: =-M27 -> -0.09924878485 | N39: -0.09924878485 | O39: -0.09924878485 | P39: -0.09924878485 | Q39: -0.09924878485 | R39: -0.09924878485 | S39: -0.09924878485 | T39: -0.09924878485 | U39: -0.09924878485 | V39: -0.09924878485 | X39: =SUM(C39:L39) -> -0.8973298203
B41: NIG | C41: ='02 (a). FCL Agregado'!C45 -> -0.6148275825 | D41: ='02 (a). FCL Agregado'!D45 -> -0.1440597433 | E41: ='02 (a). FCL Agregado'!E45 -> -0.02153983688 | F41: ='02 (a). FCL Agregado'!F45 -> -0.02153983688 | G41: ='02 (a). FCL Agregado'!G45 -> -0.02153983688 | H41: ='02 (a). FCL Agregado'!H45 -> -0.02153983688 | I41: ='02 (a). FCL Agregado'!I45 -> -0.02153983688 | J41: ='02 (a). FCL Agregado'!J45 -> -0.02153983688 | K41: ='02 (a). FCL Agregado'!K45 -> -0.02153983688 | L41: ='02 (a). FCL Agregado'!L45 -> -0.02153983688 | M41: ='02 (a). FCL Agregado'!M45 -> -0.02153983688 | N41: ='02 (a). FCL Agregado'!N45 -> -0.02153983688 | O41: ='02 (a). FCL Agregado'!O45 -> -0.02153983688 | P41: ='02 (a). FCL Agregado'!P45 -> -0.02153983688 | Q41: ='02 (a). FCL Agregado'!Q45 -> -0.02153983688 | R41: ='02 (a). FCL Agregado'!R45 -> -0.02153983688 | S41: ='02 (a). FCL Agregado'!S45 -> -0.02153983688 | T41: ='02 (a). FCL Agregado'!T45 -> -0.02153983688 | U41: ='02 (a). FCL Agregado'!U45 -> -0.02153983688 | V41: ='02 (a). FCL Agregado'!V45 -> 0.7179945626 | X41: =SUM(C41:L41) -> -0.9312060209
B43: Saldo Caixa | C43: =C33+C35+C37+C39+C41 -> -53.35070031 | D43: =D33+D35+D37+D39+D41 -> -8.496135677 | E43: -8.373615771 | F43: -8.373615771 | G43: -8.373615771 | H43: -8.373615771 | I43: -8.373615771 | J43: -8.373615771 | K43: -8.373615771 | L43: -8.373615771 | M43: =M33+M35+M37+M39+M41 -> -8.373615771 | N43: -8.373615771 | O43: -8.373615771 | P43: -8.373615771 | Q43: -8.373615771 | R43: -8.373615771 | S43: -8.373615771 | T43: -8.373615771 | U43: -8.373615771 | V43: -7.634081371 | X43: =SUM(C43:L43) -> -128.8357622
B45: VPL - Ano 0 - Real | C45: ='08. (a)TRIBUTOS LREAL'!C106 -> -53.34660955 | D45: ='08. (a)TRIBUTOS LREAL'!D106 -> -7.144454989 | E45: ='08. (a)TRIBUTOS LREAL'!E106 -> -6.493980508 | F45: ='08. (a)TRIBUTOS LREAL'!F106 -> -5.990131844 | G45: ='08. (a)TRIBUTOS LREAL'!G106 -> -5.525375301 | H45: ='08. (a)TRIBUTOS LREAL'!H106 -> -5.096677838 | I45: ='08. (a)TRIBUTOS LREAL'!I106 -> -4.701241739 | J45: ='08. (a)TRIBUTOS LREAL'!J106 -> -4.336486352 | K45: ='08. (a)TRIBUTOS LREAL'!K106 -> -4.000031252 | L45: ='08. (a)TRIBUTOS LREAL'!L106 -> -3.689680705 | M45: ='08. (a)TRIBUTOS LREAL'!M106 -> 0 | N45: ='08. (a)TRIBUTOS LREAL'!N106 -> -79.65358228 | O45: ='08. (a)TRIBUTOS LREAL'!O106 -> 0 | P45: ='08. (a)TRIBUTOS LREAL'!P106 -> -42.1166794 | Q45: ='08. (a)TRIBUTOS LREAL'!Q106 -> 0 | R45: ='08. (a)TRIBUTOS LREAL'!R106 -> 0 | S45: ='08. (a)TRIBUTOS LREAL'!S106 -> 0 | T45: ='08. (a)TRIBUTOS LREAL'!T106 -> 0 | U45: ='08. (a)TRIBUTOS LREAL'!U106 -> 0 | V45: ='08. (a)TRIBUTOS LREAL'!V106 -> 0 | X45: =SUM(C45:L45) -> -100.3246701
B47: VPL - Ano 0 - Presumido | C47: =C43 -> -53.35070031 | D47: =D43/((1+D51)*(1+C55)) -> -7.228900389 | E47: =E43/((1+E51)*(1+D55)) -> -6.571874041 | F47: -6.061981848 | G47: -5.591650677 | H47: -5.157811105 | I47: -4.757631856 | J47: -4.388501328 | K47: -4.048010541 | L47: -3.733937423 | M47: =M43/((1+M51)*(1+L55)) -> -3.444232306 | N47: =N43/((1+N51)*(1+M55)) -> -3.177004548 | O47: =O43/((1+O51)*(1+N55)) -> -2.930510199 | P47: =P43/((1+P51)*(1+O55)) -> -2.703140615 | Q47: =Q43/((1+Q51)*(1+P55)) -> -2.493411961 | R47: =R43/((1+R51)*(1+Q55)) -> -2.299955531 | S47: =S43/((1+S51)*(1+R55)) -> -2.121508811 | T47: =T43/((1+T51)*(1+S55)) -> -1.956907241 | U47: =U43/((1+U51)*(1+T55)) -> -1.805076619 | V47: =V43/((1+V51)*(1+U55)) -> -1.517975623 | X47: =SUM(C47:L47) -> -100.8909995
B49: Regime escolhido | C49: =IF(C47>C45,"Pres.","Real") -> Real | D49: =IF(D47>D45,"Pres.","Real") -> Real | E49: Real | F49: Real | G49: Real | H49: Real | I49: Real | J49: Real | K49: Real | L49: Real | M49: =IF(M47>M45,"Pres.","Real") -> Real | N49: Pres. | O49: Real | P49: Pres. | Q49: Real | R49: Real | S49: Real | T49: Real | U49: Real | V49: Real
B51: WACC presumido | C51: ='03. WACC '!G27 -> 0.105982874 | D51: ='01. PC'!$C$9 -> 0.08411311767 | E51: ='01. PC'!$C$9 -> 0.08411311767 | F51: ='01. PC'!$C$9 -> 0.08411311767 | G51: ='01. PC'!$C$9 -> 0.08411311767 | H51: ='01. PC'!$C$9 -> 0.08411311767 | I51: ='01. PC'!$C$9 -> 0.08411311767 | J51: ='01. PC'!$C$9 -> 0.08411311767 | K51: ='01. PC'!$C$9 -> 0.08411311767 | L51: ='01. PC'!$C$9 -> 0.08411311767 | M51: ='01. PC'!$C$9 -> 0.08411311767 | N51: ='01. PC'!$C$9 -> 0.08411311767 | O51: ='01. PC'!$C$9 -> 0.08411311767 | P51: ='01. PC'!$C$9 -> 0.08411311767 | Q51: ='01. PC'!$C$9 -> 0.08411311767 | R51: ='01. PC'!$C$9 -> 0.08411311767 | S51: ='01. PC'!$C$9 -> 0.08411311767 | T51: ='01. PC'!$C$9 -> 0.08411311767 | U51: ='01. PC'!$C$9 -> 0.08411311767 | V51: ='01. PC'!$C$9 -> 0.08411311767
B53: WACC escolhido | C53: =IF(C49="real",'08. (a)TRIBUTOS LREAL'!C114,'08. (b)TRIBUTOS LPRESUMID'!C51) -> 0.08411311767 | D53: =IF(D49="real",'08. (a)TRIBUTOS LREAL'!D114,'08. (b)TRIBUTOS LPRESUMID'!D51) -> 0.08411311767 | E53: =IF(E49="real",'08. (a)TRIBUTOS LREAL'!E114,'08. (b)TRIBUTOS LPRESUMID'!E51) -> 0.08411311767 | F53: =IF(F49="real",'08. (a)TRIBUTOS LREAL'!F114,'08. (b)TRIBUTOS LPRESUMID'!F51) -> 0.08411311767 | G53: =IF(G49="real",'08. (a)TRIBUTOS LREAL'!G114,'08. (b)TRIBUTOS LPRESUMID'!G51) -> 0.08411311767 | H53: =IF(H49="real",'08. (a)TRIBUTOS LREAL'!H114,'08. (b)TRIBUTOS LPRESUMID'!H51) -> 0.08411311767 | I53: =IF(I49="real",'08. (a)TRIBUTOS LREAL'!I114,'08. (b)TRIBUTOS LPRESUMID'!I51) -> 0.08411311767 | J53: =IF(J49="real",'08. (a)TRIBUTOS LREAL'!J114,'08. (b)TRIBUTOS LPRESUMID'!J51) -> 0.08411311767 | K53: =IF(K49="real",'08. (a)TRIBUTOS LREAL'!K114,'08. (b)TRIBUTOS LPRESUMID'!K51) -> 0.08411311767 | L53: =IF(L49="real",'08. (a)TRIBUTOS LREAL'!L114,'08. (b)TRIBUTOS LPRESUMID'!L51) -> 0.08411311767 | M53: =IF(M49="real",'08. (a)TRIBUTOS LREAL'!M114,'08. (b)TRIBUTOS LPRESUMID'!M51) -> 0.08411311767 | N53: =IF(N49="real",'08. (a)TRIBUTOS LREAL'!N114,'08. (b)TRIBUTOS LPRESUMID'!N51) -> 0.08411311767 | O53: =IF(O49="real",'08. (a)TRIBUTOS LREAL'!O114,'08. (b)TRIBUTOS LPRESUMID'!O51) -> 0.08411311767 | P53: =IF(P49="real",'08. (a)TRIBUTOS LREAL'!P114,'08. (b)TRIBUTOS LPRESUMID'!P51) -> 0.08411311767 | Q53: =IF(Q49="real",'08. (a)TRIBUTOS LREAL'!Q114,'08. (b)TRIBUTOS LPRESUMID'!Q51) -> 0.08411311767 | R53: =IF(R49="real",'08. (a)TRIBUTOS LREAL'!R114,'08. (b)TRIBUTOS LPRESUMID'!R51) -> 0.08411311767 | S53: =IF(S49="real",'08. (a)TRIBUTOS LREAL'!S114,'08. (b)TRIBUTOS LPRESUMID'!S51) -> 0.08411311767 | T53: =IF(T49="real",'08. (a)TRIBUTOS LREAL'!T114,'08. (b)TRIBUTOS LPRESUMID'!T51) -> 0.08411311767 | U53: =IF(U49="real",'08. (a)TRIBUTOS LREAL'!U114,'08. (b)TRIBUTOS LPRESUMID'!U51) -> 0.08411311767 | V53: =IF(V49="real",'08. (a)TRIBUTOS LREAL'!V114,'08. (b)TRIBUTOS LPRESUMID'!V51) -> 0.08411311767
